Workbook

Sheet backupL (hidden)
A1: =COUNTA(C3:C3190) -> 1407 | D1: THISLANGUAGE | F1: 0 | G1: 1 | H1: 2 | I1: 3
C2: =regionname(0) ->  | D2: =regionsname(0) ->  | F2: =DistrictsEnglish -> 0
C3: pub | D3: caption | F3: english | G3: FRENCH | H3: PORTUGUESE | I3: SPANISH
C4: activitycosts | D4: notItem | E4: =+C4&D4 -> activitycostsnotItem | F4: Not itemized costs | G4: Coûts non détaillés | H4: Custos não especificados | I4: Costos no detallados
C5: activitycosts | D5: notItemPer | E5: activitycostsnotItemPer | F5: Not itemized cost per | G5: Coûts non détaillés par | H5: Custos não especificados por | I5: Costos no detallados por
C6: AO01 | D6: # of Districts | E6: AO01# of Districts | F6: ="# of " & DistrictsEnglish -> # of | G6: ="Nbre de " & DistrictsFrench -> Nbre de | H6: ="# de " & DistrictsPortuguese -> # de | I6: ="Nro. de " & DistrictsSpanish -> Nro. de
C7: AO01 | D7: Activity | E7: AO01Activity | F7: Activity | G7: Activité | H7: Actividade | I7: Actividad
C8: AO01 | D8: Category | E8: AO01Category | F8: Category | G8: Catégorie | H8: Categoria | I8: Categoría
C9: AO01 | D9: Comment | E9: AO01Comment | F9: Comment | G9: Commentaire | H9: Comentário | I9: Comentario
C10: AO01 | D10: Cost | E10: AO01Cost | F10: Cost | G10: Coût | H10: Custo | I10: Costo
C11: AO01 | D11: Cost classification | E11: AO01Cost classification | F11: Cost classification | G11: Classification de coût | H11: Classificação de custos | I11: Clasificación de costos
C12: AO01 | D12: Description | E12: AO01Description | F12: Description | G12: Description | H12: Descrição | I12: Descripción
C13: AO01 | D13: Other | E13: AO01Other | F13: Other | G13: Autre | H13: Outros | I13: Otras
C14: AO01 | D14: Running total | E14: AO01Running total | F14: Running total | G14: Total cumulatif | H14: Custo de funcionamento total | I14: Total acumulado
C15: AO01 | D15: Subactivity | E15: AO01Subactivity | F15: Subactivity | G15: Sous-activité | H15: Sub-actividade | I15: Subactividad
C16: AO01 | D16: Summary | E16: AO01Summary | F16: Summary | G16: Résumé | H16: Resumo | I16: Resumen
C17: AO02 | D17: fundinggap | E17: AO02fundinggap | F17: Funding gap* | G17: Besoin de financement* | H17: Défice de financiamento* | I17: Déficit de financiamiento*
C18: AO02 | D18: govDA | E18: AO02govDA | F18: Government Drug Acquisition | G18: Acquisition de médicaments de l'état | H18: Aquisição de medicamentos do estado | I18: Compra de medicamentos del gobierno
C19: AO02 | D19: govfunding | E19: AO02govfunding | F19: Government funding | G19: Financement de l'état | H19: Financiamento do estado | I19: Financiamiento gubernamental
C20: AO02 | D20: govsalaries | E20: AO02govsalaries | F20: Government salaries | G20: Salaires de l'état | H20: Salários do estado | I20: Salarios del gobierno
C21: AO02 | D21: itx | E21: AO02itx | F21: In-kind clearance fees | G21: Droits de dédouanement en nature | H21: Taxas de alfândega em géneros | I21: Cuotas de certificación de aduanas en especies
C22: AO02 | D22: Output 2 | E22: AO02Output 2 | F22: TIPAC generated | G22: Produit par TIPAC | H22: gerado pela TIPAC | I22: Generado por TIPAC
C23: AO02 | D23: percent | E23: AO02percent | F23: Percent | G23: Pourcentage | H23: Percentagem | I23: Porcentaje
C24: AO02 | D24: sources | E24: AO02sources | F24: Program Funding Sources* | G24: Sources de financement du programme* | H24: Fontes de financiamento do programa* | I24: Fuentes del financiamiento del programa
C25: AO02 | D25: title | E25: AO02title | F25: Total program funding | G25: Financement total du programme | H25: Financiamento total do programa | I25: Financiamiento total del programa
C26: AO02 | D26: total | E26: AO02total | F26: Total | G26: Total | H26: Total | I26: Total
C27: AO02 | D27: totalcosts | E27: AO02totalcosts | F27: Total program costs* | G27: Coûts totaux du programme* | H27: Custo total do programa* | I27: Costo total del programa*
C28: AO02 | D28: totalfunding | E28: AO02totalfunding | F28: Total program funding * | G28: Financement total du programme * | H28: Financiamento total do programa* | I28: Total de financiamiento del programa*
C29: AO03 | D29: B1act | E29: AO03B1act | F29: Total cost by activity | G29: Coût total par activité | H29: Custo total por actividade | I29: Costos totales por actividad
C30: AO03 | D30: B1dist | E30: AO03B1dist | F30: ="Total cost by " & lDistrictEnglish -> Total cost by | G30: ="Coût total par " & lDistrictFrench -> Coût total par | H30: ="Coût total par " & lDistrictPortuguese -> Coût total par | I30: ="Coût total por " & lDistrictSpanish -> Coût total por
C31: AO03 | D31: B1sub | E31: AO03B1sub | F31: Total cost by sub-activity | G31: Coût total par sous-activité | H31: Custo total por sub-actividade | I31: Costo total por subactividad
C32: AO03 | D32: B3 | E32: AO03B3 | F32: Total costs* | G32: Coûts totaux* | H32: Custos totais* | I32: Costos totales*
C33: AO03 | D33: B7act | E33: AO03B7act | F33: Activity | G33: Activité | H33: Actividade | I33: Actividad
C34: AO03 | D34: B7dist | E34: AO03B7dist | F34: =DistrictsEnglish -> 0 | G34: =DistrictsFrench -> 0 | H34: =DistrictsPortuguese -> 0 | I34: =DistrictsSpanish -> 0
C35: AO03 | D35: B7sub | E35: AO03B7sub | F35: Subactivity | G35: Sous-activité | H35: Sub-actividade | I35: Subactividad
C36: AO03 | D36: C7 | E36: AO03C7 | F36: Total | G36: Total | H36: Total | I36: Total
C37: AO03 | D37: CHARTTITLE | E37: AO03CHARTTITLE | F37: Total cost by activity | G37: Coût total par activité | H37: Custo total por actividade | I37: Costo total por actividad
C38: AO03 | D38: D7 | E38: AO03D7 | F38: Percent | G38: Pourcentage | H38: Percentagem | I38: Porcentaje
C39: AO03 | D39: DA | E39: AO03DA | F39: Drug Acquisition | G39: Acquisition de médicaments | H39: Aquisição de medicamentos | I39: Compra de medicamentos
C40: AO03 | D40: govsalaries | E40: AO03govsalaries | F40: Government salaries | G40: Salaires de l'état | H40: Salários do estado | I40: Salarios del gobierno
C41: AO03 | D41: itx | E41: AO03itx | F41: In-kind clearance fees | G41: Droits de dédouanement en nature | H41: Taxas de alfândega em géneros | I41: Cuotas de certificación de aduanas en especies
C42: AO03 | D42: Output 3 | E42: AO03Output 3 | F42: Total program funding * | G42: Financement total du programme * | H42: Financiamento total do programa* | I42: Total de financiamiento del programa*
C43: AO03 | D43: Output 3 | E43: AO03Output 3 | F43: Funding gap* | G43: Besoin de financement* | H43: Défice de financiamento* | I43: Déficit de financiamiento*
C44: AO03 | D44: title | E44: AO03title | F44: ="Total costs by activity, sub-activity, or " & lDistrictEnglish -> Total costs by activity, sub-activity, or | G44: ="Coûts totaux par activité, sous-activité ou " & lDistrictFrench -> Coûts totaux par activité, sous-activité ou | H44: ="Custos totais por actividade, sub-actividade ou " & lDistrictPortuguese -> Custos totais por actividade, sub-actividade ou | I44: ="Costos totales por actividad, subactividad o " & lDistrictSpanish -> Costos totales por actividad, subactividad o
C45: AO04 | D45: B7act | E45: AO04B7act | F45: Activity | G45: Activité | H45: Actividade | I45: Actividad
C46: AO04 | D46: B7dist | E46: AO04B7dist | F46: =DistrictsEnglish -> 0 | G46: =DistrictsFrench -> 0 | H46: =DistrictsPortuguese -> 0 | I46: =DistrictsSpanish -> 0
C47: AO04 | D47: B7sub | E47: AO04B7sub | F47: Subactivity | G47: Sous-activité | H47: Sub-actividade | I47: Subactividad
C48: AO04 | D48: costs | E48: AO04costs | F48: Costs | G48: Coûts | H48: Custos | I48: Costos
C49: AO04 | D49: funding | E49: AO04funding | F49: Funding | G49: Financement | H49: Financiamento | I49: Financiamiento
C50: AO04 | D50: fundinggap | E50: AO04fundinggap | F50: Funding gap* | G50: Besoin de financement* | H50: Défice de financiamento* | I50: Déficit de financiamiento*
C51: AO04 | D51: gap | E51: AO04gap | F51: Gap | G51: Besoin | H51: Défice | I51: Déficit
C52: AO04 | D52: govDA | E52: AO04govDA | F52: Government Drug Acquisition | G52: Acquisition de médicaments de l'état | H52: Aquisição de medicamentos do estado | I52: Compra de medicamentos del gobierno
C53: AO04 | D53: govfunding | E53: AO04govfunding | F53: Government funding | G53: Financement de l'état | H53: Financiamento do estado | I53: Financiamiento del gobierno
C54: AO04 | D54: govsalaries | E54: AO04govsalaries | F54: Government salaries | G54: Salaires de l'état | H54: Salários do estado | I54: Salarios del gobierno
C55: AO04 | D55: itx | E55: AO04itx | F55: In-kind clearance fees | G55: Droits de dédouanement en nature | H55: Taxas de alfândega em géneros | I55: Cuotas de certificación de aduanas en especies
C56: AO04 | D56: Output 2 | E56: AO04Output 2 | F56: TIPAC generated | G56: Produit par TIPAC | H56: gerado pela TIPAC | I56: Generado por TIPAC
C57: AO04 | D57: sources | E57: AO04sources | F57: Program Funding Sources* | G57: Sources de financement du programme* | H57: Fontes de financiamento do programa* | I57: Fuentes del financiamiento del programa
C58: AO04 | D58: title | E58: AO04title | F58: ="Total costs, funding, and gap by activity, sub-activity, or " & lDistrictEnglish -> Total costs, funding, and gap by activity, sub-activity, or | G58: ="Coûts totaux, financement et besoin de financement par activité, sous-activité ou " & lDistrictFrench -> Coûts totaux, financement et besoin de financement par activité, sous-activité ou | H58: ="Custos totais, financiamento e défice por actividade, sub-actividade ou " & lDistrictPortuguese -> Custos totais, financiamento e défice por actividade, sub-actividade ou | I58: ="Costos totales, financiamiento y déficit por actividad, subactividad o " & lDistrictSpanish -> Costos totales, financiamiento y déficit por actividad, subactividad o
C59: AO04 | D59: totalcosts | E59: AO04totalcosts | F59: Total program costs* | G59: Coûts totaux du programme* | H59: Custo total do programa* | I59: Costo total del programa*
C60: AO04 | D60: totalfunding | E60: AO04totalfunding | F60: Total program funding * | G60: Financement total du programme * | H60: Financiamento total do programa* | I60: Total de financiamiento del programa*
C61: AO05 | D61: B1 | E61: AO05B1 | F61: Five-year cost projections | G61: Projections de coût sur cinq ans | H61: Projecção de custos a cinco anos | I61: Proyección de costos a cinco años
C62: AO05 | D62: B16act | E62: AO05B16act | F62: Activity | G62: Activité | H62: Actividade | I62: Actividad
C63: AO05 | D63: B16sub | E63: AO05B16sub | F63: Subactivity | G63: Sous-activité | H63: Sub-actividade | I63: Subactividad
C64: AO05 | D64: B16sum | E64: AO05B16sum | F64: Summary | G64: Résumé | H64: Resumo | I64: Resumen
C65: AO05 | D65: b17 | E65: AO05b17 | F65: Total | G65: Total | H65: Total | I65: Total
C66: AO06 | D66: B1 | E66: AO06B1 | F66: PCT-drugs needed, acquired, and gap | G66: Médicaments CTP nécessaires, acquis, et besoin | H66: Medicamentos TPQ necessários, adquiridos e défice | I66: Medicamentos de QP necesarios, adquiridos, y déficit
C67: AO06 | D67: B4 | E67: AO06B4 | F67: Drug | G67: Médicaments | H67: Medicamentos | I67: Medicamentos
C68: AO06 | D68: C4 | E68: =+C68&D68 -> AO06C4 | F68: Manufacturer | G68: Fabricant | H68: Fabricante | I68: Fabricante
C69: AO06 | D69: CHARTTITLE | E69: AO06CHARTTITLE | F69: Percent of PCT-NTD drugs funded | G69: Pourcentage des médicaments CTP-MTN financés | H69: Percentagem de medicamentos TPQ-DTN financiados | I69: Porcentaje de medicamentos de QP para EID financiados
C70: AO06 | D70: D4 | E70: AO06D4 | F70: Donor | G70: Donneur | H70: Doador | I70: Donante
C71: AO06 | D71: E3 | E71: AO06E3 | F71: Total needed | G71: Total nécessaire | H71: Total necessário | I71: Total necesario
C72: AO06 | D72: E4mv | E72: AO06E4mv | F72: (in $$) | G72: (en $$) | H72: (em $$) | I72: (en $$)
C73: AO06 | D73: E4unit | E73: AO06E4unit | F73: (in units) | G73: (en unités) | H73: (em unidades) | I73: (en unidades)
C74: AO06 | D74: F3 | E74: AO06F3 | F74: Total stock | G74: Stocks totaux | H74: Stock total | I74: Inventario total
C75: AO06 | D75: F4mv | E75: AO06F4mv | F75: (in $$) | G75: (en $$) | H75: (em $$) | I75: (en $$)
C76: AO06 | D76: F4unit | E76: AO06F4unit | F76: (in units) | G76: (en unités) | H76: (em unidades) | I76: (en unidades)
C77: AO06 | D77: G3 | E77: AO06G3 | F77: Total funded | G77: Total financé | H77: Total financiado | I77: Total financiado
C78: AO06 | D78: G4mv | E78: AO06G4mv | F78: (in $$) | G78: (en $$) | H78: (em $$) | I78: (en $$)
C79: AO06 | D79: G4mv | E79: AO06G4mv | F79: (in $$) | G79: (en $$) | H79: (em $$) | I79: (en $$)
C80: AO06 | D80: G4unit | E80: AO06G4unit | F80: (in units) | G80: (en unités) | H80: (em unidades) | I80: (en unidades)
C81: AO06 | D81: G4unit | E81: AO06G4unit | F81: (in units) | G81: (en unités) | H81: (em unidades) | I81: (en unidades)
C82: AO06 | D82: H3 | E82: AO06H3 | F82: Gap | G82: Besoin de financement | H82: Défice | I82: Déficit
C83: AO06 | D83: H4mv | E83: AO06H4mv | F83: (in $$) | G83: (en $$) | H83: (em $$) | I83: (en $$)
C84: AO06 | D84: H4unit | E84: AO06H4unit | F84: (in units) | G84: (en unités) | H84: (em unidades) | I84: (en unidades)
C85: AO07 | D85: B1 | E85: AO07B1 | F85: Five-year PCT-drug forecast | G85: Prévisions des médicaments CTP sur cinq ans | H85: Previsão de medicamentos TPQ a cinco anos | I85: Proyección a cinco años de requerimientos de medicamentos para QP
C86: AO07 | D86: B3 | E86: AO07B3 | F86: Drug | G86: Médicaments | H86: Medicamentos | I86: Medicamentos
C87: AO07 | D87: H3 | E87: AO07H3 | F87: Total | G87: Total | H87: Total | I87: Total
C88: AO08 | D88: B1 | E88: AO08B1 | F88: MDA target population summary | G88: Récapitulatif de la population TDM cible | H88: Resumo da população alvo da AMM | I88: Resumen de población objeto de AMM
C89: AO08 | D89: B12 | E89: AO08B12 | F89: STH ROUND 2 | G89: GeoH série 2 | H89: Série HTS 2 | I89: Ronda 2 HTS
C90: AO08 | D90: B13 | E90: AO08B13 | F90: Trachoma | G90: Trachôme | H90: Tracoma | I90: TRA
C91: AO08 | D91: B3 | E91: AO08B3 | F91: Disease | G91: Maladie | H91: Doença | I91: Enfermedad
C92: AO08 | D92: B4 | E92: AO08B4 | F92: LF | G92: FL | H92: FL | I92: FL
C93: AO08 | D93: B5 | E93: AO08B5 | F93: ONCHO ROUND 1 | G93: ONCHO série 1 | H93: Série ONCO 1 | I93: Ronda 1 ONCO
C94: AO08 | D94: B6 | E94: AO08B6 | F94: ONCHO ROUND 2 | G94: ONCHO série 2 | H94: Série ONCO 2 | I94: Ronda 2 ONCO
C95: AO08 | D95: B7 | E95: AO08B7 | F95: SCH | G95: SCH | H95: SCH | I95: ESQ
C96: AO08 | D96: B9 | E96: AO08B9 | F96: STH ROUND 1 | G96: GeoH série 1 | H96: Série HTS 1 | I96: Ronda 1 HTS
C97: AO08 | D97: C10 | E97: AO08C10 | F97: School age | G97: D'âge scolaire | H97: Idade escolar | I97: ESTH en edad escolar
C98: AO08 | D98: C11 | E98: AO08C11 | F98: High-risk adults | G98: Adulte à haut risque | H98: Adulto de alto risco | I98: Adulto de alto riesgo
C99: AO08 | D99: C13 | E99: AO08C13 | F99: < 6 months: | G99: < 6 mois | H99: < 6 meses | I99: < 6 meses
C100: AO08 | D100: C14 | E100: AO08C14 | F100: 6-59 months | G100: 6 à 59 mois | H100: 6-59 meses | I100: 6-59 meses
C101: AO08 | D101: C15 | E101: AO08C15 | F101: > 5 years | G101: ≥ 5 ans | H101: ≥5 anos | I101: ≥ 5 años
C102: AO08 | D102: C3 | E102: AO08C3 | F102: Target age group | G102: Tranche d'âge cible | H102: Grupo etário alvo | I102: Grupo de edad beneficiario
C103: AO08 | D103: C4a | E103: AO08C4a | F103: > 2 years | G103: ≥ 2 ans | H103: ≥ 2 anos | I103: ≥ 2 años
C104: AO08 | D104: C4b | E104: AO08C4b | F104: > 5 years | G104: ≥ 5 ans | H104: ≥5 anos | I104: ≥ 5 años
C105: AO08 | D105: C5 | E105: AO08C5 | F105: > 5 years | G105: ≥ 5 ans | H105: ≥5 anos | I105: ≥ 5 años
C106: AO08 | D106: C6 | E106: AO08C6 | F106: > 5 years | G106: ≥ 5 ans | H106: ≥5 anos | I106: ≥ 5 años
C107: AO08 | D107: C7 | E107: AO08C7 | F107: School aged | G107: âge scolaire | H107: Idade escolar | I107: Edad escolar
C108: AO08 | D108: C8 | E108: AO08C8 | F108: High-risk adults | G108: Adulte à haut risque | H108: Adulto de alto risco | I108: Adulto de alto riesgo
C109: AO08 | D109: C9 | E109: AO08C9 | F109: Pre-school age | G109: D'âge préscolaire | H109: Idade pré-escolar | I109: Edad preescolar
C110: AO08 | D110: D_h3 | E110: AO08D_h3 | F110: Target population | G110: Population cible | H110: População alvo | I110: Población objeto
C111: AO08 | D111: I_M3 | E111: AO08I_M3 | F111: ="Number of " & lDistrictsEnglish -> Number of | G111: ="Nombre de " & lDistrictsFrench -> Nombre de | H111: ="Número de " & lDistrictsPortuguese & "abrangidos" -> Número de abrangidos | I111: ="Número de " & lDistrictsSpanish -> Número de
C112: AO09 | D112: B1 | E112: AO09B1 | F112: ="Five-year MDA target population projections by " & lDistrictEnglish -> Five-year MDA target population projections by | G112: ="Prévisions de population TDM cible sur cinq ans par " & lDistrictFrench -> Prévisions de population TDM cible sur cinq ans par | H112: ="Projecção da população alvo da AMM por " & lDistrictPortuguese & " a cinco anos" -> Projecção da população alvo da AMM por a cinco anos | I112: Proyección a cinco años de población objeto de AMM por distrito
C113: AO09 | D113: b19 | E113: AO09b19 | F113: =DistrictEnglish -> 0 | G113: =DistrictFrench -> 0 | H113: =DistrictPortuguese -> 0 | I113: =DistrictSpanish -> 0
C114: AO09 | D114: b20 | E114: AO09b20 | F114: Total | G114: Total | H114: Total | I114: Total
C115: AO09 | D115: c19 | E115: AO09c19 | F115: LF Disease Burden Code | G115: FL code de charge de maladie | H115: FL código de carga da doença | I115: FL código de carga de enfermedad
C116: AO09 | D116: charttitle | E116: AO09charttitle | F116: Five-year MDA target populations | G116: Prévisions de population TDM cible sur cinq ans | H116: Projecção da população alvo da AMM a cinco anos | I116: Proyecciones quinquenales de población objeto de AMM
C117: AO09 | D117: d19 | E117: AO09d19 | F117: ONCHO Disease Burden Code | G117: ONCHO code de charge de maladie | H117: ONCO código de carga da doença | I117: ONCO código de carga de enfermedad
C118: AO09 | D118: e19 | E118: AO09e19 | F118: SCH Disease Burden Code | G118: SCH code de charge de maladie | H118: SCH código de carga da doença | I118: ESQ código de carga de enfermedad
C119: AO09 | D119: f19 | E119: AO09f19 | F119: STH Disease Burden Code | G119: GeoH code de charge de maladie | H119: HTS código de carga da doença | I119: HTS código de carga de enfermedad
C120: AO09 | D120: g19 | E120: AO09g19 | F120: Trachoma Disease Burden Code | G120: Trachôme code de charge de maladie | H120: Tracoma código de carga da doença | I120: TRA código de carga de enfermedad
C121: AO10 | D121: B1 | E121: AO10B1 | F121: Cost per person targeted by NTD | G121: Coût par personne ciblée par MTN | H121: Custo por pessoa abrangida pelo programa DTN | I121: Costo por persona beneficiaria y por EID
C122: AO10 | D122: B4 | E122: AO10B4 | F122: Total program costs* | G122: Coûts totaux du programme* | H122: Custo total do programa* | I122: Costo total del programa*
C123: AO10 | D123: B5 | E123: AO10B5 | F123: Number of persons targeted ** | G123: Nombre de personnes ciblées ** | H123: Número de pessoas abrangidas** | I123: Número de personas beneficiarias**
C124: AO10 | D124: B6 | E124: AO10B6 | F124: Cost per person targeted by NTD | G124: Coût par personne ciblée | H124: Custo por pessoa abrangida | I124: Costo por persona beneficiaria y por EID
C125: AO10 | D125: B7 | E125: AO10B7 | F125: ="Number of " &lDistrictsEnglish& " targeted" -> Number of targeted | G125: ="Nombre de " & lDistrictsFrench & " ciblés" -> Nombre de ciblés | H125: ="Número de " & lDistrictsPortuguese & " abrangidos" -> Número de abrangidos | I125: ="Número de " & lDistrictsSpanish & " beneficiarios" -> Número de beneficiarios
C126: AO10 | D126: C3 | E126: AO10C3 | F126: Total | G126: Total | H126: Total | I126: Total
C127: AO10 | D127: D3 | E127: AO10D3 | F127: LF | G127: FL | H127: FL | I127: FL
C128: AO10 | D128: E3 | E128: AO10E3 | F128: ONCHO | G128: ONCHO | H128: ONCO | I128: ONCO
C129: AO10 | D129: F3 | E129: AO10F3 | F129: SCH | G129: SCH | H129: SCH | I129: ESQ
C130: AO10 | D130: Foot2 | E130: AO10Foot2 | F130: ** Persons targeted for ONCHO and STH only include Round 1. The FGAT assumes Round 2 persons were also targeted in Round 1 and therefore does not count them twice. Costs, however, include both rounds if applicable. | G130: ** Les personnes ciblées par ONCHO et GeoH incluent seulement la Série 1. Le FGAT suppose que les personnes de la Série 2 ont aussi été ciblées lors de la Série 1 et il ne les compte donc pas deux fois. Toutefois, les coûts incluent les deux séries si cela est approprié. | H130: Os indivíduos abrangidos pela ONCO ou HTS apenas incluem a Série 1. A ferramenta de análise do défice de financiamento (FGAT) pressupõe que os indivíduos na Série 2 foram também abrangidos na Série 1 e por isso estes não são contabilizados duas vezes. Contudo, os custos inclue ambas as séries, se aplicável. | I130: ** Las personas beneficiarias para ONCO y HTS solo incluyen la Ronda 1. La TIPAC asume que las personas de la Ronda 2 también fueron beneficiarias en la Ronda 1 y por lo tanto no las cuenta dos veces. Sin embargo, los costos incluyen ambas rondas cuando es pertinente.
C131: AO10 | D131: G3 | E131: AO10G3 | F131: STH | G131: GeoH | H131: HTS | I131: HTS
C132: AO10 | D132: H3 | E132: =+C132&D132 -> AO10H3 | F132: Trachoma | G132: Trachôme | H132: Tracoma | I132: TRA
C133: AO10 | D133: I3 | E133: AO10I3 | F133: Other | G133: Autre | H133: Outros | I133: Otras
C134: AO11 | D134: B1 | E134: AO11B1 | F134: Government salary contribution | G134: Contribution des salaires d'état | H134: Contribuição salarial do governo | I134: Contribución gubernamental a salarios
C135: AO11 | D135: B3 | E135: AO11B3 | F135: Personnel | G135: Personnel | H135: Funcionários | I135: Personal
C136: AO11 | D136: C3 | E136: AO11C3 | F136: FTE? | G136: FTE ? | H136: Equivalente a tempo inteiro? | I136: ¿Empleado de dedicación exclusiva (EDE)?
C137: AO11 | D137: D3 | E137: AO11D3 | F137: # of FTE | G137: Nbre de FTE | H137: # de equivalentes a tempo inteiro | I137: Nro. de EDE
C138: AO11 | D138: E3 | E138: AO11E3 | F138: Total Days | G138: Jours totaux | H138: Total de dias | I138: Días totales
C139: AO11 | D139: F3 | E139: AO11F3 | F139: Annual salary | G139: Salaire annuel | H139: Salário annual | I139: Salario annual
C140: AO11 | D140: G3 | E140: AO11G3 | F140: Salary contribution | G140: Contribution des salaires | H140: Contribuição salarial | I140: Contribución a salario
C141: AO12 | D141: B1 | E141: AO12B1 | F141: Completion status by activity, sub-activity | G141: État d'achèvement par activité, sous-activité | H141: Estatuto por actividade, sub-actividade | I141: Estado de terminación por actividad, subactividad
C142: AO12 | D142: B3 | E142: AO12B3 | F142: Activities | G142: Activités | H142: Actividades | I142: Actividades
C143: AO12 | D143: E3 | E143: AO12E3 | F143: Sub-activities | G143: Sous-activités | H143: Sub-actividades | I143: Subactividades
C144: AO13 | D144: B1 | E144: AO13B1 | F144: Annual work plan matrix and timeline | G144: Matrice du plan de travail annuel et calendrier | H144: Calendário e matriz do plano anual de trabalhos | I144: Matriz de planificación y cronograma
C145: AO13 | D145: B4A | E145: AO13B4A | F145: Activities | G145: Activités | H145: Actividades | I145: Actividades
C146: AO13 | D146: B4AD | E146: AO13B4AD | F146: ="Activities - " & DistrictsEnglish -> Activities - | G146: ="Activités - " & DistrictsFrench -> Activités - | H146: ="Actividades - " & DistrictsPortuguese -> Actividades - | I146: ="Actividades - " & DistrictsSpanish -> Actividades -
C147: AO13 | D147: B4AS | E147: AO13B4AS | F147: Activities - Sub-activities | G147: Activités - Sous-activités | H147: Actividades - Sub-actividades | I147: Actividades - Subactividades
C148: AO13 | D148: B4ASD | E148: AO13B4ASD | F148: ="Activities - Sub-activities - " & DistrictsEnglish -> Activities - Sub-activities - | G148: ="Activités - Sous-activités - " & DistrictsFrench -> Activités - Sous-activités - | H148: ="Actividades - Sub-actividades - " & DistrictsPortuguese -> Actividades - Sub-actividades - | I148: ="Actividades - Subactividades - " & DistrictsSpanish -> Actividades - Subactividades -
C149: AO13 | D149: B4D | E149: AO13B4D | F149: =DistrictsEnglish -> 0 | G149: =DistrictsFrench -> 0 | H149: =DistrictsPortuguese -> 0 | I149: =DistrictsSpanish -> 0
C150: AO13 | D150: B4DA | E150: AO13B4DA | F150: =DistrictsEnglish & " - Activities" -> - Activities | G150: =DistrictsFrench & " - Activités" -> - Activités | H150: =DistrictsPortuguese & " - Actividades" -> - Actividades | I150: =DistrictsSpanish & " - Actividades" -> - Actividades
C151: AO13 | D151: B4DAS | E151: AO13B4DAS | F151: =DistrictsEnglish & " - Activities - Sub-activities" -> - Activities - Sub-activities | G151: =DistrictsFrench & " - Activités - Sous-activités" -> - Activités - Sous-activités | H151: =DistrictsPortuguese & " - Actividades - Sub-actividades" -> - Actividades - Sub-actividades | I151: =DistrictsSpanish & " - Actividades - Subactividades" -> - Actividades - Subactividades
C152: AO13 | D152: B4DS | E152: AO13B4DS | F152: =DistrictsEnglish & " - Sub-activities" -> - Sub-activities | G152: =DistrictsFrench & " - Sous-activités" -> - Sous-activités | H152: =DistrictsPortuguese & " - Sub-actividades" -> - Sub-actividades | I152: =DistrictsSpanish & " - Subactividades" -> - Subactividades
C153: AO13 | D153: B4S | E153: AO13B4S | F153: Sub-activities | G153: Sous-activités | H153: Sub-actividades | I153: Subactividades
C154: AO13 | D154: B4SD | E154: AO13B4SD | F154: ="Sub-activities - " & DistrictsEnglish -> Sub-activities - | G154: ="Sous-activités - " & DistrictsFrench -> Sous-activités - | H154: ="Sub-actividades - " & DistrictsPortuguese -> Sub-actividades - | I154: ="Subactividades - " & DistrictsSpanish -> Subactividades -
C155: AO13 | D155: C3 | E155: AO13C3 | F155: Timeline for implementation | G155: Calendrier de mise en œuvre | H155: Calendário para a implementação | I155: Escala de tiempo para ejecución
C156: AO13 | D156: foot2a | E156: AO13foot2a | F156: TIPAC generated | G156: Produit par TIPAC | H156: Gerado pela TIPAC | I156: Generado por TIPAC
C157: AO13 | D157: Foot2b | E157: AO13Foot2b | F157: Does not include salary or drug costs | G157: N'inclut pas les coûts de salaire ou de médicament | H157: Não inclui salário ou custos da medicação | I157: No incluye salarios ni costos de medicamentos
C158: AO13 | D158: Foot2c | E158: AO13Foot2c | F158: Sort | G158: Trier | H158: Organizar | I158: Ordenar
C159: AO13 | D159: Foot2d | E159: AO13Foot2d | F159: Currency | G159: Devise | H159: Moeda | I159: Divisa
C160: AO13 | D160: O3 | E160: AO13O3 | F160: Costs | G160: Coûts | H160: Custos | I160: Costos
C161: AO13 | D161: P3 | E161: AO13P3 | F161: Funding | G161: Financement | H161: Financiamento | I161: Financiamiento
C162: AO13 | D162: Q3 | E162: AO13Q3 | F162: Gap | G162: Besoin de financement | H162: Défice | I162: Déficit
C163: AO13 | D163: R3 | E163: AO13R3 | F163: Funders | G163: Bailleurs de fonds | H163: Financiadores | I163: Financiadores
C164: constant | D164: ALB_A | E164: constantALB_A | F164: ALB tabs (alone or with PZQ)
C165: constant | D165: ALB_W | E165: constantALB_W | F165: ALB tabs (with IVM or DEC)
C166: constant | D166: DEC | E166: constantDEC | F166: DEC tabs
C167: constant | D167: diseaseburden | E167: constantdiseaseburden | F167: disease burden | G167: Charge de maladie | H167: Carga de doença | I167: Carga de enfermedad
C168: constant | D168: district | E168: constantdistrict | F168: =DistrictEnglish -> 0 | G168: =DistrictFrench -> 0 | H168: =DistrictPortuguese -> 0 | I168: =DistrictSpanish -> 0
C169: constant | D169: districts | E169: constantdistricts | F169: =DistrictsEnglish -> 0 | G169: =DistrictsFrench -> 0 | H169: =DistrictsPortuguese -> 0 | I169: =DistrictsSpanish -> 0
C170: constant | D170: FY | E170: constantFY | F170: FY | G170: AF | H170: AF | I170: AF
C171: constant | D171: IVM | E171: constantIVM | F171: IVM tabs
C172: constant | D172: LF | E172: constantLF | F172: LF | G172: FL | H172: FL | I172: FL
C173: constant | D173: LFMDANAME | E173: constantLFMDANAME | F173: LF | G173: FL | H173: FL | I173: FL
C174: constant | D174: MED | E174: constantMED | F174: MBD tabs
C175: constant | D175: multiple | E175: constantmultiple | F175: multiple | G175: plusieur | H175: múltiplos | I175: varios
C176: constant | D176: NTD10 | E176: constantNTD10 | F176: Dracunculiasis | G176: Dracunculiasis | H176: Dracunculiasis | I176: Dracunculiasis
C177: constant | D177: NTD11 | E177: constantNTD11 | F177: Echinococcosis | G177: Echinococcosis | H177: Echinococcosis | I177: Echinococcosis
C178: constant | D178: NTD12 | E178: constantNTD12 | F178: Fascioliasis | G178: Fascioliasis | H178: Fascioliasis | I178: Fascioliasis
C179: constant | D179: NTD13 | E179: constantNTD13 | F179: Human African trypanosomiasis | G179: Human African trypanosomiasis | H179: Human African trypanosomiasis | I179: Human African trypanosomiasis
C180: constant | D180: NTD14 | E180: constantNTD14 | F180: Leishmaniasis | G180: Leishmaniasis | H180: Leishmaniasis | I180: Leishmaniasis
C181: constant | D181: NTD15 | E181: constantNTD15 | F181: Leprosy | G181: Leprosy | H181: Leprosy | I181: Leprosy
C182: constant | D182: NTD16 | E182: constantNTD16 | F182: Rabies | G182: Rabies | H182: Rabies | I182: Rabies
C183: constant | D183: NTD17 | E183: constantNTD17 | F183: Yaws | G183: Yaws | H183: Yaws | I183: Yaws
C184: constant | D184: NTD6 | E184: constantNTD6 | F184: Buruli Ulcer | G184: Buruli Ulcer | H184: Buruli Ulcer | I184: Buruli Ulcer
C185: constant | D185: NTD7 | E185: constantNTD7 | F185: Chagas disease | G185: Chagas disease | H185: Chagas disease | I185: Chagas disease
C186: constant | D186: NTD8 | E186: constantNTD8 | F186: Cysticercosis | G186: Cysticercosis | H186: Cysticercosis | I186: Cysticercosis
C187: constant | D187: NTD9 | E187: constantNTD9 | F187: Dengue | G187: Dengue | H187: Dengue | I187: Dengue
C188: constant | D188: ONCHO | E188: constantONCHO | F188: ONCHO | G188: ONCHO | H188: ONCO | I188: ONCO
C189: constant | D189: ONCHO1MDANAME | E189: constantONCHO1MDANAME | F189: ONCHO ROUND 1 (at least one round) | G189: ONCHO série 1 | H189: ONCO série 1 | I189: Ronda 1 ONCO
C190: constant | D190: ONCHO2MDANAME | E190: constantONCHO2MDANAME | F190: ONCHO ROUND 2 (two rounds) | G190: ONCHO série 2 | H190: ONCO série 2 | I190: Ronda 2 ONCO
C191: constant | D191: PQZ | E191: constantPQZ | F191: PZQ tabs
C192: constant | D192: PROCESSING | E192: constantPROCESSING | F192: Processing | G192: En cours de traitement | H192: A processar | I192: Procesando
C193: constant | D193: region | E193: constantregion | F193: Region | G193: Région | H193: Região | I193: Región
C194: constant | D194: SCH | E194: constantSCH | F194: SCH | G194: SCH | H194: SCH | I194: ESQ
C195: constant | D195: SCHHRAMDANAME | E195: constantSCHHRAMDANAME | F195: SCH HIGH RISK ADULT | G195: SCH adulte à haut risque | H195: SCH adulto de alto risco | I195: ESQ adulto de alto riesgo (HRA)
C196: constant | D196: SCHSACMDANAME | E196: =+C196&D196 -> constantSCHSACMDANAME | F196: SCH SCHOOL-AGED | G196: SCH d'âge scolaire | H196: SCH em idade escolar | I196: ESQ en edad escolar (SAC)
C197: constant | D197: STH | E197: constantSTH | F197: STH | G197: GeoH | H197: HTS | I197: HTS
C198: constant | D198: STH2MDANAME | E198: constantSTH2MDANAME | F198: STH ROUND 2 (two rounds) | G198: GeoH série 2 | H198: HTS série 2 | I198: HTS Ronda 2
C199: constant | D199: STHHRAMDANAME | E199: constantSTHHRAMDANAME | F199: STH HIGH RISK ADULT | G199: SCH adulte à haut risque | H199: SCH adulto de alto risco | I199: ESQ adulto de alto riesgo (HRA)
C200: constant | D200: STHPSAMDANAME | E200: constantSTHPSAMDANAME | F200: STH PRESCHOOL-AGED | G200: GeoH d'âge préscolaire | H200: HTS em idade pré-escolar | I200: HTS en edad preescolar (PSAC)
... 1209 more rows

Sheet INTRO (hidden)
B2: Joint request for selected PC medicines (TIPAC)
B4: As part of global efforts to accelerate expansion of preventive chemotherapy (PC) for elimination and control of lymphatic filariasis, schistosomiasis and soil-transmitted helminthiases, the World Health Organization (WHO) facilitates the supply of albendazole 400 mg tablets (GSK) to national lymphatic filariasis elimination programmes and national soil-transmitted helminth control programmes; diethylcarbamazine citrate 100 mg tablets (Eisai) to national lymphatic filariasis elimination programmes; and praziquantel 600 mg tablets (Merck KGaA) for school-age children to national schistosomiasis control programmes. WHO also collaborates to supply mebendazole 500 mg tablets (J&J) for soil-transmitted helminth control and ivermectin 3 mg tablets (Merck) for onchocerciasis and lymphatic filariasis donation programmes. This Excel-based tool is designed to assist countries in quantifying the number of tablets of relevant PC medicines required to reach the planned target population and districts for the year of request. Output of the tool is a joint request for PC medicines, which can be printed, signed and submitted to WHO to request these medicines.
B6: Structure of the application (worksheets):
B8: INTRO | C8: This worksheet includes guides on how to complete the joint request for selected PC medicines and information about the status of PC for endemic diseases in the country.
B9: COUNTRY_INFO | C9: This worksheet includes information about administrative structure of the country, population by age group, status of endemicity for each disease, population requiring PC and planned interventions.
B10: DEC, ALB_MBD, PZQ and IVM | C10: These worksheets include information about endemic districts targeted for treatment with specified PC medicines, treatment plan, and number of tablets required and requested.
B11: SUMMARY | C11: This worksheet includes summary of number of tablets requested, information about stock, and date for submission of requested medicines. Before generating the report (run macros) please select the medicine for which the report is needed. Follow the same rule to see the number of people to be treated for the specific disease. This worksheet should be printed and submitted as a joint request for selected PC medicines (see the instruction for submission in the SUMMARY worksheet).
B13: Instruction for data entry
B15: Most of the cells in the above-mentioned worksheets include formula that are calculated automatically according to the treatment policy recommended by WHO for each disease. See the link http://www.who.int/neglected_diseases/preventive_chemotherapy/pct_manual/en/index.html
B17: Please enter your data into the cells according to their colour code:
C19: White - cell is not protected. Please enter the value of the requested indicator.
C21: Yellow - cell is protected and includes name of indicator. No data entry required.
C23: Orange - cell is not protected and includes a drop-down menu. Please select the value from the drop-down list.
C26: Green - cell is not protected and includes formula. Please change the value only if your data are different from those that are calculated automatically.
C29: Blue - cell is protected and includes formula. No data entry required.
B31: Country data
B33: COUNTRY
B35: Year for request of the medicine | E35: 2013
B37: Is country endemic for lymphatic filariasis (LF)? | E37: Endemic
B39: Is country endemic for onchocerciasis (ONCHO)? | E39: Endemic
B41: Is country endemic for soil-transmitted helminthiases (STH)? | E41: Endemic
B43: Is country endemic for schistosomiasis (SCH)? | E43: Endemic
B45: How many administrative units in the country? | E45: 4
B47: If demographical data at the second administrative level are not available by age group, please enter the proportion (%) of population by age group in the country. If data are available, please leave these cells blank.
B48: Preschool-age children (PreSAC) - aged 1 - 4 years | E48: 0.2
B49: School-age children (SAC) - aged 5 - 6 years | E49: 0.1
B50: Adults - aged 15 years and older | E50: 0.2

Sheet COUNTRY_INFO (hidden)
A1: COUNTRY INFORMATION
A2: Administrative structure, population by age group, status of endemicity and planned interventions
A4: TOTAL | D4: =SUM(D$9:D$1000) -> 10000 | E4: =SUM(E$9:E$1000) -> 2000 | F4: =SUM(F$9:F$1000) -> 1000 | G4: =SUM(G$9:G$1000) -> 2000 | L4: =SUM(L$9:L$1000) -> 10000 | M4: =SUM(M$9:M$1000) -> 10000 | N4: =SUM(N$9:N$1000) -> 0 | O4: =SUM(O$9:O$1000) -> 330
A6: Country administrative structure | D6: Population | H6: Endemicity | L6: Population requiring PC | P6: Number of treatment rounds planned for the year
A7: Country | B7: Province/State | C7: District | D7: Total | E7: PreSAC | F7: SAC | G7: Adults | H7: LF | I7: Oncho | J7: STH | K7: SCH | L7: LF | M7: Oncho | N7: STH | O7: SCH | P7: LF | Q7: Oncho | R7: STH | S7: SCH
A9: =IF(INTRO!$E$33<>0,INTRO!$E$33, " ") ->  | B9: r1 | C9: d1 | D9: 1000 | E9: =IF(INTRO!$E$48="","",$D9*INTRO!$E$48) -> 200 | F9: =IF(INTRO!$E$49="","",$D9*INTRO!$E$49) -> 100 | G9: =IF(INTRO!$E$50="","",$D9*INTRO!$E$50) -> 200 | H9: 1 | I9: 1 | J9: 1 | K9: 1 | L9: =IF(INTRO!$E$37="Endemic",IF($H9>0,IF($H9=4,"Unknown",$D9),0),"Not required") -> 1000 | M9: =IF(INTRO!$E$39="Endemic", IF($I9>0, IF($I9=4,"Unknown",$D9), 0),"Not required") -> 1000 | N9: =IF(INTRO!$E$41="Endemic", IF($J9>1, IF($J9=4, "Unknown", E9+F9), 0),"Not required") -> 0 | O9: =IF(INTRO!$E$43="Endemic", IF($K9>0, IF($K9=4,"Unknown", IF($K9=1, $F9*0.33, IF($K9=2, $F9*0.5+$G9*0.2, IF($K9=3,SUM(F9:G9))))), 0),"Not required") -> 33 | P9: 1 | Q9: 2 | R9: 2 | S9: 1
A10: =IF(INTRO!$E$33<>0,INTRO!$E$33, " ") ->  | B10: r1 | C10: d2 | D10: 2000 | E10: =IF(INTRO!$E$48="","",$D10*INTRO!$E$48) -> 400 | F10: =IF(INTRO!$E$49="","",$D10*INTRO!$E$49) -> 200 | G10: =IF(INTRO!$E$50="","",$D10*INTRO!$E$50) -> 400 | H10: 1 | I10: 1 | J10: 1 | K10: 1 | L10: =IF(INTRO!$E$37="Endemic",IF($H10>0,IF($H10=4,"Unknown",$D10),0),"Not required") -> 2000 | M10: =IF(INTRO!$E$39="Endemic", IF($I10>0, IF($I10=4,"Unknown",$D10), 0),"Not required") -> 2000 | N10: =IF(INTRO!$E$41="Endemic", IF($J10>1, IF($J10=4, "Unknown", E10+F10), 0),"Not required") -> 0 | O10: =IF(INTRO!$E$43="Endemic", IF($K10>0, IF($K10=4,"Unknown", IF($K10=1, $F10*0.33, IF($K10=2, $F10*0.5+$G10*0.2, IF($K10=3,SUM(F10:G10))))), 0),"Not required") -> 66 | P10: 1 | Q10: 2 | R10: 2 | S10: 1
A11: =IF(INTRO!$E$33<>0,INTRO!$E$33, " ") ->  | B11: r1 | C11: d3 | D11: 3000 | E11: =IF(INTRO!$E$48="","",$D11*INTRO!$E$48) -> 600 | F11: =IF(INTRO!$E$49="","",$D11*INTRO!$E$49) -> 300 | G11: =IF(INTRO!$E$50="","",$D11*INTRO!$E$50) -> 600 | H11: 1 | I11: 1 | J11: 1 | K11: 1 | L11: =IF(INTRO!$E$37="Endemic",IF($H11>0,IF($H11=4,"Unknown",$D11),0),"Not required") -> 3000 | M11: =IF(INTRO!$E$39="Endemic", IF($I11>0, IF($I11=4,"Unknown",$D11), 0),"Not required") -> 3000 | N11: =IF(INTRO!$E$41="Endemic", IF($J11>1, IF($J11=4, "Unknown", E11+F11), 0),"Not required") -> 0 | O11: =IF(INTRO!$E$43="Endemic", IF($K11>0, IF($K11=4,"Unknown", IF($K11=1, $F11*0.33, IF($K11=2, $F11*0.5+$G11*0.2, IF($K11=3,SUM(F11:G11))))), 0),"Not required") -> 99 | P11: 1 | Q11: 2 | R11: 1 | S11: 1
A12: =IF(INTRO!$E$33<>0,INTRO!$E$33, " ") ->  | B12: 1r | C12: d4 | D12: 4000 | E12: =IF(INTRO!$E$48="","",$D12*INTRO!$E$48) -> 800 | F12: =IF(INTRO!$E$49="","",$D12*INTRO!$E$49) -> 400 | G12: =IF(INTRO!$E$50="","",$D12*INTRO!$E$50) -> 800 | H12: 1 | I12: 1 | J12: 1 | K12: 1 | L12: =IF(INTRO!$E$37="Endemic",IF($H12>0,IF($H12=4,"Unknown",$D12),0),"Not required") -> 4000 | M12: =IF(INTRO!$E$39="Endemic", IF($I12>0, IF($I12=4,"Unknown",$D12), 0),"Not required") -> 4000 | N12: =IF(INTRO!$E$41="Endemic", IF($J12>1, IF($J12=4, "Unknown", E12+F12), 0),"Not required") -> 0 | O12: =IF(INTRO!$E$43="Endemic", IF($K12>0, IF($K12=4,"Unknown", IF($K12=1, $F12*0.33, IF($K12=2, $F12*0.5+$G12*0.2, IF($K12=3,SUM(F12:G12))))), 0),"Not required") -> 132 | P12: 1 | Q12: 2 | R12: 1 | S12: 1

Sheet DEC (hidden)
A1: Diethylcarbamazine citrate (DEC)
A2: Administrative structure, eligible population by age group, treatment plan and information about tablets
A4: TOTAL | D4: =SUM(D$9:D$1000) -> 0 | E4: =SUM(E$9:E$1000) -> 0 | F4: =SUM(F$9:F$1000) -> 0 | G4: =SUM(G$9:G$1000) -> 0 | I4: =SUM(I$9:I$1000) -> 0 | J4: =SUM(J$9:J$1000) -> 0 | K4: =SUM(K$9:K$1000) -> 0 | L4: =SUM(L$9:L$1000) -> 0 | M4: =SUM(M$9:M$1000) -> 0
A6: Country administrative structure | D6: Population requiring treatment with DEC | H6: Treatment plan | I6: Target population | J6: Diethylcarbamazine citrate (DEC)
A7: Country | B7: Province/State | C7: District | D7: PreSAC | E7: SAC | F7: Adults | G7: Total | H7: LF | I7: LF | J7: Total required | K7: Remaining in stock | L7: Tablets to be procured | M7: Bottle (100 mg) 1000 tablets
A9: =IF(INTRO!$E$39<>"Non-endemic", " ", IF(INTRO!$E$37="Non-endemic"," ", IF(COUNTRY_INFO!A9=0," ",COUNTRY_INFO!A9))) ->  | B9: =IF(INTRO!$E$39<>"Non-endemic", " ", IF(INTRO!$E$37="Non-endemic"," ", IF(COUNTRY_INFO!B9=0," ",COUNTRY_INFO!B9))) ->  | C9: =IF(INTRO!$E$39<>"Non-endemic", " ", IF(INTRO!$E$37="Non-endemic"," ", IF(COUNTRY_INFO!C9=0," ",COUNTRY_INFO!C9))) ->  | D9: =IF(INTRO!$E$39<>"Non-endemic", 0, IF(INTRO!$E$37="Non-endemic",0,IF(COUNTRY_INFO!$H9=1,COUNTRY_INFO!E9,0))) -> 0 | E9: =IF(INTRO!$E$39<>"Non-endemic", 0, IF(INTRO!$E$37="Non-endemic",0,IF(COUNTRY_INFO!$H9=1,COUNTRY_INFO!F9,0))) -> 0 | F9: =IF(INTRO!$E$39<>"Non-endemic", 0, IF(INTRO!$E$37="Non-endemic",0,IF(COUNTRY_INFO!$H9=1,COUNTRY_INFO!G9,0))) -> 0 | G9: =SUM(D9:F9) -> 0 | H9: =IF(INTRO!$E$39="Non-endemic",IF(INTRO!$E$37="Non-endemic","Not required",COUNTRY_INFO!P9),"Treat with IVM") -> Treat with IVM | J9: =IF(I9>0,I9*2.5,0) -> 0 | L9: =IF($J9>$K9,$J9-$K9,0) -> 0 | M9: =ROUNDUP($J9/1000,0) -> 0
A10: =IF(INTRO!$E$39<>"Non-endemic", " ", IF(INTRO!$E$37="Non-endemic"," ", IF(COUNTRY_INFO!A10=0," ",COUNTRY_INFO!A10))) ->  | B10: =IF(INTRO!$E$39<>"Non-endemic", " ", IF(INTRO!$E$37="Non-endemic"," ", IF(COUNTRY_INFO!B10=0," ",COUNTRY_INFO!B10))) ->  | C10: =IF(INTRO!$E$39<>"Non-endemic", " ", IF(INTRO!$E$37="Non-endemic"," ", IF(COUNTRY_INFO!C10=0," ",COUNTRY_INFO!C10))) ->  | D10: =IF(INTRO!$E$39<>"Non-endemic", 0, IF(INTRO!$E$37="Non-endemic",0,IF(COUNTRY_INFO!$H10=1,COUNTRY_INFO!E10,0))) -> 0 | E10: =IF(INTRO!$E$39<>"Non-endemic", 0, IF(INTRO!$E$37="Non-endemic",0,IF(COUNTRY_INFO!$H10=1,COUNTRY_INFO!F10,0))) -> 0 | F10: =IF(INTRO!$E$39<>"Non-endemic", 0, IF(INTRO!$E$37="Non-endemic",0,IF(COUNTRY_INFO!$H10=1,COUNTRY_INFO!G10,0))) -> 0 | G10: =SUM(D10:F10) -> 0 | H10: =IF(INTRO!$E$39="Non-endemic",IF(INTRO!$E$37="Non-endemic","Not required",COUNTRY_INFO!P10),"Treat with IVM") -> Treat with IVM | J10: =IF(I10>0,I10*2.5,0) -> 0 | L10: 0 | M10: 0
A11: =IF(INTRO!$E$39<>"Non-endemic", " ", IF(INTRO!$E$37="Non-endemic"," ", IF(COUNTRY_INFO!A11=0," ",COUNTRY_INFO!A11))) ->  | B11: =IF(INTRO!$E$39<>"Non-endemic", " ", IF(INTRO!$E$37="Non-endemic"," ", IF(COUNTRY_INFO!B11=0," ",COUNTRY_INFO!B11))) ->  | C11: =IF(INTRO!$E$39<>"Non-endemic", " ", IF(INTRO!$E$37="Non-endemic"," ", IF(COUNTRY_INFO!C11=0," ",COUNTRY_INFO!C11))) ->  | D11: =IF(INTRO!$E$39<>"Non-endemic", 0, IF(INTRO!$E$37="Non-endemic",0,IF(COUNTRY_INFO!$H11=1,COUNTRY_INFO!E11,0))) -> 0 | E11: =IF(INTRO!$E$39<>"Non-endemic", 0, IF(INTRO!$E$37="Non-endemic",0,IF(COUNTRY_INFO!$H11=1,COUNTRY_INFO!F11,0))) -> 0 | F11: =IF(INTRO!$E$39<>"Non-endemic", 0, IF(INTRO!$E$37="Non-endemic",0,IF(COUNTRY_INFO!$H11=1,COUNTRY_INFO!G11,0))) -> 0 | G11: 0 | H11: =IF(INTRO!$E$39="Non-endemic",IF(INTRO!$E$37="Non-endemic","Not required",COUNTRY_INFO!P11),"Treat with IVM") -> Treat with IVM | J11: 0 | L11: 0 | M11: 0
A12: =IF(INTRO!$E$39<>"Non-endemic", " ", IF(INTRO!$E$37="Non-endemic"," ", IF(COUNTRY_INFO!A12=0," ",COUNTRY_INFO!A12))) ->  | B12: =IF(INTRO!$E$39<>"Non-endemic", " ", IF(INTRO!$E$37="Non-endemic"," ", IF(COUNTRY_INFO!B12=0," ",COUNTRY_INFO!B12))) ->  | C12: =IF(INTRO!$E$39<>"Non-endemic", " ", IF(INTRO!$E$37="Non-endemic"," ", IF(COUNTRY_INFO!C12=0," ",COUNTRY_INFO!C12))) ->  | D12: =IF(INTRO!$E$39<>"Non-endemic", 0, IF(INTRO!$E$37="Non-endemic",0,IF(COUNTRY_INFO!$H12=1,COUNTRY_INFO!E12,0))) -> 0 | E12: =IF(INTRO!$E$39<>"Non-endemic", 0, IF(INTRO!$E$37="Non-endemic",0,IF(COUNTRY_INFO!$H12=1,COUNTRY_INFO!F12,0))) -> 0 | F12: =IF(INTRO!$E$39<>"Non-endemic", 0, IF(INTRO!$E$37="Non-endemic",0,IF(COUNTRY_INFO!$H12=1,COUNTRY_INFO!G12,0))) -> 0 | G12: 0 | H12: =IF(INTRO!$E$39="Non-endemic",IF(INTRO!$E$37="Non-endemic","Not required",COUNTRY_INFO!P12),"Treat with IVM") -> Treat with IVM | J12: 0 | L12: 0 | M12: 0

Sheet ALB_MBD (hidden)
A1: Albendazole (ALB) and Mebendazole (MBD)
A2: Administrative structure, eligible population by age group, treatment plan and information about tablets
A4: TOTAL | D4: =SUM(D$9:D$990) -> 2000 | E4: =SUM(E$9:E$990) -> 1000 | F4: =SUM(F$9:F$990) -> 3000 | I4: =SUM(I$9:I$990) -> 2000 | K4: =SUM(K$9:K$990) -> 2600 | L4: =SUM(L$9:L$990) -> 300 | M4: =SUM(M$9:M$990) -> 488 | N4: =SUM(N$9:N$990) -> 3388 | O4: =SUM(O$9:O$990) -> 0 | P4: =SUM(P$9:P$990) -> 0 | Q4: 0 | R4: 0 | S4: 0 | T4: 2000 | U4: 10 | V4: 0 | W4: 300 | X4: 2 | Y4: 0 | Z4: 0 | AA4: 0
A6: Country administrative structure | D6: Population requiring treatment with ALB/MBD | G6: Treatment plan | I6: People covered by PELF with ALB | J6: Select medicine for treatment of STH | K6: Target population | S6: Albendazole (ALB) | Y6: Mebendazole (MBD)
A7: Country | B7: Province/State | C7: District | D7: PreSAC | E7: SAC | F7: Total | G7: LF | H7: STH | K7: STH (ALB) | O7: STH (MBD) | S7: Remaining in stock (LF) | T7: Tablets to be procured (LF) | U7: Bottle (400 mg) 200 tablets (LF) | V7: Remaining in stock (STH) | W7: Tablets to be procured for SAC (STH) | X7: Bottle (400 mg) 200 tablets (STH) | Y7: Remaining in stock | Z7: Tablets to be procured for SAC | AA7: Bottles (500 mg) 150 tablets
K8: PreSAC | L8: SAC | M8: Other | N8: Total | O8: PreSAC | P8: SAC | Q8: Other | R8: Total
A9: =IF(AND(INTRO!$E$37="Non-endemic",INTRO!$E$37="Non-endemic")," ",IF(COUNTRY_INFO!A9=0," ",COUNTRY_INFO!A9)) ->  | B9: =IF(AND(INTRO!$E$37="Non-endemic",INTRO!$E$37="Non-endemic")," ",IF(COUNTRY_INFO!B9=0," ",COUNTRY_INFO!B9)) -> r1 | C9: =IF(AND(INTRO!$E$37="Non-endemic",INTRO!$E$37="Non-endemic")," ",IF(COUNTRY_INFO!C9=0," ",COUNTRY_INFO!C9)) -> d1 | D9: =IF(AND(INTRO!$E$37="Non-endemic",INTRO!$E$41="Non-endemic"),0,IF(AND(OR(COUNTRY_INFO!$H9=0,COUNTRY_INFO!$H9=4),OR(COUNTRY_INFO!$J9=0,COUNTRY_INFO!$J9=4)),0,COUNTRY_INFO!$E9)) -> 200 | E9: =IF(AND(INTRO!$E$37="Non-endemic",INTRO!$E$41="Non-endemic"),0,IF(AND(OR(COUNTRY_INFO!$H9=0,COUNTRY_INFO!$H9=4),OR(COUNTRY_INFO!$J9=0,COUNTRY_INFO!$J9=4)),0,COUNTRY_INFO!$F9)) -> 100 | F9: =SUM(D9:E9) -> 300 | G9: =IF(AND(INTRO!$E$37="Non-endemic",INTRO!$E$41="Non-endemic"),0,COUNTRY_INFO!P9) -> 1 | H9: =IF(AND(INTRO!$E$37="Non-endemic",INTRO!$E$41="Non-endemic"),0,COUNTRY_INFO!R9) -> 2 | I9: =IF(INTRO!$E$39="Non-endemic",IF($G9=1,DEC!I9,0),IF($G9=1,IVM!I9,0)) -> 200 | J9: ALB | K9: 400 | L9: 100 | M9: 400 | N9: =SUM(K9:M9) -> 900 | R9: =SUM(O9:Q9) -> 0 | T9: =IF($I9>$S9, $I9-$S9,0) -> 200 | U9: =ROUNDUP($I9/200,0) -> 1 | W9: =IF($L9>$V9,$L9-$V9,0) -> 100 | X9: =ROUNDUP($L9/200,0) -> 1 | Z9: =IF($P9>$Y9,$P9-$Y9,0) -> 0 | AA9: =ROUNDUP($P9/150,0) -> 0
A10: =IF(AND(INTRO!$E$37="Non-endemic",INTRO!$E$37="Non-endemic")," ",IF(COUNTRY_INFO!A10=0," ",COUNTRY_INFO!A10)) ->  | B10: =IF(AND(INTRO!$E$37="Non-endemic",INTRO!$E$37="Non-endemic")," ",IF(COUNTRY_INFO!B10=0," ",COUNTRY_INFO!B10)) -> r1 | C10: =IF(AND(INTRO!$E$37="Non-endemic",INTRO!$E$37="Non-endemic")," ",IF(COUNTRY_INFO!C10=0," ",COUNTRY_INFO!C10)) -> d2 | D10: =IF(AND(INTRO!$E$37="Non-endemic",INTRO!$E$41="Non-endemic"),0,IF(AND(OR(COUNTRY_INFO!$H10=0,COUNTRY_INFO!$H10=4),OR(COUNTRY_INFO!$J10=0,COUNTRY_INFO!$J10=4)),0,COUNTRY_INFO!$E10)) -> 400 | E10: =IF(AND(INTRO!$E$37="Non-endemic",INTRO!$E$41="Non-endemic"),0,IF(AND(OR(COUNTRY_INFO!$H10=0,COUNTRY_INFO!$H10=4),OR(COUNTRY_INFO!$J10=0,COUNTRY_INFO!$J10=4)),0,COUNTRY_INFO!$F10)) -> 200 | F10: =SUM(D10:E10) -> 600 | G10: =IF(AND(INTRO!$E$37="Non-endemic",INTRO!$E$41="Non-endemic"),0,COUNTRY_INFO!P10) -> 1 | H10: =IF(AND(INTRO!$E$37="Non-endemic",INTRO!$E$41="Non-endemic"),0,COUNTRY_INFO!R10) -> 2 | I10: =IF(INTRO!$E$39="Non-endemic",IF($G10=1,DEC!I10,0),IF($G10=1,IVM!I10,0)) -> 400 | J10: ALB | K10: 800 | L10: 200 | M10: 88 | N10: =SUM(K10:M10) -> 1088 | R10: =SUM(O10:Q10) -> 0 | T10: 400 | U10: 2 | W10: 200 | X10: 1 | Z10: 0 | AA10: 0
A11: =IF(AND(INTRO!$E$37="Non-endemic",INTRO!$E$37="Non-endemic")," ",IF(COUNTRY_INFO!A11=0," ",COUNTRY_INFO!A11)) ->  | B11: =IF(AND(INTRO!$E$37="Non-endemic",INTRO!$E$37="Non-endemic")," ",IF(COUNTRY_INFO!B11=0," ",COUNTRY_INFO!B11)) -> r1 | C11: =IF(AND(INTRO!$E$37="Non-endemic",INTRO!$E$37="Non-endemic")," ",IF(COUNTRY_INFO!C11=0," ",COUNTRY_INFO!C11)) -> d3 | D11: =IF(AND(INTRO!$E$37="Non-endemic",INTRO!$E$41="Non-endemic"),0,IF(AND(OR(COUNTRY_INFO!$H11=0,COUNTRY_INFO!$H11=4),OR(COUNTRY_INFO!$J11=0,COUNTRY_INFO!$J11=4)),0,COUNTRY_INFO!$E11)) -> 600 | E11: =IF(AND(INTRO!$E$37="Non-endemic",INTRO!$E$41="Non-endemic"),0,IF(AND(OR(COUNTRY_INFO!$H11=0,COUNTRY_INFO!$H11=4),OR(COUNTRY_INFO!$J11=0,COUNTRY_INFO!$J11=4)),0,COUNTRY_INFO!$F11)) -> 300 | F11: 900 | G11: =IF(AND(INTRO!$E$37="Non-endemic",INTRO!$E$41="Non-endemic"),0,COUNTRY_INFO!P11) -> 1 | H11: =IF(AND(INTRO!$E$37="Non-endemic",INTRO!$E$41="Non-endemic"),0,COUNTRY_INFO!R11) -> 1 | I11: =IF(INTRO!$E$39="Non-endemic",IF($G11=1,DEC!I11,0),IF($G11=1,IVM!I11,0)) -> 600 | J11: ALB | K11: 600 | L11: 0 | M11: 0 | N11: 600 | R11: 0 | T11: 600 | U11: 3 | W11: 0 | X11: 0 | Z11: 0 | AA11: 0
A12: =IF(AND(INTRO!$E$37="Non-endemic",INTRO!$E$37="Non-endemic")," ",IF(COUNTRY_INFO!A12=0," ",COUNTRY_INFO!A12)) ->  | B12: =IF(AND(INTRO!$E$37="Non-endemic",INTRO!$E$37="Non-endemic")," ",IF(COUNTRY_INFO!B12=0," ",COUNTRY_INFO!B12)) -> 1r | C12: =IF(AND(INTRO!$E$37="Non-endemic",INTRO!$E$37="Non-endemic")," ",IF(COUNTRY_INFO!C12=0," ",COUNTRY_INFO!C12)) -> d4 | D12: =IF(AND(INTRO!$E$37="Non-endemic",INTRO!$E$41="Non-endemic"),0,IF(AND(OR(COUNTRY_INFO!$H12=0,COUNTRY_INFO!$H12=4),OR(COUNTRY_INFO!$J12=0,COUNTRY_INFO!$J12=4)),0,COUNTRY_INFO!$E12)) -> 800 | E12: =IF(AND(INTRO!$E$37="Non-endemic",INTRO!$E$41="Non-endemic"),0,IF(AND(OR(COUNTRY_INFO!$H12=0,COUNTRY_INFO!$H12=4),OR(COUNTRY_INFO!$J12=0,COUNTRY_INFO!$J12=4)),0,COUNTRY_INFO!$F12)) -> 400 | F12: 1200 | G12: =IF(AND(INTRO!$E$37="Non-endemic",INTRO!$E$41="Non-endemic"),0,COUNTRY_INFO!P12) -> 1 | H12: =IF(AND(INTRO!$E$37="Non-endemic",INTRO!$E$41="Non-endemic"),0,COUNTRY_INFO!R12) -> 1 | I12: =IF(INTRO!$E$39="Non-endemic",IF($G12=1,DEC!I12,0),IF($G12=1,IVM!I12,0)) -> 800 | J12: ALB | K12: 800 | L12: 0 | M12: 0 | N12: 800 | R12: 0 | T12: 800 | U12: 4 | W12: 0 | X12: 0 | Z12: 0 | AA12: 0

Sheet PZQ (hidden)
A1: Praziquantel (PZQ)
A2: Administrative structure, eligible population by age group, treatment plan and information about tablets
A4: TOTAL | D4: =SUM(D$9:D$1000) -> 330 | E4: =SUM(E$9:E$1000) -> 0 | F4: =SUM(F$9:F$1000) -> 330 | I4: =SUM(I$9:I$1000) -> 1000 | J4: 2600 | K4: 3600 | L4: 2500 | M4: 7800 | N4: 2500 | O4: 0 | P4: 2500 | Q4: 4
A6: Country administrative structure | D6: Population requiring treatment with PZQ | G6: Treatment plan | I6: Target population | L6: Praziquantel (PZQ)
A7: Country | B7: Province/State | C7: District | D7: SAC | E7: Adults | F7: Total | G7: SCH | H7: All SAC targeted? | I7: SAC | J7: Adults | K7: Total | L7: SAC | M7: Adults | N7: Total required for SAC | O7: Remaining in stock | P7: Tablets to be procured | Q7: Bottle (600 mg) 1000 tablets
A9: =IF(INTRO!$E$43="Non-endemic"," ", IF(COUNTRY_INFO!A9=0," ",COUNTRY_INFO!A9)) ->  | B9: =IF(INTRO!$E$43="Non-endemic"," ", IF(COUNTRY_INFO!B9=0," ",COUNTRY_INFO!B9)) -> r1 | C9: =IF(INTRO!$E$43="Non-endemic"," ", IF(COUNTRY_INFO!C9=0," ",COUNTRY_INFO!C9)) -> d1 | D9: =IF(INTRO!$E$43="Non-endemic", 0, IF(COUNTRY_INFO!$K9>0, IF(COUNTRY_INFO!$K9=4, 0, IF(COUNTRY_INFO!$K9=1, COUNTRY_INFO!$F9*0.33, IF(COUNTRY_INFO!$K9=2, COUNTRY_INFO!$F9*0.5, IF(COUNTRY_INFO!$K9=3,COUNTRY_INFO!$F9)))), 0)) -> 33 | E9: =IF(INTRO!$E$43="Non-endemic", 0, IF(COUNTRY_INFO!$K9>0, IF(COUNTRY_INFO!$K9=4, 0, IF(COUNTRY_INFO!$K9=1, 0, IF(COUNTRY_INFO!$K9=2, COUNTRY_INFO!$G9*0.2, IF(COUNTRY_INFO!$K9=3,COUNTRY_INFO!$G9)))), 0)) -> 0 | F9: =SUM(D9:E9) -> 33 | G9: =IF(INTRO!$E$43="Non-endemic", "Not required", COUNTRY_INFO!S9) -> 1 | I9: 100 | J9: 500 | K9: =SUM(I9:J9) -> 600 | L9: =$I9*2.5 -> 250 | M9: =$J9*3 -> 1500 | N9: =L9 -> 250 | P9: =IF($N9>$O9,N9-O9,0) -> 250 | Q9: =ROUNDUP($N9/1000,0) -> 1
A10: =IF(INTRO!$E$43="Non-endemic"," ", IF(COUNTRY_INFO!A10=0," ",COUNTRY_INFO!A10)) ->  | B10: =IF(INTRO!$E$43="Non-endemic"," ", IF(COUNTRY_INFO!B10=0," ",COUNTRY_INFO!B10)) -> r1 | C10: =IF(INTRO!$E$43="Non-endemic"," ", IF(COUNTRY_INFO!C10=0," ",COUNTRY_INFO!C10)) -> d2 | D10: =IF(INTRO!$E$43="Non-endemic", 0, IF(COUNTRY_INFO!$K10>0, IF(COUNTRY_INFO!$K10=4, 0, IF(COUNTRY_INFO!$K10=1, COUNTRY_INFO!$F10*0.33, IF(COUNTRY_INFO!$K10=2, COUNTRY_INFO!$F10*0.5, IF(COUNTRY_INFO!$K10=3,COUNTRY_INFO!$F10)))), 0)) -> 66 | E10: =IF(INTRO!$E$43="Non-endemic", 0, IF(COUNTRY_INFO!$K10>0, IF(COUNTRY_INFO!$K10=4, 0, IF(COUNTRY_INFO!$K10=1, 0, IF(COUNTRY_INFO!$K10=2, COUNTRY_INFO!$G10*0.2, IF(COUNTRY_INFO!$K10=3,COUNTRY_INFO!$G10)))), 0)) -> 0 | F10: =SUM(D10:E10) -> 66 | G10: =IF(INTRO!$E$43="Non-endemic", "Not required", COUNTRY_INFO!S10) -> 1 | I10: 200 | J10: 600 | K10: =SUM(I10:J10) -> 800 | L10: 500 | M10: 1800 | N10: =L10 -> 500 | P10: =IF($N10>$O10,N10-O10,0) -> 500 | Q10: 1
A11: =IF(INTRO!$E$43="Non-endemic"," ", IF(COUNTRY_INFO!A11=0," ",COUNTRY_INFO!A11)) ->  | B11: =IF(INTRO!$E$43="Non-endemic"," ", IF(COUNTRY_INFO!B11=0," ",COUNTRY_INFO!B11)) -> r1 | C11: =IF(INTRO!$E$43="Non-endemic"," ", IF(COUNTRY_INFO!C11=0," ",COUNTRY_INFO!C11)) -> d3 | D11: =IF(INTRO!$E$43="Non-endemic", 0, IF(COUNTRY_INFO!$K11>0, IF(COUNTRY_INFO!$K11=4, 0, IF(COUNTRY_INFO!$K11=1, COUNTRY_INFO!$F11*0.33, IF(COUNTRY_INFO!$K11=2, COUNTRY_INFO!$F11*0.5, IF(COUNTRY_INFO!$K11=3,COUNTRY_INFO!$F11)))), 0)) -> 99 | E11: =IF(INTRO!$E$43="Non-endemic", 0, IF(COUNTRY_INFO!$K11>0, IF(COUNTRY_INFO!$K11=4, 0, IF(COUNTRY_INFO!$K11=1, 0, IF(COUNTRY_INFO!$K11=2, COUNTRY_INFO!$G11*0.2, IF(COUNTRY_INFO!$K11=3,COUNTRY_INFO!$G11)))), 0)) -> 0 | F11: 99 | G11: =IF(INTRO!$E$43="Non-endemic", "Not required", COUNTRY_INFO!S11) -> 1 | I11: 300 | J11: 700 | K11: 1000 | L11: 750 | M11: 2100 | N11: 750 | P11: 750 | Q11: 1
A12: =IF(INTRO!$E$43="Non-endemic"," ", IF(COUNTRY_INFO!A12=0," ",COUNTRY_INFO!A12)) ->  | B12: =IF(INTRO!$E$43="Non-endemic"," ", IF(COUNTRY_INFO!B12=0," ",COUNTRY_INFO!B12)) -> 1r | C12: =IF(INTRO!$E$43="Non-endemic"," ", IF(COUNTRY_INFO!C12=0," ",COUNTRY_INFO!C12)) -> d4 | D12: =IF(INTRO!$E$43="Non-endemic", 0, IF(COUNTRY_INFO!$K12>0, IF(COUNTRY_INFO!$K12=4, 0, IF(COUNTRY_INFO!$K12=1, COUNTRY_INFO!$F12*0.33, IF(COUNTRY_INFO!$K12=2, COUNTRY_INFO!$F12*0.5, IF(COUNTRY_INFO!$K12=3,COUNTRY_INFO!$F12)))), 0)) -> 132 | E12: =IF(INTRO!$E$43="Non-endemic", 0, IF(COUNTRY_INFO!$K12>0, IF(COUNTRY_INFO!$K12=4, 0, IF(COUNTRY_INFO!$K12=1, 0, IF(COUNTRY_INFO!$K12=2, COUNTRY_INFO!$G12*0.2, IF(COUNTRY_INFO!$K12=3,COUNTRY_INFO!$G12)))), 0)) -> 0 | F12: 132 | G12: =IF(INTRO!$E$43="Non-endemic", "Not required", COUNTRY_INFO!S12) -> 1 | I12: 400 | J12: 800 | K12: 1200 | L12: 1000 | M12: 2400 | N12: 1000 | P12: 1000 | Q12: 1

Sheet IVM (hidden)
A1: Ivermectin (IVM)
A2: Administrative structure, eligible population by age group, treatment plan and information about tablets
A4: TOTAL | D4: =SUM(D$9:D$1000) -> 1000 | E4: =SUM(E$9:E$1000) -> 2000 | F4: =SUM(F$9:F$1000) -> 3000 | I4: =SUM(I$9:I$1000) -> 2000 | J4: 260 | K4: 0 | L4: 260 | M4: 0 | N4: 0 | O4: 6328 | P4: 6328 | Q4: 0 | R4: 6328 | S4: 14
A6: Country administrative structure | D6: Population requiring treatment with IVM | G6: Treatment plan | I6: Target population | M6: Ivermectin (IVM)
A7: Country | B7: Province/State | C7: District | D7: SAC | E7: Adults | F7: Total | G7: LF | H7: Oncho | I7: LF | J7: Oncho | M7: LF only | N7: Oncho only | O7: LF+Oncho | P7: Total required | Q7: Remaining in stock | R7: Tablets to be procured | S7: Bottles (3mg) 500 tablets
J8: district | K8: village | L8: total
A9: =IF(INTRO!$E$39="Non-endemic"," ",IF(COUNTRY_INFO!A9=0," ",COUNTRY_INFO!A9)) ->  | B9: =IF(INTRO!$E$39="Non-endemic"," ",IF(COUNTRY_INFO!B9=0," ",COUNTRY_INFO!B9)) -> r1 | C9: =IF(INTRO!$E$39="Non-endemic"," ",IF(COUNTRY_INFO!C9=0," ",COUNTRY_INFO!C9)) -> d1 | D9: =IF(INTRO!$E$39="Non-endemic",0, IF(OR(COUNTRY_INFO!$H9=1,COUNTRY_INFO!$I9=1),COUNTRY_INFO!F9,0)) -> 100 | E9: =IF(INTRO!$E$39="Non-endemic",0, IF(OR(COUNTRY_INFO!$H9=1,COUNTRY_INFO!$I9=1),COUNTRY_INFO!G9,0)) -> 200 | F9: =SUM(D9:E9) -> 300 | G9: =IF(AND(INTRO!$E$39="Non-endemic",INTRO!$E$37="Non-endemic"),"Not required",IF(INTRO!$E$39="Non-endemic","Treat with DEC",COUNTRY_INFO!P9)) -> 1 | H9: =IF(INTRO!$E$39<>"Non-endemic",COUNTRY_INFO!Q9,"Not required") -> 2 | I9: 200 | J9: 50 | L9: =IF(K9=0,J9,K9) -> 50 | M9: =IF(AND($G9=1, $H9=0), I9*2.8, 0) -> 0 | N9: =IF(AND($G9=0, $H9<>0), L9*2.8, 0) -> 0 | O9: =IF(AND($G9=1, $H9<>0), (I9+L9)*2.8, 0) -> 700 | P9: =SUM(M9:O9) -> 700 | R9: =IF($P9>$Q9,$P9-$Q9,0) -> 700 | S9: =ROUNDUP($P9/500,0) -> 2
A10: =IF(INTRO!$E$39="Non-endemic"," ",IF(COUNTRY_INFO!A10=0," ",COUNTRY_INFO!A10)) ->  | B10: =IF(INTRO!$E$39="Non-endemic"," ",IF(COUNTRY_INFO!B10=0," ",COUNTRY_INFO!B10)) -> r1 | C10: =IF(INTRO!$E$39="Non-endemic"," ",IF(COUNTRY_INFO!C10=0," ",COUNTRY_INFO!C10)) -> d2 | D10: =IF(INTRO!$E$39="Non-endemic",0, IF(OR(COUNTRY_INFO!$H10=1,COUNTRY_INFO!$I10=1),COUNTRY_INFO!F10,0)) -> 200 | E10: =IF(INTRO!$E$39="Non-endemic",0, IF(OR(COUNTRY_INFO!$H10=1,COUNTRY_INFO!$I10=1),COUNTRY_INFO!G10,0)) -> 400 | F10: =SUM(D10:E10) -> 600 | G10: =IF(AND(INTRO!$E$39="Non-endemic",INTRO!$E$37="Non-endemic"),"Not required",IF(INTRO!$E$39="Non-endemic","Treat with DEC",COUNTRY_INFO!P10)) -> 1 | H10: =IF(INTRO!$E$39<>"Non-endemic",COUNTRY_INFO!Q10,"Not required") -> 2 | I10: 400 | J10: 60 | L10: =IF(K10=0,J10,K10) -> 60 | M10: =IF(AND($G10=1, $H10=0), I10*2.8, 0) -> 0 | N10: =IF(AND($G10=0, $H10<>0), L10*2.8, 0) -> 0 | O10: =IF(AND($G10=1, $H10<>0), (I10+L10)*2.8, 0) -> 1288 | P10: =SUM(M10:O10) -> 1288 | R10: 1288 | S10: 3
A11: =IF(INTRO!$E$39="Non-endemic"," ",IF(COUNTRY_INFO!A11=0," ",COUNTRY_INFO!A11)) ->  | B11: =IF(INTRO!$E$39="Non-endemic"," ",IF(COUNTRY_INFO!B11=0," ",COUNTRY_INFO!B11)) -> r1 | C11: =IF(INTRO!$E$39="Non-endemic"," ",IF(COUNTRY_INFO!C11=0," ",COUNTRY_INFO!C11)) -> d3 | D11: =IF(INTRO!$E$39="Non-endemic",0, IF(OR(COUNTRY_INFO!$H11=1,COUNTRY_INFO!$I11=1),COUNTRY_INFO!F11,0)) -> 300 | E11: =IF(INTRO!$E$39="Non-endemic",0, IF(OR(COUNTRY_INFO!$H11=1,COUNTRY_INFO!$I11=1),COUNTRY_INFO!G11,0)) -> 600 | F11: 900 | G11: =IF(AND(INTRO!$E$39="Non-endemic",INTRO!$E$37="Non-endemic"),"Not required",IF(INTRO!$E$39="Non-endemic","Treat with DEC",COUNTRY_INFO!P11)) -> 1 | H11: =IF(INTRO!$E$39<>"Non-endemic",COUNTRY_INFO!Q11,"Not required") -> 2 | I11: 600 | J11: 70 | L11: 70 | M11: 0 | N11: =IF(AND($G11=0, $H11<>0), L11*2.8, 0) -> 0 | O11: =IF(AND($G11=1, $H11<>0), (I11+L11)*2.8, 0) -> 1876 | P11: 1876 | R11: 1876 | S11: 4
A12: =IF(INTRO!$E$39="Non-endemic"," ",IF(COUNTRY_INFO!A12=0," ",COUNTRY_INFO!A12)) ->  | B12: =IF(INTRO!$E$39="Non-endemic"," ",IF(COUNTRY_INFO!B12=0," ",COUNTRY_INFO!B12)) -> 1r | C12: =IF(INTRO!$E$39="Non-endemic"," ",IF(COUNTRY_INFO!C12=0," ",COUNTRY_INFO!C12)) -> d4 | D12: =IF(INTRO!$E$39="Non-endemic",0, IF(OR(COUNTRY_INFO!$H12=1,COUNTRY_INFO!$I12=1),COUNTRY_INFO!F12,0)) -> 400 | E12: =IF(INTRO!$E$39="Non-endemic",0, IF(OR(COUNTRY_INFO!$H12=1,COUNTRY_INFO!$I12=1),COUNTRY_INFO!G12,0)) -> 800 | F12: 1200 | G12: =IF(AND(INTRO!$E$39="Non-endemic",INTRO!$E$37="Non-endemic"),"Not required",IF(INTRO!$E$39="Non-endemic","Treat with DEC",COUNTRY_INFO!P12)) -> 1 | H12: =IF(INTRO!$E$39<>"Non-endemic",COUNTRY_INFO!Q12,"Not required") -> 2 | I12: 800 | J12: 80 | L12: 80 | M12: 0 | N12: =IF(AND($G12=0, $H12<>0), L12*2.8, 0) -> 0 | O12: =IF(AND($G12=1, $H12<>0), (I12+L12)*2.8, 0) -> 2464 | P12: 2464 | R12: 2464 | S12: 5

Sheet SUMMARY (hidden)
B2: Joint request for selected PC medicines (TIPAC)
B4: The World Health Organization (WHO) organizes the supply of albendazole 400 mg tablets (GSK) to national lymphatic filariasis elimination programmes and national soil-transmitted helminth control programmes; diethylcarbamazine citrate 100 mg tablets (Eisai) to national lymphatic filariasis elimination programmes; and praziquantel 600 mg tablets (Merck KGaA) for school-age children to national schistosomiasis control programmes. WHO also collaborates to supply mebendazole 500 mg tablets (J&J) for soil-transmitted helminth control and ivermectin 3 mg tablets (Merck) for onchocerciasis and lymphatic filariasis donation programmes. This form constitutes an official government request to WHO for the supply of the above medicines. It can be submitted any time before 15 August of the current year for delivery of medicines during the following year. For example, if preventive chemotherapy is planned between 1 January 2013 and 31 December 2013, the request should be submitted before 15 August 2012.
B6: Country | C6: =IF(INTRO!$E$33<>0,INTRO!$E$33," ") ->  | G6: Year | H6: =IF(INTRO!$E$35<>0,INTRO!$E$35," ") -> 2013
B8: Number of tablets
B10: Please select the medicine | C10: Number of tablets | G10: Total number of bottles
C11: Required | D11: In stock | E11: In pipeline | F11: Requested | G11: Required | H11: Requested
B12: Albendazole for LF | C12: 2000 | D12: 0 | F12: =IF(C12>(D12+E12),C12-D12-E12, 0) -> 2000 | G12: =IF($C12=0,0, IF($B12="Albendazole for LF", IF($C12=ALB_MBD!$I$4,ALB_MBD!$U$4,ROUNDUP($C12/200,0)), IF($B12="Albendazole for STH (SAC)", IF($C12=ALB_MBD!$L$4,ALB_MBD!$X$4,ROUNDUP($C12/200,0)), IF($B12="Mebendazole (SAC)", IF($C12=ALB_MBD!$P$4,ALB_MBD!$AA$4,ROUNDUP($C12/150,0)), IF($B12="Diethylcarbamazine citrate", IF($C12=DEC!$J$4,DEC!$M$4,ROUNDUP($C12/1000,0)), IF($B12="Praziquantel (SAC)", IF($C12=PZQ!$N$4,PZQ!$Q$4,ROUNDUP($C12/1000,0)), IF($B12="Ivermectin - optional", IF($C12=IVM!$P$4,IVM!$S$4,$C12/500+0.49),0))))))) -> 10 | H12: =IF($F12=0,0,IF(OR($B12="Albendazole for LF",$B12="Albendazole for STH (SAC)"),$G12-ROUNDUP(($E12+$D12)/200,0),IF($B12="Ivermectin - optional",$G12-ROUNDUP(($E12+$D12)/500,0),IF($B12="Mebendazole (SAC)",$G12-ROUNDUP(($E12+$D12)/150,0),$G12-ROUNDUP(($E12+$D12)/1000,0))))) -> 10
B13: Albendazole for STH (SAC) | C13: 300 | D13: 0 | F13: 300 | G13: =IF($C13=0,0, IF($B13="Albendazole for LF", IF($C13=ALB_MBD!$I$4,ALB_MBD!$U$4,ROUNDUP($C13/200,0)), IF($B13="Albendazole for STH (SAC)", IF($C13=ALB_MBD!$L$4,ALB_MBD!$X$4,ROUNDUP($C13/200,0)), IF($B13="Mebendazole (SAC)", IF($C13=ALB_MBD!$P$4,ALB_MBD!$AA$4,ROUNDUP($C13/150,0)), IF($B13="Diethylcarbamazine citrate", IF($C13=DEC!$J$4,DEC!$M$4,ROUNDUP($C13/1000,0)), IF($B13="Praziquantel (SAC)", IF($C13=PZQ!$N$4,PZQ!$Q$4,ROUNDUP($C13/1000,0)), IF($B13="Ivermectin - optional", IF($C13=IVM!$P$4,IVM!$S$4,$C13/500+0.49),0))))))) -> 2 | H13: 2
B14: Mebendazole (SAC) | C14: 0 | D14: 0 | F14: 0 | G14: =IF($C14=0,0, IF($B14="Albendazole for LF", IF($C14=ALB_MBD!$I$4,ALB_MBD!$U$4,ROUNDUP($C14/200,0)), IF($B14="Albendazole for STH (SAC)", IF($C14=ALB_MBD!$L$4,ALB_MBD!$X$4,ROUNDUP($C14/200,0)), IF($B14="Mebendazole (SAC)", IF($C14=ALB_MBD!$P$4,ALB_MBD!$AA$4,ROUNDUP($C14/150,0)), IF($B14="Diethylcarbamazine citrate", IF($C14=DEC!$J$4,DEC!$M$4,ROUNDUP($C14/1000,0)), IF($B14="Praziquantel (SAC)", IF($C14=PZQ!$N$4,PZQ!$Q$4,ROUNDUP($C14/1000,0)), IF($B14="Ivermectin - optional", IF($C14=IVM!$P$4,IVM!$S$4,$C14/500+0.49),0))))))) -> 0 | H14: 0
B15: Praziquantel (SAC) | C15: 2500 | D15: 0 | F15: 2500 | G15: =IF($C15=0,0, IF($B15="Albendazole for LF", IF($C15=ALB_MBD!$I$4,ALB_MBD!$U$4,ROUNDUP($C15/200,0)), IF($B15="Albendazole for STH (SAC)", IF($C15=ALB_MBD!$L$4,ALB_MBD!$X$4,ROUNDUP($C15/200,0)), IF($B15="Mebendazole (SAC)", IF($C15=ALB_MBD!$P$4,ALB_MBD!$AA$4,ROUNDUP($C15/150,0)), IF($B15="Diethylcarbamazine citrate", IF($C15=DEC!$J$4,DEC!$M$4,ROUNDUP($C15/1000,0)), IF($B15="Praziquantel (SAC)", IF($C15=PZQ!$N$4,PZQ!$Q$4,ROUNDUP($C15/1000,0)), IF($B15="Ivermectin - optional", IF($C15=IVM!$P$4,IVM!$S$4,$C15/500+0.49),0))))))) -> 4 | H15: 4
B16: Ivermectin - optional | C16: 6328 | D16: 0 | F16: 6328 | G16: =IF($C16=0,0, IF($B16="Albendazole for LF", IF($C16=ALB_MBD!$I$4,ALB_MBD!$U$4,ROUNDUP($C16/200,0)), IF($B16="Albendazole for STH (SAC)", IF($C16=ALB_MBD!$L$4,ALB_MBD!$X$4,ROUNDUP($C16/200,0)), IF($B16="Mebendazole (SAC)", IF($C16=ALB_MBD!$P$4,ALB_MBD!$AA$4,ROUNDUP($C16/150,0)), IF($B16="Diethylcarbamazine citrate", IF($C16=DEC!$J$4,DEC!$M$4,ROUNDUP($C16/1000,0)), IF($B16="Praziquantel (SAC)", IF($C16=PZQ!$N$4,PZQ!$Q$4,ROUNDUP($C16/1000,0)), IF($B16="Ivermectin - optional", IF($C16=IVM!$P$4,IVM!$S$4,$C16/500+0.49),0))))))) -> 14 | H16: 14
C17: 0 | D17: 0 | F17: 0 | G17: =IF($C17=0,0, IF($B17="Albendazole for LF", IF($C17=ALB_MBD!$I$4,ALB_MBD!$U$4,ROUNDUP($C17/200,0)), IF($B17="Albendazole for STH (SAC)", IF($C17=ALB_MBD!$L$4,ALB_MBD!$X$4,ROUNDUP($C17/200,0)), IF($B17="Mebendazole (SAC)", IF($C17=ALB_MBD!$P$4,ALB_MBD!$AA$4,ROUNDUP($C17/150,0)), IF($B17="Diethylcarbamazine citrate", IF($C17=DEC!$J$4,DEC!$M$4,ROUNDUP($C17/1000,0)), IF($B17="Praziquantel (SAC)", IF($C17=PZQ!$N$4,PZQ!$Q$4,ROUNDUP($C17/1000,0)), IF($B17="Ivermectin - optional", IF($C17=IVM!$P$4,IVM!$S$4,$C17/500+0.49),0))))))) -> 0 | H17: 0
B19: Number of people to be treated with donated medicine ( see User Guide for details )
B21: Please select disease | G21: Round 1 | H21: Round 2
B22: Lymphatic filariasis | C22: These figures are estimated only for targeted age groups to be treated with donated medicine in areas where treatment for specific disease is required | G22: 2000 | H22: 0
B23: Onchocerciasis | G23: 100 | H23: 260
B24: Schistosomiasis | G24: 1000 | H24: 0
B25: Soil-transmitted helminthiases | G25: 1000 | H25: 300
B27: Information on person(s) who has filled in the form *see note
B29: Title | C29: Name | E29: Phone | G29: Email | H29: Date
B35: * NOTE: Who should fill in the form?
B36: National NTD coordinator should compile all required information needed to complete the request form. In the absence of such a coordinator, specific programme managers should coordinate their respective part. The final single request must be approved by the Ministry of Health.
E37: Date:
B38: Name and signature of NTD coordinator or on behalf of disease specific programme managers | E38: Name and signature of Ministry of Health representative
B41: Checklist
B42: Submission
B43: What should be submitted?
B44: The supply of the requested medicines should be based on up-to-date epidemiological data, specific usage plans, and capacity for implementation. The following checklist ensures that all necessary forms and information are provided to WHO.
B45: Joint request for selected PC medicines
B46: Joint reporting form (or annual progress report) or disease specific reporting forms
B47: Annual work plan with all pertinent information including: (i) latest epidemiological information for relevant diseases; (ii) national goals, objectives and strategies; (iii) all activities planned to achieve the national goal for elimination and control of relevant diseases, particularly population and districts to be targeted and schedule of treatment, and (iv) budget and funding
B48: Availability of funding for implementation
B50: Financial resources secured for the implementation in the year for which the medicines are requested
B55: Drug supply situation from any source other than WHO for the year in which the medicines are requested
B57: Please select the medicine | C57: Supply from any source other than WHO
C58: Total number of tablets secured from other source | G58: Specify source
B66: Shipping information
B68: Information on shipment and consignee
C70: Consignee | F70: Final recipient if different from the consignee
B71: Name
B72: Department/Unit
B73: Organization
B74: Phone
B75: Fax
B76: E-mail
B77: Mailing address
B78: If you have more than one final reciepient for the requested PC medicines please complete information on shipment and consignee in the sheet SHIPMENT
B80: Please send the national request (if possible by Email) to the following entities
B82: WHO country office
B83: WHO regional office
B84: WHO headquarters | C84: parkm@who.int
B85: Mectizan donation programme
B86: Children Without Worms
B88: Please note that your request will be reviewed by an independent panel before approval. The information in this form, joint reporting form (or national progress report) and national plan of action are essential for WHO to ensure efficient usage of medicines. The review process will take up to 3 months from receipt of your joint request for selected PC medicines. As part of its ongoing monitoring and evaluation activities, and to meet its contractual obligations to donors and other partners, WHO and its appointed agents reserve the right to periodically inspect stocks of the medicines at country level.

Sheet SHIPMENT (hidden)
B2: Joint request for selected PC medicines
B4: Country | C4: =IF(INTRO!$E$33<>0,INTRO!$E$33," ") ->  | G4: Year | H4: =IF(INTRO!$E$35<>0,INTRO!$E$35," ") -> 2013
B6: Information on shipment and consignee
C8: Consignee | F8: Final recipient / Delivery point if different from the consignee
B9: Name
B10: Department/Unit
B11: Organization
B12: Phone
B13: Fax
B14: E-mail
B15: Mailing address
C17: Consignee | F17: Final recipient / Delivery point if different from the consignee
B18: Name
B19: Department/Unit
B20: Organization
B21: Phone
B22: Fax
B23: E-mail
B24: Mailing address
C26: Consignee | F26: Final recipient / Delivery point if different from the consignee
B27: Name
B28: Department/Unit
B29: Organization
B30: Phone
B31: Fax
B32: E-mail
B33: Mailing address
C35: Consignee | F35: Final recipient / Delivery point if different from the consignee
B36: Name
B37: Department/Unit
B38: Organization
B39: Phone
B40: Fax
B41: E-mail
B42: Mailing address
B44: Additional information

Sheet Master (hidden)
A1: Summary | B1: 3 | C1: 5.71 | D1: 24.43 | E1: 26 | F1: 27.57 | G1: 12 | H1: 11.43 | I1: 11.43 | J1: 11.43 | K1: 11.43 | L1: 11.43 | M1: 11.43 | N1: 17.14 | O1: 18 | P1: 12.86 | Q1: 35 | R1: 8.43 | S1: 8.43 | T1: 8.43 | U1: 8.43 | V1: 8.43 | W1: 8.43 | X1: 8.43 | Y1: 8.43 | Z1: 8.43 | AA1: 8.43 | BA1: FRENCH | DA1: PORTUGUESE | FA1: SPANISH | HA1: BAHASA
B3: Summary of new cost line items | BB3: Résumé des nouveaux éléments de coût | DB3: Resumo dos novos itens de custo | FB3: Resumen de partidas de costos nuevas | HB3: Rangkuman mata anggaran biaya baru
B4: Running total | BB4: Total cumulatif | DB4: Custo de funcionamento total | FB4: Total acumulado | HB4: Jumlah total berjalan
C6: Category | D6: Activity | E6: Subactivity | F6: # of Districts | G6: LF | H6: ONCHO | I6: SCH | J6: STH | K6: Trachoma | L6: Other | M6: Cost classification | N6: Description | O6: Cost | P6: Comment | BC6: Catégorie | BD6: Activité | BE6: Sous-activité | BF6: Nbre de Districts | BG6: LF | BH6: ONCHO | BI6: SCH | BJ6: STH | BK6: Trachoma | BL6: Other | BM6: Classification de coût | BN6: Description | BO6: Coût | BP6: Commentaire | DC6: Categoria | DD6: Actividade | DE6: Sub-actividade | DF6: # de Districts | DG6: LF | DH6: ONCHO | DI6: SCH | DJ6: STH | DK6: Trachoma | DL6: Other | DM6: Classificação de custos | DN6: Descrição | DO6: Custo | DP6: Comentário | FC6: Categoría | FD6: Actividad | FE6: Subactividad | FF6: Nro. de Districts | FG6: LF | FH6: ONCHO | FI6: SCH | FJ6: STH | FK6: Trachoma | FL6: Other | FM6: Clasificación de costos | FN6: Descripción | FO6: Costo | FP6: Comentario | HC6: Kategori | HD6: Kegiatan | HE6: Sub kegiatan | HF6: Jumlah districts | HG6: LF | HH6: ONCHO | HI6: SCH | HJ6: STH | HK6: Trachoma | HL6: Other | HM6: Klasifikasi biaya | HN6: Deskripsi | HO6: Biaya | HP6: Keterangan
B7: 1 | C7: Salaries | D7: Government in kind | E7: Salaries | G7: NA | H7: NA | I7: NA | J7: NA | K7: NA | O7: 0 | BB7: 1 | BC7: Salaries | BD7: Government in kind | BE7: Salaries | BG7: NA | BH7: NA | BI7: NA | BJ7: NA | BK7: NA | BO7: 0 | DB7: 1 | DC7: Salaries | DD7: Government in kind | DE7: Salaries | DG7: NA | DH7: NA | DI7: NA | DJ7: NA | DK7: NA | DO7: 0 | FB7: 1 | FC7: Salaries | FD7: Government in kind | FE7: Salaries | FG7: NA | FH7: NA | FI7: NA | FJ7: NA | FK7: NA | FO7: 0 | HB7: 1 | HC7: Salaries | HD7: Government in kind | HE7: Salaries | HG7: NA | HH7: NA | HI7: NA | HJ7: NA | HK7: NA | HO7: 0
A9: AO02 | B9: 5 | C9: 40.43 | D9: 18.43 | E9: 12.86 | F9: 5 | G9: 12.86 | H9: 12.86 | I9: 12.86 | J9: 8.43 | K9: 8.43 | L9: 6.29 | M9: 8.43 | N9: 8.43 | O9: 8.43 | P9: 8.43 | Q9: 8.43 | R9: 8.43 | S9: 8.43 | T9: 8.43 | U9: 8.43 | V9: 8.43 | W9: 8.43 | X9: 8.43 | Y9: 8.43 | Z9: 8.43 | AA9: 8.43 | BA9: AO02 | BB9: 5 | BC9: 40.43 | BD9: 18.43 | BE9: 12.86 | BF9: 5 | BG9: 12.86 | BH9: 12.86 | BI9: 12.86 | BJ9: 8.43 | BK9: 8.43 | BL9: 6.29 | BM9: 8.43 | BN9: 8.43 | BO9: 8.43 | BP9: 8.43 | BQ9: 8.43 | BR9: 8.43 | DA9: AO02 | DB9: 5 | DC9: 40.43 | DD9: 18.43 | DE9: 12.86 | DF9: 5 | DG9: 12.86 | DH9: 12.86 | DI9: 12.86 | DJ9: 8.43 | DK9: 8.43 | DL9: 6.29 | DM9: 8.43 | DN9: 8.43 | DO9: 8.43 | DP9: 8.43 | DQ9: 8.43 | DR9: 8.43 | FA9: AO02 | FB9: 5 | FC9: 40.43 | FD9: 18.43 | FE9: 12.86 | FF9: 5 | FG9: 12.86 | FH9: 12.86 | FI9: 12.86 | FJ9: 8.43 | FK9: 8.43 | FL9: 6.29 | FM9: 8.43 | FN9: 8.43 | FO9: 8.43 | FP9: 8.43 | FQ9: 8.43 | FR9: 8.43 | HA9: AO02 | HB9: 5 | HC9: 40.43 | HD9: 18.43 | HE9: 12.86 | HF9: 5 | HG9: 12.86 | HH9: 12.86 | HI9: 12.86 | HJ9: 8.43 | HK9: 8.43 | HL9: 6.29 | HM9: 8.43 | HN9: 8.43 | HO9: 8.43 | HP9: 8.43 | HQ9: 8.43 | HR9: 8.43
B11: Total program funding | BB11: Financement total du programme * | DB11: Financiamento total do programa* | FB11: Total de financiamiento del programa* | HB11: Jumlah total pendanaan program*
B13: Total program costs* | C13: 0 | D13: 1 | BB13: Coûts totaux du programme* | BC13: 0 | BD13: 1 | DB13: Custo total do programa* | DC13: 0 | DD13: 1 | FB13: Costo total del programa* | FC13: 0 | FD13: 1 | HB13: Jumlah total biaya program* | HC13: 0 | HD13: 1
B14: Total program funding * | C14: 0 | D14: =IFERROR(C14/C13, 0) -> 0 | BB14: Financement total du programme * | BC14: 0 | BD14: =BC14/(BC13+BC14) ->  | DB14: Financiamento total do programa* | DC14: 0 | DD14: =DC14/(DC13+DC14) ->  | FB14: Total de financiamiento del programa* | FC14: 0 | FD14: =FC14/(FC13+FC14) ->  | HB14: Jumlah total pendanaan program* | HC14: 0 | HD14: =HC14/(HC13+HC14) -> 
B15: Funding gap* | C15: =C13-C14 -> 0 | D15: =IFERROR(C15/C13, 0) -> 0 | BB15: Besoin de financement* | BC15: =BC13-BC14 -> 0 | BD15: =1-BD14 ->  | DB15: Défice de financiamento* | DC15: =DC13-DC14 -> 0 | DD15: =1-DD14 ->  | FB15: Déficit de financiamiento* | FC15: =FC13-FC14 -> 0 | FD15: =1-FD14 ->  | HB15: Kesenjangan pendanaan* | HC15: =HC13-HC14 -> 0 | HD15: =1-HD14 -> 
B17: Program Funding Sources* | C17: Amount | D17: Percent | BB17: Sources de financement du programme* | BC17: Montant | BD17: Pourcentage | DB17: Fontes de financiamento do programa* | DC17: Quantia | DD17: Percentagem | FB17: Fuentes del financiamiento del programa | FC17: Cantidad | FD17: Porcentaje | HB17: Sumber Pendanaan Program* | HC17: Jumlah | HD17: Persen
A34: AO03 | B34: 5 | C34: 60.14 | D34: 17.14 | E34: 21 | F34: 5 | G34: 8.43 | H34: 8.43 | I34: 8.43 | J34: 8.43 | K34: 8.43 | L34: 8.43 | M34: 8.43 | N34: 5.43 | O34: 5.43 | P34: 5.43 | Q34: 5.43 | R34: 5.43 | S34: 5.43 | T34: 5.43 | U34: 5.43 | V34: 8.43 | W34: 8.43 | X34: 8.43 | Y34: 8.43 | Z34: 8.43 | AA34: 8.43 | BA34: AO03 | BB34: 5 | BC34: 60.14 | BD34: 17.14 | BE34: 21 | BF34: 5 | BG34: 8.43 | BH34: 8.43 | BI34: 8.43 | BJ34: 8.43 | BK34: 8.43 | BL34: 8.43 | BM34: 8.43 | BN34: 5.43 | BO34: 5.43 | BP34: 5.43 | BQ34: 5.43 | BR34: 5.43 | DA34: AO03 | DB34: 5 | DC34: 60.14 | DD34: 17.14 | DE34: 21 | DF34: 5 | DG34: 8.43 | DH34: 8.43 | DI34: 8.43 | DJ34: 8.43 | DK34: 8.43 | DL34: 8.43 | DM34: 8.43 | DN34: 5.43 | DO34: 5.43 | DP34: 5.43 | DQ34: 5.43 | DR34: 5.43 | FA34: AO03 | FB34: 5 | FC34: 60.14 | FD34: 17.14 | FE34: 21 | FF34: 5 | FG34: 8.43 | FH34: 8.43 | FI34: 8.43 | FJ34: 8.43 | FK34: 8.43 | FL34: 8.43 | FM34: 8.43 | FN34: 5.43 | FO34: 5.43 | FP34: 5.43 | FQ34: 5.43 | FR34: 5.43 | HA34: AO03 | HB34: 5 | HC34: 60.14 | HD34: 17.14 | HE34: 21 | HF34: 5 | HG34: 8.43 | HH34: 8.43 | HI34: 8.43 | HJ34: 8.43 | HK34: 8.43 | HL34: 8.43 | HM34: 8.43 | HN34: 5.43 | HO34: 5.43 | HP34: 5.43 | HQ34: 5.43 | HR34: 5.43
B36: Total program costs | BB36: Coûts totaux du programme* | DB36: Custo total do programa* | FB36: Costo total del programa* | HB36: Jumlah total biaya program*
B38: Total costs* | C38: 0 | D38: 1 | BB38: Coût total* | BC38: 0 | BD38: 1 | DB38: Custo total* | DC38: 0 | DD38: 1 | FB38: Costo total* | FC38: 0 | FD38: 1 | HB38: Jumlah total biaya* | HC38: 0 | HD38: 1
B40: Activity | C40: Amount | D40: Percent | BB40: Activity | BC40: Montant | BD40: Pourcentage | DB40: Activity | DC40: Quantia | DD40: Percentagem | FB40: Activity | FC40: Cantidad | FD40: Porcentaje | HB40: Activity | HC40: Jumlah | HD40: Persen
A59: AO04 | B59: 5 | C59: 51 | D59: 13.29 | E59: 18 | F59: 14.29 | G59: 15 | H59: 15 | I59: 17.43 | J59: 20 | K59: 17 | L59: 20 | M59: 20 | N59: 20 | O59: 20 | P59: 20 | Q59: 20 | R59: 20 | S59: 20 | T59: 13.43 | U59: 13.43 | V59: 13.43 | W59: 13.43 | X59: 13.43 | Y59: 13.43 | Z59: 13.43 | AA59: 13.43 | BA59: AO04 | BB59: 5 | BC59: 51 | BD59: 13.29 | BE59: 18 | BF59: 14.29 | BG59: 15 | BH59: 15 | BI59: 17.43 | BJ59: 20 | BK59: 17 | BL59: 20 | BM59: 20 | BN59: 20 | BO59: 20 | BP59: 20 | BQ59: 20 | BR59: 20 | DA59: AO04 | DB59: 5 | DC59: 51 | DD59: 13.29 | DE59: 18 | DF59: 14.29 | DG59: 15 | DH59: 15 | DI59: 17.43 | DJ59: 20 | DK59: 17 | DL59: 20 | DM59: 20 | DN59: 20 | DO59: 20 | DP59: 20 | DQ59: 20 | DR59: 20 | FA59: AO04 | FB59: 5 | FC59: 51 | FD59: 13.29 | FE59: 18 | FF59: 14.29 | FG59: 15 | FH59: 15 | FI59: 17.43 | FJ59: 20 | FK59: 17 | FL59: 20 | FM59: 20 | FN59: 20 | FO59: 20 | FP59: 20 | FQ59: 20 | FR59: 20 | HA59: AO04 | HB59: 5 | HC59: 51 | HD59: 13.29 | HE59: 18 | HF59: 14.29 | HG59: 15 | HH59: 15 | HI59: 17.43 | HJ59: 20 | HK59: 17 | HL59: 20 | HM59: 20 | HN59: 20 | HO59: 20 | HP59: 20 | HQ59: 20 | HR59: 20
B61: Total program costs, funding, and gap | BB61: Total des coûts, financement et déficit du programme | DB61: Custo total do programa, financiamento e défice | FB61: Costos, financiamiento y déficits totales del programa | HB61: Jumlah total biaya, pendanaan, dan kesenjangan program
B63: Total program costs* | C63: 0 | D63: 1 | BB63: Coûts totaux du programme* | BC63: 0 | BD63: 1 | DB63: Custo total do programa* | DC63: 0 | DD63: 1 | FB63: Costo total del programa* | FC63: 0 | FD63: 1 | HB63: Jumlah total biaya program* | HC63: 0 | HD63: 1
B64: Total program funding * | C64: 0 | D64: =IFERROR(C64/C63, 0) -> 0 | BB64: Financement total du programme * | BC64: 0 | BD64: =IFERROR(BC64/BC63, 0) -> 0 | DB64: Financiamento total do programa* | DC64: 0 | DD64: =IFERROR(DC64/DC63, 0) -> 0 | FB64: Total de financiamiento del programa* | FC64: 0 | FD64: =IFERROR(FC64/FC63, 0) -> 0 | HB64: Jumlah total pendanaan program* | HC64: 0 | HD64: =IFERROR(HC64/HC63, 0) -> 0
B65: Funding gap* | C65: =C63-C64 -> 0 | D65: =1-D64 -> 1 | BB65: Besoin de financement* | BC65: =BC63-BC64 -> 0 | BD65: =1-BD64 -> 1 | DB65: Défice de financiamento* | DC65: =DC63-DC64 -> 0 | DD65: =1-DD64 -> 1 | FB65: Déficit de financiamiento* | FC65: =FC63-FC64 -> 0 | FD65: =1-FD64 -> 1 | HB65: Kesenjangan pendanaan* | HC65: =HC63-HC64 -> 0 | HD65: =1-HD64 -> 1
B67: Activity | C67: Costs | D67: Funding | E67: Gap | F67: Government funding | BB67: Activity | BC67: Coûts | BD67: Financement | BE67: Besoin | BF67: Government funding | DB67: Activity | DC67: Custos | DD67: Financiamento | DE67: Défice | DF67: Government funding | FB67: Activity | FC67: Costos | FD67: Financiamiento | FE67: Déficit | FF67: Government funding | HB67: Activity | HC67: Biaya | HD67: Pendanaan | HE67: Kesenjangan | HF67: Government funding
B68: Advocacy | C68: 0 | D68: 0 | E68: 0 | F68: 0 | BB68: Advocacy | BC68: 0 | BD68: 0 | BE68: 0 | BF68: 0 | DB68: Advocacy | DC68: 0 | DD68: 0 | DE68: 0 | DF68: 0 | FB68: Advocacy | FC68: 0 | FD68: 0 | FE68: 0 | FF68: 0 | HB68: Advocacy | HC68: 0 | HD68: 0 | HE68: 0 | HF68: 0
B69: Drug logistics | C69: 0 | D69: 0 | E69: 0 | F69: 0 | BB69: Drug logistics | BC69: 0 | BD69: 0 | BE69: 0 | BF69: 0 | DB69: Drug logistics | DC69: 0 | DD69: 0 | DE69: 0 | DF69: 0 | FB69: Drug logistics | FC69: 0 | FD69: 0 | FE69: 0 | FF69: 0 | HB69: Drug logistics | HC69: 0 | HD69: 0 | HE69: 0 | HF69: 0
B70: Mapping | C70: 0 | D70: 0 | E70: 0 | F70: 0 | BB70: Mapping | BC70: 0 | BD70: 0 | BE70: 0 | BF70: 0 | DB70: Mapping | DC70: 0 | DD70: 0 | DE70: 0 | DF70: 0 | FB70: Mapping | FC70: 0 | FD70: 0 | FE70: 0 | FF70: 0 | HB70: Mapping | HC70: 0 | HD70: 0 | HE70: 0 | HF70: 0
B71: MDA drug distribution | C71: 0 | D71: 0 | E71: 0 | F71: 0 | BB71: MDA drug distribution | BC71: 0 | BD71: 0 | BE71: 0 | BF71: 0 | DB71: MDA drug distribution | DC71: 0 | DD71: 0 | DE71: 0 | DF71: 0 | FB71: MDA drug distribution | FC71: 0 | FD71: 0 | FE71: 0 | FF71: 0 | HB71: MDA drug distribution | HC71: 0 | HD71: 0 | HE71: 0 | HF71: 0
B72: MDA registration | C72: 0 | D72: 0 | E72: 0 | F72: 0 | BB72: MDA registration | BC72: 0 | BD72: 0 | BE72: 0 | BF72: 0 | DB72: MDA registration | DC72: 0 | DD72: 0 | DE72: 0 | DF72: 0 | FB72: MDA registration | FC72: 0 | FD72: 0 | FE72: 0 | FF72: 0 | HB72: MDA registration | HC72: 0 | HD72: 0 | HE72: 0 | HF72: 0
B73: MDA training | C73: 0 | D73: 0 | E73: 0 | F73: 0 | BB73: MDA training | BC73: 0 | BD73: 0 | BE73: 0 | BF73: 0 | DB73: MDA training | DC73: 0 | DD73: 0 | DE73: 0 | DF73: 0 | FB73: MDA training | FC73: 0 | FD73: 0 | FE73: 0 | FF73: 0 | HB73: MDA training | HC73: 0 | HD73: 0 | HE73: 0 | HF73: 0
B74: Monitoring and evaluation | C74: 0 | D74: 0 | E74: 0 | F74: 0 | BB74: Monitoring and evaluation | BC74: 0 | BD74: 0 | BE74: 0 | BF74: 0 | DB74: Monitoring and evaluation | DC74: 0 | DD74: 0 | DE74: 0 | DF74: 0 | FB74: Monitoring and evaluation | FC74: 0 | FD74: 0 | FE74: 0 | FF74: 0 | HB74: Monitoring and evaluation | HC74: 0 | HD74: 0 | HE74: 0 | HF74: 0
B75: Morbidity control and surgery | C75: 0 | D75: 0 | E75: 0 | F75: 0 | BB75: Morbidity control and surgery | BC75: 0 | BD75: 0 | BE75: 0 | BF75: 0 | DB75: Morbidity control and surgery | DC75: 0 | DD75: 0 | DE75: 0 | DF75: 0 | FB75: Morbidity control and surgery | FC75: 0 | FD75: 0 | FE75: 0 | FF75: 0 | HB75: Morbidity control and surgery | HC75: 0 | HD75: 0 | HE75: 0 | HF75: 0
B76: Social mobilization | C76: 0 | D76: 0 | E76: 0 | F76: 0 | BB76: Social mobilization | BC76: 0 | BD76: 0 | BE76: 0 | BF76: 0 | DB76: Social mobilization | DC76: 0 | DD76: 0 | DE76: 0 | DF76: 0 | FB76: Social mobilization | FC76: 0 | FD76: 0 | FE76: 0 | FF76: 0 | HB76: Social mobilization | HC76: 0 | HD76: 0 | HE76: 0 | HF76: 0
B77: Strategic planning | C77: 0 | D77: 0 | E77: 0 | F77: 0 | BB77: Strategic planning | BC77: 0 | BD77: 0 | BE77: 0 | BF77: 0 | DB77: Strategic planning | DC77: 0 | DD77: 0 | DE77: 0 | DF77: 0 | FB77: Strategic planning | FC77: 0 | FD77: 0 | FE77: 0 | FF77: 0 | HB77: Strategic planning | HC77: 0 | HD77: 0 | HE77: 0 | HF77: 0
B78: Vector control | C78: 0 | D78: 0 | E78: 0 | F78: 0 | BB78: Vector control | BC78: 0 | BD78: 0 | BE78: 0 | BF78: 0 | DB78: Vector control | DC78: 0 | DD78: 0 | DE78: 0 | DF78: 0 | FB78: Vector control | FC78: 0 | FD78: 0 | FE78: 0 | FF78: 0 | HB78: Vector control | HC78: 0 | HD78: 0 | HE78: 0 | HF78: 0
A83: AO05 | B83: 5 | C83: 54.43 | D83: 12.86 | E83: 12.86 | F83: 12.86 | G83: 12.86 | H83: 12.86 | I83: 15.57 | J83: 8.43 | K83: 8.43 | L83: 8.43 | M83: 8.43 | N83: 8.43 | O83: 8.43 | P83: 8.43 | Q83: 8.43 | R83: 8.43 | S83: 8.43 | T83: 8.43 | U83: 8.43 | V83: 8.43 | W83: 8.43 | X83: 8.43 | Y83: 8.43 | Z83: 8.43 | AA83: 8.43 | BA83: AO05 | BB83: 5 | BC83: 54.43 | BD83: 12.86 | BE83: 12.86 | BF83: 12.86 | BG83: 12.86 | BH83: 12.86 | BI83: 15.57 | BJ83: 8.43 | BK83: 8.43 | BL83: 8.43 | BM83: 8.43 | BN83: 8.43 | BO83: 8.43 | BP83: 8.43 | BQ83: 8.43 | BR83: 8.43 | DA83: AO05 | DB83: 5 | DC83: 54.43 | DD83: 12.86 | DE83: 12.86 | DF83: 12.86 | DG83: 12.86 | DH83: 12.86 | DI83: 15.57 | DJ83: 8.43 | DK83: 8.43 | DL83: 8.43 | DM83: 8.43 | DN83: 8.43 | DO83: 8.43 | DP83: 8.43 | DQ83: 8.43 | DR83: 8.43 | FA83: AO05 | FB83: 5 | FC83: 54.43 | FD83: 12.86 | FE83: 12.86 | FF83: 12.86 | FG83: 12.86 | FH83: 12.86 | FI83: 15.57 | FJ83: 8.43 | FK83: 8.43 | FL83: 8.43 | FM83: 8.43 | FN83: 8.43 | FO83: 8.43 | FP83: 8.43 | FQ83: 8.43 | FR83: 8.43 | HA83: AO05 | HB83: 5 | HC83: 54.43 | HD83: 12.86 | HE83: 12.86 | HF83: 12.86 | HG83: 12.86 | HH83: 12.86 | HI83: 15.57 | HJ83: 8.43 | HK83: 8.43 | HL83: 8.43 | HM83: 8.43 | HN83: 8.43 | HO83: 8.43 | HP83: 8.43 | HQ83: 8.43 | HR83: 8.43
B85: Five-year cost projections | BB85: Projections de coût sur cinq ans | DB85: Projecção de custos a cinco anos | FB85: Proyección de costos a cinco años | HB85: Proyeksi biaya lima tahun
B100: Summary | C100: x | D100: x | E100: x | F100: x | G100: x | H100: TOTAL | BB100: Summary | BC100: x | BD100: x | BE100: x | BF100: x | BG100: x | BH100: TOTAL | DB100: Summary | DC100: x | DD100: x | DE100: x | DF100: x | DG100: x | DH100: TOTAL | FB100: Summary | FC100: x | FD100: x | FE100: x | FF100: x | FG100: x | FH100: TOTAL | HB100: Summary | HC100: x | HD100: x | HE100: x | HF100: x | HG100: x | HH100: TOTAL
B101: Total | C101: =SUM(C102:C1042) -> 435.14 | D101: 200.15 | E101: 205.57 | F101: 417.55 | G101: 262.56 | H101: 274.41 | BB101: Total | BC101: =SUM(BC102:BC1042) -> 435.14 | BD101: 200.15 | BE101: 205.57 | BF101: 417.55 | BG101: 262.56 | BH101: 274.41 | DB101: Total | DC101: =SUM(DC102:DC1042) -> 435.14 | DD101: 200.15 | DE101: 205.57 | DF101: 417.55 | DG101: 262.56 | DH101: 274.41 | FB101: Total | FC101: =SUM(FC102:FC1042) -> 435.14 | FD101: 200.15 | FE101: 205.57 | FF101: 417.55 | FG101: 262.56 | FH101: 274.41 | HB101: Total | HC101: =SUM(HC102:HC1042) -> 435.14 | HD101: 200.15 | HE101: 205.57 | HF101: 417.55 | HG101: 262.56 | HH101: 274.41
C102: 0 | D102: 0 | E102: 0 | F102: 0 | G102: 0 | H102: 0 | BC102: 0 | BD102: 0 | BE102: 0 | BF102: 0 | BG102: 0 | BH102: 0 | DC102: 0 | DD102: 0 | DE102: 0 | DF102: 0 | DG102: 0 | DH102: 0 | FC102: 0 | FD102: 0 | FE102: 0 | FF102: 0 | FG102: 0 | FH102: 0 | HC102: 0 | HD102: 0 | HE102: 0 | HF102: 0 | HG102: 0 | HH102: 0
A109: AO06 | B109: 5 | C109: 34 | D109: 15.29 | E109: 39.86 | F109: 14.86 | G109: 14.86 | H109: 14.86 | I109: 22.43 | J109: 8.43 | K109: 8.43 | L109: 16.29 | M109: 12.29 | N109: 12 | O109: 11.71 | P109: 8.43 | Q109: 8.43 | R109: 8.43 | S109: 8.43 | T109: 8.43 | U109: 8.43 | V109: 8.43 | W109: 8.43 | X109: 8.43 | Y109: 8.43 | Z109: 8.43 | AA109: 8.43 | BA109: AO06 | BB109: 5 | BC109: 34 | BD109: 15.29 | BE109: 39.86 | BF109: 14.86 | BG109: 14.86 | BH109: 14.86 | BI109: 22.43 | BJ109: 8.43 | BK109: 8.43 | BL109: 16.29 | BM109: 12.29 | BN109: 12 | BO109: 11.71 | BP109: 8.43 | BQ109: 8.43 | BR109: 8.43 | DA109: AO06 | DB109: 5 | DC109: 34 | DD109: 15.29 | DE109: 39.86 | DF109: 14.86 | DG109: 14.86 | DH109: 14.86 | DI109: 22.43 | DJ109: 8.43 | DK109: 8.43 | DL109: 16.29 | DM109: 12.29 | DN109: 12 | DO109: 11.71 | DP109: 8.43 | DQ109: 8.43 | DR109: 8.43 | FA109: AO06 | FB109: 5 | FC109: 34 | FD109: 15.29 | FE109: 39.86 | FF109: 14.86 | FG109: 14.86 | FH109: 14.86 | FI109: 22.43 | FJ109: 8.43 | FK109: 8.43 | FL109: 16.29 | FM109: 12.29 | FN109: 12 | FO109: 11.71 | FP109: 8.43 | FQ109: 8.43 | FR109: 8.43 | HA109: AO06 | HB109: 5 | HC109: 34 | HD109: 15.29 | HE109: 39.86 | HF109: 14.86 | HG109: 14.86 | HH109: 14.86 | HI109: 22.43 | HJ109: 8.43 | HK109: 8.43 | HL109: 16.29 | HM109: 12.29 | HN109: 12 | HO109: 11.71 | HP109: 8.43 | HQ109: 8.43 | HR109: 8.43
B111: PC-drugs needed, acquired, and gap | BB111: Médicaments CTP nécessaires, acquis, et besoin | DB111: Medicamentos TPQ necessários, adquiridos e défice | FB111: Medicamentos de QP necesarios, adquiridos, y déficit | HB111: Obat-obatan PC yang dibutuhkan, diadakan, dan kesenjangannya
D113: Total needed | E113: Total stock | F113: Total funded | G113: Gap | BD113: Total nécessaire | BE113: Stocks totaux | BF113: Total financé | BG113: Besoin | DD113: Total necessário | DE113: Stock total | DF113: Total financiado | DG113: Défice | FD113: Total necesario | FE113: Inventario total | FF113: Total financiado | FG113: Déficit | HD113: Jumlah total yang dibutuhkan | HE113: Jumlah total stok | HF113: Jumlah total yang didanai | HG113: Kesenjangan
B114: Drug | C114: Manufacturer | D114: (in units) | E114: (in units) | F114: (in units) | G114: (in units) | H114: Donor | BB114: Médicaments | BC114: Fabricant | BD114: (in units) | BE114: (in units) | BF114: (in units) | BG114: (in units) | BH114: Donneur | DB114: Medicamentos | DC114: Fabricante | DD114: (in units) | DE114: (in units) | DF114: (in units) | DG114: (in units) | DH114: Doador | FB114: Medicamentos | FC114: Fabricante | FD114: (in units) | FE114: (in units) | FF114: (in units) | FG114: (in units) | FH114: Donante | HB114: Obat | HC114: Pabrik | HD114: (in units) | HE114: (in units) | HF114: (in units) | HG114: (in units) | HH114: Donor
B115: DEC tabs | BB115: DEC tabs | DB115: DEC tabs | FB115: DEC tabs | HB115: DEC tabs
B116: IVM tabs | BB116: IVM tabs | DB116: IVM tabs | FB116: IVM tabs | HB116: IVM tabs
B117: ALB tabs (with IVM or DEC) | BB117: ALB tabs (with IVM or DEC) | DB117: ALB tabs (with IVM or DEC) | FB117: ALB tabs (with IVM or DEC) | HB117: ALB tabs (with IVM or DEC)
B118: ALB/MEB tabs (alone or with PZQ) | BB118: ALB/MEB tabs (alone or with PZQ) | DB118: ALB/MEB tabs (alone or with PZQ) | FB118: ALB/MEB tabs (alone or with PZQ) | HB118: ALB/MEB tabs (alone or with PZQ)
B119: PZQ tabs | BB119: PZQ tabs | DB119: PZQ tabs | FB119: PZQ tabs | HB119: PZQ tabs
B120: TEO tubes | BB120: TEO tubes | DB120: TEO tubes | FB120: TEO tubes | HB120: TEO tubes
B121: ZMAX POS bottles | BB121: ZMAX POS bottles | DB121: ZMAX POS bottles | FB121: ZMAX POS bottles | HB121: ZMAX POS bottles
B122: ZMAX tabs | BB122: ZMAX tabs | DB122: ZMAX tabs | FB122: ZMAX tabs | HB122: ZMAX tabs
A148: AO07 | B148: 5 | C148: 32.57 | D148: 13.57 | E148: 13.57 | F148: 13.57 | G148: 13.57 | H148: 14 | I148: 12.57 | J148: 8.43 | K148: 8.43 | L148: 13.86 | M148: 13.86 | N148: 13.86 | O148: 13.86 | P148: 13.86 | Q148: 13.86 | R148: 13.86 | S148: 8.43 | T148: 8.43 | U148: 8.43 | V148: 8.43 | W148: 8.43 | X148: 8.43 | Y148: 8.43 | Z148: 8.43 | AA148: 8.43 | BA148: AO07 | BB148: 5 | BC148: 32.57 | BD148: 13.57 | BE148: 13.57 | BF148: 13.57 | BG148: 13.57 | BH148: 14 | BI148: 12.57 | BJ148: 8.43 | BK148: 8.43 | BL148: 13.86 | BM148: 13.86 | BN148: 13.86 | BO148: 13.86 | BP148: 13.86 | BQ148: 13.86 | BR148: 13.86 | DA148: AO07 | DB148: 5 | DC148: 32.57 | DD148: 13.57 | DE148: 13.57 | DF148: 13.57 | DG148: 13.57 | DH148: 14 | DI148: 12.57 | DJ148: 8.43 | DK148: 8.43 | DL148: 13.86 | DM148: 13.86 | DN148: 13.86 | DO148: 13.86 | DP148: 13.86 | DQ148: 13.86 | DR148: 13.86 | FA148: AO07 | FB148: 5 | FC148: 32.57 | FD148: 13.57 | FE148: 13.57 | FF148: 13.57 | FG148: 13.57 | FH148: 14 | FI148: 12.57 | FJ148: 8.43 | FK148: 8.43 | FL148: 13.86 | FM148: 13.86 | FN148: 13.86 | FO148: 13.86 | FP148: 13.86 | FQ148: 13.86 | FR148: 13.86 | HA148: AO07 | HB148: 5 | HC148: 32.57 | HD148: 13.57 | HE148: 13.57 | HF148: 13.57 | HG148: 13.57 | HH148: 14 | HI148: 12.57 | HJ148: 8.43 | HK148: 8.43 | HL148: 13.86 | HM148: 13.86 | HN148: 13.86 | HO148: 13.86 | HP148: 13.86 | HQ148: 13.86 | HR148: 13.86
B150: Five-year PC-drug forecast | BB150: Prévisions des médicaments CTP sur cinq ans | DB150: Previsão de medicamentos TPQ a cinco anos | FB150: Proyección a cinco años de requerimientos de medicamentos para QP | HB150: Perkiraan obat PC untuk lima tahun
C152: FY 2012 | D152: FY 2013 | E152: FY 2014 | F152: FY 2015 | G152: FY 2016 | H152: Total | BC152: FY 2012 | BD152: FY 2013 | BE152: FY 2014 | BF152: FY 2015 | BG152: FY 2016 | BH152: Total | DC152: FY 2012 | DD152: FY 2013 | DE152: FY 2014 | DF152: FY 2015 | DG152: FY 2016 | DH152: Total | FC152: FY 2012 | FD152: FY 2013 | FE152: FY 2014 | FF152: FY 2015 | FG152: FY 2016 | FH152: Total | HC152: FY 2012 | HD152: FY 2013 | HE152: FY 2014 | HF152: FY 2015 | HG152: FY 2016 | HH152: Total
B153: DEC tabs | C153: 0 | D153: 0 | E153: 0 | F153: 0 | G153: 0 | H153: 0 | BB153: DEC tabs | BC153: 0 | BD153: 0 | BE153: 0 | BF153: 0 | BG153: 0 | BH153: 0 | DB153: DEC tabs | DC153: 0 | DD153: 0 | DE153: 0 | DF153: 0 | DG153: 0 | DH153: 0 | FB153: DEC tabs | FC153: 0 | FD153: 0 | FE153: 0 | FF153: 0 | FG153: 0 | FH153: 0 | HB153: DEC tabs | HC153: 0 | HD153: 0 | HE153: 0 | HF153: 0 | HG153: 0 | HH153: 0
B154: IVM tabs | C154: 0 | D154: 0 | E154: 0 | F154: 0 | G154: 0 | H154: 0 | BB154: IVM tabs | BC154: 0 | BD154: 0 | BE154: 0 | BF154: 0 | BG154: 0 | BH154: 0 | DB154: IVM tabs | DC154: 0 | DD154: 0 | DE154: 0 | DF154: 0 | DG154: 0 | DH154: 0 | FB154: IVM tabs | FC154: 0 | FD154: 0 | FE154: 0 | FF154: 0 | FG154: 0 | FH154: 0 | HB154: IVM tabs | HC154: 0 | HD154: 0 | HE154: 0 | HF154: 0 | HG154: 0 | HH154: 0
B155: ALB tabs (with IVM or DEC) | C155: 0 | D155: 0 | E155: 0 | F155: 0 | G155: 0 | H155: 0 | BB155: ALB tabs (with IVM or DEC) | BC155: 0 | BD155: 0 | BE155: 0 | BF155: 0 | BG155: 0 | BH155: 0 | DB155: ALB tabs (with IVM or DEC) | DC155: 0 | DD155: 0 | DE155: 0 | DF155: 0 | DG155: 0 | DH155: 0 | FB155: ALB tabs (with IVM or DEC) | FC155: 0 | FD155: 0 | FE155: 0 | FF155: 0 | FG155: 0 | FH155: 0 | HB155: ALB tabs (with IVM or DEC) | HC155: 0 | HD155: 0 | HE155: 0 | HF155: 0 | HG155: 0 | HH155: 0
B156: ALB/MEB tabs (alone or with PZQ) | C156: 0 | D156: 0 | E156: 0 | F156: 0 | G156: 0 | H156: 0 | BB156: ALB/MEB tabs (alone or with PZQ) | BC156: 0 | BD156: 0 | BE156: 0 | BF156: 0 | BG156: 0 | BH156: 0 | DB156: ALB/MEB tabs (alone or with PZQ) | DC156: 0 | DD156: 0 | DE156: 0 | DF156: 0 | DG156: 0 | DH156: 0 | FB156: ALB/MEB tabs (alone or with PZQ) | FC156: 0 | FD156: 0 | FE156: 0 | FF156: 0 | FG156: 0 | FH156: 0 | HB156: ALB/MEB tabs (alone or with PZQ) | HC156: 0 | HD156: 0 | HE156: 0 | HF156: 0 | HG156: 0 | HH156: 0
B157: PZQ tabs | C157: 0 | D157: 0 | E157: 0 | F157: 0 | G157: 0 | H157: 0 | BB157: PZQ tabs | BC157: 0 | BD157: 0 | BE157: 0 | BF157: 0 | BG157: 0 | BH157: 0 | DB157: PZQ tabs | DC157: 0 | DD157: 0 | DE157: 0 | DF157: 0 | DG157: 0 | DH157: 0 | FB157: PZQ tabs | FC157: 0 | FD157: 0 | FE157: 0 | FF157: 0 | FG157: 0 | FH157: 0 | HB157: PZQ tabs | HC157: 0 | HD157: 0 | HE157: 0 | HF157: 0 | HG157: 0 | HH157: 0
B158: TEO tubes | C158: 0 | D158: 0 | E158: 0 | F158: 0 | G158: 0 | H158: 0 | BB158: TEO tubes | BC158: 0 | BD158: 0 | BE158: 0 | BF158: 0 | BG158: 0 | BH158: 0 | DB158: TEO tubes | DC158: 0 | DD158: 0 | DE158: 0 | DF158: 0 | DG158: 0 | DH158: 0 | FB158: TEO tubes | FC158: 0 | FD158: 0 | FE158: 0 | FF158: 0 | FG158: 0 | FH158: 0 | HB158: TEO tubes | HC158: 0 | HD158: 0 | HE158: 0 | HF158: 0 | HG158: 0 | HH158: 0
B159: ZMAX POS bottles | C159: 0 | D159: 0 | E159: 0 | F159: 0 | G159: 0 | H159: 0 | BB159: ZMAX POS bottles | BC159: 0 | BD159: 0 | BE159: 0 | BF159: 0 | BG159: 0 | BH159: 0 | DB159: ZMAX POS bottles | DC159: 0 | DD159: 0 | DE159: 0 | DF159: 0 | DG159: 0 | DH159: 0 | FB159: ZMAX POS bottles | FC159: 0 | FD159: 0 | FE159: 0 | FF159: 0 | FG159: 0 | FH159: 0 | HB159: ZMAX POS bottles | HC159: 0 | HD159: 0 | HE159: 0 | HF159: 0 | HG159: 0 | HH159: 0
B160: ZMAX tabs | C160: 0 | D160: 0 | E160: 0 | F160: 0 | G160: 0 | H160: 0 | BB160: ZMAX tabs | BC160: 0 | BD160: 0 | BE160: 0 | BF160: 0 | BG160: 0 | BH160: 0 | DB160: ZMAX tabs | DC160: 0 | DD160: 0 | DE160: 0 | DF160: 0 | DG160: 0 | DH160: 0 | FB160: ZMAX tabs | FC160: 0 | FD160: 0 | FE160: 0 | FF160: 0 | FG160: 0 | FH160: 0 | HB160: ZMAX tabs | HC160: 0 | HD160: 0 | HE160: 0 | HF160: 0 | HG160: 0 | HH160: 0
A164: AO08 | B164: 5 | C164: 19.43 | D164: 19.29 | E164: 19 | F164: 18.71 | G164: 18.71 | H164: 18.71 | I164: 18.71 | J164: 18.71 | K164: 18.71 | L164: 18.71 | M164: 18.71 | N164: 20.14 | O164: 8.43 | P164: 8.43 | Q164: 8.43 | R164: 8.43 | S164: 8.43 | T164: 8.43 | U164: 8.43 | V164: 8.43 | W164: 8.43 | X164: 8.43 | Y164: 8.43 | Z164: 8.43 | AA164: 8.43 | BA164: AO08 | BB164: 5 | BC164: 19.43 | BD164: 19.29 | BE164: 19 | BF164: 18.71 | BG164: 18.71 | BH164: 18.71 | BI164: 18.71 | BJ164: 18.71 | BK164: 18.71 | BL164: 18.71 | BM164: 18.71 | BN164: 20.14 | BO164: 8.43 | BP164: 8.43 | BQ164: 8.43 | BR164: 8.43 | DA164: AO08 | DB164: 5 | DC164: 19.43 | DD164: 19.29 | DE164: 19 | DF164: 18.71 | DG164: 18.71 | DH164: 18.71 | DI164: 18.71 | DJ164: 18.71 | DK164: 18.71 | DL164: 18.71 | DM164: 18.71 | DN164: 20.14 | DO164: 8.43 | DP164: 8.43 | DQ164: 8.43 | DR164: 8.43 | FA164: AO08 | FB164: 5 | FC164: 19.43 | FD164: 19.29 | FE164: 19 | FF164: 18.71 | FG164: 18.71 | FH164: 18.71 | FI164: 18.71 | FJ164: 18.71 | FK164: 18.71 | FL164: 18.71 | FM164: 18.71 | FN164: 20.14 | FO164: 8.43 | FP164: 8.43 | FQ164: 8.43 | FR164: 8.43 | HA164: AO08 | HB164: 5 | HC164: 19.43 | HD164: 19.29 | HE164: 19 | HF164: 18.71 | HG164: 18.71 | HH164: 18.71 | HI164: 18.71 | HJ164: 18.71 | HK164: 18.71 | HL164: 18.71 | HM164: 18.71 | HN164: 20.14 | HO164: 8.43 | HP164: 8.43 | HQ164: 8.43 | HR164: 8.43
B166: Target population summary | BB166: Résumé de population cible | DB166: Resumo da população alvo | FB166: Resumen de población beneficiaria | HB166: Rangkuman jumlah penduduk sasaran
E168: Target population | F168: Target population | G168: Target population | H168: Target population | I168: Target population | J168: Number of districts | K168: Number of districts | L168: Number of districts | M168: Number of districts | N168: Number of districts | BE168: Target population | BF168: Target population | BG168: Target population | BH168: Target population | BI168: Target population | BJ168: Number of districts | BK168: Number of districts | BL168: Number of districts | BM168: Number of districts | BN168: Number of districts | DE168: Target population | DF168: Target population | DG168: Target population | DH168: Target population | DI168: Target population | DJ168: Number of districts | DK168: Number of districts | DL168: Number of districts | DM168: Number of districts | DN168: Number of districts | FE168: Target population | FF168: Target population | FG168: Target population | FH168: Target population | FI168: Target population | FJ168: Number of districts | FK168: Number of districts | FL168: Number of districts | FM168: Number of districts | FN168: Number of districts | HE168: Target population | HF168: Target population | HG168: Target population | HH168: Target population | HI168: Target population | HJ168: Number of districts | HK168: Number of districts | HL168: Number of districts | HM168: Number of districts | HN168: Number of districts
E169: FY 2012 | F169: FY 2012 | G169: FY 2012 | H169: FY 2012 | I169: FY 2012 | J169: FY 2012 | K169: FY 2012 | L169: FY 2012 | M169: FY 2012 | N169: FY 2012 | BE169: FY 2012 | BF169: FY 2012 | BG169: FY 2012 | BH169: FY 2012 | BI169: FY 2012 | BJ169: FY 2012 | BK169: FY 2012 | BL169: FY 2012 | BM169: FY 2012 | BN169: FY 2012 | DE169: FY 2012 | DF169: FY 2012 | DG169: FY 2012 | DH169: FY 2012 | DI169: FY 2012 | DJ169: FY 2012 | DK169: FY 2012 | DL169: FY 2012 | DM169: FY 2012 | DN169: FY 2012 | FE169: FY 2012 | FF169: FY 2012 | FG169: FY 2012 | FH169: FY 2012 | FI169: FY 2012 | FJ169: FY 2012 | FK169: FY 2012 | FL169: FY 2012 | FM169: FY 2012 | FN169: FY 2012 | HE169: FY 2012 | HF169: FY 2012 | HG169: FY 2012 | HH169: FY 2012 | HI169: FY 2012 | HJ169: FY 2012 | HK169: FY 2012 | HL169: FY 2012 | HM169: FY 2012 | HN169: FY 2012
B170: LF | D170: > 5 years | E170: 0 | F170: 0 | G170: 0 | H170: 0 | I170: 0 | J170: 0 | K170: 0 | L170: 0 | M170: 0 | N170: 0 | BB170: LF | BD170: > 5 years | BE170: 0 | BF170: 0 | BG170: 0 | BH170: 0 | BI170: 0 | BJ170: 0 | BK170: 0 | BL170: 0 | BM170: 0 | BN170: 0 | DB170: LF | DD170: > 5 years | DE170: 0 | DF170: 0 | DG170: 0 | DH170: 0 | DI170: 0 | DJ170: 0 | DK170: 0 | DL170: 0 | DM170: 0 | DN170: 0 | FB170: LF | FD170: > 5 years | FE170: 0 | FF170: 0 | FG170: 0 | FH170: 0 | FI170: 0 | FJ170: 0 | FK170: 0 | FL170: 0 | FM170: 0 | FN170: 0 | HB170: LF | HD170: > 5 years | HE170: 0 | HF170: 0 | HG170: 0 | HH170: 0 | HI170: 0 | HJ170: 0 | HK170: 0 | HL170: 0 | HM170: 0 | HN170: 0
B171: ONCHO ROUND 1 | D171: > 5 years | E171: 0 | F171: 0 | G171: 0 | H171: 0 | I171: 0 | J171: 0 | K171: 0 | L171: 0 | M171: 0 | N171: 0 | BB171: ONCHO ROUND 1 | BD171: > 5 years | BE171: 0 | BF171: 0 | BG171: 0 | BH171: 0 | BI171: 0 | BJ171: 0 | BK171: 0 | BL171: 0 | BM171: 0 | BN171: 0 | DB171: ONCHO ROUND 1 | DD171: > 5 years | DE171: 0 | DF171: 0 | DG171: 0 | DH171: 0 | DI171: 0 | DJ171: 0 | DK171: 0 | DL171: 0 | DM171: 0 | DN171: 0 | FB171: ONCHO ROUND 1 | FD171: > 5 years | FE171: 0 | FF171: 0 | FG171: 0 | FH171: 0 | FI171: 0 | FJ171: 0 | FK171: 0 | FL171: 0 | FM171: 0 | FN171: 0 | HB171: ONCHO ROUND 1 | HD171: > 5 years | HE171: 0 | HF171: 0 | HG171: 0 | HH171: 0 | HI171: 0 | HJ171: 0 | HK171: 0 | HL171: 0 | HM171: 0 | HN171: 0
B172: ONCHO ROUND 2 | D172: > 5 years | E172: 0 | F172: 0 | G172: 0 | H172: 0 | I172: 0 | J172: 0 | K172: 0 | L172: 0 | M172: 0 | N172: 0 | BB172: ONCHO ROUND 2 | BD172: > 5 years | BE172: 0 | BF172: 0 | BG172: 0 | BH172: 0 | BI172: 0 | BJ172: 0 | BK172: 0 | BL172: 0 | BM172: 0 | BN172: 0 | DB172: ONCHO ROUND 2 | DD172: > 5 years | DE172: 0 | DF172: 0 | DG172: 0 | DH172: 0 | DI172: 0 | DJ172: 0 | DK172: 0 | DL172: 0 | DM172: 0 | DN172: 0 | FB172: ONCHO ROUND 2 | FD172: > 5 years | FE172: 0 | FF172: 0 | FG172: 0 | FH172: 0 | FI172: 0 | FJ172: 0 | FK172: 0 | FL172: 0 | FM172: 0 | FN172: 0 | HB172: ONCHO ROUND 2 | HD172: > 5 years | HE172: 0 | HF172: 0 | HG172: 0 | HH172: 0 | HI172: 0 | HJ172: 0 | HK172: 0 | HL172: 0 | HM172: 0 | HN172: 0
B173: SCH | D173: School aged | E173: 0 | F173: 0 | G173: 0 | H173: 0 | I173: 0 | J173: 0 | K173: 0 | L173: 0 | M173: 0 | N173: 0 | BB173: SCH | BD173: School aged | BE173: 0 | BF173: 0 | BG173: 0 | BH173: 0 | BI173: 0 | BJ173: 0 | BK173: 0 | BL173: 0 | BM173: 0 | BN173: 0 | DB173: SCH | DD173: School aged | DE173: 0 | DF173: 0 | DG173: 0 | DH173: 0 | DI173: 0 | DJ173: 0 | DK173: 0 | DL173: 0 | DM173: 0 | DN173: 0 | FB173: SCH | FD173: School aged | FE173: 0 | FF173: 0 | FG173: 0 | FH173: 0 | FI173: 0 | FJ173: 0 | FK173: 0 | FL173: 0 | FM173: 0 | FN173: 0 | HB173: SCH | HD173: School aged | HE173: 0 | HF173: 0 | HG173: 0 | HH173: 0 | HI173: 0 | HJ173: 0 | HK173: 0 | HL173: 0 | HM173: 0 | HN173: 0
D174: High-risk adults | E174: 0 | F174: 0 | G174: 0 | H174: 0 | I174: 0 | J174: 0 | K174: 0 | L174: 0 | M174: 0 | N174: 0 | BD174: High-risk adults | BE174: 0 | BF174: 0 | BG174: 0 | BH174: 0 | BI174: 0 | BJ174: 0 | BK174: 0 | BL174: 0 | BM174: 0 | BN174: 0 | DD174: High-risk adults | DE174: 0 | DF174: 0 | DG174: 0 | DH174: 0 | DI174: 0 | DJ174: 0 | DK174: 0 | DL174: 0 | DM174: 0 | DN174: 0 | FD174: High-risk adults | FE174: 0 | FF174: 0 | FG174: 0 | FH174: 0 | FI174: 0 | FJ174: 0 | FK174: 0 | FL174: 0 | FM174: 0 | FN174: 0 | HD174: High-risk adults | HE174: 0 | HF174: 0 | HG174: 0 | HH174: 0 | HI174: 0 | HJ174: 0 | HK174: 0 | HL174: 0 | HM174: 0 | HN174: 0
B175: STH ROUND 1 | D175: Pre-school age | E175: 0 | F175: 0 | G175: 0 | H175: 0 | I175: 0 | J175: 0 | K175: 0 | L175: 0 | M175: 0 | N175: 0 | BB175: STH ROUND 1 | BD175: Pre-school age | BE175: 0 | BF175: 0 | BG175: 0 | BH175: 0 | BI175: 0 | BJ175: 0 | BK175: 0 | BL175: 0 | BM175: 0 | BN175: 0 | DB175: STH ROUND 1 | DD175: Pre-school age | DE175: 0 | DF175: 0 | DG175: 0 | DH175: 0 | DI175: 0 | DJ175: 0 | DK175: 0 | DL175: 0 | DM175: 0 | DN175: 0 | FB175: STH ROUND 1 | FD175: Pre-school age | FE175: 0 | FF175: 0 | FG175: 0 | FH175: 0 | FI175: 0 | FJ175: 0 | FK175: 0 | FL175: 0 | FM175: 0 | FN175: 0 | HB175: STH ROUND 1 | HD175: Pre-school age | HE175: 0 | HF175: 0 | HG175: 0 | HH175: 0 | HI175: 0 | HJ175: 0 | HK175: 0 | HL175: 0 | HM175: 0 | HN175: 0
D176: School age | E176: 0 | F176: 0 | G176: 0 | H176: 0 | I176: 0 | J176: 0 | K176: 0 | L176: 0 | M176: 0 | N176: 0 | BD176: School age | BE176: 0 | BF176: 0 | BG176: 0 | BH176: 0 | BI176: 0 | BJ176: 0 | BK176: 0 | BL176: 0 | BM176: 0 | BN176: 0 | DD176: School age | DE176: 0 | DF176: 0 | DG176: 0 | DH176: 0 | DI176: 0 | DJ176: 0 | DK176: 0 | DL176: 0 | DM176: 0 | DN176: 0 | FD176: School age | FE176: 0 | FF176: 0 | FG176: 0 | FH176: 0 | FI176: 0 | FJ176: 0 | FK176: 0 | FL176: 0 | FM176: 0 | FN176: 0 | HD176: School age | HE176: 0 | HF176: 0 | HG176: 0 | HH176: 0 | HI176: 0 | HJ176: 0 | HK176: 0 | HL176: 0 | HM176: 0 | HN176: 0
D177: High-risk adults | E177: 0 | F177: 0 | G177: 0 | H177: 0 | I177: 0 | J177: 0 | K177: 0 | L177: 0 | M177: 0 | N177: 0 | BD177: High-risk adults | BE177: 0 | BF177: 0 | BG177: 0 | BH177: 0 | BI177: 0 | BJ177: 0 | BK177: 0 | BL177: 0 | BM177: 0 | BN177: 0 | DD177: High-risk adults | DE177: 0 | DF177: 0 | DG177: 0 | DH177: 0 | DI177: 0 | DJ177: 0 | DK177: 0 | DL177: 0 | DM177: 0 | DN177: 0 | FD177: High-risk adults | FE177: 0 | FF177: 0 | FG177: 0 | FH177: 0 | FI177: 0 | FJ177: 0 | FK177: 0 | FL177: 0 | FM177: 0 | FN177: 0 | HD177: High-risk adults | HE177: 0 | HF177: 0 | HG177: 0 | HH177: 0 | HI177: 0 | HJ177: 0 | HK177: 0 | HL177: 0 | HM177: 0 | HN177: 0
B178: STH ROUND 2 | E178: 0 | F178: 0 | G178: 0 | H178: 0 | I178: 0 | J178: 0 | K178: 0 | L178: 0 | M178: 0 | N178: 0 | BB178: STH ROUND 2 | BE178: 0 | BF178: 0 | BG178: 0 | BH178: 0 | BI178: 0 | BJ178: 0 | BK178: 0 | BL178: 0 | BM178: 0 | BN178: 0 | DB178: STH ROUND 2 | DE178: 0 | DF178: 0 | DG178: 0 | DH178: 0 | DI178: 0 | DJ178: 0 | DK178: 0 | DL178: 0 | DM178: 0 | DN178: 0 | FB178: STH ROUND 2 | FE178: 0 | FF178: 0 | FG178: 0 | FH178: 0 | FI178: 0 | FJ178: 0 | FK178: 0 | FL178: 0 | FM178: 0 | FN178: 0 | HB178: STH ROUND 2 | HE178: 0 | HF178: 0 | HG178: 0 | HH178: 0 | HI178: 0 | HJ178: 0 | HK178: 0 | HL178: 0 | HM178: 0 | HN178: 0
B179: Trachoma | D179: < 6 months: | E179: 0 | F179: 0 | G179: 0 | H179: 0 | I179: 0 | J179: 0 | K179: 0 | L179: 0 | M179: 0 | N179: 0 | BB179: Trachoma | BD179: < 6 months: | BE179: 0 | BF179: 0 | BG179: 0 | BH179: 0 | BI179: 0 | BJ179: 0 | BK179: 0 | BL179: 0 | BM179: 0 | BN179: 0 | DB179: Trachoma | DD179: < 6 months: | DE179: 0 | DF179: 0 | DG179: 0 | DH179: 0 | DI179: 0 | DJ179: 0 | DK179: 0 | DL179: 0 | DM179: 0 | DN179: 0 | FB179: Trachoma | FD179: < 6 months: | FE179: 0 | FF179: 0 | FG179: 0 | FH179: 0 | FI179: 0 | FJ179: 0 | FK179: 0 | FL179: 0 | FM179: 0 | FN179: 0 | HB179: Trachoma | HD179: < 6 months: | HE179: 0 | HF179: 0 | HG179: 0 | HH179: 0 | HI179: 0 | HJ179: 0 | HK179: 0 | HL179: 0 | HM179: 0 | HN179: 0
D180: 6-59 months | E180: 0 | F180: 0 | G180: 0 | H180: 0 | I180: 0 | J180: 0 | K180: 0 | L180: 0 | M180: 0 | N180: 0 | BD180: 6-59 months | BE180: 0 | BF180: 0 | BG180: 0 | BH180: 0 | BI180: 0 | BJ180: 0 | BK180: 0 | BL180: 0 | BM180: 0 | BN180: 0 | DD180: 6-59 months | DE180: 0 | DF180: 0 | DG180: 0 | DH180: 0 | DI180: 0 | DJ180: 0 | DK180: 0 | DL180: 0 | DM180: 0 | DN180: 0 | FD180: 6-59 months | FE180: 0 | FF180: 0 | FG180: 0 | FH180: 0 | FI180: 0 | FJ180: 0 | FK180: 0 | FL180: 0 | FM180: 0 | FN180: 0 | HD180: 6-59 months | HE180: 0 | HF180: 0 | HG180: 0 | HH180: 0 | HI180: 0 | HJ180: 0 | HK180: 0 | HL180: 0 | HM180: 0 | HN180: 0
D181: > 5 years | E181: 0 | F181: 0 | G181: 0 | H181: 0 | I181: 0 | J181: 0 | K181: 0 | L181: 0 | M181: 0 | N181: 0 | BD181: > 5 years | BE181: 0 | BF181: 0 | BG181: 0 | BH181: 0 | BI181: 0 | BJ181: 0 | BK181: 0 | BL181: 0 | BM181: 0 | BN181: 0 | DD181: > 5 years | DE181: 0 | DF181: 0 | DG181: 0 | DH181: 0 | DI181: 0 | DJ181: 0 | DK181: 0 | DL181: 0 | DM181: 0 | DN181: 0 | FD181: > 5 years | FE181: 0 | FF181: 0 | FG181: 0 | FH181: 0 | FI181: 0 | FJ181: 0 | FK181: 0 | FL181: 0 | FM181: 0 | FN181: 0 | HD181: > 5 years | HE181: 0 | HF181: 0 | HG181: 0 | HH181: 0 | HI181: 0 | HJ181: 0 | HK181: 0 | HL181: 0 | HM181: 0 | HN181: 0
A184: AO09 | B184: 5 | C184: 21.43 | D184: 19.57 | E184: 19.57 | F184: 19.57 | G184: 19.57 | H184: 19.57 | I184: 10.86 | J184: 13.14 | K184: 13.29 | L184: 12 | M184: 10.86 | N184: 8.43 | O184: 8.43 | P184: 8.43 | Q184: 8.43 | R184: 8.57 | S184: 8.57 | T184: 8.57 | U184: 8.57 | V184: 8.57 | W184: 9.71 | X184: 9.71 | Y184: 9.71 | Z184: 9.71 | AA184: 9.71 | BA184: AO09 | BB184: 5 | BC184: 21.43 | BD184: 19.57 | BE184: 19.57 | BF184: 19.57 | BG184: 19.57 | BH184: 19.57 | BI184: 10.86 | BJ184: 13.14 | BK184: 13.29 | BL184: 12 | BM184: 10.86 | BN184: 8.43 | BO184: 8.43 | BP184: 8.43 | BQ184: 8.43 | BR184: 8.57 | DA184: AO09 | DB184: 5 | DC184: 21.43 | DD184: 19.57 | DE184: 19.57 | DF184: 19.57 | DG184: 19.57 | DH184: 19.57 | DI184: 10.86 | DJ184: 13.14 | DK184: 13.29 | DL184: 12 | DM184: 10.86 | DN184: 8.43 | DO184: 8.43 | DP184: 8.43 | DQ184: 8.43 | DR184: 8.57 | FA184: AO09 | FB184: 5 | FC184: 21.43 | FD184: 19.57 | FE184: 19.57 | FF184: 19.57 | FG184: 19.57 | FH184: 19.57 | FI184: 10.86 | FJ184: 13.14 | FK184: 13.29 | FL184: 12 | FM184: 10.86 | FN184: 8.43 | FO184: 8.43 | FP184: 8.43 | FQ184: 8.43 | FR184: 8.57 | HA184: AO09 | HB184: 5 | HC184: 21.43 | HD184: 19.57 | HE184: 19.57 | HF184: 19.57 | HG184: 19.57 | HH184: 19.57 | HI184: 10.86 | HJ184: 13.14 | HK184: 13.29 | HL184: 12 | HM184: 10.86 | HN184: 8.43 | HO184: 8.43 | HP184: 8.43 | HQ184: 8.43 | HR184: 8.57
B186: Five-year target population projections by district | BB186: Prévisions de population cible sur cinq ans par district | DB186: Projecções das populações alvo por district a cinco anos | FB186: Proyecciones quinquenales de población beneficiaria por district | HB186: Proyeksi jumlah penduduk sasaran untuk lima tahun per district
B205: District | C205: LF | E205: =GI!G21 -> NTD20 Name | F205: FY 2012 | G205: FY 2013 | H205: FY 2014 | I205: FY 2015 | J205: FY 2016 | BB205: District | BC205: LF | BE205: =GI!AP21 -> 0 | BF205: FY 2012 | BG205: FY 2013 | BH205: FY 2014 | BI205: FY 2015 | BJ205: FY 2016 | DB205: District | DC205: LF | DE205: =GI!CG21 -> 0 | DF205: FY 2012 | DG205: FY 2013 | DH205: FY 2014 | DI205: FY 2015 | DJ205: FY 2016 | FB205: District | FC205: LF | FE205: =GI!DP21 -> 0 | FF205: FY 2012 | FG205: FY 2013 | FH205: FY 2014 | FI205: FY 2015 | FJ205: FY 2016 | HB205: District | HC205: LF | HE205: =GI!FG21 -> 0 | HF205: FY 2012 | HG205: FY 2013 | HH205: FY 2014 | HI205: FY 2015 | HJ205: FY 2016
B206: Total | F206: =SUM(H208:H1092) -> 116.13 | G206: =SUM(I208:I1092) -> 76 | H206: =SUM(J208:J1092) -> 91.14 | I206: =SUM(K208:K1092) -> 45.15 | J206: =SUM(L208:L1092) -> 75.72 | BB206: Total | BF206: =SUM(BH208:BH1092) -> 116.13 | BG206: =SUM(BI208:BI1092) -> 76 | BH206: =SUM(BJ208:BJ1092) -> 91.14 | BI206: =SUM(BK208:BK1092) -> 45.15 | BJ206: =SUM(BL208:BL1092) -> 75.72 | DB206: Total | DF206: =SUM(DH208:DH1092) -> 116.13 | DG206: =SUM(DI208:DI1092) -> 76 | DH206: =SUM(DJ208:DJ1092) -> 91.14 | DI206: =SUM(DK208:DK1092) -> 45.15 | DJ206: =SUM(DL208:DL1092) -> 75.72 | FB206: Total | FF206: =SUM(FH208:FH1092) -> 116.13 | FG206: =SUM(FI208:FI1092) -> 76 | FH206: =SUM(FJ208:FJ1092) -> 91.14 | FI206: =SUM(FK208:FK1092) -> 45.15 | FJ206: =SUM(FL208:FL1092) -> 75.72 | HB206: Total | HF206: =SUM(HH208:HH1092) -> 116.13 | HG206: =SUM(HI208:HI1092) -> 76 | HH206: =SUM(HJ208:HJ1092) -> 91.14 | HI206: =SUM(HK208:HK1092) -> 45.15 | HJ206: =SUM(HL208:HL1092) -> 75.72
A209: AO10 | B209: 5 | C209: 21.43 | D209: 19.57 | E209: 19.57 | F209: 19.57 | G209: 19.57 | H209: 19.57 | I209: 10.86 | J209: 13.14 | K209: 13.29 | L209: 12 | M209: 10.86 | N209: 8.43 | O209: 8.43 | P209: 8.43 | Q209: 8.43 | R209: 8.57 | S209: 8.57 | T209: 8.57 | U209: 8.57 | V209: 8.57 | W209: 9.71 | X209: 9.71 | Y209: 9.71 | Z209: 9.71 | AA209: 9.71 | BA209: AO10 | BB209: 5 | BC209: 21.43 | BD209: 19.57 | BE209: 19.57 | BF209: 19.57 | BG209: 19.57 | BH209: 19.57 | BI209: 10.86 | BJ209: 13.14 | BK209: 13.29 | BL209: 12 | BM209: 10.86 | BN209: 8.43 | BO209: 8.43 | BP209: 8.43 | BQ209: 8.43 | BR209: 8.57 | DA209: AO10 | DB209: 5 | DC209: 21.43 | DD209: 19.57 | DE209: 19.57 | DF209: 19.57 | DG209: 19.57 | DH209: 19.57 | DI209: 10.86 | DJ209: 13.14 | DK209: 13.29 | DL209: 12 | DM209: 10.86 | DN209: 8.43 | DO209: 8.43 | DP209: 8.43 | DQ209: 8.43 | DR209: 8.57 | FA209: AO10 | FB209: 5 | FC209: 21.43 | FD209: 19.57 | FE209: 19.57 | FF209: 19.57 | FG209: 19.57 | FH209: 19.57 | FI209: 10.86 | FJ209: 13.14 | FK209: 13.29 | FL209: 12 | FM209: 10.86 | FN209: 8.43 | FO209: 8.43 | FP209: 8.43 | FQ209: 8.43 | FR209: 8.57 | HA209: AO10 | HB209: 5 | HC209: 21.43 | HD209: 19.57 | HE209: 19.57 | HF209: 19.57 | HG209: 19.57 | HH209: 19.57 | HI209: 10.86 | HJ209: 13.14 | HK209: 13.29 | HL209: 12 | HM209: 10.86 | HN209: 8.43 | HO209: 8.43 | HP209: 8.43 | HQ209: 8.43 | HR209: 8.57
B211: Drug need projections by district | BB211: Drug need projections by district | DB211: Drug need projections by district | FB211: Drug need projections by district | HB211: Drug need projections by district
C213: DEC | D213: IVM | E213: (with IVM or DEC) | F213: (alone or with PZQ) | G213: PZQ tabs | H213: TEO tubes | I213: ZMAX POS bottles | J213: ZMAX tabs | L213: Reduced need for ALB/MBD due to integration | BL213: Réduction des besoins en ALB/MBD suite à une intégration | DL213: Necessidade reduzida de ALB/MBD devido a integração | FL213: Necesidad reducida de ALB/MBZ debido a integración | HL213: Berkurangnya kebutuhan ALB/MBD karena pengintegrasian
B214: District | BB214: District | BC214: DEC | BD214: IVM | BE214: (with IVM or DEC) | BF214: (alone or with PZQ) | BG214: PZQ tabs | BH214: TEO tubes | BI214: ZMAX POS bottles | BJ214: ZMAX tabs | DB214: District | DC214: DEC | DD214: IVM | DE214: (with IVM or DEC) | DF214: (alone or with PZQ) | DG214: PZQ tabs | DH214: TEO tubes | DI214: ZMAX POS bottles | DJ214: ZMAX tabs | FB214: District | FC214: DEC | FD214: IVM | FE214: (with IVM or DEC) | FF214: (alone or with PZQ) | FG214: PZQ tabs | FH214: TEO tubes | FI214: ZMAX POS bottles | FJ214: ZMAX tabs | HB214: District | HC214: DEC | HD214: IVM | HE214: (with IVM or DEC) | HF214: (alone or with PZQ) | HG214: PZQ tabs | HH214: TEO tubes | HI214: ZMAX POS bottles | HJ214: ZMAX tabs
B215: Total | C215: =SUM(C216:C1117) -> 153.14 | D215: 56.43 | E215: 47 | F215: 107.57 | G215: 50.14 | H215: 48.28 | I215: 32.57 | J215: 39 | L215: =SUM(L216:L1117) -> 31.86 | BB215: Total | BC215: =SUM(BC216:BC1117) -> 153.14 | BD215: 56.43 | BE215: 47 | BF215: 107.57 | BG215: 50.14 | BH215: 48.28 | BI215: 32.57 | BJ215: 39 | BL215: =SUM(BL216:BL1117) -> 31.86 | DB215: Total | DC215: =SUM(DC216:DC1117) -> 153.14 | DD215: 56.43 | DE215: 47 | DF215: 107.57 | DG215: 50.14 | DH215: 48.28 | DI215: 32.57 | DJ215: 39 | DL215: =SUM(DL216:DL1117) -> 31.86 | FB215: Total | FC215: =SUM(FC216:FC1117) -> 153.14 | FD215: 56.43 | FE215: 47 | FF215: 107.57 | FG215: 50.14 | FH215: 48.28 | FI215: 32.57 | FJ215: 39 | FL215: =SUM(FL216:FL1117) -> 31.86 | HB215: Total | HC215: =SUM(HC216:HC1117) -> 153.14 | HD215: 56.43 | HE215: 47 | HF215: 107.57 | HG215: 50.14 | HH215: 48.28 | HI215: 32.57 | HJ215: 39 | HL215: =SUM(HL216:HL1117) -> 31.86
A217: AO11 | B217: 5 | C217: 35.57 | D217: 15.57 | E217: 15.57 | F217: 15.57 | G217: 15.57 | H217: 15.57 | I217: 15.57 | J217: 15.57 | K217: 8.43 | L217: 8.43 | M217: 8.43 | N217: 8.43 | O217: 8.43 | P217: 8.43 | Q217: 8.43 | R217: 8.43 | S217: 8.43 | T217: 8.43 | U217: 8.43 | V217: 8.43 | W217: 8.43 | X217: 8.43 | Y217: 8.43 | Z217: 8.43 | AA217: 8.43 | BA217: AO11 | BB217: 5 | BC217: 35.57 | BD217: 15.57 | BE217: 15.57 | BF217: 15.57 | BG217: 15.57 | BH217: 15.57 | BI217: 15.57 | BJ217: 15.57 | BK217: 8.43 | BL217: 8.43 | BM217: 8.43 | BN217: 8.43 | BO217: 8.43 | BP217: 8.43 | BQ217: 8.43 | BR217: 8.43 | DA217: AO11 | DB217: 5 | DC217: 35.57 | DD217: 15.57 | DE217: 15.57 | DF217: 15.57 | DG217: 15.57 | DH217: 15.57 | DI217: 15.57 | DJ217: 15.57 | DK217: 8.43 | DL217: 8.43 | DM217: 8.43 | DN217: 8.43 | DO217: 8.43 | DP217: 8.43 | DQ217: 8.43 | DR217: 8.43 | FA217: AO11 | FB217: 5 | FC217: 35.57 | FD217: 15.57 | FE217: 15.57 | FF217: 15.57 | FG217: 15.57 | FH217: 15.57 | FI217: 15.57 | FJ217: 15.57 | FK217: 8.43 | FL217: 8.43 | FM217: 8.43 | FN217: 8.43 | FO217: 8.43 | FP217: 8.43 | FQ217: 8.43 | FR217: 8.43 | HA217: AO11 | HB217: 5 | HC217: 35.57 | HD217: 15.57 | HE217: 15.57 | HF217: 15.57 | HG217: 15.57 | HH217: 15.57 | HI217: 15.57 | HJ217: 15.57 | HK217: 8.43 | HL217: 8.43 | HM217: 8.43 | HN217: 8.43 | HO217: 8.43 | HP217: 8.43 | HQ217: 8.43 | HR217: 8.43
B219: Cost per person targeted | BB219: Cost per person targeted | DB219: Cost per person targeted | FB219: Cost per person targeted | HB219: Cost per person targeted
C221: Total | D221: LF | E221: ONCHO | F221: SCH | G221: STH | H221: Trachoma | I221: Other | BC221: Total | BD221: LF | BE221: ONCHO | BF221: SCH | BG221: STH | BH221: Trachoma | BI221: Other | DC221: Total | DD221: LF | DE221: ONCHO | DF221: SCH | DG221: STH | DH221: Trachoma | DI221: Other | FC221: Total | FD221: LF | FE221: ONCHO | FF221: SCH | FG221: STH | FH221: Trachoma | FI221: Other | HC221: Total | HD221: LF | HE221: ONCHO | HF221: SCH | HG221: STH | HH221: Trachoma | HI221: Other
B222: Total program costs* | C222: 0 | D222: 0 | E222: 0 | F222: 0 | G222: 0 | H222: 0 | I222: 0 | BB222: Coûts totaux du programme* | BC222: 0 | BD222: 0 | BE222: 0 | BF222: 0 | BG222: 0 | BH222: 0 | BI222: 0 | DB222: Custo total do programa* | DC222: 0 | DD222: 0 | DE222: 0 | DF222: 0 | DG222: 0 | DH222: 0 | DI222: 0 | FB222: Costos totales del programa* | FC222: 0 | FD222: 0 | FE222: 0 | FF222: 0 | FG222: 0 | FH222: 0 | FI222: 0 | HB222: Jumlah total biaya program* | HC222: 0 | HD222: 0 | HE222: 0 | HF222: 0 | HG222: 0 | HH222: 0 | HI222: 0
B223: Number of persons targeted ** | C223: 0 | D223: 0 | E223: 0 | F223: 0 | G223: 0 | H223: 0 | BB223: Nombre de personnes ciblées ** | BC223: 0 | BD223: 0 | BE223: 0 | BF223: 0 | BG223: 0 | BH223: 0 | DB223: Número de pessoas abrangidas** | DC223: 0 | DD223: 0 | DE223: 0 | DF223: 0 | DG223: 0 | DH223: 0 | FB223: Número de personas beneficiarias** | FC223: 0 | FD223: 0 | FE223: 0 | FF223: 0 | FG223: 0 | FH223: 0 | HB223: Jumlah individu sasaran** | HC223: 0 | HD223: 0 | HE223: 0 | HF223: 0 | HG223: 0 | HH223: 0
B224: Cost per person targeted by NTD | C224: =IFERROR(C222/C223, 0) -> 0 | D224: 0 | E224: 0 | F224: 0 | G224: 0 | H224: 0 | BB224: Coût par personne ciblée | BC224: =IFERROR(BC222/BC223, 0) -> 0 | BD224: 0 | BE224: 0 | BF224: 0 | BG224: 0 | BH224: 0 | DB224: Custo por pessoa abrangida | DC224: =IFERROR(DC222/DC223, 0) -> 0 | DD224: 0 | DE224: 0 | DF224: 0 | DG224: 0 | DH224: 0 | FB224: Costo por persona beneficiaria | FC224: =IFERROR(FC222/FC223, 0) -> 0 | FD224: 0 | FE224: 0 | FF224: 0 | FG224: 0 | FH224: 0 | HB224: Biaya per sasaran | HC224: =IFERROR(HC222/HC223, 0) -> 0 | HD224: 0 | HE224: 0 | HF224: 0 | HG224: 0 | HH224: 0
B225: Number of districts targeted | C225: 0 | D225: 0 | E225: 0 | F225: 0 | G225: 0 | H225: 0 | BB225: Nombre de districts ciblés | BC225: 0 | BD225: 0 | BE225: 0 | BF225: 0 | BG225: 0 | BH225: 0 | DB225: Número de districts abrangidos | DC225: 0 | DD225: 0 | DE225: 0 | DF225: 0 | DG225: 0 | DH225: 0 | FB225: Número de districts beneficiarios | FC225: 0 | FD225: 0 | FE225: 0 | FF225: 0 | FG225: 0 | FH225: 0 | HB225: Jumlah sasaran districts | HC225: 0 | HD225: 0 | HE225: 0 | HF225: 0 | HG225: 0 | HH225: 0
A231: AO12 | B231: 5 | C231: 36.71 | D231: 21.29 | E231: 19.86 | F231: 14 | G231: 15.14 | H231: 17.71 | I231: 2 | J231: 8.43 | K231: 8.43 | L231: 8.43 | M231: 8.43 | N231: 8.43 | O231: 8.43 | P231: 8.43 | Q231: 8.43 | R231: 8.43 | S231: 8.43 | T231: 8.43 | U231: 8.43 | V231: 8.43 | W231: 8.43 | X231: 8.43 | Y231: 8.43 | Z231: 8.43 | AA231: 8.43 | BA231: AO12 | BB231: 5 | BC231: 36.71 | BD231: 21.29 | BE231: 19.86 | BF231: 14 | BG231: 15.14 | BH231: 17.71 | BI231: 2 | BJ231: 8.43 | BK231: 8.43 | BL231: 8.43 | BM231: 8.43 | BN231: 8.43 | BO231: 8.43 | BP231: 8.43 | BQ231: 8.43 | BR231: 8.43 | DA231: AO12 | DB231: 5 | DC231: 36.71 | DD231: 21.29 | DE231: 19.86 | DF231: 14 | DG231: 15.14 | DH231: 17.71 | DI231: 2 | DJ231: 8.43 | DK231: 8.43 | DL231: 8.43 | DM231: 8.43 | DN231: 8.43 | DO231: 8.43 | DP231: 8.43 | DQ231: 8.43 | DR231: 8.43 | FA231: AO12 | FB231: 5 | FC231: 36.71 | FD231: 21.29 | FE231: 19.86 | FF231: 14 | FG231: 15.14 | FH231: 17.71 | FI231: 2 | FJ231: 8.43 | FK231: 8.43 | FL231: 8.43 | FM231: 8.43 | FN231: 8.43 | FO231: 8.43 | FP231: 8.43 | FQ231: 8.43 | FR231: 8.43 | HA231: AO12 | HB231: 5 | HC231: 36.71 | HD231: 21.29 | HE231: 19.86 | HF231: 14 | HG231: 15.14 | HH231: 17.71 | HI231: 2 | HJ231: 8.43 | HK231: 8.43 | HL231: 8.43 | HM231: 8.43 | HN231: 8.43 | HO231: 8.43 | HP231: 8.43 | HQ231: 8.43 | HR231: 8.43
B233: Salary contribution | BB233: Contribution salaire | DB233: Contribuição salarial | FB233: Contribución a salario | HB233: Kontribusi gaji
B235: Personnel | C235: Type | D235: FTE? | E235: # of FTE | F235: Total Days | G235: Annual salary | H235: Salary contribution | BB235: Personnel | BC235: Type | BD235: FTE? | BE235: Nbre de FTE | BF235: Jours totaux | BG235: Salaire annuel | BH235: Contribution des salaires | DB235: Funcionários | DC235: Tipo | DD235: Equivalente a tempo inteiro? | DE235: # de equivalentes a tempo inteiro | DF235: Total de dias | DG235: Salário annual | DH235: Contribuição salarial | FB235: Personil | FC235: Tipo | FD235: ¿Empleado de dedicación exclusiva (EDE)? | FE235: Nro. de EDE | FF235: Días totales | FG235: Salario annual | FH235: Contribución a salario | HB235: Personnel | HC235: Jenis | HD235: FTE? | HE235: Jumlah FTE | HF235: Jumlah hari | HG235: Gaji tahunan | HH235: Kontribusi gaji
A242: AO13 | B242: 5 | C242: 34.86 | D242: 13 | E242: 5 | F242: 71.43 | G242: 12.86 | H242: 8.43 | I242: 8.43 | J242: 8.43 | K242: 8.43 | L242: 8.43 | M242: 8.43 | N242: 8.43 | O242: 8.43 | P242: 8.43 | Q242: 8.43 | R242: 8.43 | S242: 8.43 | T242: 8.43 | U242: 8.43 | V242: 8.43 | W242: 8.43 | X242: 8.43 | Y242: 8.43 | Z242: 8.43 | AA242: 8.43 | BA242: AO13 | BB242: 5 | BC242: 34.86 | BD242: 13 | BE242: 5 | BF242: 71.43 | BG242: 12.86 | BH242: 8.43 | BI242: 8.43 | BJ242: 8.43 | BK242: 8.43 | BL242: 8.43 | BM242: 8.43 | BN242: 8.43 | BO242: 8.43 | BP242: 8.43 | BQ242: 8.43 | BR242: 8.43 | DA242: AO13 | DB242: 5 | DC242: 34.86 | DD242: 13 | DE242: 5 | DF242: 71.43 | DG242: 12.86 | DH242: 8.43 | DI242: 8.43 | DJ242: 8.43 | DK242: 8.43 | DL242: 8.43 | DM242: 8.43 | DN242: 8.43 | DO242: 8.43 | DP242: 8.43 | DQ242: 8.43 | DR242: 8.43 | FA242: AO13 | FB242: 5 | FC242: 34.86 | FD242: 13 | FE242: 5 | FF242: 71.43 | FG242: 12.86 | FH242: 8.43 | FI242: 8.43 | FJ242: 8.43 | FK242: 8.43 | FL242: 8.43 | FM242: 8.43 | FN242: 8.43 | FO242: 8.43 | FP242: 8.43 | FQ242: 8.43 | FR242: 8.43 | HA242: AO13 | HB242: 5 | HC242: 34.86 | HD242: 13 | HE242: 5 | HF242: 71.43 | HG242: 12.86 | HH242: 8.43 | HI242: 8.43 | HJ242: 8.43 | HK242: 8.43 | HL242: 8.43 | HM242: 8.43 | HN242: 8.43 | HO242: 8.43 | HP242: 8.43 | HQ242: 8.43 | HR242: 8.43
B244: Activity and sub-activity completion status | BB244: Activity and sub-activity completion status | DB244: Activity and sub-activity completion status | FB244: Activity and sub-activity completion status | HB244: Activity and sub-activity completion status
B246: Activities | C246: Status | E246: Sub-activities | F246: Status | BB246: Activités | BC246: État | BE246: Sous-activités | BF246: État | DB246: Actividades | DC246: Estatuto | DE246: Sub-actividades | DF246: Estatuto | FB246: Actividades | FC246: Estado | FE246: Subactividades | FF246: Estado | HB246: Kegiatan-kegiatan | HC246: Status | HE246: Sub-sub kegiatan | HF246: Status
B247: Advocacy | C247: Not started | E247: Advocacy: National advocacy meeting | F247: Not started | BB247: Advocacy | BC247: Not started | BE247: Advocacy: National advocacy meeting | BF247: Not started | DB247: Advocacy | DC247: Not started | DE247: Advocacy: National advocacy meeting | DF247: Not started | FB247: Advocacy | FC247: Not started | FE247: Advocacy: National advocacy meeting | FF247: Not started | HB247: Advocacy | HC247: Not started | HE247: Advocacy: National advocacy meeting | HF247: Not started
A251: AO14 | B251: 5 | C251: 46 | D251: 6.57 | E251: 6.57 | F251: 6.57 | G251: 6.57 | H251: 6.57 | I251: 6.57 | J251: 6.57 | K251: 6.57 | L251: 6.57 | M251: 6.57 | N251: 6.57 | O251: 6.57 | P251: 15 | Q251: 15 | R251: 15 | S251: 52 | T251: 8.43 | U251: 8.43 | V251: 8.43 | W251: 8.43 | X251: 8.43 | Y251: 8.43 | Z251: 8.43 | AA251: 8.43 | BA251: AO14 | BB251: 5 | BC251: 46 | BD251: 6.57 | BE251: 6.57 | BF251: 6.57 | BG251: 6.57 | BH251: 6.57 | BI251: 6.57 | BJ251: 6.57 | BK251: 6.57 | BL251: 6.57 | BM251: 6.57 | BN251: 6.57 | BO251: 6.57 | BP251: 15 | BQ251: 15 | BR251: 15 | DA251: AO14 | DB251: 5 | DC251: 46 | DD251: 6.57 | DE251: 6.57 | DF251: 6.57 | DG251: 6.57 | DH251: 6.57 | DI251: 6.57 | DJ251: 6.57 | DK251: 6.57 | DL251: 6.57 | DM251: 6.57 | DN251: 6.57 | DO251: 6.57 | DP251: 15 | DQ251: 15 | DR251: 15 | FA251: AO14 | FB251: 5 | FC251: 46 | FD251: 6.57 | FE251: 6.57 | FF251: 6.57 | FG251: 6.57 | FH251: 6.57 | FI251: 6.57 | FJ251: 6.57 | FK251: 6.57 | FL251: 6.57 | FM251: 6.57 | FN251: 6.57 | FO251: 6.57 | FP251: 15 | FQ251: 15 | FR251: 15 | HA251: AO14 | HB251: 5 | HC251: 46 | HD251: 6.57 | HE251: 6.57 | HF251: 6.57 | HG251: 6.57 | HH251: 6.57 | HI251: 6.57 | HJ251: 6.57 | HK251: 6.57 | HL251: 6.57 | HM251: 6.57 | HN251: 6.57 | HO251: 6.57 | HP251: 15 | HQ251: 15 | HR251: 15
B253: Annual work plan matrix and timeline | BB253: Matrice du plan de travail annuel et calendrier | DB253: Calendário e matriz do plano anual de trabalhos | FB253: Matriz de planificación y cronograma | HB253: Matriks dan timeline rencana kerja tahunan
C255: Timeline for implementation | O255: Estimated cost | P255: Funding | Q255: Gap | BC255: Calendrier de mise en œuvre | BO255: Coût | BP255: Financement | BQ255: Besoin | DC255: Calendário da implementação | DO255: Custo | DP255: Financiamento | DQ255: Défice | FC255: Cronograma de implementación | FO255: Costos | FP255: Financiamiento | FQ255: Déficit | HC255: Timeline pelaksanaan | HO255: Biaya | HP255: Pendanaan | HQ255: Kesenjangan
B256: Activities - Sub-activities - Districts | C256: Jan 12 | D256: Feb 12 | E256: Mar 12 | F256: Apr 12 | G256: May 12 | H256: Jun 12 | I256: Jul 12 | J256: Aug 12 | K256: Sep 12 | L256: Oct 12 | M256: Nov 12 | N256: Dec 12 | O256: LCU | P256: LCU | Q256: LCU | R256: Partners | BB256: Activities - Sub-activities - Districts | BC256: Jan 12 | BD256: Feb 12 | BE256: Mar 12 | BF256: Apr 12 | BG256: May 12 | BH256: Jun 12 | BI256: Jul 12 | BJ256: Aug 12 | BK256: Sep 12 | BL256: Oct 12 | BM256: Nov 12 | BN256: Dec 12 | BO256: LCU | BP256: LCU | BQ256: LCU | BR256: Partenaires | DB256: Activities - Sub-activities - Districts | DC256: Jan 12 | DD256: Feb 12 | DE256: Mar 12 | DF256: Apr 12 | DG256: May 12 | DH256: Jun 12 | DI256: Jul 12 | DJ256: Aug 12 | DK256: Sep 12 | DL256: Oct 12 | DM256: Nov 12 | DN256: Dec 12 | DO256: LCU | DP256: LCU | DQ256: LCU | DR256: Parceiros | FB256: Activities - Sub-activities - Districts | FC256: Jan 12 | FD256: Feb 12 | FE256: Mar 12 | FF256: Apr 12 | FG256: May 12 | FH256: Jun 12 | FI256: Jul 12 | FJ256: Aug 12 | FK256: Sep 12 | FL256: Oct 12 | FM256: Nov 12 | FN256: Dec 12 | FO256: LCU | FP256: LCU | FQ256: LCU | FR256: Socios | HB256: Activities - Sub-activities - Districts | HC256: Jan 12 | HD256: Feb 12 | HE256: Mar 12 | HF256: Apr 12 | HG256: May 12 | HH256: Jun 12 | HI256: Jul 12 | HJ256: Aug 12 | HK256: Sep 12 | HL256: Oct 12 | HM256: Nov 12 | HN256: Dec 12 | HO256: LCU | HP256: LCU | HQ256: LCU | HR256: Mitra
B257: Strategic planning | O257: 10720 | P257: 0 | Q257: 10720 | BB257: Strategic planning | BO257: 10720 | BP257: 0 | BQ257: 10720 | DB257: Strategic planning | DO257: 10720 | DP257: 0 | DQ257: 10720 | FB257: Strategic planning | FO257: 10720 | FP257: 0 | FQ257: 10720 | HB257: Strategic planning | HO257: 10720 | HP257: 0 | HQ257: 10720
B258: National stakeholders meeting | O258: 8200 | P258: 0 | Q258: 8200 | BB258: National stakeholders meeting | BO258: 8200 | BP258: 0 | BQ258: 8200 | DB258: National stakeholders meeting | DO258: 8200 | DP258: 0 | DQ258: 8200 | FB258: National stakeholders meeting | FO258: 8200 | FP258: 0 | FQ258: 8200 | HB258: National stakeholders meeting | HO258: 8200 | HP258: 0 | HQ258: 8200
B259: CALIFORNIA: San Francisco | O259: 390.4761905 | P259: 0 | Q259: 390.4761905 | BB259: CALIFORNIA: San Francisco | BO259: 390.4761905 | BP259: 0 | BQ259: 390.4761905 | DB259: CALIFORNIA: San Francisco | DO259: 390.4761905 | DP259: 0 | DQ259: 390.4761905 | FB259: CALIFORNIA: San Francisco | FO259: 390.4761905 | FP259: 0 | FQ259: 390.4761905 | HB259: CALIFORNIA: San Francisco | HO259: 390.4761905 | HP259: 0 | HQ259: 390.4761905
B260: CALIFORNIA: San Francisco | O260: 390.4761905 | P260: 0 | Q260: 390.4761905 | BB260: CALIFORNIA: San Francisco | BO260: 390.4761905 | BP260: 0 | BQ260: 390.4761905 | DB260: CALIFORNIA: San Francisco | DO260: 390.4761905 | DP260: 0 | DQ260: 390.4761905 | FB260: CALIFORNIA: San Francisco | FO260: 390.4761905 | FP260: 0 | FQ260: 390.4761905 | HB260: CALIFORNIA: San Francisco | HO260: 390.4761905 | HP260: 0 | HQ260: 390.4761905
B262: Annual work plan matrix and timeline | BB262: Matrice du plan de travail annuel et calendrier | DB262: Calendário e matriz do plano anual de trabalhos | FB262: Matriz de planificación y cronograma | HB262: Matriks dan timeline rencana kerja tahunan
C264: Estimated cost | D264: Funding | E264: Gap | BC264: Coût | BD264: Financement | BE264: Besoin | DC264: Custo | DD264: Financiamento | DE264: Défice | FC264: Costos | FD264: Financiamiento | FE264: Déficit | HC264: Biaya | HD264: Pendanaan | HE264: Kesenjangan
B265: Activities - Sub-activities - Districts | C265: LCU | D265: LCU | E265: LCU | F265: Partners | BB265: Activities - Sub-activities - Districts | BC265: LCU | BD265: LCU | BE265: LCU | BF265: Partenaires | DB265: Activities - Sub-activities - Districts | DC265: LCU | DD265: LCU | DE265: LCU | DF265: Parceiros | FB265: Activities - Sub-activities - Districts | FC265: LCU | FD265: LCU | FE265: LCU | FF265: Socios | HB265: Activities - Sub-activities - Districts | HC265: LCU | HD265: LCU | HE265: LCU | HF265: Mitra
B267: Annual work plan matrix and timeline | BB267: Matrice du plan de travail annuel et calendrier | DB267: Calendário e matriz do plano anual de trabalhos | FB267: Matriz de planificación y cronograma | HB267: Matriks dan timeline rencana kerja tahunan
C269: Timeline for implementation | BC269: Calendrier de mise en œuvre | DC269: Calendário da implementação | FC269: Cronograma de implementación | HC269: Timeline pelaksanaan
B270: Activities - Sub-activities - Districts | C270: Jan 12 | D270: Feb 12 | E270: Mar 12 | F270: Apr 12 | G270: May 12 | H270: Jun 12 | I270: Jul 12 | J270: Aug 12 | K270: Sep 12 | L270: Oct 12 | M270: Nov 12 | N270: Dec 12 | BB270: Activities - Sub-activities - Districts | BC270: Jan 12 | BD270: Feb 12 | BE270: Mar 12 | BF270: Apr 12 | BG270: May 12 | BH270: Jun 12 | BI270: Jul 12 | BJ270: Aug 12 | BK270: Sep 12 | BL270: Oct 12 | BM270: Nov 12 | BN270: Dec 12 | DB270: Activities - Sub-activities - Districts | DC270: Jan 12 | DD270: Feb 12 | DE270: Mar 12 | DF270: Apr 12 | DG270: May 12 | DH270: Jun 12 | DI270: Jul 12 | DJ270: Aug 12 | DK270: Sep 12 | DL270: Oct 12 | DM270: Nov 12 | DN270: Dec 12 | FB270: Activities - Sub-activities - Districts | FC270: Jan 12 | FD270: Feb 12 | FE270: Mar 12 | FF270: Apr 12 | FG270: May 12 | FH270: Jun 12 | FI270: Jul 12 | FJ270: Aug 12 | FK270: Sep 12 | FL270: Oct 12 | FM270: Nov 12 | FN270: Dec 12 | HB270: Activities - Sub-activities - Districts | HC270: Jan 12 | HD270: Feb 12 | HE270: Mar 12 | HF270: Apr 12 | HG270: May 12 | HH270: Jun 12 | HI270: Jul 12 | HJ270: Aug 12 | HK270: Sep 12 | HL270: Oct 12 | HM270: Nov 12 | HN270: Dec 12

Sheet Error Log (hidden)
A1: Error Log
A2: ErrorLogID | B2: ErrNumber | C2: ErrDescription | D2: ErrDate | E2: CallingProcedure | F2: ShowUser | G2: Comments
A3: 1 | B3: 91 | C3: Object variable or With block variable not set | D3: 2012-12-03T17:59:30 | E3: P221 findtotal() | F3: TRUE
A4: 2 | B4: 91 | C4: Object variable or With block variable not set | D4: 2012-12-03T17:59:30 | E4: P221 UserForm_activate() | F4: TRUE
A5: 3 | B5: 381 | C5: Could not get the List property. Invalid property array index. | D5: 2012-12-06T19:25:58 | E5: P221 ok_Click() | F5: TRUE
A6: 4 | B6: 381 | C6: Could not get the List property. Invalid property array index. | D6: 2012-12-06T19:25:58 | E6: P221 ok_Click() | F6: TRUE
A7: 5 | B7: 450 | C7: Wrong number of arguments or invalid property assignment | D7: 2012-12-06T19:26:10 | E7: POUT04fillform | F7: TRUE
A8: 6 | B8: 450 | C8: Wrong number of arguments or invalid property assignment | D8: 2012-12-06T19:26:11 | E8: POUT04fillform | F8: TRUE
A9: 7 | B9: 450 | C9: Wrong number of arguments or invalid property assignment | D9: 2012-12-06T19:26:12 | E9: POUT04fillform | F9: TRUE
A10: 8 | B10: 450 | C10: Wrong number of arguments or invalid property assignment | D10: 2012-12-06T19:26:12 | E10: POUT04fillform | F10: TRUE
A11: 9 | B11: 450 | C11: Wrong number of arguments or invalid property assignment | D11: 2012-12-06T19:26:13 | E11: POUT04fillform | F11: TRUE
A12: 10 | B12: 450 | C12: Wrong number of arguments or invalid property assignment | D12: 2012-12-06T19:26:14 | E12: POUT04fillform | F12: TRUE
A13: 11 | B13: 450 | C13: Wrong number of arguments or invalid property assignment | D13: 2012-12-06T19:26:14 | E13: POUT04fillform | F13: TRUE
A14: 12 | B14: 450 | C14: Wrong number of arguments or invalid property assignment | D14: 2012-12-06T19:26:15 | E14: POUT04fillform | F14: TRUE
A15: 13 | B15: 450 | C15: Wrong number of arguments or invalid property assignment | D15: 2012-12-06T19:26:33 | E15: POUT04fillform | F15: TRUE
A16: 14 | B16: 450 | C16: Wrong number of arguments or invalid property assignment | D16: 2012-12-06T19:26:41 | E16: POUT04fillform | F16: TRUE
A17: 15 | B17: 450 | C17: Wrong number of arguments or invalid property assignment | D17: 2012-12-06T19:26:52 | E17: POUT04fillform | F17: TRUE
A18: 16 | B18: 1004 | C18: PasteSpecial method of Range class failed | D18: 2012-12-06T19:34:15 | E18: POUT04fillform | F18: TRUE
A19: 17 | B19: 450 | C19: Wrong number of arguments or invalid property assignment | D19: 2012-12-06T19:54:09 | E19: POUT04fillform | F19: TRUE
A20: 18 | B20: 450 | C20: Wrong number of arguments or invalid property assignment | D20: 2012-12-06T19:54:10 | E20: POUT04fillform | F20: TRUE
A21: 19 | B21: 450 | C21: Wrong number of arguments or invalid property assignment | D21: 2012-12-06T19:54:11 | E21: POUT04fillform | F21: TRUE
A22: 20 | B22: 450 | C22: Wrong number of arguments or invalid property assignment | D22: 2012-12-06T19:54:12 | E22: POUT04fillform | F22: TRUE
A23: 21 | B23: 450 | C23: Wrong number of arguments or invalid property assignment | D23: 2012-12-06T19:54:12 | E23: POUT04fillform | F23: TRUE
A24: 22 | B24: 450 | C24: Wrong number of arguments or invalid property assignment | D24: 2012-12-06T19:54:16 | E24: POUT04fillform | F24: TRUE
A25: 23 | B25: 450 | C25: Wrong number of arguments or invalid property assignment | D25: 2012-12-06T19:54:36 | E25: POUT04fillform | F25: TRUE
A26: 24 | B26: 450 | C26: Wrong number of arguments or invalid property assignment | D26: 2012-12-06T19:54:53 | E26: POUT04fillform | F26: TRUE
A27: 25 | B27: 450 | C27: Wrong number of arguments or invalid property assignment | D27: 2012-12-06T19:54:54 | E27: POUT04fillform | F27: TRUE
A28: 26 | B28: 450 | C28: Wrong number of arguments or invalid property assignment | D28: 2012-12-06T19:54:55 | E28: POUT04fillform | F28: TRUE
A29: 27 | B29: 450 | C29: Wrong number of arguments or invalid property assignment | D29: 2012-12-06T19:55:07 | E29: POUT04fillform | F29: TRUE
A30: 28 | B30: 450
A31: 29 | B31: 450 | C31: Wrong number of arguments or invalid property assignment
A32: 30
A33: 31 | B33: 450 | C33: Wrong number of arguments or invalid property assignment
A34: 32 | B34: 13 | C34: Type mismatch | D34: 2012-12-06T21:15:17 | E34: POUT08fillform | F34: TRUE
A35: 33 | B35: 91 | C35: Object variable or With block variable not set | D35: 2012-12-07T15:53:55 | E35: P230 UserForm_Initialize() | F35: TRUE
A36: 34 | B36: 381 | C36: Could not get the List property. Invalid property array index. | D36: 2012-12-07T15:54:32 | E36: P221 ok_Click() | F36: TRUE
A37: 35 | B37: 381 | C37: Could not get the List property. Invalid property array index. | D37: 2012-12-07T15:54:32 | E37: P221 ok_Click() | F37: TRUE
A38: 36 | B38: 380 | C38: Could not set the Value property. Invalid property value. | D38: 2012-12-07T15:55:19 | E38: P221 UserForm_activate() | F38: TRUE
A39: 37 | B39: 94 | C39: Invalid use of Null | D39: 2012-12-07T15:55:20 | E39: P221 ok_Click() | F39: TRUE
A40: 38 | B40: 1004 | C40: Select method of Range class failed | D40: 2012-12-07T16:00:49 | E40: POUT04fillform | F40: TRUE
A41: 39 | B41: 1004 | C41: Select method of Range class failed | D41: 2012-12-07T16:01:08 | E41: POUT04fillform | F41: TRUE
A42: 40 | B42: 1004 | C42: Select method of Range class failed | D42: 2012-12-07T16:01:24 | E42: POUT04fillform | F42: TRUE
A43: 41 | B43: 1004 | C43: Select method of Range class failed | D43: 2012-12-07T16:02:10 | E43: POUT04fillform | F43: TRUE
A44: 42 | B44: 381 | C44: Could not get the List property. Invalid property array index. | D44: 2012-12-13T19:38:57 | E44: P221 ok_Click() | F44: TRUE
A45: 43 | B45: 381 | C45: Could not get the List property. Invalid property array index. | D45: 2012-12-13T19:38:58 | E45: P221 ok_Click() | F45: TRUE
A46: 44 | B46: 381 | C46: Could not get the List property. Invalid property array index. | D46: 2012-12-13T19:42:13 | E46: P221 ok_Click() | F46: TRUE
A47: 45 | B47: 381 | C47: Could not get the List property. Invalid property array index. | D47: 2012-12-13T19:42:13 | E47: P221 ok_Click() | F47: TRUE

Sheet CopyPasteTransfer (hidden)
B1: FILE 2 | L1: FILE 1 TYPE 1 | V1: FILE 1 TYPE 2
B2: COPY/PASTE | D2: CHECK VALUES (W1C1) | L2: COPY/PASTE | N2: CHECK VALUES (W1C1) | V2: COPY/PASTE | X2: CHECK VALUES (W1C1)
B3: Sheet | C3: Range | D3: Column | L3: Sheet | M3: Range | N3: Column | V3: Sheet | W3: Range | X3: Column
B4: W1C1 | C4: B14:B950 | D4: AC | L4: W1C1 | M4: B14:B950 | N4: M | V4: W1C1 | W4: B14:B950 | X4: M
B5: W1C1 | C5: C14:C950 | D5: AD | L5: W1C1 | M5: C14:C950 | N5: N | V5: W1C1 | W5: C14:C950 | X5: N
B6: W1C1 | C6: D14:D950 | D6: AE | L6: W1C1 | M6: D14:D950 | N6: O | V6: W1C1 | W6: D14:D950 | X6: O
B7: W1C1 | C7: E14:E950 | D7: AF | L7: W1C1 | M7: E14:E950 | N7: P | V7: W1C1 | W7: E14:E950 | X7: P
B8: W1C1 | C8: F14:F950 | D8: AG | L8: W1C1 | M8: F14:F950 | N8: Q | V8: W1C1 | W8: F14:F950 | X8: Q
B9: W1C1 | C9: G14:G950 | D9: AH | L9: W1C1 | M9: G14:G950 | N9: R | V9: W1C1 | W9: G14:G950 | X9: R
B10: W1C1 | C10: H14:H950 | D10: AI | L10: W1C1 | M10: H14:H950 | N10: S | V10: W1C1 | W10: H14:H950 | X10: S
B11: W1C1 | C11: I14:I950 | D11: AJ | L11: W1C1 | M11: I14:I950 | N11: T | V11: W1C1 | W11: I14:I950 | X11: T
B12: W1C1 | C12: J14:J950 | D12: AK | L12: W1C1 | M12: J14:J950 | N12: U | V12: W1C1 | W12: J14:J950 | X12: U
B13: W1C1 | C13: AB14:AB950 | D13: AL | L13: W1C1 | M13: L14:L950 | N13: V | V13: W1C1 | W13: L14:L950 | X13: V
B14: W1C1 | C14: AU14:AU950 | D14: AQ | L14: W1C1 | M14: Z14:Z950 | N14: X | V14: W1C1 | W14: Z14:Z950 | X14: X
B15: W1C1 | C15: AV14:AV950 | D15: BC | L15: W1C1 | M15: AA14:AA950 | N15: AH | V15: W1C1 | W15: AA14:AA950 | X15: AH
B16: W1C1 | C16: AY14:AY950 | D16: BD | L16: W1C1 | M16: AD14:AD950 | N16: AI | V16: W1C1 | W16: AD14:AD950 | X16: AI
B17: W1C1 | C17: AZ14:AZ950 | D17: BF | L17: W1C1 | M17: AE14:AE950 | N17: AK | V17: W1C1 | W17: AE14:AE950 | X17: AK
B18: W1C1 | C18: BE14:BE950 | D18: BJ | L18: W1C1 | M18: AJ14:AJ950 | N18: AO | V18: W1C1 | W18: AJ14:AJ950 | X18: AO
B19: MDADISTRICTS | C19: AQ4:AQ1000 | D19: BK | L19: MDADISTRICTS | M19: B4:B1000 | N19: AP | V19: MDADISTRICTS | W19: B4:B1000 | X19: AP
B20: MDADISTRICTS | C20: AU4:AU1000 | D20: BL | L20: MDADISTRICTS | M20: C4:C1000 | N20: AQ | V20: MDADISTRICTS | W20: C4:C1000 | X20: AQ
B21: MDADISTRICTS | C21: AV4:AV1000 | D21: DQ | L21: MDADISTRICTS | M21: D4:D1000 | N21: AT | V21: MDADISTRICTS | W21: D4:D1000 | X21: AT
B22: MDADISTRICTS | C22: AY4:AY1000 | D22: DR | L22: MDADISTRICTS | M22: E4:E1000 | N22: AU | V22: MDADISTRICTS | W22: E4:E1000 | X22: AU
B23: MDADISTRICTS | C23: AZ4:AZ1000 | D23: DS | L23: MDADISTRICTS | M23: F4:F1000 | N23: AV | V23: MDADISTRICTS | W23: F4:F1000 | X23: AV
B24: MDADISTRICTS | C24: BC4:BC1000 | D24: DT | L24: MDADISTRICTS | M24: G4:G1000 | N24: AW | V24: MDADISTRICTS | W24: G4:G1000 | X24: AW
B25: MDADISTRICTS | C25: BD4:BD1000 | D25: DU | L25: MDADISTRICTS | M25: H4:H1000 | N25: AX | V25: MDADISTRICTS | W25: H4:H1000 | X25: AX
B26: MDADISTRICTS | C26: BE4:BE1000 | D26: DV | L26: MDADISTRICTS | M26: I4:I1000 | N26: AY | V26: MDADISTRICTS | W26: I4:I1000 | X26: AY
B27: MDADISTRICTS | C27: BG4:BG1000 | D27: DW | L27: MDADISTRICTS | M27: J4:J1000 | N27: AZ | V27: MDADISTRICTS | W27: J4:J1000 | X27: AZ
B28: MDADISTRICTS | C28: BJ4:BJ1000 | D28: DX | L28: MDADISTRICTS | M28: K4:K1000 | N28: BA | V28: MDADISTRICTS | W28: K4:K1000 | X28: BA
B29: MDADISTRICTS | C29: BK4:BK1000 | D29: DY | L29: MDADISTRICTS | M29: K4:K1000 | N29: BB | V29: MDADISTRICTS | W29: K4:K1000 | X29: BB
B30: MDADISTRICTS | C30: BL4:BL1000 | D30: DZ | L30: MDADISTRICTS | M30: K4:K1000 | N30: BC | V30: MDADISTRICTS | W30: K4:K1000 | X30: BC
B31: MDADISTRICTS | C31: EF4:EF1000 | D31: EA | L31: MDADISTRICTS | M31: V4:V1000 | N31: BD | V31: MDADISTRICTS | W31: V4:V1000 | X31: BD
B32: MDADISTRICTS | C32: EJ4:EJ1000 | D32: EF | L32: MDADISTRICTS | M32: W4:W1000 | N32: BF | V32: MDADISTRICTS | W32: W4:W1000 | X32: BF
B33: MDADISTRICTS | C33: EK4:EK1000 | D33: EJ | L33: MDADISTRICTS | M33: X4:X1000 | N33: BH | V33: MDADISTRICTS | W33: X4:X1000 | X33: BH
B34: MDADISTRICTS | C34: EN4:EN1000 | D34: EK | L34: MDADISTRICTS | M34: Y4:Y1000 | N34: BI | V34: MDADISTRICTS | W34: Y4:Y1000 | X34: BI
B35: MDADISTRICTS | C35: EO4:EO1000 | D35: EN | L35: MDADISTRICTS | M35: Z4:Z1000 | N35: BL | V35: MDADISTRICTS | W35: Z4:Z1000 | X35: BL
B36: MDADISTRICTS | C36: ER4:ER1000 | D36: EO | L36: MDADISTRICTS | M36: AA4:AA1000 | N36: BM | V36: MDADISTRICTS | W36: AA4:AA1000 | X36: BM
B37: MDADISTRICTS | C37: ES4:ES1000 | D37: ER | L37: MDADISTRICTS | M37: AB4:AB1000 | N37: BP | V37: MDADISTRICTS | W37: AB4:AB1000 | X37: BP
B38: MDADISTRICTS | C38: ET4:ET1000 | D38: ES | L38: MDADISTRICTS | M38: AC4:AC1000 | N38: BQ | V38: MDADISTRICTS | W38: AC4:AC1000 | X38: BQ
B39: MDADISTRICTS | C39: EV4:EV1000 | D39: ET | L39: MDADISTRICTS | M39: AD4:AD1000 | N39: BR | V39: MDADISTRICTS | W39: AD4:AD1000 | X39: BR
B40: MDADISTRICTS | C40: EY4:EY1000 | D40: EV | L40: MDADISTRICTS | M40: AE4:AE1000 | N40: BT | V40: MDADISTRICTS | W40: AE4:AE1000 | X40: BT
B41: MDADISTRICTS | C41: EZ4:EZ1000 | D41: EY | L41: MDADISTRICTS | M41: AE4:AE1000 | N41: BW | V41: MDADISTRICTS | W41: AE4:AE1000 | X41: BW
B42: MDADISTRICTS | C42: FA4:FA1000 | D42: EZ | L42: MDADISTRICTS | M42: AE4:AE1000 | N42: BX | V42: MDADISTRICTS | W42: AE4:AE1000 | X42: BX
B43: MDADISTRICTS | C43: HU4:HU1000 | D43: FA | L43: MDADISTRICTS | M43: AP4:AP1000 | N43: BY | V43: MDADISTRICTS | W43: AP4:AP1000 | X43: BY
B44: MDADISTRICTS | C44: HY4:HY1000 | D44: HF | L44: MDADISTRICTS | M44: AQ4:AQ1000 | N44: CB | V44: MDADISTRICTS | W44: AQ4:AQ1000 | X44: CB
B45: MDADISTRICTS | C45: HZ4:HZ1000 | D45: HG | L45: MDADISTRICTS | M45: AR4:AR1000 | N45: CC | V45: MDADISTRICTS | W45: AR4:AR1000 | X45: CC
B46: MDADISTRICTS | C46: IC4:IC1000 | D46: HH | L46: MDADISTRICTS | M46: AS4:AS1000 | N46: CD | V46: MDADISTRICTS | W46: AS4:AS1000 | X46: CD
B47: MDADISTRICTS | C47: ID4:ID1000 | D47: HI | L47: MDADISTRICTS | M47: AT4:AT1000 | N47: CE | V47: MDADISTRICTS | W47: AT4:AT1000 | X47: CE
B48: MDADISTRICTS | C48: IG4:IG1000 | D48: HJ | L48: MDADISTRICTS | M48: AU4:AU1000 | N48: CF | V48: MDADISTRICTS | W48: AU4:AU1000 | X48: CF
B49: MDADISTRICTS | C49: IH4:IH1000 | D49: HK | L49: MDADISTRICTS | M49: AV4:AV1000 | N49: CG | V49: MDADISTRICTS | W49: AV4:AV1000 | X49: CG
B50: MDADISTRICTS | C50: II4:II1000 | D50: HL | L50: MDADISTRICTS | M50: AW4:AW1000 | N50: CH | V50: MDADISTRICTS | W50: AW4:AW1000 | X50: CH
B51: MDADISTRICTS | C51: IK4:IK1000 | D51: HM | L51: MDADISTRICTS | M51: AX4:AX1000 | N51: CI | V51: MDADISTRICTS | W51: AX4:AX1000 | X51: CI
B52: MDADISTRICTS | C52: IN4:IN1000 | D52: HN | L52: MDADISTRICTS | M52: AY4:AY1000 | N52: CJ | V52: MDADISTRICTS | W52: AY4:AY1000 | X52: CJ
B53: MDADISTRICTS | C53: IO4:IO1000 | D53: HO | L53: MDADISTRICTS | M53: AY4:AY1000 | N53: CK | V53: MDADISTRICTS | W53: AY4:AY1000 | X53: CK
B54: MDADISTRICTS | C54: IP4:IP1000 | D54: HP | L54: MDADISTRICTS | M54: AY4:AY1000 | N54: CL | V54: MDADISTRICTS | W54: AY4:AY1000 | X54: CL
B55: MDADISTRICTS | C55: LJ4:LJ1000 | D55: HU | L55: MDADISTRICTS | M55: BJ4:BJ1000 | N55: CN | V55: MDADISTRICTS | W55: BJ4:BJ1000 | X55: CN
B56: MDADISTRICTS | C56: LN4:LN1000 | D56: HY | L56: MDADISTRICTS | M56: BK4:BK1000 | N56: CP | V56: MDADISTRICTS | W56: BK4:BK1000 | X56: CP
B57: MDADISTRICTS | C57: LO4:LO1000 | D57: HZ | L57: MDADISTRICTS | M57: BL4:BL1000 | N57: CQ | V57: MDADISTRICTS | W57: BL4:BL1000 | X57: CQ
B58: MDADISTRICTS | C58: LR4:LR1000 | D58: IC | L58: MDADISTRICTS | M58: BM4:BM1000 | N58: CT | V58: MDADISTRICTS | W58: BM4:BM1000 | X58: CT
B59: MDADISTRICTS | C59: LS4:LS1000 | D59: ID | L59: MDADISTRICTS | M59: BN4:BN1000 | N59: CU | V59: MDADISTRICTS | W59: BN4:BN1000 | X59: CU
B60: MDADISTRICTS | C60: LV4:LV1000 | D60: IG | L60: MDADISTRICTS | M60: BO4:BO1000 | N60: CX | V60: MDADISTRICTS | W60: BO4:BO1000 | X60: CX
B61: MDADISTRICTS | C61: LW4:LW1000 | D61: IH | L61: MDADISTRICTS | M61: BP4:BP1000 | N61: CY | V61: MDADISTRICTS | W61: BP4:BP1000 | X61: CY
B62: MDADISTRICTS | C62: LX4:LX1000 | D62: II | L62: MDADISTRICTS | M62: BQ4:BQ1000 | N62: CZ | V62: MDADISTRICTS | W62: BQ4:BQ1000 | X62: CZ
B63: MDADISTRICTS | C63: LZ4:LZ1000 | D63: IK | L63: MDADISTRICTS | M63: BR4:BR1000 | N63: DB | V63: MDADISTRICTS | W63: BR4:BR1000 | X63: DB
B64: MDADISTRICTS | C64: MC4:MC1000 | D64: IN | L64: MDADISTRICTS | M64: BS4:BS1000 | N64: DE | V64: MDADISTRICTS | W64: BS4:BS1000 | X64: DE
B65: MDADISTRICTS | C65: MD4:MD1000 | D65: IO | L65: MDADISTRICTS | M65: BS4:BS1000 | N65: DF | V65: MDADISTRICTS | W65: BS4:BS1000 | X65: DF
B66: MDADISTRICTS | C66: ME4:ME1000 | D66: IP | L66: MDADISTRICTS | M66: BS4:BS1000 | N66: DG | V66: MDADISTRICTS | W66: BS4:BS1000 | X66: DG
B67: MDADISTRICTS | C67: OY4:OY1000 | D67: KU | L67: MDADISTRICTS | M67: CD4:CD1000 | N67: DJ | V67: MDADISTRICTS | W67: CD4:CD1000 | X67: DJ
B68: MDADISTRICTS | C68: PC4:PC1000 | D68: KV | L68: MDADISTRICTS | M68: CE4:CE1000 | N68: DK | V68: MDADISTRICTS | W68: CE4:CE1000 | X68: DK
B69: MDADISTRICTS | C69: PD4:PD1000 | D69: KW | L69: MDADISTRICTS | M69: CF4:CF1000 | N69: DL | V69: MDADISTRICTS | W69: CF4:CF1000 | X69: DL
B70: MDADISTRICTS | C70: PG4:PG1000 | D70: KX | L70: MDADISTRICTS | M70: CG4:CG1000 | N70: DM | V70: MDADISTRICTS | W70: CG4:CG1000 | X70: DM
B71: MDADISTRICTS | C71: PH4:PH1000 | D71: KY | L71: MDADISTRICTS | M71: CH4:CH1000 | N71: DN | V71: MDADISTRICTS | W71: CH4:CH1000 | X71: DN
B72: MDADISTRICTS | C72: PK4:PK1000 | D72: KZ | L72: MDADISTRICTS | M72: CI4:CI1000 | N72: DO | V72: MDADISTRICTS | W72: CI4:CI1000 | X72: DO
B73: MDADISTRICTS | C73: PL4:PL1000 | D73: LA | L73: MDADISTRICTS | M73: CJ4:CJ1000 | N73: DP | V73: MDADISTRICTS | W73: CJ4:CJ1000 | X73: DP
B74: MDADISTRICTS | C74: PM4:PM1000 | D74: LB | L74: MDADISTRICTS | M74: CK4:CK1000 | N74: DQ | V74: MDADISTRICTS | W74: CK4:CK1000 | X74: DQ
B75: MDADISTRICTS | C75: PO4:PO1000 | D75: LC | L75: MDADISTRICTS | M75: CL4:CL1000 | N75: DR | V75: MDADISTRICTS | W75: CL4:CL1000 | X75: DR
B76: MDADISTRICTS | C76: PR4:PR1000 | D76: LD | L76: MDADISTRICTS | M76: CM4:CM1000 | N76: DS | V76: MDADISTRICTS | W76: CM4:CM1000 | X76: DS
B77: MDADISTRICTS | C77: PS4:PS1000 | D77: LE | L77: MDADISTRICTS | M77: CM4:CM1000 | N77: DT | V77: MDADISTRICTS | W77: CM4:CM1000 | X77: DT
B78: MDADISTRICTS | C78: PT4:PT1000 | D78: LJ | L78: MDADISTRICTS | M78: CM4:CM1000 | N78: DV | V78: MDADISTRICTS | W78: CM4:CM1000 | X78: DV
B79: ACTS | C79: T4:AE504 | D79: LO | L79: FGAT | M79: T4:AE504 | N79: DY | V79: TIPAC | W79: T4:AE504 | X79: DY
B80: GI | C80: A1:J57 | D80: LS | L80: GI | M80: A1:J57 | N80: EC | V80: GI | W80: A1:J57 | X80: EC
B81: CC2 | C81: A1:AA815 | D81: LV | L81: CC2 | M81: A1:AA815 | N81: EF | V81: CC2 | W81: A1:AA815 | X81: EF
B82: ACTS | C82: B4:C24 | D82: LX | L82: ACTDATA | M82: B4:C24 | N82: EH | V82: ACTDATA | W82: B4:C24 | X82: EH
B83: ACTS | C83: F4:J204 | D83: LZ | L83: ACTDATA | M83: F4:J204 | N83: EJ | V83: ACTDATA | W83: F4:J204 | X83: EJ
B84: ACTS | C84: M4:Q500 | D84: MC | L84: ACTDATA | M84: L4:P500 | N84: EM | V84: ACTDATA | W84: L4:P500 | X84: EM
B85: ACTS | C85: R4:R500 | D85: MD | L85: ACTDATA | M85: AH4:AH500 | N85: EN | V85: ACTDATA | W85: AH4:AH500 | X85: EN
B86: ACTS | C86: S4:S500 | D86: ME | L86: ACTDATA | M86: AG4:AG500 | N86: EO | V86: ACTDATA | W86: AG4:AG500 | X86: EO
B87: ACTS | C87: DH4:FUQ504 | D87: OJ | L87: ACTDATA | M87: AM4:FRV504 | N87: ER | V87: ACTDATA | W87: AM4:FRV504 | X87: ER
B88: ACTS | C88: AP4:AP504 | D88: OK | L88: ACTDATA | M88: Z4:Z504 | N88: ES | V88: ACTDATA | W88: Z4:Z504 | X88: ES
B89: ACTS | C89: AS4:AS504 | D89: OL | L89: ACTDATA | M89: AA4:AA504 | N89: ET | V89: ACTDATA | W89: AA4:AA504 | X89: ET
B90: ACTS | C90: AT4:AT504 | D90: OM | L90: ACTDATA | M90: AB4:AB504 | N90: EU | V90: ACTDATA | W90: AB4:AB504 | X90: EU
B91: ACTS | C91: AU4:AV504 | D91: ON | L91: ACTDATA | M91: AC4:AC504 | N91: EV | V91: ACTDATA | W91: AC4:AC504 | X91: EV
B92: ACTS | C92: AW4:AY504 | D92: OO | L92: ACTDATA | M92: AD4:AD504 | N92: EW | V92: ACTDATA | W92: AD4:AD504 | X92: EW
B93: ACTS | C93: AZ4:AZ504 | D93: OP | L93: ACTDATA | M93: AE4:AE504 | N93: EX | V93: ACTDATA | W93: AE4:AE504 | X93: EX
B94: ACTS | C94: BA4:BC504 | D94: OQ | L94: ACTDATA | M94: AF4:AF504 | N94: EY | V94: ACTDATA | W94: AF4:AF504 | X94: EY
B95: DA | C95: C4:I12 | D95: OR | L95: DA | M95: C4:I12 | N95: EZ | V95: DA | W95: C4:I12 | X95: EZ
B96: DA | C96: M4:N54 | D96: OS | L96: DA | M96: M4:N54 | N96: FA | V96: DA | W96: M4:N54 | X96: FA
B97: DA | C97: Q4:V5004 | D97: OT | L97: DA | M97: Q4:V5004 | N97: FB | V97: DA | W97: Q4:V5004 | X97: FB
B98: DA | C98: B16:B20 | D98: OY | L98: DA | M98: B16:B20 | N98: FD | V98: DA | W98: B16:B20 | X98: FD
B99: DA | C99: B22:B23 | D99: PC | L99: DA | M99: B22:B23 | N99: FF | V99: DA | W99: B22:B23 | X99: FF
B100: GI | C100: B2:B4 | D100: PD | L100: GI | M100: B2:B4 | N100: FG | V100: GI | W100: B2:B4 | X100: FG
B101: GI | C101: B6:B31 | D101: PG | L101: GI | M101: B6:B31 | N101: FJ | V101: GI | W101: B6:B31 | X101: FJ
B102: GI | C102: B36:B36 | D102: PH | L102: GI | M102: B36:B36 | N102: FK | V102: GI | W102: B36:B36 | X102: FK
B103: GI | C103: E2:E7 | D103: PK | L103: GI | M103: E2:E7 | N103: FN | V103: GI | W103: E2:E7 | X103: FN
B104: GI | C104: E12:E16 | D104: PL | L104: GI | M104: E12:E16 | N104: FO | V104: GI | W104: E12:E16 | X104: FO
B105: GI | C105: F20:F33 | D105: PM | L105: GI | M105: F20:F33 | N105: FP | V105: GI | W105: F20:F33 | X105: FP
B106: GI | C106: H2:I7 | D106: PO | L106: GI | M106: H2:I7 | N106: FR | V106: GI | W106: H2:I7 | X106: FR
B107: Lis | C107: B4:AK5000 | D107: PR | L107: Lis | M107: B4:AK5000 | N107: FU | V107: Lis | W107: B4:AK5000 | X107: FU
B108: FUNDING2 | C108: B4:C100 | D108: PS | L108: FUNDING2 | M108: B4:C100 | N108: FV | V108: FUNDING2 | W108: B4:C100 | X108: FV
B109: FUNDING2 | C109: G5:N10000 | D109: PT | L109: FUNDING2 | M109: G4:N9999 | N109: FW | V109: FUNDING2 | W109: G4:N9999 | X109: FW

Sheet ACTS (hidden)
A1: =COUNTA(B4:B500) -> 2 | B1: Category | C1: up to 20 | E1: =COUNTA(F4:F500) -> 11 | F1: Activity | G1: up to 200 | H1: CATEGORY | I1: STATUS | J1: NOTES | L1: =COUNTA(M4:M1000) -> 50 | M1: SUB-ACTIVITY | N1: up to 500 | O1: ACTIVITY | P1: STATUS | Q1: NOTES | R1: READY? | S1: WEIGHTED? | T1: Month1 | U1: Month2 | V1: Month3 | W1: Month4 | X1: Month5 | Y1: Month6 | Z1: Month7 | AA1: Month8 | AB1: Month9 | AC1: Month10 | AD1: Month11 | AE1: Month12 | AP1: LF | AQ1: LFCM1 | AR1: LFCM2 | AS1: ONCHO1 | AT1: ONCHO2 | AU1: SCH SAC | AV1: SCHHRA | AW1: STHPSA | AX1: STHSAC | AY1: STHHRA | AZ1: STH2 | BA1: T < 6 | BB1: T5-49 | BC1: THRA | BD1: TCM | DH1: YEAR 1 | ALW1: YEAR 1 END | ALZ1: YEAR 2 | BUO1: YEAR 2 END | BUR1: YEAR 3 | DDG1: YEAR 3 END | DDJ1: YEAR 4 | ELY1: YEAR 4 END | EMB1: YEAR 5 | FUQ1: YEAR 5 END
B2: 1 | C2: 2 | D2: 3 | E2: 0 | F2: 1 | G2: 2 | H2: 3 | I2: 4 | J2: 5 | L2: 0 | M2: 1 | N2: 2 | O2: 3 | P2: 4 | Q2: 5 | R2: 6 | S2: 7 | T2: 8 | U2: 9 | V2: 10 | W2: 11 | X2: 12 | Y2: 13 | Z2: 14 | AA2: 15 | AB2: 16 | AC2: 17 | AD2: 18 | AE2: 19 | AF2: 20 | AG2: 21 | AH2: 22 | AI2: 23 | AJ2: 24 | AK2: 25 | AL2: 26 | AM2: 27 | AN2: 28 | AO2: 29 | AP2: 30 | AQ2: 31 | AR2: 32 | AS2: 33 | AT2: 34 | AU2: 35 | AV2: 36 | AW2: 37 | AX2: 38 | AY2: 39 | AZ2: 40 | BA2: 41 | BB2: 42 | BC2: 43 | BD2: 44 | BE2: 45 | BF2: 46 | BG2: 47 | BH2: 48 | BI2: 49 | BJ2: 50 | BK2: 51 | BL2: 52 | BM2: 53 | BN2: 54 | BO2: 55 | BP2: 56 | BQ2: 57 | BR2: 58 | BS2: 59 | BT2: 60 | BU2: 61 | BV2: 62 | BW2: 63 | BX2: 64 | BY2: 65 | BZ2: 66 | CA2: 67 | CB2: 68 | CC2: 69 | CD2: 70 | CE2: 71 | CF2: 72 | CG2: 73 | CH2: 74 | DH2: DISTRICT1 | DI2: DISTRICT2 | DJ2: DISTRICT3 | DK2: DISTRICT4 | DL2: DISTRICT5 | DM2: DISTRICT6 | DN2: ---->
E3: KEY | I3: 0 | L3: KEY | BG3: 47 | BH3: 48 | BI3: 49 | BJ3: 50 | BK3: 51 | BL3: 52 | BM3: 53 | BN3: 54 | BO3: 55 | BP3: 56 | BQ3: 57 | BR3: 58 | BS3: 59 | BT3: 60 | BU3: 61 | BV3: 62 | BW3: 63 | BX3: 64 | BY3: 65 | BZ3: 66 | CA3: 67 | CB3: 68 | CC3: 69 | CD3: 70 | CE3: 71 | CF3: 72 | CG3: 73 | CH3: 74 | CI3: 75 | CJ3: 76 | CK3: 77 | CL3: 78 | CM3: 79 | CN3: 80 | CO3: 81 | CP3: 82 | CQ3: 83 | CR3: 84 | CS3: 85 | CT3: 86 | CU3: 87 | CV3: 88 | CW3: 89 | CX3: 90 | CY3: 91 | CZ3: 92 | DA3: 93 | DB3: 94 | DC3: 95 | DD3: 96 | DE3: 97 | DF3: 98 | DG3: 99 | DH3: 100 | DI3: 101 | DJ3: 102 | DK3: 103 | DL3: 104 | DM3: 105 | DN3: 106 | DO3: 107 | DP3: 108
A4: 0 | B4: TRUE | C4: Implementation costs | E4: 0 | F4: TRUE | G4: Strategic planning | H4: 0 | I4: 0 | L4: 0 | M4: TRUE | N4: National stakeholders meeting | O4: 0 | P4: 0
A5: 1 | B5: TRUE | C5: Operational costs | E5: 1 | F5: TRUE | G5: Advocacy | H5: 0 | I5: 0 | L5: 1 | M5: TRUE | N5: Technical planning meeting | O5: 0 | P5: 0
A6: 2 | E6: 2 | F6: TRUE | G6: Mapping | H6: 0 | I6: 0 | L6: 2 | M6: TRUE | N6: Annual review meeting | O6: 0 | P6: 0
A7: 3 | E7: 3 | F7: TRUE | G7: Monitoring and evaluation | H7: 0 | I7: 0 | L7: 3 | M7: TRUE | N7: National advocacy meeting | O7: 1 | P7: 0
A8: 4 | E8: 4 | F8: TRUE | G8: Drug logistics | H8: 0 | I8: 0 | L8: 4 | M8: TRUE | N8: Regional/district advocacy meetings | O8: 1 | P8: 0
A9: 5 | E9: 5 | F9: TRUE | G9: Social mobilization | H9: 0 | I9: 0 | L9: 5 | M9: TRUE | N9: Integrated Mapping 1 | O9: 2 | P9: 0
A10: 6 | E10: 6 | F10: TRUE | G10: Training | H10: 0 | I10: 0 | L10: 6 | M10: TRUE | N10: Integrated Mapping 2 | O10: 2
A11: 7 | E11: 7 | F11: TRUE | G11: MDA registration | H11: 0 | I11: 0 | L11: 7 | M11: TRUE | N11: Integrated Mapping 3 | O11: 2
A12: 8 | E12: 8 | F12: TRUE | G12: MDA drug distribution | H12: 0 | I12: 0 | L12: 8 | M12: TRUE | N12: LF Mapping | O12: 2
A13: 9 | E13: 9 | F13: TRUE | G13: Morbidity control and surgery | H13: 0 | I13: 0 | L13: 9 | M13: TRUE | N13: Oncho Mapping | O13: 2
A14: 10 | E14: 10 | F14: TRUE | G14: Vector control | H14: 0 | I14: 0 | L14: 10 | M14: TRUE | N14: SCH Mapping | O14: 2
A15: 11 | E15: 11 | L15: 11 | M15: TRUE | N15: STH Mapping | O15: 2
A16: 12 | E16: 12 | L16: 12 | M16: TRUE | N16: Trachoma Mapping | O16: 2
A17: 13 | E17: 13 | L17: 13 | M17: TRUE | N17: MDA1 coverage survey | O17: 3 | P17: 0
A18: 14 | E18: 14 | L18: 14 | M18: TRUE | N18: MDA2 coverage survey | O18: 3
A19: 15 | E19: 15 | L19: 15 | M19: TRUE | N19: MDA3 coverage survey | O19: 3
A20: 16 | E20: 16 | L20: 16 | M20: TRUE | N20: MDA4 coverage survey | O20: 3
A21: 17 | E21: 17 | L21: 17 | M21: TRUE | N21: MDA5 coverage survey | O21: 3
A22: 18 | E22: 18 | L22: 18 | M22: TRUE | N22: LF sentinel/spot check site survey | O22: 3
A23: 19 | E23: 19 | L23: 19 | M23: TRUE | N23: LF transmission assessment survey | O23: 3
A24: 20 | E24: 20 | L24: 20 | M24: TRUE | N24: ONCHO entomological survey | O24: 3
E25: 21 | L25: 21 | M25: TRUE | N25: ONCHO epidemiological survey | O25: 3
E26: 22 | L26: 22 | M26: TRUE | N26: SCH and/or STH prevalence survey/sentinel sites | O26: 3
E27: 23 | L27: 23 | M27: TRUE | N27: Trachoma prevalence survey | O27: 3
E28: 24 | L28: 24 | M28: TRUE | N28: Severe adverse effects (SAE) monitoring | O28: 3
E29: 25 | L29: 25 | M29: TRUE | N29: Drug importation | O29: 4
E30: 26 | L30: 26 | M30: TRUE | N30: Drug transportation | O30: 4
E31: 27 | L31: 27 | M31: TRUE | N31: Drug storage | O31: 4
E32: 28 | L32: 28 | M32: TRUE | N32: Drug repackaging | O32: 4
E33: 29 | L33: 29 | M33: TRUE | N33: Development of IEC materials | O33: 5
E34: 30 | L34: 30 | M34: TRUE | N34: Dissemination of IEC materials and messages | O34: 5
E35: 31 | L35: 31 | M35: TRUE | N35: Development/printing of training materials | O35: 6
E36: 32 | L36: 32 | M36: TRUE | N36: Training of trainers | O36: 6
E37: 33 | L37: 33 | M37: TRUE | N37: Training of supervisors | O37: 6
E38: 34 | L38: 34 | M38: TRUE | N38: Training: Teacher (school-based MDAs) | O38: 6
E39: 35 | L39: 35 | M39: TRUE | N39: Training: CDDs (community-based MDAs) | O39: 6
E40: 36 | L40: 36 | M40: TRUE | N40: Refresher training: Teacher (school-based MDAs) | O40: 6
E41: 37 | L41: 37 | M41: TRUE | N41: Refresher training: CDDs (community-based MDAs) | O41: 6
E42: 38 | L42: 38 | M42: TRUE | N42: Registration (census) | O42: 7
E43: 39 | L43: 39 | M43: TRUE | N43: Hydrocele surgery | O43: 9
E44: 40 | L44: 40 | M44: TRUE | N44: Lymphoedema management | O44: 9
E45: 41 | L45: 41 | M45: TRUE | N45: Trichiasis surgery | O45: 9
E46: 42 | L46: 42 | M46: TRUE | N46: Mosquito control | O46: 10 | P46: 0
E47: 43 | L47: 43 | M47: TRUE | N47: Black fly control | O47: 10 | P47: 0
E48: 44 | L48: 44 | M48: TRUE | N48: Snail control | O48: 10
E49: 45 | L49: 45 | M49: TRUE | N49: MDA 1 | O49: 8 | P49: 0
E50: 46 | L50: 46 | M50: TRUE | N50: MDA 2 | O50: 8 | P50: 0
E51: 47 | L51: 47 | M51: TRUE | N51: MDA 3 | O51: 8
E52: 48 | L52: 48 | M52: TRUE | N52: MDA 4 | O52: 8 | P52: 0
E53: 49 | L53: 49 | M53: TRUE | N53: MDA 5 | O53: 8 | P53: 0
E54: 50 | L54: 50
E55: 51 | L55: 51
E56: 52 | L56: 52
E57: 53 | L57: 53
E58: 54 | L58: 54
E59: 55 | L59: 55
E60: 56 | L60: 56
E61: 57 | L61: 57
E62: 58 | L62: 58
E63: 59 | L63: 59
E64: 60 | L64: 60
E65: 61 | L65: 61
E66: 62 | L66: 62
E67: 63 | L67: 63
E68: 64 | L68: 64
E69: 65 | L69: 65
E70: 66 | L70: 66
E71: 67 | L71: 67
E72: 68 | L72: 68
E73: 69 | L73: 69
E74: 70 | L74: 70
E75: 71 | L75: 71
E76: 72 | L76: 72
E77: 73 | L77: 73
E78: 74 | L78: 74
E79: 75 | L79: 75
E80: 76 | L80: 76
E81: 77 | L81: 77
E82: 78 | L82: 78
E83: 79 | L83: 79
E84: 80 | L84: 80
E85: 81 | L85: 81
E86: 82 | L86: 82
E87: 83 | L87: 83
E88: 84 | L88: 84
E89: 85 | L89: 85
E90: 86 | L90: 86
E91: 87 | L91: 87
E92: 88 | L92: 88
E93: 89 | L93: 89
E94: 90 | L94: 90
E95: 91 | L95: 91
E96: 92 | L96: 92
E97: 93 | L97: 93
E98: 94 | L98: 94
E99: 95 | L99: 95
E100: 96 | L100: 96
E101: 97 | L101: 97
E102: 98 | L102: 98
E103: 99 | L103: 99
E104: 100 | L104: 100
E105: 101 | L105: 101
E106: 102 | L106: 102
E107: 103 | L107: 103
E108: 104 | L108: 104
E109: 105 | L109: 105
E110: 106 | L110: 106
E111: 107 | L111: 107
E112: 108 | L112: 108
E113: 109 | L113: 109
E114: 110 | L114: 110
E115: 111 | L115: 111
E116: 112 | L116: 112
E117: 113 | L117: 113
E118: 114 | L118: 114
E119: 115 | L119: 115
E120: 116 | L120: 116
E121: 117 | L121: 117
E122: 118 | L122: 118
E123: 119 | L123: 119
E124: 120 | L124: 120
E125: 121 | L125: 121
E126: 122 | L126: 122
E127: 123 | L127: 123
E128: 124 | L128: 124
E129: 125 | L129: 125
E130: 126 | L130: 126
E131: 127 | L131: 127
E132: 128 | L132: 128
E133: 129 | L133: 129
E134: 130 | L134: 130
E135: 131 | L135: 131
E136: 132 | L136: 132
E137: 133 | L137: 133
E138: 134 | L138: 134
E139: 135 | L139: 135
E140: 136 | L140: 136
E141: 137 | L141: 137
E142: 138 | L142: 138
E143: 139 | L143: 139
E144: 140 | L144: 140
E145: 141 | L145: 141
E146: 142 | L146: 142
E147: 143 | L147: 143
E148: 144 | L148: 144
E149: 145 | L149: 145
E150: 146 | L150: 146
E151: 147 | L151: 147
E152: 148 | L152: 148
E153: 149 | L153: 149
E154: 150 | L154: 150
E155: 151 | L155: 151
E156: 152 | L156: 152
E157: 153 | L157: 153
E158: 154 | L158: 154
E159: 155 | L159: 155
E160: 156 | L160: 156
E161: 157 | L161: 157
E162: 158 | L162: 158
E163: 159 | L163: 159
E164: 160 | L164: 160
E165: 161 | L165: 161
E166: 162 | L166: 162
E167: 163 | L167: 163
E168: 164 | L168: 164
E169: 165 | L169: 165
E170: 166 | L170: 166
E171: 167 | L171: 167
E172: 168 | L172: 168
E173: 169 | L173: 169
E174: 170 | L174: 170
E175: 171 | L175: 171
E176: 172 | L176: 172
E177: 173 | L177: 173
E178: 174 | L178: 174
E179: 175 | L179: 175
E180: 176 | L180: 176
E181: 177 | L181: 177
E182: 178 | L182: 178
E183: 179 | L183: 179
E184: 180 | L184: 180
E185: 181 | L185: 181
E186: 182 | L186: 182
E187: 183 | L187: 183
E188: 184 | L188: 184
E189: 185 | L189: 185
E190: 186 | L190: 186
E191: 187 | L191: 187
E192: 188 | L192: 188
E193: 189 | L193: 189
E194: 190 | L194: 190
E195: 191 | L195: 191
E196: 192 | L196: 192
E197: 193 | L197: 193
E198: 194 | L198: 194
E199: 195 | L199: 195
E200: 196 | L200: 196
... 304 more rows

Sheet docFORM (hidden)
A1: Documentation Form | D1: F | E1: Formulaire de documentation | H1: P | I1: Formulário de documentação | L1: S | M1: Formulario de documentación | P1: B | Q1: Formulir dokumentasi
A2: =GI!B33 ->  | E2: =A2 ->  | I2: =E2 ->  | M2: =I2 ->  | Q2: =M2 -> 
A3: Date of last FGAT update: | E3: ="Date de la dernière mise à jour du TIPAC : " & B3 -> Date de la dernière mise à jour du TIPAC : | I3: ="Data da última actualização da TIPAC: " & B3 -> Data da última actualização da TIPAC: | M3: ="Fecha de actualización más reciente de TIPAC: " & B3 -> Fecha de actualización más reciente de TIPAC: | Q3: ="Tanggal pemutakhiran terakhir TIPAC: " & B3 -> Tanggal pemutakhiran terakhir TIPAC:
A4: FGAT fiscal year: | E4: Année fiscale du TIPAC : | F4: =B4 -> 0 | I4: Ano fiscal da TIPAC: | J4: =F4 -> 0 | M4: Año fiscal de TIPAC: | N4: =J4 -> 0 | Q4: Tahun fiskal TIPAC: | R4: =N4 -> 0
A6: List of all individuals involved in the FGAT (including title and organizations): | E6: Liste des personnes associées au TIPAC (y compris l'appellation de leur poste et leur organisation) : | I6: Lista de todos os indivíduos envolvidos na TIPAC (incluindo título e organizações): | M6: Lista de todas las personas involucradas en la TIPAC (incluidos cargos y organizaciones): | Q6: Daftar semua individu yang terlibat dalam TIPAC (termasuk gelar dan organisasi): | R6: List of all individuals involved in the TIPAC (including title and organizations):
E7: =A7 ->  | I7: =E7 ->  | M7: =I7 ->  | Q7: =M7 -> 
A9: Name and title of point person/people (ideally from MOH) responsible for data entry | E9: Nom et appellation du poste de la ou des personnes de contact (en principe employées au Ministère de | I9: Nome e título dos indivíduos (idealmente do MISAU) responsáveis pela introdução de dados | M9: Nombre y cargo de la(s) persona(s) encargada(s) (preferentemente del ministerio de salud) | Q9: Nama dan gelar orang/orang-orang (idealnya dari Kemenkes) yang bertanggung jawab untuk entri data | R9: Name and title of point person/people (ideally from MOH) responsible for data entry (including contact information):
A10: (including contact information): | E10: la santé) responsables pour (y compris les informations de contact) : | I10: (incluindo os contactos): | M10: (incluida la información de contacto): | Q10: (termasuk informasi kontak):
E11: =A11 -> 0 | I11: =E11 -> 0 | M11: =I11 -> 0 | Q11: =M11 -> 0
A13: Targeted dates of MDA and what drug packages are going to be offered? | E13: Dates ciblées du TDM et combinaisons de médicaments qui seront offertes : | I13: Datas previstas da AMM e que pacotes de medicamentos serão oferecidos? | M13: Fechas previstas de AMM y paquetes de medicamentos a ofrecer: | Q13: Tanggal yang direncanakan untuk POMP dan paket obat apa yang akan ditawarkan?
E14: =A14 -> 0 | I14: =E14 -> 0 | M14: =I14 -> 0 | Q14: =M14 -> 0
A16: Key decisions: | E16: Décisions clés : | I16: Decisões chave: | M16: Decisiones clave: | Q16: Keputusan kunci: | R16: Key decisions:
E17: =A17 -> 0 | I17: =E17 -> 0 | M17: =I17 -> 0 | Q17: =M17 -> 0
A19: Sources of information: | E19: Sources d'information | I19: Fontes de informação | M19: Fuentes de información | Q19: Sumber informasi | R19: Sources of information
A20: Primary sources of data including salary and per diems: | E20: Sources principales des données y compris salaires et indemnités journalières : | I20: Fontes de dados primárias incluindo salários e subsídios per diem: | M20: Fuentes primarias de datos, incluidos salario y viáticos: | Q20: Sumber data primer termasuk gaji dan per diem:
E21: =A21 -> 0 | I21: =E21 -> 0 | M21: =I21 -> 0 | Q21: =M21 -> 0
A23: Primary sources of population numbers: | E23: Sources principales des statistiques de population : | I23: Fontes primárias de parâmetros populacionais: | M23: Fuentes primarias de cifras demográficas: | Q23: Sumber jumlah penduduk utama:
E24: =A24 -> 0 | I24: =E24 -> 0 | M24: =I24 -> 0 | Q24: =M24 -> 0
A26: Primary sources of unit costs: | E26: Sources principales des coûts unitaires : | I26: Fontes primárias de custos unitários: | M26: Fuentes primarias de costos unitarios: | Q26: Sumber satuan biaya utama:
E27: =A27 -> 0 | I27: =E27 -> 0 | M27: =I27 -> 0 | Q27: =M27 -> 0
A29: Primary sources of drug stock information: | E29: Sources principales d'information sur les stocks de médicaments : | I29: Fontes primárias de informação sobre o stock de medicamentos: | M29: Fuentes primarias de información sobre inventario de medicamentos: | Q29: Sumber informasi utama stok obat:
E30: =A30 -> 0 | I30: =E30 -> 0 | M30: =I30 -> 0 | Q30: =M30 -> 0
A32: Primary sources of funding information: | E32: Sources principales d'information de financement : | I32: Fontes primárias de informação sobre financiamento: | M32: Fuentes primarias de información sobre financiamiento: | Q32: Sumber informasi pendanaan utama:
E33: =A33 -> 0 | I33: =E33 -> 0 | M33: =I33 -> 0 | Q33: =M33 -> 0
A35: Other: | E35: Autre : | I35: Outras: | M35: Otras: | Q35: Lainnya: | R35: Other:
E36: =A36 -> 0 | I36: =E36 -> 0 | M36: =I36 -> 0 | Q36: =M36 -> 0
A38: Missing information: | E38: Informations manquantes : | I38: Informação em falta: | M38: Información faltante: | Q38: Informasi yang hilang: | R38: Missing information:
E39: =A39 -> 0 | I39: =E39 -> 0 | M39: =I39 -> 0 | Q39: =M39 -> 0

Sheet LANGUAGES (hidden)
A1: =COUNTA(C3:C3740) -> 1983 | D1: THISLANGUAGE | F1: 0 | G1: 1 | H1: 2 | I1: 3 | J1: provinsi
C2: =regionname(0) ->  | D2: =regionsname(0) ->  | F2: =GI!$B$27 -> Districts
C3: pub | D3: caption | F3: english | G3: FRENCH | H3: PORTUGUESE | I3: SPANISH | J3: BAHASA
B4: LONGEST | E4: =+C4&D4 ->  | F4: ="Update "& LOWER(GI!$B$26) & " LF target populations as needed:" -> Update district LF target populations as needed: | G4: Mettre à jour au besoin les populations cibles FL : | H4: ="Actualizar as populações alvo da FL no "& LOWER(GI!$B$26) & " conforme necessário:" -> Actualizar as populações alvo da FL no district conforme necessário: | I4: Actualizar las poblaciones beneficiarias para FL, según el caso: | J4: ="Mutakhirkan jumlah penduduk sasaran LF "& LOWER(GI!$B$26) & " jika dibutuhkan:" -> Mutakhirkan jumlah penduduk sasaran LF district jika dibutuhkan: | Q4: 1. compare the english to ensure hey are the same
B5: ="ENGLISH: " & LEN(F5) & " FRENCH: " & LEN(G5) & " PORTUGUESE: " & LEN(H5) & " SPANISH: " & LEN(I5) & " BAHASA: "& LEN(J5) -> ENGLISH: 18 FRENCH: 19 PORTUGUESE: 24 SPANISH: 20 BAHASA: 26 | C5: activitycosts | D5: notItem | E5: =+C5&D5 -> activitycostsnotItem | F5: Not itemized costs | G5: Coûts non détaillés | H5: Custos não especificados | I5: Costos no detallados | J5: Biaya yang tidak diperinci | K5: Not itemized costs | N5: =IF(F5=K5, "OK") -> OK | Q5: 2. fix
B6: ENGLISH: 21 FRENCH: 23 PORTUGUESE: 28 SPANISH: 24 BAHASA: 30 | C6: activitycosts | D6: notItemPer | E6: activitycostsnotItemPer | F6: Not itemized cost per | G6: Coûts non détaillés par | H6: Custos não especificados por | I6: Costos no detallados por | J6: Biaya yang tidak diperinci per | K6: Not itemized cost per | N6: OK
B7: ENGLISH: 14 FRENCH: 17 PORTUGUESE: 14 SPANISH: 17 BAHASA: 16 | C7: AO01 | D7: # of Districts | E7: AO01# of Districts | F7: ="# of " & LOWER(GI!$B$27) -> # of districts | G7: ="Nbre de " & GI!$B$27 -> Nbre de Districts | H7: ="# de " & GI!$B$27 -> # de Districts | I7: ="Nro. de " & GI!$B$27 -> Nro. de Districts | J7: ="Jumlah " & LOWER(GI!$B$27) -> Jumlah districts | K7: # of districts | N7: OK
B8: ENGLISH: 8 FRENCH: 8 PORTUGUESE: 10 SPANISH: 9 BAHASA: 8 | C8: AO01 | D8: Activity | E8: AO01Activity | F8: Activity | G8: Activité | H8: Actividade | I8: Actividad | J8: Kegiatan | K8: Activity | N8: OK
B9: ENGLISH: 8 FRENCH: 9 PORTUGUESE: 9 SPANISH: 9 BAHASA: 8 | C9: AO01 | D9: Category | E9: AO01Category | F9: Category | G9: Catégorie | H9: Categoria | I9: Categoría | J9: Kategori | K9: Category | N9: OK
B10: ENGLISH: 7 FRENCH: 11 PORTUGUESE: 10 SPANISH: 10 BAHASA: 10 | C10: AO01 | D10: Comment | E10: AO01Comment | F10: Comment | G10: Commentaire | H10: Comentário | I10: Comentario | J10: Keterangan | K10: Comment | N10: OK
B11: ENGLISH: 4 FRENCH: 4 PORTUGUESE: 5 SPANISH: 5 BAHASA: 5 | C11: AO01 | D11: Cost | E11: AO01Cost | F11: Cost | G11: Coût | H11: Custo | I11: Costo | J11: Biaya | K11: Cost | N11: OK
B12: ENGLISH: 19 FRENCH: 22 PORTUGUESE: 23 SPANISH: 23 BAHASA: 17 | C12: AO01 | D12: Costclassification | E12: AO01Costclassification | F12: Cost classification | G12: Classification de coût | H12: Classificação de custos | I12: Clasificación de costos | J12: Klasifikasi biaya | K12: Cost classification | N12: OK
B13: ENGLISH: 11 FRENCH: 11 PORTUGUESE: 9 SPANISH: 11 BAHASA: 9 | C13: AO01 | D13: Description | E13: AO01Description | F13: Description | G13: Description | H13: Descrição | I13: Descripción | J13: Deskripsi | K13: Description | N13: OK
B14: ENGLISH: 5 FRENCH: 5 PORTUGUESE: 6 SPANISH: 5 BAHASA: 7 | C14: AO01 | D14: Other | E14: AO01Other | F14: Other | G14: Autre | H14: Outros | I14: Otras | J14: Lainnya | K14: Other | N14: OK
B15: ENGLISH: 13 FRENCH: 15 PORTUGUESE: 28 SPANISH: 15 BAHASA: 21 | C15: AO01 | D15: Running total | E15: AO01Running total | F15: Running total | G15: Total cumulatif | H15: Custo de funcionamento total | I15: Total acumulado | J15: Jumlah total berjalan | K15: Running total | N15: OK
B16: ENGLISH: 11 FRENCH: 13 PORTUGUESE: 14 SPANISH: 12 BAHASA: 12 | C16: AO01 | D16: Subactivity | E16: AO01Subactivity | F16: Subactivity | G16: Sous-activité | H16: Sub-actividade | I16: Subactividad | J16: Sub kegiatan | K16: Subactivity | N16: OK
B17: ENGLISH: 7 FRENCH: 6 PORTUGUESE: 6 SPANISH: 7 BAHASA: 9 | C17: AO01 | D17: Summary | E17: AO01Summary | F17: Summary | G17: Résumé | H17: Resumo | I17: Resumen | J17: Rangkuman | K17: Summary | N17: OK
B18: ENGLISH: 12 FRENCH: 22 PORTUGUESE: 24 SPANISH: 26 BAHASA: 22 | C18: AO02 | D18: fundinggap | E18: AO02fundinggap | F18: Funding gap* | G18: Besoin de financement* | H18: Défice de financiamento* | I18: Déficit de financiamiento* | J18: Kesenjangan pendanaan* | K18: Funding gap* | N18: OK
B19: ENGLISH: 27 FRENCH: 36 PORTUGUESE: 35 SPANISH: 35 BAHASA: 25 | C19: AO02 | D19: govDA | E19: AO02govDA | F19: Government Drug Acquisition | G19: Acquisition de médicaments de l'état | H19: Aquisição de medicamentos do estado | I19: Compra de medicamentos del gobierno | J19: Pengadaan Obat Pemerintah | K19: Government Drug Acquisition | N19: OK
B20: ENGLISH: 18 FRENCH: 21 PORTUGUESE: 23 SPANISH: 28 BAHASA: 20 | C20: AO02 | D20: govfunding | E20: AO02govfunding | F20: Government funding | G20: Financement de l'état | H20: Financiamento do estado | I20: Financiamiento gubernamental | J20: Pendanaan pemerintah | K20: Government funding | N20: OK
B21: ENGLISH: 19 FRENCH: 18 PORTUGUESE: 18 SPANISH: 21 BAHASA: 15 | C21: AO02 | D21: govsalaries | E21: AO02govsalaries | F21: Government salaries | G21: Salaires de l'état | H21: Salários do estado | I21: Salarios del gobierno | J21: Gaji pemerintah | K21: Government salaries | N21: OK
B22: ENGLISH: 22 FRENCH: 32 PORTUGUESE: 29 SPANISH: 46 BAHASA: 38 | C22: AO02 | D22: itx | E22: AO02itx | F22: In-kind clearance fees | G22: Droits de dédouanement en nature | H22: Taxas de alfândega em géneros | I22: Cuotas de certificación de aduanas en especies | J22: Bea masuk dalam bentuk barang dan jasa | K22: In-kind clearance fees | N22: OK
B23: ENGLISH: 15 FRENCH: 17 PORTUGUESE: 17 SPANISH: 18 BAHASA: 26 | C23: AO02 | D23: Output 2 | E23: AO02Output 2 | F23: TIPAC generated | G23: Produit par TIPAC | H23: gerado pela TIPAC | I23: Generado por TIPAC | J23: Yang dihasilkan oleh TIPAC | K23: TIPAC generated | N23: OK
B24: ENGLISH: 7 FRENCH: 11 PORTUGUESE: 11 SPANISH: 10 BAHASA: 6 | C24: AO02 | D24: percent | E24: AO02percent | F24: Percent | G24: Pourcentage | H24: Percentagem | I24: Porcentaje | J24: Persen | K24: Percent | N24: OK
B25: ENGLISH: 24 FRENCH: 36 PORTUGUESE: 36 SPANISH: 39 BAHASA: 25 | C25: AO02 | D25: sources | E25: AO02sources | F25: Program Funding Sources* | G25: Sources de financement du programme* | H25: Fontes de financiamento do programa* | I25: Fuentes del financiamiento del programa | J25: Sumber Pendanaan Program* | K25: Program Funding Sources* | N25: OK
B26: ENGLISH: 21 FRENCH: 30 PORTUGUESE: 31 SPANISH: 33 BAHASA: 30 | C26: AO02 | D26: title | E26: AO02title | F26: Total program funding | G26: Financement total du programme | H26: Financiamento total do programa | I26: Financiamiento total del programa | J26: Jumlah total pendanaan program | K26: Total program funding | N26: OK
B27: ENGLISH: 5 FRENCH: 5 PORTUGUESE: 5 SPANISH: 5 BAHASA: 12 | C27: AO02 | D27: total | E27: AO02total | F27: Total | G27: Total | H27: Total | I27: Total | J27: Jumlah total | K27: Total | N27: OK
B28: ENGLISH: 20 FRENCH: 26 PORTUGUESE: 24 SPANISH: 25 BAHASA: 27 | C28: AO02 | D28: totalcosts | E28: AO02totalcosts | F28: Total program costs* | G28: Coûts totaux du programme* | H28: Custo total do programa* | I28: Costo total del programa* | J28: Jumlah total biaya program* | K28: Total program costs* | N28: OK
B29: ENGLISH: 23 FRENCH: 32 PORTUGUESE: 32 SPANISH: 37 BAHASA: 31 | C29: AO02 | D29: totalfunding | E29: AO02totalfunding | F29: Total program funding * | G29: Financement total du programme * | H29: Financiamento total do programa* | I29: Total de financiamiento del programa* | J29: Jumlah total pendanaan program* | K29: Total program funding * | N29: OK
B30: ENGLISH: 22 FRENCH: 23 PORTUGUESE: 26 SPANISH: 28 BAHASA: 31 | C30: AO03 | D30: B1act | E30: AO03B1act | F30: Total cost by activity | G30: Coût total par activité | H30: Custo total por actividade | I30: Costos totales por actividad | J30: Jumlah total biaya per kegiatan | K30: Total cost by activity | N30: OK
B31: ENGLISH: 22 FRENCH: 23 PORTUGUESE: 23 SPANISH: 23 BAHASA: 31 | C31: AO03 | D31: B1dist | E31: AO03B1dist | F31: ="Total cost by " & LOWER(GI!$B$26) -> Total cost by district | G31: ="Coût total par " & LOWER(GI!$B$26) -> Coût total par district | H31: ="Coût total par " & LOWER(GI!$B$26) -> Coût total par district | I31: ="Coût total por " & LOWER(GI!$B$26) -> Coût total por district | J31: ="Jumlah total biaya per " & LOWER(GI!$B$26) -> Jumlah total biaya per district | K31: Total cost by district | N31: OK
B32: ENGLISH: 26 FRENCH: 28 PORTUGUESE: 30 SPANISH: 28 BAHASA: 35 | C32: AO03 | D32: B1sub | E32: AO03B1sub | F32: Total cost by sub-activity | G32: Coût total par sous-activité | H32: Custo total por sub-actividade | I32: Costo total por subactividad | J32: Jumlah total biaya per sub kegiatan | K32: Total cost by sub-activity | N32: OK
B33: ENGLISH: 12 FRENCH: 13 PORTUGUESE: 14 SPANISH: 15 BAHASA: 19 | C33: AO03 | D33: B3 | E33: AO03B3 | F33: Total costs* | G33: Coûts totaux* | H33: Custos totais* | I33: Costos totales* | J33: Jumlah total biaya* | K33: Total costs* | N33: OK
B34: ENGLISH: 8 FRENCH: 8 PORTUGUESE: 10 SPANISH: 9 BAHASA: 8 | C34: AO03 | D34: B7act | E34: AO03B7act | F34: Activity | G34: Activité | H34: Actividade | I34: Actividad | J34: Kegiatan | K34: Activity | N34: OK
B35: ENGLISH: 9 FRENCH: 9 PORTUGUESE: 9 SPANISH: 9 BAHASA: 9 | C35: AO03 | D35: B7dist | E35: AO03B7dist | F35: =GI!$B$27 -> Districts | G35: =GI!$B$27 -> Districts | H35: =GI!$B$27 -> Districts | I35: =GI!$B$27 -> Districts | J35: =GI!$B$27 -> Districts | K35: Districts | N35: OK
B36: ENGLISH: 11 FRENCH: 13 PORTUGUESE: 14 SPANISH: 12 BAHASA: 12 | C36: AO03 | D36: B7sub | E36: AO03B7sub | F36: Subactivity | G36: Sous-activité | H36: Sub-actividade | I36: Subactividad | J36: Sub kegiatan | K36: Subactivity | N36: OK
B37: ENGLISH: 5 FRENCH: 5 PORTUGUESE: 5 SPANISH: 5 BAHASA: 12 | C37: AO03 | D37: C7 | E37: AO03C7 | F37: Total | G37: Total | H37: Total | I37: Total | J37: Jumlah total | K37: Total | N37: =IF(F37=K37, "OK") -> OK
B38: ENGLISH: 22 FRENCH: 23 PORTUGUESE: 26 SPANISH: 25 BAHASA: 31 | C38: AO03 | D38: CHARTTITLE | E38: AO03CHARTTITLE | F38: Total cost by activity | G38: Coût total par activité | H38: Custo total por actividade | I38: Costo total por actividad | J38: Jumlah total biaya per kegiatan | K38: Total cost by activity | N38: OK
B39: ENGLISH: 7 FRENCH: 11 PORTUGUESE: 11 SPANISH: 10 BAHASA: 6 | C39: AO03 | D39: D7 | E39: AO03D7 | F39: Percent | G39: Pourcentage | H39: Percentagem | I39: Porcentaje | J39: Persen | K39: Percent | N39: OK
B40: ENGLISH: 16 FRENCH: 26 PORTUGUESE: 25 SPANISH: 22 BAHASA: 14 | C40: AO03 | D40: DA | E40: AO03DA | F40: Drug Acquisition | G40: Acquisition de médicaments | H40: Aquisição de medicamentos | I40: Compra de medicamentos | J40: Pengadaan obat | K40: Drug Acquisition | N40: OK
B41: ENGLISH: 19 FRENCH: 18 PORTUGUESE: 18 SPANISH: 21 BAHASA: 15 | C41: AO03 | D41: govsalaries | E41: AO03govsalaries | F41: Government salaries | G41: Salaires de l'état | H41: Salários do estado | I41: Salarios del gobierno | J41: Gaji pemerintah | K41: Government salaries | N41: OK
B42: ENGLISH: 22 FRENCH: 32 PORTUGUESE: 29 SPANISH: 46 BAHASA: 38 | C42: AO03 | D42: itx | E42: AO03itx | F42: In-kind clearance fees | G42: Droits de dédouanement en nature | H42: Taxas de alfândega em géneros | I42: Cuotas de certificación de aduanas en especies | J42: Bea masuk dalam bentuk barang dan jasa | K42: In-kind clearance fees | N42: OK
B43: ENGLISH: 23 FRENCH: 32 PORTUGUESE: 32 SPANISH: 37 BAHASA: 31 | C43: AO03 | D43: Output 3 | E43: AO03Output 3 | F43: Total program funding * | G43: Financement total du programme * | H43: Financiamento total do programa* | I43: Total de financiamiento del programa* | J43: Jumlah Total pendanaan program* | K43: Total program funding * | N43: OK
B44: ENGLISH: 12 FRENCH: 22 PORTUGUESE: 24 SPANISH: 26 BAHASA: 22 | C44: AO03 | D44: Output 3 | E44: AO03Output 3 | F44: Funding gap* | G44: Besoin de financement* | H44: Défice de financiamento* | I44: Déficit de financiamiento* | J44: Kesenjangan pendanaan* | K44: Funding gap* | N44: OK
B45: ENGLISH: 50 FRENCH: 52 PORTUGUESE: 56 SPANISH: 53 BAHASA: 60 | C45: AO03 | D45: title | E45: AO03title | F45: ="Total costs by activity, sub-activity, or " & LOWER(GI!$B$26) -> Total costs by activity, sub-activity, or district | G45: ="Coûts totaux par activité, sous-activité ou " & LOWER(GI!$B$26) -> Coûts totaux par activité, sous-activité ou district | H45: ="Custos totais por actividade, sub-actividade ou " & LOWER(GI!$B$26) -> Custos totais por actividade, sub-actividade ou district | I45: ="Costos totales por actividad, subactividad o " & LOWER(GI!$B$26) -> Costos totales por actividad, subactividad o district | J45: ="Jumlah total biaya per kegiatan, sub kegiatan, atau " & LOWER(GI!$B$26) -> Jumlah total biaya per kegiatan, sub kegiatan, atau district | K45: Total costs by activity, sub-activity, or district | N45: OK
B46: ENGLISH: 8 FRENCH: 8 PORTUGUESE: 10 SPANISH: 9 BAHASA: 8 | C46: AO04 | D46: B7act | E46: AO04B7act | F46: Activity | G46: Activité | H46: Actividade | I46: Actividad | J46: Kegiatan | K46: Activity | N46: OK
B47: ENGLISH: 9 FRENCH: 9 PORTUGUESE: 9 SPANISH: 9 BAHASA: 9 | C47: AO04 | D47: B7dist | E47: AO04B7dist | F47: =GI!$B$27 -> Districts | G47: =GI!$B$27 -> Districts | H47: =GI!$B$27 -> Districts | I47: =GI!$B$27 -> Districts | J47: =GI!$B$27 -> Districts | K47: Districts | N47: OK
B48: ENGLISH: 11 FRENCH: 13 PORTUGUESE: 14 SPANISH: 12 BAHASA: 12 | C48: AO04 | D48: B7sub | E48: AO04B7sub | F48: Subactivity | G48: Sous-activité | H48: Sub-actividade | I48: Subactividad | J48: Sub kegiatan | K48: Subactivity | N48: OK
B49: ENGLISH: 5 FRENCH: 5 PORTUGUESE: 6 SPANISH: 6 BAHASA: 5 | C49: AO04 | D49: costs | E49: AO04costs | F49: Costs | G49: Coûts | H49: Custos | I49: Costos | J49: Biaya | K49: Costs | N49: OK
B50: ENGLISH: 7 FRENCH: 11 PORTUGUESE: 13 SPANISH: 14 BAHASA: 9 | C50: AO04 | D50: funding | E50: AO04funding | F50: Funding | G50: Financement | H50: Financiamento | I50: Financiamiento | J50: Pendanaan | K50: Funding | N50: OK
B51: ENGLISH: 12 FRENCH: 22 PORTUGUESE: 24 SPANISH: 26 BAHASA: 22 | C51: AO04 | D51: fundinggap | E51: AO04fundinggap | F51: Funding gap* | G51: Besoin de financement* | H51: Défice de financiamento* | I51: Déficit de financiamiento* | J51: Kesenjangan pendanaan* | K51: Funding gap* | N51: OK
B52: ENGLISH: 3 FRENCH: 6 PORTUGUESE: 6 SPANISH: 7 BAHASA: 11 | C52: AO04 | D52: gap | E52: AO04gap | F52: Gap | G52: Besoin | H52: Défice | I52: Déficit | J52: Kesenjangan | K52: Gap | N52: OK
B53: ENGLISH: 27 FRENCH: 36 PORTUGUESE: 35 SPANISH: 35 BAHASA: 25 | C53: AO04 | D53: govDA | E53: AO04govDA | F53: Government Drug Acquisition | G53: Acquisition de médicaments de l'état | H53: Aquisição de medicamentos do estado | I53: Compra de medicamentos del gobierno | J53: Pengadaan Obat Pemerintah | K53: Government Drug Acquisition | N53: OK
B54: ENGLISH: 18 FRENCH: 21 PORTUGUESE: 23 SPANISH: 27 BAHASA: 20 | C54: AO04 | D54: govfunding | E54: AO04govfunding | F54: Government funding | G54: Financement de l'état | H54: Financiamento do estado | I54: Financiamiento del gobierno | J54: Pendanaan pemerintah | K54: Government funding | N54: OK
B55: ENGLISH: 19 FRENCH: 18 PORTUGUESE: 18 SPANISH: 21 BAHASA: 15 | C55: AO04 | D55: govsalaries | E55: AO04govsalaries | F55: Government salaries | G55: Salaires de l'état | H55: Salários do estado | I55: Salarios del gobierno | J55: Gaji pemerintah | K55: Government salaries | N55: OK
B56: ENGLISH: 22 FRENCH: 32 PORTUGUESE: 29 SPANISH: 46 BAHASA: 38 | C56: AO04 | D56: itx | E56: AO04itx | F56: In-kind clearance fees | G56: Droits de dédouanement en nature | H56: Taxas de alfândega em géneros | I56: Cuotas de certificación de aduanas en especies | J56: Bea masuk dalam bentuk barang dan jasa | K56: In-kind clearance fees | N56: OK
B57: ENGLISH: 15 FRENCH: 17 PORTUGUESE: 17 SPANISH: 18 BAHASA: 26 | C57: AO04 | D57: Output 2 | E57: AO04Output 2 | F57: TIPAC generated | G57: Produit par TIPAC | H57: gerado pela TIPAC | I57: Generado por TIPAC | J57: Yang dihasilkan oleh TIPAC | K57: TIPAC generated | N57: OK
B58: ENGLISH: 24 FRENCH: 36 PORTUGUESE: 36 SPANISH: 39 BAHASA: 25 | C58: AO04 | D58: sources | E58: AO04sources | F58: Program Funding Sources* | G58: Sources de financement du programme* | H58: Fontes de financiamento do programa* | I58: Fuentes del financiamiento del programa | J58: Sumber Pendanaan Program* | K58: Program Funding Sources* | N58: OK
B59: ENGLISH: 68 FRENCH: 90 PORTUGUESE: 80 SPANISH: 79 BAHASA: 88 | C59: AO04 | D59: title | E59: AO04title | F59: ="Total costs, funding, and gap by activity, sub-activity, or " & LOWER(GI!$B$26) -> Total costs, funding, and gap by activity, sub-activity, or district | G59: ="Coûts totaux, financement et besoin de financement par activité, sous-activité ou " & LOWER(GI!$B$26) -> Coûts totaux, financement et besoin de financement par activité, sous-activité ou district | H59: ="Custos totais, financiamento e défice por actividade, sub-actividade ou " & LOWER(GI!$B$26) -> Custos totais, financiamento e défice por actividade, sub-actividade ou district | I59: ="Costos totales, financiamiento y déficit por actividad, subactividad o " & LOWER(GI!$B$26) -> Costos totales, financiamiento y déficit por actividad, subactividad o district | J59: ="Jumlah total biaya, pendanaan, dan kesenjangan per Kegiatan, Sub Kegiatan, atau " & LOWER(GI!$B$26) -> Jumlah total biaya, pendanaan, dan kesenjangan per Kegiatan, Sub Kegiatan, atau district | K59: Total costs, funding, and gap by activity, sub-activity, or district | N59: OK
B60: ENGLISH: 20 FRENCH: 26 PORTUGUESE: 24 SPANISH: 25 BAHASA: 27 | C60: AO04 | D60: totalcosts | E60: AO04totalcosts | F60: Total program costs* | G60: Coûts totaux du programme* | H60: Custo total do programa* | I60: Costo total del programa* | J60: Jumlah total biaya program* | K60: Total program costs* | N60: OK
B61: ENGLISH: 23 FRENCH: 32 PORTUGUESE: 32 SPANISH: 37 BAHASA: 31 | C61: AO04 | D61: totalfunding | E61: AO04totalfunding | F61: Total program funding * | G61: Financement total du programme * | H61: Financiamento total do programa* | I61: Total de financiamiento del programa* | J61: Jumlah total pendanaan program* | K61: Total program funding * | N61: OK
B62: ENGLISH: 26 FRENCH: 32 PORTUGUESE: 32 SPANISH: 34 BAHASA: 25 | C62: AO05 | D62: B1 | E62: AO05B1 | F62: Five-year cost projections | G62: Projections de coût sur cinq ans | H62: Projecção de custos a cinco anos | I62: Proyección de costos a cinco años | J62: Proyeksi biaya lima tahun | K62: Five-year cost projections | N62: OK
B63: ENGLISH: 8 FRENCH: 8 PORTUGUESE: 10 SPANISH: 9 BAHASA: 8 | C63: AO05 | D63: B16act | E63: AO05B16act | F63: Activity | G63: Activité | H63: Actividade | I63: Actividad | J63: Kegiatan | K63: Activity | N63: OK
B64: ENGLISH: 11 FRENCH: 13 PORTUGUESE: 14 SPANISH: 12 BAHASA: 12 | C64: AO05 | D64: B16sub | E64: AO05B16sub | F64: Subactivity | G64: Sous-activité | H64: Sub-actividade | I64: Subactividad | J64: Sub kegiatan | K64: Subactivity | N64: OK
B65: ENGLISH: 7 FRENCH: 6 PORTUGUESE: 6 SPANISH: 7 BAHASA: 9 | C65: AO05 | D65: B16sum | E65: AO05B16sum | F65: Summary | G65: Résumé | H65: Resumo | I65: Resumen | J65: Rangkuman | K65: Summary | N65: OK
B66: ENGLISH: 5 FRENCH: 5 PORTUGUESE: 5 SPANISH: 5 BAHASA: 12 | C66: AO05 | D66: b17 | E66: AO05b17 | F66: Total | G66: Total | H66: Total | I66: Total | J66: Jumlah total | K66: Total | N66: OK
B67: ENGLISH: 34 FRENCH: 46 PORTUGUESE: 50 SPANISH: 52 BAHASA: 60 | C67: AO06 | D67: B1 | E67: AO06B1 | F67: PC-drugs needed, acquired, and gap | G67: Médicaments CTP nécessaires, acquis, et besoin | H67: Medicamentos TPQ necessários, adquiridos e défice | I67: Medicamentos de QP necesarios, adquiridos, y déficit | J67: Obat-obatan PC yang dibutuhkan, diadakan, dan kesenjangannya | K67: PC-drugs needed, acquired, and gap | N67: OK
B68: ENGLISH: 4 FRENCH: 11 PORTUGUESE: 12 SPANISH: 12 BAHASA: 4 | C68: AO06 | D68: B4 | E68: AO06B4 | F68: Drug | G68: Médicaments | H68: Medicamentos | I68: Medicamentos | J68: Obat | K68: Drug | N68: OK
B69: ="ENGLISH: " & LEN(F69) & " FRENCH: " & LEN(G69) & " PORTUGUESE: " & LEN(H69) & " SPANISH: " & LEN(I69) & " BAHASA: "& LEN(J69) -> ENGLISH: 12 FRENCH: 9 PORTUGUESE: 10 SPANISH: 10 BAHASA: 6 | C69: AO06 | D69: C4 | E69: =+C69&D69 -> AO06C4 | F69: Manufacturer | G69: Fabricant | H69: Fabricante | I69: Fabricante | J69: Pabrik | K69: Manufacturer | N69: =IF(F69=K69, "OK") -> OK
B70: ENGLISH: 30 FRENCH: 44 PORTUGUESE: 47 SPANISH: 53 BAHASA: 38 | C70: AO06 | D70: CHARTTITLE | E70: AO06CHARTTITLE | F70: Percent of PC-NTD drugs funded | G70: Pourcentage des médicaments CTP-MTN financés | H70: Percentagem de medicamentos TPQ-DTN financiados | I70: Porcentaje de medicamentos de QP para EID financiados | J70: Persen obat-obatan PC-NTD yang didanai | K70: Percent of PC-NTD drugs funded | N70: OK
B71: ENGLISH: 5 FRENCH: 7 PORTUGUESE: 6 SPANISH: 7 BAHASA: 5 | C71: AO06 | D71: D4 | E71: AO06D4 | F71: Donor | G71: Donneur | H71: Doador | I71: Donante | J71: Donor | K71: Donor | N71: OK
B72: ENGLISH: 10 FRENCH: 11 PORTUGUESE: 13 SPANISH: 13 BAHASA: 14 | C72: AO06 | D72: E4unit | E72: AO06E4unit | F72: (in units) | G72: (en unités) | H72: (em unidades) | I72: (en unidades) | J72: (dalam satuan) | K72: (in units) | N72: OK
B73: ENGLISH: 26 FRENCH: 43 PORTUGUESE: 41 SPANISH: 65 BAHASA: 34 | C73: AO07 | D73: B1 | E73: AO07B1 | F73: Five-year PC-drug forecast | G73: Prévisions des médicaments CTP sur cinq ans | H73: Previsão de medicamentos TPQ a cinco anos | I73: Proyección a cinco años de requerimientos de medicamentos para QP | J73: Perkiraan obat PC untuk lima tahun | K73: Five-year PCT-drug forecast | N73: FALSE
B74: ENGLISH: 4 FRENCH: 11 PORTUGUESE: 12 SPANISH: 12 BAHASA: 4 | C74: AO07 | D74: B3 | E74: AO07B3 | F74: Drug | G74: Médicaments | H74: Medicamentos | I74: Medicamentos | J74: Obat | K74: Drug | N74: OK
B75: ENGLISH: 5 FRENCH: 5 PORTUGUESE: 5 SPANISH: 5 BAHASA: 12 | C75: AO07 | D75: H3 | E75: AO07H3 | F75: Total | G75: Total | H75: Total | I75: Total | J75: Jumlah total | K75: Total | N75: OK
B76: ENGLISH: 22 FRENCH: 24 PORTUGUESE: 14 SPANISH: 16 BAHASA: 23 | C76: AO08 | D76: D_h3 | E76: AO08D_h3 | F76: Target population | G76: Population cible | H76: População alvo | I76: Población objeto | J76: Jumlah penduduk sasaran | K76: Target population | N76: OK
B77: ENGLISH: 19 FRENCH: 19 PORTUGUESE: 29 SPANISH: 19 BAHASA: 16 | C77: AO08 | D77: I_M3 | E77: AO08I_M3 | F77: ="Number of " & LOWER(GI!$B$27) -> Number of districts | G77: ="Nombre de " & LOWER(GI!$B$27) -> Nombre de districts | H77: ="Número de " & LOWER(GI!$B$27) & "abrangidos" -> Número de districtsabrangidos | I77: ="Número de " & LOWER(GI!$B$27) -> Número de districts | J77: ="Jumlah " & LOWER(GI!$B$27) -> Jumlah districts | K77: Number of districts | N77: OK
B78: ENGLISH: 55 FRENCH: 60 PORTUGUESE: 60 SPANISH: 63 BAHASA: 67 | C78: AO09 | D78: B1 | E78: AO09B1 | F78: ="Five-year MDA target population projections by " & LOWER(GI!$B$26) -> Five-year MDA target population projections by district | G78: ="Prévisions de population TDM cible sur cinq ans par " & LOWER(GI!$B$26) -> Prévisions de population TDM cible sur cinq ans par district | H78: ="Projecção da população alvo da AMM por " & LOWER(GI!$B$26) & " a cinco anos" -> Projecção da população alvo da AMM por district a cinco anos | I78: Proyección a cinco años de población objeto de AMM por distrito | J78: ="Proyeksi jumlah penduduk sasaran POMP untuk lima tahun per " & LOWER(GI!$B$26) -> Proyeksi jumlah penduduk sasaran POMP untuk lima tahun per district | K78: Five-year MDA target population projections by district | N78: OK
B79: ENGLISH: 8 FRENCH: 8 PORTUGUESE: 8 SPANISH: 8 BAHASA: 8 | C79: AO09 | D79: b19 | E79: AO09b19 | F79: =GI!$B$26 -> District | G79: =GI!$B$26 -> District | H79: =GI!$B$26 -> District | I79: =GI!$B$26 -> District | J79: =GI!$B$26 -> District | K79: District | N79: OK
B80: ENGLISH: 5 FRENCH: 5 PORTUGUESE: 5 SPANISH: 5 BAHASA: 12 | C80: AO09 | D80: b20 | E80: AO09b20 | F80: Total | G80: Total | H80: Total | I80: Total | J80: Jumlah total | K80: Total | N80: OK
B81: ENGLISH: 22 FRENCH: 28 PORTUGUESE: 28 SPANISH: 32 BAHASA: 22 | C81: AO09 | D81: c19 | E81: AO09c19 | F81: LF Disease Burden Code | G81: FL code de charge de maladie | H81: FL código de carga da doença | I81: FL código de carga de enfermedad | J81: Kode Beban Penyakit LF | K81: LF Disease Burden Code | N81: OK
B82: ENGLISH: 28 FRENCH: 31 PORTUGUESE: 25 SPANISH: 38 BAHASA: 40 | C82: AO09 | D82: charttitle | E82: AO09charttitle | F82: Five-year target populations | G82: Populations cibles sur cinq ans | H82: Populações alvo a 5 anos | I82: Poblaciones beneficiarias quinquenales | J82: Jumlah penduduk sasaran untuk lima tahun | K82: Five-year MDA target populations | N82: FALSE
B83: ENGLISH: 25 FRENCH: 31 PORTUGUESE: 30 SPANISH: 34 BAHASA: 25 | C83: AO09 | D83: d19 | E83: AO09d19 | F83: ONCHO Disease Burden Code | G83: ONCHO code de charge de maladie | H83: ONCO código de carga da doença | I83: ONCO código de carga de enfermedad | J83: Kode Beban Penyakit Oncho | K83: ONCHO Disease Burden Code | N83: OK
B84: ENGLISH: 23 FRENCH: 29 PORTUGUESE: 29 SPANISH: 33 BAHASA: 23 | C84: AO09 | D84: e19 | E84: AO09e19 | F84: SCH Disease Burden Code | G84: SCH code de charge de maladie | H84: SCH código de carga da doença | I84: ESQ código de carga de enfermedad | J84: Kode Beban Penyakit SCH | K84: SCH Disease Burden Code | N84: OK
B85: ENGLISH: 23 FRENCH: 30 PORTUGUESE: 30 SPANISH: 33 BAHASA: 23 | C85: AO09 | D85: f19 | E85: AO09f19 | F85: STH Disease Burden Code | G85: GeoH code de charge de maladie | H85: HTS código de carga da doença | I85: HTS código de carga de enfermedad | J85: Kode Beban Penyakit STH | K85: STH Disease Burden Code | N85: OK
B86: ENGLISH: 28 FRENCH: 34 PORTUGUESE: 33 SPANISH: 33 BAHASA: 28 | C86: AO09 | D86: g19 | E86: AO09g19 | F86: Trachoma Disease Burden Code | G86: Trachôme code de charge de maladie | H86: Tracoma código de carga da doença | I86: TRA código de carga de enfermedad | J86: Kode Beban Penyakit Trachoma | K86: Trachoma Disease Burden Code | N86: OK
B87: ENGLISH: 5 FRENCH: 5 PORTUGUESE: 5 SPANISH: 5 BAHASA: 12 | C87: AO10 | D87: C3 | E87: AO10C3 | F87: Total | G87: Total | H87: Total | I87: Total | J87: Jumlah total | K87: Total | N87: OK
B88: ENGLISH: 2 FRENCH: 2 PORTUGUESE: 2 SPANISH: 2 BAHASA: 2 | C88: AO10 | D88: D3 | E88: AO10D3 | F88: LF | G88: FL | H88: FL | I88: FL | J88: LF | K88: LF | N88: OK
B89: ENGLISH: 5 FRENCH: 5 PORTUGUESE: 4 SPANISH: 4 BAHASA: 5 | C89: AO10 | D89: E3 | E89: AO10E3 | F89: ONCHO | G89: ONCHO | H89: ONCO | I89: ONCO | J89: ONCHO | K89: ONCHO | N89: OK
B90: ENGLISH: 3 FRENCH: 3 PORTUGUESE: 3 SPANISH: 3 BAHASA: 3 | C90: AO10 | D90: F3 | E90: AO10F3 | F90: SCH | G90: SCH | H90: SCH | I90: ESQ | J90: SCH | K90: SCH | N90: OK
B91: ENGLISH: 216 FRENCH: 272 PORTUGUESE: 308 SPANISH: 268 BAHASA: 292 | C91: AO10 | D91: Foot2 | E91: AO10Foot2 | F91: ** Persons targeted for ONCHO and STH only include Round 1. The FGAT assumes Round 2 persons were also targeted in Round 1 and therefore does not count them twice. Costs, however, include both rounds if applicable. | G91: ** Les personnes ciblées par ONCHO et GeoH incluent seulement la Série 1. Le FGAT suppose que les personnes de la Série 2 ont aussi été ciblées lors de la Série 1 et il ne les compte donc pas deux fois. Toutefois, les coûts incluent les deux séries si cela est approprié. | H91: Os indivíduos abrangidos pela ONCO ou HTS apenas incluem a Série 1. A ferramenta de análise do défice de financiamento (FGAT) pressupõe que os indivíduos na Série 2 foram também abrangidos na Série 1 e por isso estes não são contabilizados duas vezes. Contudo, os custos inclue ambas as séries, se aplicável. | I91: ** Las personas beneficiarias para ONCO y HTS solo incluyen la Ronda 1. La TIPAC asume que las personas de la Ronda 2 también fueron beneficiarias en la Ronda 1 y por lo tanto no las cuenta dos veces. Sin embargo, los costos incluyen ambas rondas cuando es pertinente. | J91: **Orang-orang yang dijadikan sasaran untuk ONCHO dan STH mencakup hanya Putaran 1. FGAT mengasumsikan orang-orang yang dijadikan sasaran dalam Putaran 2 juga dijadikan sasaran dalam Putaran 1 dan oleh karena itu tidak menghitung mereka dua kali. Namun, biaya mencakup kedua putaran jika ada. | K91: ** Persons targeted for ONCHO and STH only include Round 1. The FGAT assumes Round 2 persons were also targeted in Round 1 and therefore does not count them twice. Costs, however, include both rounds if applicable. | N91: OK
B92: ENGLISH: 3 FRENCH: 4 PORTUGUESE: 3 SPANISH: 3 BAHASA: 3 | C92: AO10 | D92: G3 | E92: AO10G3 | F92: STH | G92: GeoH | H92: HTS | I92: HTS | J92: STH | K92: STH | N92: OK
B93: ENGLISH: 8 FRENCH: 8 PORTUGUESE: 7 SPANISH: 3 BAHASA: 8 | C93: AO10 | D93: H3 | E93: AO10H3 | F93: Trachoma | G93: Trachôme | H93: Tracoma | I93: TRA | J93: Trachoma | K93: Trachoma | N93: OK
B94: ENGLISH: 5 FRENCH: 5 PORTUGUESE: 6 SPANISH: 5 BAHASA: 7 | C94: AO10 | D94: I3 | E94: AO10I3 | F94: Other | G94: Autre | H94: Outros | I94: Otras | J94: Lainnya | K94: Other | N94: OK
B95: ENGLISH: 9 FRENCH: 9 PORTUGUESE: 12 SPANISH: 8 BAHASA: 8 | C95: AO11 | D95: B3 | E95: AO11B3 | F95: Personnel | G95: Personnel | H95: Funcionários | I95: Personal | J95: Personil | K95: Personnel | N95: OK
B96: ENGLISH: 4 FRENCH: 5 PORTUGUESE: 28 SPANISH: 40 BAHASA: 4 | C96: AO11 | D96: C3 | E96: AO11C3 | F96: FTE? | G96: FTE ? | H96: Equivalente a tempo inteiro? | I96: ¿Empleado de dedicación exclusiva (EDE)? | J96: FTE? | K96: FTE? | N96: OK
B97: ENGLISH: 8 FRENCH: 11 PORTUGUESE: 33 SPANISH: 11 BAHASA: 10 | C97: AO11 | D97: D3 | E97: AO11D3 | F97: # of FTE | G97: Nbre de FTE | H97: # de equivalentes a tempo inteiro | I97: Nro. de EDE | J97: Jumlah FTE | K97: # of FTE | N97: OK
B98: ENGLISH: 10 FRENCH: 12 PORTUGUESE: 13 SPANISH: 12 BAHASA: 11 | C98: AO11 | D98: E3 | E98: AO11E3 | F98: Total Days | G98: Jours totaux | H98: Total de dias | I98: Días totales | J98: Jumlah hari | K98: Total Days | N98: OK
B99: ENGLISH: 13 FRENCH: 14 PORTUGUESE: 14 SPANISH: 14 BAHASA: 12 | C99: AO11 | D99: F3 | E99: AO11F3 | F99: Annual salary | G99: Salaire annuel | H99: Salário annual | I99: Salario annual | J99: Gaji tahunan | K99: Annual salary | N99: OK
B100: ENGLISH: 19 FRENCH: 25 PORTUGUESE: 21 SPANISH: 22 BAHASA: 15 | C100: AO11 | D100: G3 | E100: AO11G3 | F100: Salary contribution | G100: Contribution des salaires | H100: Contribuição salarial | I100: Contribución a salario | J100: Kontribusi gaji | K100: Salary contribution | N100: OK
B101: ENGLISH: 43 FRENCH: 45 PORTUGUESE: 39 SPANISH: 50 BAHASA: 46 | C101: AO12 | D101: B1 | E101: AO12B1 | F101: Completion status by activity, sub-activity | G101: État d'achèvement par activité, sous-activité | H101: Estatuto por actividade, sub-actividade | I101: Estado de terminación por actividad, subactividad | J101: Status penyelesaian per kegiatan, sub kegiatan | K101: Completion status by activity, sub-activity | N101: OK
B102: ENGLISH: 10 FRENCH: 9 PORTUGUESE: 11 SPANISH: 11 BAHASA: 17 | C102: AO12 | D102: B3 | E102: AO12B3 | F102: Activities | G102: Activités | H102: Actividades | I102: Actividades | J102: Kegiatan-kegiatan | K102: Activities | N102: OK
B103: ENGLISH: 14 FRENCH: 14 PORTUGUESE: 15 SPANISH: 14 BAHASA: 16 | C103: AO12 | D103: E3 | E103: AO12E3 | F103: Sub-activities | G103: Sous-activités | H103: Sub-actividades | I103: Subactividades | J103: Sub-sub kegiatan | K103: Sub-activities | N103: OK
B104: ENGLISH: 176 FRENCH: 209 PORTUGUESE: 188 SPANISH: 200 BAHASA: 187 | C104: B4_0 | D104: W1C1B4_0 | E104: B4_0W1C1B4_0 | F104: ="Enter all " & LOWER(GI!$B$24) & " and "& LOWER(GI!$B$27) & " in the country. For each "& LOWER(GI!$B$26) & ", enter the number of "&LOWER(GI!$B$30) &", number of schools, and total population. *" & GI!$B$30 &" and school data is optional" -> Enter all regions and districts in the country. For each district, enter the number of villages, number of schools, and total population. *Villages and school data is optional | G104: ="Saisir toutes les " & LOWER(GI!$B$24) & " et " & LOWER(GI!$B$27) &" du pays. Pour chaque " & LOWER(GI!$B$26) &", saisir le nombre de " & LOWER(GI!$B$30) & ", le nombre d'écoles et la population totale. *Les données portant sur les " & LOWER(GI!$B$30) & "etlesécolessontfacultatives" -> Saisir toutes les regions et districts du pays. Pour chaque district, saisir le nombre de villages, le nombre d'écoles et la population totale. *Les données portant sur les villagesetlesécolessontfacultatives | H104: ="Inserir todas as " & LOWER(GI!$B$30) & " e " & LOWER(GI!$B$27) &" no país. Inserir para cada " & LOWER(GI!$B$26) &" o número de " & LOWER(GI!$B$24) & ", o número de escolas e a população total. * Dados relativos a " & LOWER(GI!$B$30) & " e escolas são opcionais" -> Inserir todas as villages e districts no país. Inserir para cada district o número de regions, o número de escolas e a população total. * Dados relativos a villages e escolas são opcionais | I104: ="Introduzca todas las " & LOWER(GI!$B$24) & " y " & LOWER(GI!$B$27) &" del país. Para cada " & LOWER(GI!$B$26) &", introduzca el número de " & LOWER(GI!$B$30) & ", el número de escuelas y la población total. *Los datos de " & LOWER(GI!$B$30) & " y escuelas son opcionales." -> Introduzca todas las regions y districts del país. Para cada district, introduzca el número de villages, el número de escuelas y la población total. *Los datos de villages y escuelas son opcionales. | J104: ="Masukkan semua " & LOWER(GI!$B$24) & " dan " & LOWER(GI!$B$27) &" di negara anda. Untuk tiap " & LOWER(GI!$B$26) &", masukkan jumlah " & LOWER(GI!$B$30) & ", jumlah sekolah, dan jumlah total penduduk. *Data " & LOWER(GI!$B$30) & " dan sekolah bersifat opsional" -> Masukkan semua regions dan districts di negara anda. Untuk tiap district, masukkan jumlah villages, jumlah sekolah, dan jumlah total penduduk. *Data villages dan sekolah bersifat opsional
B105: ENGLISH: 8 FRENCH: 8 PORTUGUESE: 10 SPANISH: 9 BAHASA: 8 | C105: constant | D105: activityID | E105: constantactivityID | F105: Activity | G105: Activité | H105: Actividade | I105: Actividad | J105: Kegiatan
B106: ENGLISH: 15 FRENCH: 16 PORTUGUESE: 15 SPANISH: 15 BAHASA: 14 | C106: constant | D106: addcost | E106: constantaddcost | F106: Additional cost | G106: Coût additionnel | H106: Custo adicional | I106: Costo adicional | J106: Biaya tambahan
B107: ENGLISH: 17 FRENCH: 18 PORTUGUESE: 17 SPANISH: 17 BAHASA: 16 | C107: constant | D107: addcost1 | E107: constantaddcost1 | F107: Additional cost 1 | G107: Coût additionnel 1 | H107: Custo adicional 1 | I107: Costo adicional 1 | J107: Biaya tambahan 1
B108: ENGLISH: 17 FRENCH: 18 PORTUGUESE: 17 SPANISH: 17 BAHASA: 16 | C108: constant | D108: addcost2 | E108: constantaddcost2 | F108: Additional cost 2 | G108: Coût additionnel 2 | H108: Custo adicional 2 | I108: Costo adicional 2 | J108: Biaya tambahan 2
B109: ENGLISH: 37 FRENCH: 36 PORTUGUESE: 37 SPANISH: 33 BAHASA: 48 | C109: constant | D109: ALB tabs (alone or with PZQ) | E109: constantALB tabs (alone or with PZQ) | F109: ALB - Albendazole (alone or with PZQ) | G109: ALB - Albendazole (seul ou avec PZQ) | H109: ALB - Albendazol (sozinho ou com PZQ) | I109: ALB - Albendazol (solo o con PZQ) | J109: ALB - Albendazole (saja atau bersama dengan PZQ) | K109: ALB - Albendazole (alone or with PZQ) | N109: =IF(F109=K109, "OK") -> OK
B110: ENGLISH: 35 FRENCH: 35 PORTUGUESE: 33 SPANISH: 32 BAHASA: 39 | C110: constant | D110: ALB tabs (with IVM or DEC) | E110: constantALB tabs (with IVM or DEC) | F110: ALB - Albendazole (with IVM or DEC) | G110: ALB - Albendazole (avec IVM ou DEC) | H110: ALB - Albendazol (com IVM ou DEC) | I110: ALB - Albendazol (con IVM o DEC) | J110: ALB - Albendazole (dengan IVM atau DEC) | K110: ALB - Albendazole (with IVM or DEC) | N110: OK
B111: ENGLISH: 28 FRENCH: 35 PORTUGUESE: 36 SPANISH: 32 BAHASA: 41 | C111: constant | D111: ALB_A | E111: constantALB_A | F111: ALB tabs (alone or with PZQ) | G111: ALB en comprimés (seul ou avec PZQ) | H111: ALB comprimidos (sozinho ou com PZQ) | I111: Pestañas de ALB (solo o con PZQ) | J111: Tablet ALB (saja atau bersama dengan PZQ) | K111: ALB tabs (alone or with PZQ) | N111: OK
B112: ENGLISH: 26 FRENCH: 34 PORTUGUESE: 32 SPANISH: 31 BAHASA: 32 | C112: constant | D112: ALB_W | E112: constantALB_W | F112: ALB tabs (with IVM or DEC) | G112: ALB en comprimés (avec IVM ou DEC) | H112: ALB comprimidos (com IVM ou DEC) | I112: Pestañas de ALB (con IVM o DEC) | J112: Tablet ALB (dengan IVM atau DEC) | K112: ALB tabs (with IVM or DEC) | N112: OK
B113: ENGLISH: 27 FRENCH: 26 PORTUGUESE: 28 SPANISH: 24 BAHASA: 38 | C113: constant | D113: ALBMBD | E113: constantALBMBD | F113: ALB/MBD (alone or with PZQ) | G113: ALB/MBD (seul ou avec PZQ) | H113: ALB/MBD (sozinho ou com PZQ) | I113: ALB/MBZ (solo o con PZQ) | J113: ALB/MBD (saja atau bersama dengan PZQ) | K113: ALB/MBD (alone or with PZQ) | N113: OK
B114: ENGLISH: 3 FRENCH: 3 PORTUGUESE: 3 SPANISH: 3 BAHASA: 3 | C114: constant | D114: Apr | E114: constantApr | F114: Apr | G114: Avr | H114: Abr | I114: Abr | J114: Apr | K114: Apr | N114: OK
B115: ENGLISH: 3 FRENCH: 3 PORTUGUESE: 3 SPANISH: 3 BAHASA: 3 | C115: constant | D115: Aug | E115: constantAug | F115: Aug | G115: Aou | H115: Ago | I115: Ago | J115: Agu | K115: Aug | N115: OK
B116: ENGLISH: 20 FRENCH: 22 PORTUGUESE: 23 SPANISH: 19 BAHASA: 17 | C116: constant | D116: category0 | E116: constantcategory0 | F116: Implementation costs | G116: Coûts de mise en œuvre | H116: Custos de implementação | I116: Costos de ejecución | J116: Biaya pelaksanaan | K116: Implementation costs
B117: ENGLISH: 17 FRENCH: 19 PORTUGUESE: 19 SPANISH: 19 BAHASA: 17 | C117: constant | D117: category1 | E117: constantcategory1 | F117: Operational costs | G117: Coûts opérationnels | H117: Custos operacionais | I117: Costos de operación | J117: Biaya operasional | K117: Operational costs
B118: ENGLISH: 8 FRENCH: 9 PORTUGUESE: 9 SPANISH: 9 BAHASA: 8 | C118: constant | D118: categoryID | E118: constantcategoryID | F118: Category | G118: Catégorie | H118: Categoria | I118: Categoría | J118: Kategori
B119: ENGLISH: 5 FRENCH: 9 PORTUGUESE: 7 SPANISH: 7 BAHASA: 5 | C119: constant | D119: chart | E119: constantchart | F119: chart | G119: Graphique | H119: Gráfico | I119: Gráfico | J119: bagan | K119: chart | N119: =IF(F119=K119, "OK") -> OK
B120: ENGLISH: 14 FRENCH: 21 PORTUGUESE: 19 SPANISH: 33 BAHASA: 9 | C120: constant | D120: clearfees | E120: constantclearfees | F120: Clearance fees | G120: Frais de dédouanement | H120: Taxas de alfândega | I120: Cuotas de certificación de aduana | J120: Bea masuk
B121: ENGLISH: 7 FRENCH: 11 PORTUGUESE: 11 SPANISH: 10 BAHASA: 10 | C121: constant | D121: commentID | E121: constantcommentID | F121: Comment | G121: Commentaire | H121: Comentários | I121: Comentario | J121: Keterangan
B122: ENGLISH: 8 FRENCH: 12 PORTUGUESE: 11 SPANISH: 11 BAHASA: 11 | C122: constant | D122: commentsID | E122: constantcommentsID | F122: Comments | G122: Commentaires | H122: Comentários | I122: Comentarios | J122: Keterangan
B123: ENGLISH: 9 FRENCH: 9 PORTUGUESE: 12 SPANISH: 8 BAHASA: 8 | C123: constant | D123: cost1 | E123: constantcost1 | F123: Personnel | G123: Personnel | H123: Funcionários | I123: Personal | J123: Personil
B124: ENGLISH: 17 FRENCH: 18 PORTUGUESE: 23 SPANISH: 19 BAHASA: 29 | C124: constant | D124: cost2 | E124: constantcost2 | F124: Transport (owned) | G124: Transport (acheté) | H124: Transporte (adquiridos) | I124: Transporte (propio) | J124: Traansportasi (milik sendiri)
B125: ENGLISH: 17 FRENCH: 20 PORTUGUESE: 21 SPANISH: 23 BAHASA: 19 | C125: constant | D125: cost3 | E125: constantcost3 | F125: Transport (hired) | G125: Transport (location) | H125: Transporte (alugados) | I125: Transporte (contratado) | J125: Transportasi (sewa)
B126: ENGLISH: 6 FRENCH: 11 PORTUGUESE: 9 SPANISH: 10 BAHASA: 12 | C126: constant | D126: cost4 | E126: constantcost4 | F126: Supply | G126: Fournitures | H126: Provisões | I126: Suministro | J126: Perlengkapan
B127: ENGLISH: 9 FRENCH: 10 PORTUGUESE: 11 SPANISH: 6 BAHASA: 12 | C127: constant | D127: cost5 | E127: constantcost5 | F127: Equipment | G127: Équipement | H127: Equipamento | I127: Equipo | J127: Perlengkapan
B128: ENGLISH: 10 FRENCH: 10 PORTUGUESE: 9 SPANISH: 9 BAHASA: 9 | C128: constant | D128: cost6 | E128: constantcost6 | F128: Consultant | G128: Consultant | H128: Consultor | I128: Consultor | J128: Konsultan
B129: ENGLISH: 5 FRENCH: 5 PORTUGUESE: 6 SPANISH: 5 BAHASA: 7 | C129: constant | D129: cost7 | E129: constantcost7 | F129: Other | G129: Autre | H129: Outros | I129: Otras | J129: Lainnya
B130: ENGLISH: 12 FRENCH: 12 PORTUGUESE: 16 SPANISH: 12 BAHASA: 15 | C130: constant | D130: cost8 | E130: constantcost8 | F130: Not itemized | G130: Non détaillé | H130: Não especificado | I130: No detallado | J130: Tidak diperinci
B131: ENGLISH: 19 FRENCH: 22 PORTUGUESE: 23 SPANISH: 23 BAHASA: 17 | C131: constant | D131: costclass | E131: constantcostclass | F131: Cost Classification | G131: Classification de coût | H131: Classificação de custos | I131: Clasificación de costos | J131: Klasifikasi biaya
B132: ENGLISH: 4 FRENCH: 4 PORTUGUESE: 5 SPANISH: 5 BAHASA: 5 | C132: constant | D132: costID | E132: constantcostID | F132: Cost | G132: Coût | H132: Custo | I132: Costo | J132: Biaya
B133: ="ENGLISH: " & LEN(F133) & " FRENCH: " & LEN(G133) & " PORTUGUESE: " & LEN(H133) & " SPANISH: " & LEN(I133) & " BAHASA: "& LEN(J133) -> ENGLISH: 3 FRENCH: 3 PORTUGUESE: 3 SPANISH: 3 BAHASA: 3 | C133: constant | D133: Dec | E133: =+C133&D133 -> constantDec | F133: Dec | G133: Déc | H133: Dez | I133: Dic | J133: Des | K133: Dec | N133: =IF(F133=K133, "OK") -> OK
B134: ENGLISH: 24 FRENCH: 24 PORTUGUESE: 23 SPANISH: 23 BAHASA: 24 | C134: constant | D134: DEC tabs | E134: constantDEC tabs | F134: DEC - Diethylcarbamizine | G134: DEC - Diéthylcarbamazine | H134: DEC - Dietilcarbamizina | I134: DEC - Dietilcarbamazina | J134: DEC - Diethylcarbamizine | K134: DEC - Diethylcarbamizine | N134: =IF(F134=K134, "OK") -> OK
B135: ENGLISH: 11 FRENCH: 11 PORTUGUESE: 9 SPANISH: 11 BAHASA: 9 | C135: constant | D135: descriptionID | E135: constantdescriptionID | F135: Description | G135: Description | H135: Descrição | I135: Descripción | J135: Deskripsi
B136: ENGLISH: 8 FRENCH: 8 PORTUGUESE: 8 SPANISH: 8 BAHASA: 8 | C136: constant | D136: districtID | E136: constantdistrictID | F136: =GI!$B$26 -> District | G136: =GI!$B$26 -> District | H136: =GI!$B$26 -> District | I136: =GI!$B$26 -> District | J136: =GI!$B$26 -> District
B137: ENGLISH: 9 FRENCH: 9 PORTUGUESE: 9 SPANISH: 9 BAHASA: 9 | C137: constant | D137: districts | E137: constantdistricts | F137: =GI!$B$27 -> Districts | G137: =GI!$B$27 -> Districts | H137: =GI!$B$27 -> Districts | I137: =GI!$B$27 -> Districts | J137: =GI!$B$27 -> Districts | K137: Districts | N137: =IF(F137=K137, "OK") -> OK
B138: ENGLISH: 5 FRENCH: 7 PORTUGUESE: 6 SPANISH: 7 BAHASA: 5 | C138: constant | D138: donor | E138: constantdonor | F138: Donor | G138: Donneur | H138: Doador | I138: Donante | J138: Donor | K138: Donor | N138: =IF(F138=K138, "OK") -> OK
B139: ENGLISH: 16 FRENCH: 28 PORTUGUESE: 26 SPANISH: 22 BAHASA: 14 | C139: constant | D139: drugacq | E139: constantdrugacq | F139: Drug Acquisition | G139: Acquisition des médicaments | H139: Aquisição de Medicamentos | I139: Compra de medicamentos | J139: Pengadaan obat
B140: ENGLISH: 9 FRENCH: 21 PORTUGUESE: 27 SPANISH: 24 BAHASA: 14 | C140: constant | D140: drugneedID | E140: constantdrugneedID | F140: Drug need | G140: Besoin en médicaments | H140: Necessidade de medicamentos | I140: Necesidad de medicamento | J140: Kebutuhan obat
B141: ENGLISH: 5 FRENCH: 11 PORTUGUESE: 12 SPANISH: 12 BAHASA: 11 | C141: constant | D141: drugsID | E141: constantdrugsID | F141: Drugs | G141: Médicaments | H141: Medicamentos | I141: Medicamentos | J141: Obat-obatan
B142: ENGLISH: 5 FRENCH: 4 PORTUGUESE: 6 SPANISH: 5 BAHASA: 5 | C142: constant | D142: FALSE | E142: constantFALSE | F142: FALSE | G142: FAUX | H142: FALSO | I142: FALSO | J142: SALAH | K142: FALSE | N142: =IF(F142=K142, "OK") -> OK
B143: ENGLISH: 8 FRENCH: 6 PORTUGUESE: 5 SPANISH: 6 BAHASA: 9 | C143: constant | D143: FCUR | E143: constantFCUR | F143: Currency | G143: Devise | H143: Moeda | I143: Divisa | J143: Mata uang | K143: Currency | N143: =IF(F143=K143, "OK") -> OK
B144: ENGLISH: 3 FRENCH: 3 PORTUGUESE: 3 SPANISH: 3 BAHASA: 3 | C144: constant | D144: Feb | E144: constantFeb | F144: Feb | G144: Fév | H144: Fev | I144: Feb | J144: Feb | K144: Feb | N144: =IF(F144=K144, "OK") -> OK
B145: ENGLISH: 2 FRENCH: 2 PORTUGUESE: 2 SPANISH: 2 BAHASA: 2 | C145: constant | D145: FY | E145: constantFY | F145: FY | G145: AF | H145: AF | I145: AF | J145: TF | K145: FY | N145: =IF(F145=K145, "OK") -> OK
B146: ENGLISH: 13 FRENCH: 13 PORTUGUESE: 13 SPANISH: 13 BAHASA: 13 | C146: constant | D146: Fytotal | E146: constantFytotal | F146: ="FY "&2010+GI!$B$5&" total" -> FY 2013 total | G146: ="AF "&2010+GI!$B$5&" total" -> AF 2013 total | H146: ="AF "&2010+GI!$B$5&" total" -> AF 2013 total | I146: ="AF "&2010+GI!$B$5&" total" -> AF 2013 total | J146: ="TF "&2010+GI!$B$5&" total" -> TF 2013 total | K146: ="FY "&2010+GI!$B$5&" total" -> FY 2013 total
B147: ENGLISH: 33 FRENCH: 38 PORTUGUESE: 30 SPANISH: 61 BAHASA: 54 | C147: constant | D147: gikclearfees | E147: constantgikclearfees | F147: Government in-kind clearance fees | G147: Frais de dédouanement d'état en nature | H147: Taxas de alfândega em espécie | I147: Cuotas de certificación de aduana en especies gubernamentales | J147: Bea masuk dalam bentuk barang dan jasa dari pemerintah
B148: ENGLISH: 10 FRENCH: 12 PORTUGUESE: 7 SPANISH: 7 BAHASA: 10 | C148: constant | D148: govID | E148: constantgovID | F148: Government | G148: Gouvernement | H148: Governo | I148: Público | J148: Pemerintah
B149: ENGLISH: 23 FRENCH: 31 PORTUGUESE: 30 SPANISH: 46 BAHASA: 39 | C149: constant | D149: ikclearfees | E149: constantikclearfees | F149: In-kind clearance fees | G149: Frais de dédouanement en nature | H149: Taxas de alfândega em espécie | I149: Cuotas de certificación de aduana en especies | J149: Bea masuk dalam bentuk barang dan jasa | N149: =IF(F149=K149, "OK") -> FALSE
B150: ENGLISH: 8 FRENCH: 16 PORTUGUESE: 15 SPANISH: 15 BAHASA: 10 | C150: constant | D150: IVM | E150: constantIVM | F150: IVM tabs | G150: IVM en comprimés | H150: IVM comprimidos | I150: Pestañas de IVM | J150: Tablet IVM | K150: IVM tabs | N150: OK
B151: ENGLISH: 16 FRENCH: 17 PORTUGUESE: 17 SPANISH: 17 BAHASA: 16 | C151: constant | D151: IVM tabs | E151: constantIVM tabs | F151: IVM - Ivermectin | G151: IVM - Ivermectine | H151: IVM - Ivermectina | I151: IVM - Ivermectina | J151: IVM - Ivermectin | K151: IVM - Ivermectin | N151: OK
B152: ENGLISH: 3 FRENCH: 3 PORTUGUESE: 3 SPANISH: 3 BAHASA: 3 | C152: constant | D152: Jan | E152: constantJan | F152: Jan | G152: Jan | H152: Jan | I152: Ene | J152: Jan | K152: Jan | N152: OK
B153: ENGLISH: 3 FRENCH: 3 PORTUGUESE: 3 SPANISH: 3 BAHASA: 3 | C153: constant | D153: Jul | E153: constantJul | F153: Jul | G153: Jul | H153: Jul | I153: Jul | J153: Jul | K153: Jul | N153: OK
B154: ENGLISH: 3 FRENCH: 3 PORTUGUESE: 3 SPANISH: 3 BAHASA: 3 | C154: constant | D154: Jun | E154: constantJun | F154: Jun | G154: Jun | H154: Jun | I154: Jun | J154: Jun | K154: Jun | N154: OK
B155: ENGLISH: 4 FRENCH: 4 PORTUGUESE: 5 SPANISH: 5 BAHASA: 5 | C155: constant | D155: lcost | E155: constantlcost | F155: cost | G155: coût | H155: custo | I155: costo | J155: biaya
B156: ENGLISH: 2 FRENCH: 2 PORTUGUESE: 2 SPANISH: 2 BAHASA: 2 | C156: constant | D156: LF | E156: constantLF | F156: LF | G156: FL | H156: FL | I156: FL | J156: LF | K156: LF | N156: =IF(F156=K156, "OK") -> OK
B157: ENGLISH: 16 FRENCH: 15 PORTUGUESE: 18 SPANISH: 18 BAHASA: 20 | C157: constant | D157: LFH | E157: constantLFH | F157: Hydrocele cases | G157: Cas d'hydrocèle | H157: Casos de hidrocelo | I157: Casos de hidrocele | J157: Kasus-kasus hidrokel | K157: Hydrocele cases | N157: =IF(F157=K157, "OK") -> OK
B158: ENGLISH: 17 FRENCH: 17 PORTUGUESE: 18 SPANISH: 18 BAHASA: 21 | C158: constant | D158: LFL | E158: constantLFL | F158: Lymphoedema cases | G158: Cas de lymphœdème | H158: Casos de linfedema | I158: Casos de linfedema | J158: Kasus-kasus limfodema | K158: Lymphoedema cases
B159: ENGLISH: 2 FRENCH: 2 PORTUGUESE: 2 SPANISH: 2 BAHASA: 2 | C159: constant | D159: LFMDANAME | E159: constantLFMDANAME | F159: LF | G159: FL | H159: FL | I159: FL | J159: LF | K159: LF | N159: =IF(F159=K159, "OK") -> OK
B160: ENGLISH: 5 FRENCH: 5 PORTUGUESE: 5 SPANISH: 5 BAHASA: 12 | C160: constant | D160: ltotal | E160: constantltotal | F160: total | G160: total | H160: total | I160: total | J160: Jumlah total | N160: FALSE
B161: ENGLISH: 3 FRENCH: 3 PORTUGUESE: 3 SPANISH: 3 BAHASA: 3 | C161: constant | D161: Mar | E161: constantMar | F161: Mar | G161: Mar | H161: Mar | I161: Mar | J161: Mar | K161: Mar | N161: OK
B162: ENGLISH: 3 FRENCH: 3 PORTUGUESE: 3 SPANISH: 3 BAHASA: 3 | C162: constant | D162: May | E162: constantMay | F162: May | G162: Mai | H162: Mai | I162: May | J162: Mei | K162: May | N162: OK
B163: ENGLISH: 37 FRENCH: 36 PORTUGUESE: 37 SPANISH: 33 BAHASA: 48 | C163: constant | D163: MEB tabs | E163: constantMEB tabs | F163: MBD - Mebendazole (alone or with PZQ) | G163: MBD - Mébendazole (seul ou avec PZQ) | H163: MBD - Mebendazol (sozinho ou com PZQ) | I163: MBZ - Mebendazol (solo o con PZQ) | J163: MBD - Mebendazole (saja atau bersama dengan PZQ) | K163: MBD - Mebendazole (alone or with PZQ) | N163: OK
B164: ENGLISH: 8 FRENCH: 16 PORTUGUESE: 15 SPANISH: 15 BAHASA: 10 | C164: constant | D164: MED | E164: constantMED | F164: MBD tabs | G164: MBD en comprimés | H164: MEB comprimidos | I164: Pestañas de MBD | J164: Tablet MBD | K164: MBD tabs | N164: OK
B165: ENGLISH: 6 FRENCH: 4 PORTUGUESE: 5 SPANISH: 5 BAHASA: 5 | C165: constant | D165: months | E165: constantmonths | F165: months | G165: mois | H165: meses | I165: meses | J165: bulan | K165: months | N165: OK
B166: ENGLISH: 8 FRENCH: 8 PORTUGUESE: 9 SPANISH: 6 BAHASA: 6 | C166: constant | D166: multiple | E166: constantmultiple | F166: multiple | G166: plusieur | H166: múltiplos | I166: varios | J166: banyak | K166: multiple
B167: ENGLISH: 23 FRENCH: 26 PORTUGUESE: 19 SPANISH: 20 BAHASA: 19 | C167: constant | D167: nongovsal | E167: constantnongovsal | F167: Non-government salaries | G167: Salaires autres que d'état | H167: Salários do privado | I167: Salarios no públicos | J167: Gaji non pemerintah | N167: =IF(F167=K167, "OK") -> FALSE
B168: ENGLISH: 3 FRENCH: 3 PORTUGUESE: 3 SPANISH: 3 BAHASA: 3 | C168: constant | D168: Nov | E168: constantNov | F168: Nov | G168: Nov | H168: Nov | I168: Nov | J168: Nov | K168: Nov | N168: OK
B169: ENGLISH: 14 FRENCH: 17 PORTUGUESE: 14 SPANISH: 17 BAHASA: 16 | C169: constant | D169: numdistricts | E169: constantnumdistricts | F169: ="# of " & LOWER(GI!$B$27) -> # of districts | G169: ="Nbre de " & LOWER(GI!$B$27) -> Nbre de districts | H169: ="# de " & LOWER(GI!$B$27) -> # de districts | I169: ="Nro. de " & LOWER(GI!$B$27) -> Nro. de districts | J169: ="Jumlah " & LOWER(GI!$B$27) -> Jumlah districts | N169: FALSE
B170: ENGLISH: 3 FRENCH: 3 PORTUGUESE: 3 SPANISH: 3 BAHASA: 3 | C170: constant | D170: Oct | E170: constantOct | F170: Oct | G170: Oct | H170: Out | I170: Oct | J170: Okt | K170: Oct | N170: OK
B171: ENGLISH: 5 FRENCH: 5 PORTUGUESE: 4 SPANISH: 4 BAHASA: 5 | C171: constant | D171: ONCHO | E171: constantONCHO | F171: ONCHO | G171: ONCHO | H171: ONCO | I171: ONCO | J171: ONCHO | K171: ONCHO | N171: OK
B172: ENGLISH: 28 FRENCH: 7 PORTUGUESE: 6 SPANISH: 6 BAHASA: 33 | C172: constant | D172: ONCHO1MDANAME | E172: constantONCHO1MDANAME | F172: ONCHO 1 (at least one round) | G172: ONCHO 1 | H172: ONCO 1 | I172: 1 ONCO | J172: 1 ONCHO (setidaknya satu putaran) | K172: ONCHO ROUND 1 (at least one round) | N172: FALSE
B173: ENGLISH: 20 FRENCH: 7 PORTUGUESE: 6 SPANISH: 6 BAHASA: 21 | C173: constant | D173: ONCHO2MDANAME | E173: constantONCHO2MDANAME | F173: ONCHO 2 (two rounds) | G173: ONCHO 2 | H173: ONCO 2 | I173: 2 ONCO | J173: 2 ONCHO (dua putaran) | K173: ONCHO ROUND 2 (two rounds)
B174: ENGLISH: 9 FRENCH: 9 PORTUGUESE: 12 SPANISH: 8 BAHASA: 8 | C174: constant | D174: personnelID | E174: constantpersonnelID | F174: Personnel | G174: Personnel | H174: Funcionários | I174: Personal | J174: Personil | N174: =IF(F174=K174, "OK") -> FALSE
B175: ENGLISH: 8 FRENCH: 16 PORTUGUESE: 15 SPANISH: 15 BAHASA: 10 | C175: constant | D175: PQZ | E175: constantPQZ | F175: PZQ tabs | G175: PZQ en comprimés | H175: PZQ comprimidos | I175: Pestañas de PZQ | J175: Tablet PZQ | K175: PZQ tabs | N175: =IF(F175=K175, "OK") -> OK
B176: ENGLISH: 10 FRENCH: 22 PORTUGUESE: 11 SPANISH: 10 BAHASA: 10 | C176: constant | D176: PROCESSING | E176: constantPROCESSING | F176: Processing | G176: En cours de traitement | H176: A processar | I176: Procesando | J176: Pengolahan | K176: Processing
B177: ENGLISH: 14 FRENCH: 16 PORTUGUESE: 11 SPANISH: 10 BAHASA: 14 | C177: constant | D177: programID | E177: constantprogramID | F177: Non-government | G177: Non-gouvernement | H177: Não-Público | I177: No público | J177: Non pemerintah | N177: =IF(F177=K177, "OK") -> FALSE
B178: ENGLISH: 18 FRENCH: 18 PORTUGUESE: 18 SPANISH: 18 BAHASA: 18 | C178: constant | D178: PZQ tabs | E178: constantPZQ tabs | F178: PZQ - Praziquantel | G178: PZQ - Praziquantel | H178: PZQ - Praziquantel | I178: PZQ - Prazicuantel | J178: PZQ - Praziquantel | K178: PZQ - Praziquantel | N178: =IF(F178=K178, "OK") -> OK
B179: ENGLISH: 6 FRENCH: 6 PORTUGUESE: 6 SPANISH: 6 BAHASA: 6 | C179: constant | D179: region | E179: constantregion | F179: =GI!$B$23 -> Region | G179: =GI!$B$23 -> Region | H179: =GI!$B$23 -> Region | I179: =GI!$B$23 -> Region | J179: =GI!$B$23 -> Region | K179: Region
B180: ENGLISH: 8 FRENCH: 8 PORTUGUESE: 8 SPANISH: 8 BAHASA: 4 | C180: constant | D180: salariesID | E180: constantsalariesID | F180: Salaries | G180: Salaires | H180: Salários | I180: Salarios | J180: Gaji | N180: =IF(F180=K180, "OK") -> FALSE
B181: ENGLISH: 3 FRENCH: 3 PORTUGUESE: 3 SPANISH: 3 BAHASA: 3 | C181: constant | D181: SCH | E181: constantSCH | F181: SCH | G181: SCH | H181: SCH | I181: ESQ | J181: SCH | K181: SCH | N181: OK
B182: ENGLISH: 19 FRENCH: 24 PORTUGUESE: 24 SPANISH: 31 BAHASA: 31 | C182: constant | D182: SCHHRA | E182: constantSCHHRA | F182: SCH high risk adult | G182: SCH adulte à haut risque | H182: SCH adulto de alto risco | I182: ESQ adulto de alto riesgo (HRA) | J182: SCH USIA DEWASA BERESIKO TINGGI | K182: SCH HIGH RISK ADULT | N182: =IF(F182=K182, "OK") -> OK
B183: ENGLISH: 19 FRENCH: 24 PORTUGUESE: 24 SPANISH: 31 BAHASA: 31 | C183: constant | D183: SCHHRAMDANAME | E183: constantSCHHRAMDANAME | F183: SCH HIGH RISK ADULT | G183: SCH adulte à haut risque | H183: SCH adulto de alto risco | I183: ESQ adulto de alto riesgo (HRA) | J183: SCH USIA DEWASA BERESIKO TINGGI | K183: SCH HIGH RISK ADULT | N183: =IF(F183=K183, "OK") -> OK
B184: ENGLISH: 15 FRENCH: 18 PORTUGUESE: 20 SPANISH: 25 BAHASA: 16 | C184: constant | D184: SCHSAC | E184: constantSCHSAC | F184: SCH school aged | G184: SCH d'âge scolaire | H184: SCH em idade escolar | I184: ESQ en edad escolar (SAC) | J184: SCH USIA SEKOLAH | K184: SCH SCHOOL-AGED | N184: FALSE
B185: ENGLISH: 15 FRENCH: 18 PORTUGUESE: 20 SPANISH: 25 BAHASA: 16 | C185: constant | D185: SCHSACMDANAME | E185: constantSCHSACMDANAME | F185: SCH SCHOOL AGED | G185: SCH d'âge scolaire | H185: SCH em idade escolar | I185: ESQ en edad escolar (SAC) | J185: SCH USIA SEKOLAH | K185: SCH SCHOOL-AGED | N185: FALSE
B186: ENGLISH: 3 FRENCH: 3 PORTUGUESE: 3 SPANISH: 3 BAHASA: 3 | C186: constant | D186: Sep | E186: constantSep | F186: Sep | G186: Sep | H186: Set | I186: Set | J186: Sep | K186: Sep | N186: OK
B187: ENGLISH: 5 FRENCH: 7 PORTUGUESE: 5 SPANISH: 4 BAHASA: 6 | C187: constant | D187: sheet | E187: constantsheet | F187: sheet | G187: Feuille | H187: Folha | I187: Hoja | J187: lembar | K187: sheet | N187: OK
B188: ENGLISH: 6 FRENCH: 4 PORTUGUESE: 8 SPANISH: 6 BAHASA: 6 | C188: constant | D188: status | E188: constantstatus | F188: Status | G188: État | H188: Estatuto | I188: Estado | J188: Status | K188: Status
B189: ENGLISH: 6 FRENCH: 4 PORTUGUESE: 8 SPANISH: 6 BAHASA: 6 | C189: constant | D189: statusID | E189: constantstatusID | F189: Status | G189: État | H189: Estatuto | I189: Estado | J189: Status | N189: =IF(F189=K189, "OK") -> FALSE
B190: ENGLISH: 3 FRENCH: 4 PORTUGUESE: 3 SPANISH: 3 BAHASA: 3 | C190: constant | D190: STH | E190: constantSTH | F190: STH | G190: GeoH | H190: HTS | I190: HTS | J190: STH | K190: STH | N190: =IF(F190=K190, "OK") -> OK
B191: ENGLISH: 18 FRENCH: 6 PORTUGUESE: 5 SPANISH: 5 BAHASA: 19 | C191: constant | D191: STH2MDANAME | E191: constantSTH2MDANAME | F191: STH 2 (two rounds) | G191: GeoH 2 | H191: HTS 2 | I191: HTS 2 | J191: 2 STH (dua putaran) | K191: STH ROUND 2 (two rounds) | N191: =IF(F191=K191, "OK") -> FALSE
B192: ENGLISH: 19 FRENCH: 24 PORTUGUESE: 24 SPANISH: 31 BAHASA: 31 | C192: constant | D192: STHHRA | E192: constantSTHHRA | F192: STH high risk adult | G192: SCH adulte à haut risque | H192: SCH adulto de alto risco | I192: ESQ adulto de alto riesgo (HRA) | J192: STH USIA DEWASA BERESIKO TINGGI | K192: STH HIGH RISK ADULT | N192: =IF(F192=K192, "OK") -> OK
B193: ENGLISH: 19 FRENCH: 24 PORTUGUESE: 24 SPANISH: 31 BAHASA: 31 | C193: constant | D193: STHHRAMDANAME | E193: constantSTHHRAMDANAME | F193: STH HIGH RISK ADULT | G193: SCH adulte à haut risque | H193: SCH adulto de alto risco | I193: ESQ adulto de alto riesgo (HRA) | J193: STH USIA DEWASA BERESIKO TINGGI | K193: STH HIGH RISK ADULT | N193: =IF(F193=K193, "OK") -> OK
B194: ENGLISH: 19 FRENCH: 22 PORTUGUESE: 24 SPANISH: 29 BAHASA: 20 | C194: constant | D194: STHPSA | E194: constantSTHPSA | F194: STH pre-school aged | G194: GeoH d'âge préscolaire | H194: HTS em idade pré-escolar | I194: HTS en edad preescolar (PSAC) | J194: STH USIA PRA SEKOLAH | K194: STH PRESCHOOL-AGED
B195: ENGLISH: 18 FRENCH: 22 PORTUGUESE: 24 SPANISH: 29 BAHASA: 20 | C195: constant | D195: STHPSAMDANAME | E195: constantSTHPSAMDANAME | F195: STH PRESCHOOL-AGED | G195: GeoH d'âge préscolaire | H195: HTS em idade pré-escolar | I195: HTS en edad preescolar (PSAC) | J195: STH USIA PRA SEKOLAH | K195: STH PRESCHOOL-AGED | N195: =IF(F195=K195, "OK") -> OK
B196: ENGLISH: 15 FRENCH: 19 PORTUGUESE: 20 SPANISH: 25 BAHASA: 16 | C196: constant | D196: STHSAC | E196: constantSTHSAC | F196: STH school aged | G196: GeoH d'âge scolaire | H196: HTS em idade escolar | I196: HTS en edad escolar (SAC) | J196: STH USIA SEKOLAH | K196: STH SCHOOL AGED | N196: =IF(F196=K196, "OK") -> OK
B197: ="ENGLISH: " & LEN(F197) & " FRENCH: " & LEN(G197) & " PORTUGUESE: " & LEN(H197) & " SPANISH: " & LEN(I197) & " BAHASA: "& LEN(J197) -> ENGLISH: 15 FRENCH: 19 PORTUGUESE: 20 SPANISH: 25 BAHASA: 16 | C197: constant | D197: STHSACMDANAME | E197: =+C197&D197 -> constantSTHSACMDANAME | F197: STH SCHOOL AGED | G197: GeoH d'âge scolaire | H197: HTS em idade escolar | I197: HTS en edad escolar (SAC) | J197: STH USIA SEKOLAH | K197: STH SCHOOL AGED
B198: ENGLISH: 12 FRENCH: 13 PORTUGUESE: 14 SPANISH: 12 BAHASA: 12 | C198: constant | D198: sub-activityID | E198: constantsub-activityID | F198: Sub-activity | G198: Sous-activité | H198: Sub-actividade | I198: Subactividad | J198: Sub kegiatan
B199: ENGLISH: 7 FRENCH: 6 PORTUGUESE: 6 SPANISH: 7 BAHASA: 9 | C199: constant | D199: summaryID | E199: constantsummaryID | F199: Summary | G199: Résumé | H199: Resumo | I199: Resumen | J199: Rangkuman | N199: =IF(F199=K199, "OK") -> FALSE
B200: ENGLISH: 5 FRENCH: 7 PORTUGUESE: 6 SPANISH: 5 BAHASA: 5 | C200: constant | D200: table | E200: constanttable | F200: table | G200: Tableau | H200: Tabela | I200: Tabla | J200: tabel | K200: table
... 1815 more rows

Sheet RESULTS (hidden)
B1: Five-year target population projections by districttttt
B20: Districttttt | C20: FY 2013 | D20: FY 2014 | E20: FY 2015 | F20: FY 2016 | G20: FY 2017
B21: Total
B24: | TIPAC generated: 12/13/2012 2:18:10 PM

Sheet Cover

Sheet TIPAC

Sheet DA (hidden)
A1: =COUNTA(B4:B12) -> 9 | B1: DRUGS | L1: =COUNTA(M4:M100) -> 6 | M1: active? | N1: donor | P1: =COUNTA(R4:R1974) -> 0 | Q1: active | R1: donor | S1: DRUG | T1: AMOUNT | U1: CUR | V1: PRICE
B2: 1 | C2: 2 | D2: 3 | E2: 4 | F2: 5 | G2: 6 | H2: 7 | I2: 8 | L2: 0 | M2: 1 | N2: 2 | Q2: 1 | R2: 2 | S2: 3 | T2: 4 | U2: 5 | V2: 6
B3: DRUG | C3: Manufacturer | D3: Dose | E3: Multiplier | F3: Stock | G3: Price | H3: Currency | I3: IMPORT TAX | J3: Default drug prices
A4: 0 | B4: DEC tabs | C4: multiple | D4: 100mg tabs | E4: 2.5 | F4: 0 | G4: 0 | H4: 1 | I4: 0 | J4: 0 | L4: 0 | M4: TRUE | N4: Government Drug Acquisition
A5: 1 | B5: IVM tabs | C5: Merck | D5: 3mg tabs | E5: 2.8 | F5: 0 | G5: 1.5 | H5: 1 | I5: 0 | J5: 1.5 | L5: 1 | M5: TRUE | N5: Children Without Worms
A6: 2 | B6: ALB tabs (with IVM or DEC) | C6: GSK/multiple | D6: 400mg tabs | E6: 1 | F6: 0 | G6: 0.045 | H6: 1 | I6: 0 | J6: 0.045 | L6: 2 | M6: TRUE | N6: International Trachoma Initiative
A7: 3 | B7: ALB tabs (alone or with PZQ) | C7: GSK/multiple | D7: 400mg tabs | E7: 1 | F7: 0 | G7: 0.045 | H7: 1 | I7: 0 | J7: 0.045 | L7: 3 | M7: TRUE | N7: WHO
A8: 4 | B8: MEB tabs | C8: J&J | D8: 500mg tabs | E8: 1 | F8: 0 | G8: 0.0495 | H8: 1 | I8: 0 | J8: 0.0495 | L8: 4 | M8: TRUE | N8: GlaxoSmithKline
A9: 5 | B9: PZQ tabs | C9: multiple | D9: 600mg tabs | E9: 2.5 | F9: 0 | G9: 0 | H9: 1 | I9: 0 | J9: 0 | L9: 5 | M9: TRUE | N9: Mectizan Donation Program
A10: 6 | B10: TEO tubes | C10: multiple | D10: 1 tube | E10: 2 | F10: 0 | G10: 0 | H10: 1 | I10: 0 | J10: 0
A11: 7 | B11: ZMAX POS bottles | C11: Pfizer | D11: 30ml bottle | E11: 0.333333333333333 | F11: 0 | G11: 48.5 | H11: 1 | I11: 0 | J11: 48.5
A12: 8 | B12: ZMAX tabs | C12: Pfizer | D12: 250mg tabs | E12: 3 | F12: 0 | G12: 11.45 | H12: 1 | I12: 0 | J12: 11.45
F14: DON’T BLANK OUT STOCCK - leave with zeros
A15: menu | F15: also I tax gets 0s
A16: info | B16: 0
A17: acquisition | B17: 0
A19: NOTES - 501
A20: NTOES - 502
A22: STH INTEGRATION | B22: TRUE
A23: COST GAP | B23: 1
A25: PZQ SAC MULT | B25: 2.5
A26: PZQ ADULT MULT | B26: 3

Sheet GI (hidden)
A1: 111 | D1: STATUSES | G1: 20 | H1: =COUNTIF(H7:H21, TRUE) -> 0 | L1: ENGLISH | M1: FRENCH | N1: PORTUGUESE | O1: SPANISH | P1: Bahasa | U1: 1 | V1: 2 | W1: 3 | X1: 4 | Y1: 5 | Z1: 6 | AA1: 7 | AB1: 8 | AC1: 9 | AD1: 10 | AE1: 11 | AF1: 12
A2: country | D2: 101 - GI | E2: 0 | G2: LF | H2: FALSE | I2: 0 | K2: 0 | L2: Jan | M2: Jan | N2: Jan | O2: Ene | P2: Jan | U2: =OFFSET($L$2, GI!$B$3 +U1 - 1, GI!$B$35) & " " & 10 +GI!$B$4 + OFFSET($L$2, GI!$B$3 +U1 - 1, -1) -> Jan 13 | V2: =OFFSET($L$2, GI!$B$3 +V1 - 1, GI!$B$35) & " " & 10 +GI!$B$4 + OFFSET($L$2, GI!$B$3 +V1 - 1, -1) -> Feb 13 | W2: =OFFSET($L$2, GI!$B$3 +W1 - 1, GI!$B$35) & " " & 10 +GI!$B$4 + OFFSET($L$2, GI!$B$3 +W1 - 1, -1) -> Mar 13 | X2: =OFFSET($L$2, GI!$B$3 +X1 - 1, GI!$B$35) & " " & 10 +GI!$B$4 + OFFSET($L$2, GI!$B$3 +X1 - 1, -1) -> Apr 13 | Y2: =OFFSET($L$2, GI!$B$3 +Y1 - 1, GI!$B$35) & " " & 10 +GI!$B$4 + OFFSET($L$2, GI!$B$3 +Y1 - 1, -1) -> May 13 | Z2: =OFFSET($L$2, GI!$B$3 +Z1 - 1, GI!$B$35) & " " & 10 +GI!$B$4 + OFFSET($L$2, GI!$B$3 +Z1 - 1, -1) -> Jun 13 | AA2: =OFFSET($L$2, GI!$B$3 +AA1 - 1, GI!$B$35) & " " & 10 +GI!$B$4 + OFFSET($L$2, GI!$B$3 +AA1 - 1, -1) -> Jul 13 | AB2: =OFFSET($L$2, GI!$B$3 +AB1 - 1, GI!$B$35) & " " & 10 +GI!$B$4 + OFFSET($L$2, GI!$B$3 +AB1 - 1, -1) -> Aug 13 | AC2: =OFFSET($L$2, GI!$B$3 +AC1 - 1, GI!$B$35) & " " & 10 +GI!$B$4 + OFFSET($L$2, GI!$B$3 +AC1 - 1, -1) -> Sep 13 | AD2: =OFFSET($L$2, GI!$B$3 +AD1 - 1, GI!$B$35) & " " & 10 +GI!$B$4 + OFFSET($L$2, GI!$B$3 +AD1 - 1, -1) -> Oct 13 | AE2: =OFFSET($L$2, GI!$B$3 +AE1 - 1, GI!$B$35) & " " & 10 +GI!$B$4 + OFFSET($L$2, GI!$B$3 +AE1 - 1, -1) -> Nov 13 | AF2: =OFFSET($L$2, GI!$B$3 +AF1 - 1, GI!$B$35) & " " & 10 +GI!$B$4 + OFFSET($L$2, GI!$B$3 +AF1 - 1, -1) -> Dec 13
A3: fiscal month from | B3: 0 | D3: 101-CIR | E3: 0 | G3: Oncho | H3: FALSE | I3: 0 | K3: 0 | L3: Feb | M3: Fév | N3: Fev | O3: Feb | P3: Feb
A4: fiscal year from | B4: 3 | D4: 101-ALP | E4: 0 | G4: SCH | H4: FALSE | I4: 0 | K4: 0 | L4: Mar | M4: Mar | N4: Mar | O4: Mar | P4: Mar
A5: FISCAL YEAR | B5: 3 | D5: 101- DPD | E5: 0 | G5: STH | H5: FALSE | I5: 0 | K5: 0 | L5: Apr | M5: Avr | N5: Abr | O5: Abr | P5: Apr
D6: 101- CC | E6: 0 | G6: Trachoma | H6: FALSE | I6: 0 | K6: 0 | L6: May | M6: Mai | N6: Mai | O6: May | P6: Mei
A7: km | B7: TRUE | D7: 101 - I | E7: 0 | G7: NTD6 Name | H7: FALSE | I7: 0 | K7: 0 | L7: Jun | M7: Jun | N7: Jun | O7: Jun | P7: Jun
A8: mile | B8: FALSE | D8: CONSTANTS | G8: NTD7 Name | H8: FALSE | I8: 0 | K8: 0 | L8: Jul | M8: Jul | N8: Jul | O8: Jul | P8: Jul
A9: days (220) | B9: 220 | D9: number of districts | E9: =COUNTA(W1C1!C14:C915) -> 0 | G9: NTD8 Name | H9: FALSE | I9: 0 | K9: 0 | L9: Aug | M9: Aou | N9: Ago | O9: Ago | P9: Agu
A10: 121 | G10: NTD9 Name | H10: FALSE | I10: 0 | K10: 0 | L10: Sep | M10: Sep | N10: Set | O10: Set | P10: Sep
A11: LCU abbreviation | G11: NTD10 Name | H11: FALSE | I11: 0 | K11: 0 | L11: Oct | M11: Oct | N11: Out | O11: Oct | P11: Okt
A12: LCU inflation rate | D12: LF CHOICE - dec = true, ivm = false | E12: FALSE | G12: NTD11 Name | H12: FALSE | I12: 0 | K12: 0 | L12: Nov | M12: Nov | N12: Nov | O12: Nov | P12: Nov
A13: XUSD | G13: NTD12 Name | H13: FALSE | I13: 0 | K13: 0 | L13: Dec | M13: Déc | N13: Dez | O13: Dic | P13: Des
A14: XUSD date | D14: TRA 6 PERCENT | G14: NTD13 Name | H14: FALSE | I14: 0 | K14: 1 | L14: Jan | M14: Jan | N14: Jan | O14: Ene | P14: Jan
A15: US IR | D15: TRA 659 PERCENT | G15: NTD14 Name | H15: FALSE | I15: 0 | K15: 1 | L15: Feb | M15: Fév | N15: Fev | O15: Feb | P15: Feb
A16: C3 yes? (false) | B16: FALSE | D16: TRA 5 PERCENT | G16: NTD15 Name | H16: FALSE | I16: 0 | K16: 1 | L16: Mar | M16: Mar | N16: Mar | O16: Mar | P16: Mar
A17: C3 abbreviation | B17: EURO | G17: NTD16 Name | H17: FALSE | I17: 0 | K17: 1 | L17: Apr | M17: Avr | N17: Abr | O17: Abr | P17: Apr
A18: XC3 | D18: 132 | G18: NTD17 Name | H18: FALSE | I18: 0 | K18: 1 | L18: May | M18: Mai | N18: Mai | O18: May | P18: Mei
A19: XC3 date | D19: AGE RANGE | E19: NAME | F19: AGE/PERCEMT | G19: NTD18 Name | H19: FALSE | K19: 1 | L19: Jun | M19: Jun | N19: Jun | O19: Jun | P19: Jun
A20: C3IR | D20: < 6 months | E20: P_L_6M | G20: NTD19 Name | H20: FALSE | K20: 1 | L20: Jul | M20: Jul | N20: Jul | O20: Jul | P20: Jul
A21: CUR SELECT FOR UF | B21: 0 | D21: 6-11 months | E21: P_6_11M | G21: NTD20 Name | H21: FALSE | K21: 1 | L21: Aug | M21: Aou | N21: Ago | O21: Ago | P21: Agu
A22: 131 | D22: 12-23months | E22: P_12_32M | K22: 1 | L22: Sep | M22: Sep | N22: Set | O22: Set | P22: Sep
A23: Region | B23: Region | D23: 24-59 months | E23: P_24_59M | G23: 121 NOTES | K23: 1 | L23: Oct | M23: Oct | N23: Out | O23: Oct | P23: Okt
A24: Lo | B24: Regions | D24: > 5 years | E24: P_G_5Y | K24: 1 | L24: Nov | M24: Nov | N24: Nov | O24: Nov | P24: Nov
A25: Lother | D25: PSA POP LOWER BOUND | E25: LB_PSA | H25: INTERVENTION 1 NOTES | I25: INTERVENTION 2 NOTES | J25: NOTES | K25: 1 | L25: Dec | M25: Déc | N25: Dez | O25: Dic | P25: Des
A26: District | B26: District | D26: PSA POP UPPER BOUND | E26: UB_PSA | G26: NTD6 Name | H26: Intervention 1 | I26: Intervention 2
A27: So | B27: Districts | D27: PSA POP PERCENT | E27: P_PSA | G27: NTD7 Name | H27: Intervention 1 | I27: Intervention 2
A28: Sother | D28: SAC UPPER BOUND | E28: UB_SAC | G28: NTD8 Name | H28: Intervention 1 | I28: Intervention 2
A29: Village | B29: Village | D29: SAC PERCENT | E29: P_SAC | G29: NTD9 Name | H29: Intervention 1 | I29: Intervention 2
A30: Tho | B30: Villages | D30: ADULT UPPER BOUND | E30: UB_ADULT | G30: NTD10 Name | H30: Intervention 1 | I30: Intervention 2
A31: Thother | D31: ADULT PERCENT | E31: P_ADULT | G31: NTD11 Name | H31: Intervention 1 | I31: Intervention 2
D32: pregNANT PER | G32: NTD12 Name | H32: Intervention 1 | I32: Intervention 2
A33: ufcaption | B33: =IF(B2<>"", B2&" FY " & 2010+B5, "") ->  | D33: growth rate | E33: GROWTH | G33: NTD13 Name | H33: Intervention 1 | I33: Intervention 2
D34: growth percet (/100)+1 | F34: =1+F33/100 -> 1 | G34: NTD14 Name | H34: Intervention 1 | I34: Intervention 2
A35: LANGUAGE | B35: 0 | G35: NTD15 Name | H35: Intervention 1 | I35: Intervention 2
A36: Notes | G36: NTD16 Name | H36: Intervention 1 | I36: Intervention 2
G37: NTD17 Name | H37: Intervention 1 | I37: Intervention 2
G38: NTD18 Name | H38: Intervention 1 | I38: Intervention 2
G39: NTD19 Name | H39: Intervention 1 | I39: Intervention 2
G40: NTD20 Name | H40: Intervention 1 | I40: Intervention 2
A41: VERSION | B41: 3 | D41: STATUSES P001
D42: Base Data | E42: 0
D43: Activity costs | E43: 0
D44: Drug Acquisition | E44: 0
D45: Funders | E45: 0
A46: more additional | D46: Doc form | E46: 0
A48: MORE ADDITIONAL":
A49: 204nd | B49: T10
A50: 001 | B50: T02
A51: POUT13

Sheet LIs (hidden)
A1: =COUNTA(B4:B4988) -> 0 | B1: category | C1: activity | D1: subactivity | E1: costclassificiation | F1: description | G1: add1 | H1: add2 | I1: 1 | J1: 2 | K1: 3 | L1: 4 | M1: 5 | N1: 6 | O1: 7 | P1: 8 | Q1: 9 | R1: 10 | S1: 11 | T1: 12 | U1: 13 | V1: 14 | W1: 15 | X1: 16 | Y1: 17 | Z1: 18 | AG1: ACTIVE | AH1: numDD | AI1: formula | AJ1: status | AK1: comment
B2: 1 | C2: 2 | D2: 3 | E2: 4 | F2: 5 | G2: 6 | H2: 7 | I2: 8 | J2: 9 | K2: 10 | L2: 11 | M2: 12 | N2: 13 | O2: 14 | P2: 15 | Q2: 16 | R2: 17 | S2: 18 | T2: 19 | U2: 20 | V2: 21 | W2: 22 | X2: 23 | Y2: 24 | Z2: 25 | AA2: 26 | AG2: 32 | AH2: 33 | AI2: 34 | AJ2: 35 | AK2: 36

Sheet MDADISTRICTS (hidden)
A4: district count - used in AO8 | B4: =COUNTIF(B14:B950, TRUE) -> 0 | C4: =COUNTIF(C14:C950, TRUE) -> 0 | D4: 0 | E4: 0 | F4: 0 | G4: 0 | H4: 0 | I4: 0 | J4: 0 | K4: 0 | L4: 0 | M4: 0 | N4: 0 | O4: 0 | P4: 0 | Q4: 0 | R4: 0 | S4: 0 | T4: 0 | U4: 0 | V4: 0 | W4: 0 | X4: 0 | Y4: 0 | AD4: =COUNTIF(AD14:AD950, TRUE) -> 0 | AE4: =COUNTIF(AE14:AE950, TRUE) -> 0 | AF4: 0 | AG4: 0 | AH4: 0 | AI4: 0 | AJ4: 0 | AK4: 0 | AL4: 0 | AM4: 0 | AN4: 0 | AO4: 0 | AP4: 0 | AQ4: 0 | AR4: 0 | AS4: 0 | AT4: 0 | AU4: 0 | AV4: 0 | AW4: 0 | AX4: 0 | AY4: 0 | AZ4: 0 | BA4: 0 | BB4: 0 | BC4: 0 | BD4: 0 | BE4: 0 | BF4: 0 | BG4: 0 | BH4: 0 | BI4: 0 | BJ4: 0 | BK4: 0 | BL4: 0 | BM4: 0 | BN4: 0 | BO4: 0 | BP4: 0 | BQ4: 0 | BR4: 0 | BS4: 0 | BT4: 0 | BU4: 0 | BV4: 0 | BW4: 0 | BX4: 0 | BY4: 0 | BZ4: 0 | CA4: 0 | CB4: 0 | CC4: 0 | CD4: 0 | CE4: 0 | CF4: 0 | CG4: 0 | CH4: 0 | CI4: 0 | CJ4: 0 | CK4: 0 | CL4: 0 | CM4: 0 | CN4: 0 | CO4: 0 | CP4: 0 | CQ4: =COUNTIF(CQ14:CQ950, TRUE) -> 0 | CR4: 0 | CS4: 0 | CT4: 0 | CU4: 0 | CV4: 0 | CW4: 0 | CX4: 0 | CY4: 0 | CZ4: 0 | DA4: 0 | DB4: 0 | DC4: 0 | DD4: 0 | DE4: 0 | DF4: 0 | DG4: 0 | DH4: 0 | DI4: 0 | DJ4: 0 | DK4: 0 | DL4: 0 | DM4: 0 | DN4: 0 | DO4: 0 | DP4: 0 | DQ4: 0 | DR4: 0 | DS4: 0 | DT4: 0 | DU4: 0 | DV4: 0 | DW4: 0 | DX4: 0 | DY4: 0 | DZ4: 0 | EA4: 0 | EB4: 0 | EC4: 0 | ED4: 0 | EE4: 0 | EF4: 0 | EG4: 0 | EH4: 0 | EI4: 0 | EJ4: 0 | EK4: 0 | EL4: 0 | EM4: 0 | EN4: 0 | EO4: 0 | EP4: 0 | EQ4: 0 | ER4: 0 | ES4: 0 | ET4: 0 | EU4: 0 | EV4: 0 | EW4: 0 | EX4: 0 | EY4: 0 | EZ4: 0 | FA4: 0 | FB4: 0 | FC4: =COUNTIF(FC14:FC950, TRUE) -> 0 | FD4: 0 | FE4: 0 | FF4: 0 | FG4: 0 | FH4: 0 | FI4: 0 | FJ4: 0 | FK4: 0 | FL4: 0 | FM4: 0 | FN4: 0 | FO4: 0 | FP4: 0 | FQ4: 0 | FR4: 0 | FS4: 0 | FT4: 0 | FU4: 0 | FV4: 0 | FW4: 0 | FX4: 0 | FY4: 0 | FZ4: 0 | GA4: 0 | GB4: 0 | GC4: 0 | GD4: 0 | GE4: 0 | GF4: 0 | GG4: 0 | GH4: 0 | GI4: 0 | GJ4: 0 | GK4: 0 | GL4: 0 | GM4: 0 | GN4: 0 | GO4: 0 | GP4: 0 | GQ4: 0 | GR4: 0 | GS4: 0 | GT4: 0 | GU4: 0 | GV4: 0 | GW4: 0 | GX4: 0 | GY4: 0 | GZ4: 0 | HA4: 0 | HB4: 0 | HC4: 0 | HD4: 0 | HE4: 0 | HF4: 0 | HG4: 0 | HH4: 0 | HI4: 0 | HJ4: 0 | HK4: 0 | HL4: 0 | HM4: 0 | HN4: 0 | HO4: =COUNTIF(HO14:HO950, TRUE) -> 0 | HP4: 0 | HQ4: 0 | HR4: 0 | HS4: 0 | HT4: 0 | HU4: 0 | HV4: 0 | HW4: 0 | HX4: 0 | HY4: 0 | HZ4: 0 | IA4: 0 | IB4: 0 | IC4: 0 | ID4: 0 | IE4: 0 | IF4: 0 | IG4: 0 | IH4: 0 | II4: 0 | IJ4: 0 | IK4: 0 | IL4: 0 | IM4: 0 | IN4: 0 | IO4: 0 | IP4: 0 | IQ4: 0 | IR4: 0 | IS4: 0 | IT4: 0 | IU4: 0 | IV4: 0 | IW4: 0 | IX4: 0 | IY4: 0 | IZ4: 0 | JA4: 0 | JB4: 0 | JC4: 0 | JD4: 0 | JE4: 0 | JF4: 0 | JG4: 0 | JH4: 0 | JI4: 0 | JJ4: 0 | JK4: 0 | JL4: 0 | JM4: 0 | JN4: 0 | JO4: 0 | JP4: 0 | JQ4: 0 | JR4: 0 | JS4: 0 | JT4: 0 | JU4: 0 | JV4: 0 | JW4: 0 | JX4: 0 | JY4: 0 | JZ4: 0 | KA4: =COUNTIF(KA14:KA950, TRUE) -> 0 | KB4: 0 | KC4: 0 | KD4: 0 | KE4: 0 | KF4: 0 | KG4: 0 | KH4: 0 | KI4: 0 | KJ4: 0 | KK4: 0 | KL4: 0 | KM4: 0 | KN4: 0 | KO4: 0 | KP4: 0 | KQ4: 0 | KR4: 0 | KS4: 0 | KT4: 0 | KU4: 0 | KV4: 0 | KW4: 0 | KX4: 0 | KY4: 0 | KZ4: 0 | LA4: 0 | LB4: 0 | LC4: 0 | LD4: 0 | LE4: 0 | LF4: 0 | LG4: 0 | LH4: 0 | LI4: 0 | LJ4: 0 | LK4: 0 | LL4: 0 | LM4: 0 | LN4: 0 | LO4: 0 | LP4: 0 | LQ4: 0 | LR4: 0 | LS4: 0 | LT4: 0 | LU4: 0 | LV4: 0 | LW4: 0 | LX4: 0 | LY4: 0 | LZ4: 0 | MA4: 0 | MB4: 0 | MC4: 0 | MD4: 0 | ME4: 0 | MF4: 0 | MG4: 0 | MH4: 0 | MI4: 0 | MJ4: 0 | MK4: 0 | ML4: 0 | MM4: =COUNTIF(MM14:MM950, TRUE) -> 0 | MN4: 0 | MO4: 0 | MP4: 0 | MQ4: 0 | MR4: 0 | MS4: 0 | MT4: 0 | MU4: 0 | MV4: 0 | MW4: 0 | MX4: 0 | MY4: 0 | MZ4: 0 | NA4: 0 | NB4: 0 | NC4: 0 | ND4: 0 | NE4: 0 | NF4: 0 | NG4: 0 | NH4: 0 | NI4: 0 | NJ4: 0 | NK4: 0 | NL4: 0 | NM4: 0 | NN4: 0 | NO4: 0 | NP4: 0 | NQ4: 0 | NR4: 0 | NS4: 0 | NT4: 0 | NU4: 0 | NV4: 0 | NW4: 0 | NX4: 0 | NY4: 0 | NZ4: 0 | OA4: 0 | OB4: 0 | OC4: 0 | OD4: 0 | OE4: 0 | OF4: 0 | OG4: 0 | OH4: 0 | OI4: 0 | OJ4: 0 | OK4: 0 | OL4: 0 | OM4: 0 | ON4: 0 | OO4: 0 | OP4: 0 | OQ4: 0 | OR4: 0 | OS4: 0 | OT4: 0 | OU4: 0 | OV4: 0 | OW4: 0 | OX4: 0 | OY4: =COUNTIF(OY14:OY950, TRUE) -> 0 | OZ4: 0 | PA4: 0 | PB4: 0 | PC4: 0 | PD4: 0 | PE4: 0 | PF4: 0 | PG4: 0 | PH4: 0 | PI4: 0 | PJ4: 0 | PK4: 0 | PL4: 0 | PM4: 0 | PN4: 0 | PO4: 0 | PP4: 0 | PQ4: 0 | PR4: 0 | PS4: 0 | PT4: 0 | PU4: 0 | PV4: 0 | PW4: 0 | PX4: 0 | PY4: 0 | PZ4: 0 | QA4: 0 | QB4: 0 | QC4: 0 | QD4: 0 | QE4: 0 | QF4: 0 | QG4: 0 | QH4: 0 | QI4: 0 | QJ4: 0 | QK4: 0 | QL4: 0 | QM4: 0 | QN4: 0 | QO4: 0 | QP4: 0 | QQ4: 0 | QR4: 0 | QS4: 0 | QT4: 0 | QU4: 0 | QV4: 0 | QW4: 0 | QX4: 0 | QY4: 0 | QZ4: 0 | RA4: 0 | RB4: 0 | RC4: 0 | RD4: 0 | RE4: 0 | RF4: 0 | RG4: 0 | RH4: 0 | RI4: 0 | RJ4: 0 | RK4: =COUNTIF(RK14:RK950, TRUE) -> 0 | RL4: 0 | RM4: 0 | RN4: 0 | RO4: 0 | RP4: 0 | RQ4: 0 | RR4: 0 | RS4: 0 | RT4: 0 | RU4: 0 | RV4: 0 | RW4: 0
A5: the spacing here is called "MDAmultiplier" but also appears as just cell references in w1c1
AQ11: LF total MDA target pop | AR11: LF total MDA target pop | AS11: LF total MDA target pop | AU11: ONCHO round 1 MDA target pop | AV11: ONCHO round 2 MDA target pop | AW11: ONCHO total | AY11: SCH school-aged MDA target pop | AZ11: SCH high-risk adult MDA target pop | BA11: SCH total MDA target pop | BC11: STH1 preschool-aged MDA target pop | BD11: STH1 school-aged MDA target pop | BE11: STH1 high-risk adult MDA target pop | BF11: STH 1 total MDA target pop | BG11: STH2 total MDA target pop | BH11: STH total | BJ11: Trachoma <6 mos. MDA target pop | BK11: Trachoma 6-59 mos. MDA target pop | BL11: Trachoma >5 years MDA target pop | BM11: trschoma 2 | BN11: Total Trachoma MDA target pop | BU11: NTD6 total MDA target pop | BV11: NTD6 total MDA target pop | BX11: NTD7 total MDA target pop | BY11: NTD7 total MDA target pop | CA11: NTD8 total MDA target pop | CB11: NTD8 total MDA target pop | CD11: NTD9 total MDA target pop | CE11: NTD9 total MDA target pop | CG11: NTD10 total MDA target pop | CH11: NTD10 total MDA target pop | CJ11: NTD11 total MDA target pop | CK11: NTD11 total MDA target pop | CM11: NTD12 total MDA target pop | CN11: NTD12 total MDA target pop | CP11: NTD13 total MDA target pop | CQ11: NTD13 total MDA target pop | CS11: NTD14 total MDA target pop | CT11: NTD14 total MDA target pop | CV11: NTD15 total MDA target pop | CW11: NTD15 total MDA target pop | CY11: NTD16 total MDA target pop | CZ11: NTD16 total MDA target pop | DB11: NTD17 total MDA target pop | DC11: NTD17 total MDA target pop | DE11: NTD18 total MDA target pop | DF11: NTD18 total MDA target pop | DH11: NTD19 total MDA target pop | DI11: NTD19 total MDA target pop | DK11: NTD20 total MDA target pop | DL11: NTD20 total MDA target pop | DN11: NTD21 total MDA target pop | DO11: NTD21 total MDA target pop | DQ11: Population | DR11: < 6 | DS11: 6-11 | DT11: 12-23 | DU11: 24-59 | DV11: 6-59 | DW11: > 2 | DX11: > 5 | EB11: Pre-school age | EC11: School aged | ED11: Adult | EF11: LF total MDA target pop | EG11: LF total MDA target pop | EH11: LF total MDA target pop | EJ11: ONCHO round 1 MDA target pop | EK11: ONCHO round 2 MDA target pop | EL11: ONCHO total | EN11: SCH school-aged MDA target pop | EO11: SCH high-risk adult MDA target pop | EP11: SCH total MDA target pop | ER11: STH1 preschool-aged MDA target pop | ES11: STH1 school-aged MDA target pop | ET11: STH1 high-risk adult MDA target pop | EU11: STH 1 total MDA target pop | EV11: STH2 total MDA target pop | EW11: STH total | EY11: Trachoma <6 mos. MDA target pop | EZ11: Trachoma 6-59 mos. MDA target pop | FA11: Trachoma >5 years MDA target pop | FB11: Trachoma >5 years MDA target pop | FC11: Total Trachoma MDA target pop | FJ11: NTD6 total MDA target pop | FK11: NTD6 total MDA target pop | FM11: NTD7 total MDA target pop | FN11: NTD7 total MDA target pop | FP11: NTD8 total MDA target pop | FQ11: NTD8 total MDA target pop | FS11: NTD9 total MDA target pop | FT11: NTD9 total MDA target pop | FV11: NTD10 total MDA target pop | FW11: NTD10 total MDA target pop | FY11: NTD11 total MDA target pop | FZ11: NTD11 total MDA target pop | GB11: NTD12 total MDA target pop | GC11: NTD12 total MDA target pop | GE11: NTD13 total MDA target pop | GF11: NTD13 total MDA target pop | GH11: NTD14 total MDA target pop | GI11: NTD14 total MDA target pop | GK11: NTD15 total MDA target pop | GL11: NTD15 total MDA target pop | GN11: NTD16 total MDA target pop | GO11: NTD16 total MDA target pop | GQ11: NTD17 total MDA target pop | GR11: NTD17 total MDA target pop | GT11: NTD18 total MDA target pop | GU11: NTD18 total MDA target pop | GW11: NTD19 total MDA target pop | GX11: NTD19 total MDA target pop | GZ11: NTD20 total MDA target pop | HA11: NTD20 total MDA target pop | HC11: NTD21 total MDA target pop | HD11: NTD21 total MDA target pop | HF11: Population | HG11: < 6 | HH11: 6-11 | HI11: 12-23 | HJ11: 24-59 | HK11: 6-59 | HL11: > 2 | HM11: > 5 | HQ11: Pre-school age | HR11: School aged | HS11: Adult | HU11: LF total MDA target pop | HV11: LF total MDA target pop | HW11: LF total MDA target pop | HY11: ONCHO round 1 MDA target pop | HZ11: ONCHO round 2 MDA target pop | IA11: ONCHO total | IC11: SCH school-aged MDA target pop | ID11: SCH high-risk adult MDA target pop | IE11: SCH total MDA target pop | IG11: STH1 preschool-aged MDA target pop | IH11: STH1 school-aged MDA target pop | II11: STH1 high-risk adult MDA target pop | IJ11: STH 1 total MDA target pop | IK11: STH2 total MDA target pop | IL11: STH total | IN11: Trachoma <6 mos. MDA target pop | IO11: Trachoma 6-59 mos. MDA target pop | IP11: Trachoma >5 years MDA target pop | IQ11: Trachoma >5 years MDA target pop | IR11: Total Trachoma MDA target pop | IY11: NTD6 total MDA target pop | IZ11: NTD6 total MDA target pop | JB11: NTD7 total MDA target pop | JC11: NTD7 total MDA target pop | JE11: NTD8 total MDA target pop | JF11: NTD8 total MDA target pop | JH11: NTD9 total MDA target pop | JI11: NTD9 total MDA target pop | JK11: NTD10 total MDA target pop | JL11: NTD10 total MDA target pop | JN11: NTD11 total MDA target pop | JO11: NTD11 total MDA target pop | JQ11: NTD12 total MDA target pop | JR11: NTD12 total MDA target pop | JT11: NTD13 total MDA target pop | JU11: NTD13 total MDA target pop | JW11: NTD14 total MDA target pop | JX11: NTD14 total MDA target pop | JZ11: NTD15 total MDA target pop | KA11: NTD15 total MDA target pop | KC11: NTD16 total MDA target pop | KD11: NTD16 total MDA target pop | KF11: NTD17 total MDA target pop | KG11: NTD17 total MDA target pop | KI11: NTD18 total MDA target pop | KJ11: NTD18 total MDA target pop | KL11: NTD19 total MDA target pop | KM11: NTD19 total MDA target pop | KO11: NTD20 total MDA target pop | KP11: NTD20 total MDA target pop | KR11: NTD21 total MDA target pop | KS11: NTD21 total MDA target pop | KU11: Population | KV11: < 6 | KW11: 6-11 | KX11: 12-23 | KY11: 24-59 | KZ11: 6-59 | LA11: > 2 | LB11: > 5 | LF11: Pre-school age | LG11: School aged | LH11: Adult | LJ11: LF total MDA target pop | LK11: LF total MDA target pop | LL11: LF total MDA target pop | LN11: ONCHO round 1 MDA target pop | LO11: ONCHO round 2 MDA target pop | LP11: ONCHO total | LR11: SCH school-aged MDA target pop | LS11: SCH high-risk adult MDA target pop | LT11: SCH total MDA target pop | LV11: STH1 preschool-aged MDA target pop | LW11: STH1 school-aged MDA target pop | LX11: STH1 high-risk adult MDA target pop | LY11: STH 1 total MDA target pop | LZ11: STH2 total MDA target pop | MA11: STH total | MC11: Trachoma <6 mos. MDA target pop | MD11: Trachoma 6-59 mos. MDA target pop | ME11: Trachoma >5 years MDA target pop | MF11: Trachoma >5 years MDA target pop | MG11: Total Trachoma MDA target pop | MN11: NTD6 total MDA target pop | MO11: NTD6 total MDA target pop | MQ11: NTD7 total MDA target pop | MR11: NTD7 total MDA target pop | MT11: NTD8 total MDA target pop | MU11: NTD8 total MDA target pop | MW11: NTD9 total MDA target pop | MX11: NTD9 total MDA target pop | MZ11: NTD10 total MDA target pop | NA11: NTD10 total MDA target pop | NC11: NTD11 total MDA target pop | ND11: NTD11 total MDA target pop | NF11: NTD12 total MDA target pop | NG11: NTD12 total MDA target pop | NI11: NTD13 total MDA target pop | NJ11: NTD13 total MDA target pop | NL11: NTD14 total MDA target pop | NM11: NTD14 total MDA target pop | NO11: NTD15 total MDA target pop | NP11: NTD15 total MDA target pop | NR11: NTD16 total MDA target pop | NS11: NTD16 total MDA target pop | NU11: NTD17 total MDA target pop | NV11: NTD17 total MDA target pop | NX11: NTD18 total MDA target pop | NY11: NTD18 total MDA target pop | OA11: NTD19 total MDA target pop | OB11: NTD19 total MDA target pop | OD11: NTD20 total MDA target pop | OE11: NTD20 total MDA target pop | OG11: NTD21 total MDA target pop | OH11: NTD21 total MDA target pop | OJ11: Population | OK11: < 6 | OL11: 6-11 | OM11: 12-23 | ON11: 24-59 | OO11: 6-59 | OP11: > 2 | OQ11: > 5 | OU11: Pre-school age | OV11: School aged | OW11: Adult | OY11: LF total MDA target pop | OZ11: LF total MDA target pop | PA11: LF total MDA target pop | PC11: ONCHO round 1 MDA target pop | PD11: ONCHO round 2 MDA target pop | PE11: ONCHO total | PG11: SCH school-aged MDA target pop | PH11: SCH high-risk adult MDA target pop | PI11: SCH total MDA target pop | PK11: STH1 preschool-aged MDA target pop | PL11: STH1 school-aged MDA target pop | PM11: STH1 high-risk adult MDA target pop | PN11: STH 1 total MDA target pop | PO11: STH2 total MDA target pop | PP11: STH total | PR11: Trachoma <6 mos. MDA target pop | PS11: Trachoma 6-59 mos. MDA target pop | PT11: Trachoma >5 years MDA target pop | PU11: Trachoma >5 years MDA target pop | PV11: Total Trachoma MDA target pop | QC11: NTD6 total MDA target pop | QD11: NTD6 total MDA target pop | QF11: NTD7 total MDA target pop | QG11: NTD7 total MDA target pop | QI11: NTD8 total MDA target pop | QJ11: NTD8 total MDA target pop | QL11: NTD9 total MDA target pop | QM11: NTD9 total MDA target pop | QO11: NTD10 total MDA target pop | QP11: NTD10 total MDA target pop | QR11: NTD11 total MDA target pop | QS11: NTD11 total MDA target pop | QU11: NTD12 total MDA target pop | QV11: NTD12 total MDA target pop | QX11: NTD13 total MDA target pop | QY11: NTD13 total MDA target pop | RA11: NTD14 total MDA target pop | RB11: NTD14 total MDA target pop | RD11: NTD15 total MDA target pop | RE11: NTD15 total MDA target pop | RG11: NTD16 total MDA target pop | RH11: NTD16 total MDA target pop | RJ11: NTD17 total MDA target pop | RK11: NTD17 total MDA target pop | RM11: NTD18 total MDA target pop | RN11: NTD18 total MDA target pop | RP11: NTD19 total MDA target pop | RQ11: NTD19 total MDA target pop | RS11: NTD20 total MDA target pop | RT11: NTD20 total MDA target pop | RV11: NTD21 total MDA target pop | RW11: NTD21 total MDA target pop
AP12: total targeted for use in output 11 | AT12: total targeted for use in output 11 | AX12: total targeted for use in output 11 | BB12: total targeted for use in output 11 | BI12: total targeted for use in output 11 | BT12: total targeted for use in output 11 | BW12: total targeted for use in output 11 | BZ12: total targeted for use in output 11 | CC12: total targeted for use in output 11 | CF12: total targeted for use in output 11 | CI12: total targeted for use in output 11 | CL12: total targeted for use in output 11 | CO12: total targeted for use in output 11 | CR12: total targeted for use in output 11 | CU12: total targeted for use in output 11 | CX12: total targeted for use in output 11 | DA12: total targeted for use in output 11 | DD12: total targeted for use in output 11 | DG12: total targeted for use in output 11 | DJ12: total targeted for use in output 11 | DM12: total targeted for use in output 11 | DP12: total targeted for use in output 11 | DR12: months | DS12: months | DT12: months | DU12: months | DV12: months | DW12: years | DX12: years | EB12: (2 - 20 years) | EC12: (21 - 20 years) | ED12: ( > 20 years) | HG12: months | HH12: months | HI12: months | HJ12: months | HK12: months | HL12: years | HM12: years | HQ12: (2 - 20 years) | HR12: (21 - 20 years) | HS12: ( > 20 years) | KV12: months | KW12: months | KX12: months | KY12: months | KZ12: months | LA12: years | LB12: years | LF12: (2 - 20 years) | LG12: (21 - 20 years) | LH12: ( > 20 years) | OK12: months | OL12: months | OM12: months | ON12: months | OO12: months | OP12: years | OQ12: years | OU12: (2 - 20 years) | OV12: (21 - 20 years) | OW12: ( > 20 years)
AP13: =COUNTIF(AP14:AP915, TRUE) -> 0 | AQ13: =COUNTIF(AQ14:AQ913, TRUE) -> 0 | AR13: =COUNTIF(AR14:AR913, TRUE) -> 0 | AS13: 0 | AT13: 0 | AU13: 0 | AV13: 0 | AW13: 0 | AX13: 0 | AY13: 0 | AZ13: 0 | BA13: 0 | BB13: 0 | BC13: 0 | BD13: 0 | BE13: 0 | BF13: 0 | BG13: 0 | BH13: 0 | BI13: 0 | BJ13: 0 | BK13: 0 | BL13: 0 | BM13: 0 | BN13: 0 | BO13: 0 | BP13: 0 | BQ13: 0 | BR13: 0 | BS13: 0 | BT13: 0 | BU13: 0 | BV13: 0 | BW13: 0 | BX13: 0 | BY13: 0 | BZ13: 0 | CA13: 0 | CB13: 0 | CC13: 0 | CD13: 0 | CE13: 0 | CF13: 0 | CG13: 0 | CH13: 0 | CI13: 0 | CJ13: 0 | CK13: 0 | CL13: 0 | CM13: 0 | CN13: 0 | CO13: 0 | CP13: 0 | CQ13: 0 | CR13: 0 | CS13: 0 | CT13: 0 | CU13: 0 | CV13: 0 | CW13: 0 | CX13: 0 | CY13: 0 | CZ13: 0 | DA13: 0 | DB13: 0 | DC13: 0 | DD13: =COUNTIF(DD14:DD913, TRUE) -> 0 | DE13: 0 | DF13: 0 | DG13: 0 | DH13: 0 | DI13: 0 | DJ13: 0 | DK13: 0 | DL13: 0 | DM13: 0 | DN13: 0 | DO13: 0 | DR13: =SUM(DR14:DR913) -> 0 | DS13: =SUM(DS14:DS913) -> 0 | DT13: 0 | DU13: 0 | DV13: 0 | DW13: 0 | DX13: 0 | EB13: 0 | EC13: 0 | ED13: 0 | EF13: =SUM(EF14:EF913) -> 0 | EG13: =SUM(EG14:EG913) -> 0 | EH13: =SUM(EH14:EH913) -> 0 | EJ13: =SUM(EJ14:EJ913) -> 0 | EK13: =SUM(EK14:EK913) -> 0 | EL13: =SUM(EL14:EL913) -> 0 | EN13: =SUM(EN14:EN913) -> 0 | EO13: =SUM(EO14:EO913) -> 0 | EP13: =SUM(EP14:EP913) -> 0 | ER13: =SUM(ER14:ER913) -> 0 | ES13: 0 | ET13: 0 | EU13: 0 | EV13: 0 | EW13: 0 | EY13: =SUM(EY14:EY913) -> 0 | EZ13: =SUM(EZ14:EZ913) -> 0 | FA13: =SUM(FA14:FA913) -> 0 | FB13: =SUM(FB14:FB913) -> 0 | FC13: =SUM(FC14:FC913) -> 0 | FJ13: =SUM(FJ14:FJ913) -> 0 | FK13: =SUM(FK14:FK913) -> 0 | FM13: =SUM(FM14:FM913) -> 0 | FN13: =SUM(FN14:FN913) -> 0 | FP13: =SUM(FP14:FP913) -> 0 | FQ13: =SUM(FQ14:FQ913) -> 0 | FS13: =SUM(FS14:FS913) -> 0 | FT13: =SUM(FT14:FT913) -> 0 | FV13: =SUM(FV14:FV913) -> 0 | FW13: =SUM(FW14:FW913) -> 0 | FY13: =SUM(FY14:FY913) -> 0 | FZ13: =SUM(FZ14:FZ913) -> 0 | GB13: =SUM(GB14:GB913) -> 0 | GC13: =SUM(GC14:GC913) -> 0 | GE13: =SUM(GE14:GE913) -> 0 | GF13: =SUM(GF14:GF913) -> 0 | GH13: =SUM(GH14:GH913) -> 0 | GI13: =SUM(GI14:GI913) -> 0 | GK13: =SUM(GK14:GK913) -> 0 | GL13: =SUM(GL14:GL913) -> 0 | GN13: =SUM(GN14:GN913) -> 0 | GO13: =SUM(GO14:GO913) -> 0 | GQ13: =SUM(GQ14:GQ913) -> 0 | GR13: =SUM(GR14:GR913) -> 0 | GT13: =SUM(GT14:GT913) -> 0 | GU13: =SUM(GU14:GU913) -> 0 | GW13: =SUM(GW14:GW913) -> 0 | GX13: =SUM(GX14:GX913) -> 0 | GZ13: =SUM(GZ14:GZ913) -> 0 | HA13: =SUM(HA14:HA913) -> 0 | HC13: =SUM(HC14:HC913) -> 0 | HD13: =SUM(HD14:HD913) -> 0 | HG13: =SUM(HG14:HG913) -> 0 | HH13: =SUM(HH14:HH913) -> 0 | HI13: 0 | HJ13: 0 | HK13: 0 | HL13: 0 | HM13: 0 | HQ13: 0 | HR13: 0 | HS13: 0 | HU13: =SUM(HU14:HU913) -> 0 | HV13: =SUM(HV14:HV913) -> 0 | HW13: =SUM(HW14:HW913) -> 0 | HY13: =SUM(HY14:HY913) -> 0 | HZ13: =SUM(HZ14:HZ913) -> 0 | IA13: =SUM(IA14:IA913) -> 0 | IC13: =SUM(IC14:IC913) -> 0 | ID13: =SUM(ID14:ID913) -> 0 | IE13: =SUM(IE14:IE913) -> 0 | IG13: =SUM(IG14:IG913) -> 0 | IH13: 0 | II13: 0 | IJ13: 0 | IK13: 0 | IL13: 0 | IN13: =SUM(IN14:IN913) -> 0 | IO13: =SUM(IO14:IO913) -> 0 | IP13: =SUM(IP14:IP913) -> 0 | IQ13: =SUM(IQ14:IQ913) -> 0 | IR13: =SUM(IR14:IR913) -> 0 | IY13: =SUM(IY14:IY913) -> 0 | IZ13: =SUM(IZ14:IZ913) -> 0 | JB13: =SUM(JB14:JB913) -> 0 | JC13: =SUM(JC14:JC913) -> 0 | JE13: =SUM(JE14:JE913) -> 0 | JF13: =SUM(JF14:JF913) -> 0 | JH13: =SUM(JH14:JH913) -> 0 | JI13: =SUM(JI14:JI913) -> 0 | JK13: =SUM(JK14:JK913) -> 0 | JL13: =SUM(JL14:JL913) -> 0 | JN13: =SUM(JN14:JN913) -> 0 | JO13: =SUM(JO14:JO913) -> 0 | JQ13: =SUM(JQ14:JQ913) -> 0 | JR13: =SUM(JR14:JR913) -> 0 | JT13: =SUM(JT14:JT913) -> 0 | JU13: =SUM(JU14:JU913) -> 0 | JW13: =SUM(JW14:JW913) -> 0 | JX13: =SUM(JX14:JX913) -> 0 | JZ13: =SUM(JZ14:JZ913) -> 0 | KA13: =SUM(KA14:KA913) -> 0 | KC13: =SUM(KC14:KC913) -> 0 | KD13: =SUM(KD14:KD913) -> 0 | KF13: =SUM(KF14:KF913) -> 0 | KG13: =SUM(KG14:KG913) -> 0 | KI13: =SUM(KI14:KI913) -> 0 | KJ13: =SUM(KJ14:KJ913) -> 0 | KL13: =SUM(KL14:KL913) -> 0 | KM13: =SUM(KM14:KM913) -> 0 | KO13: =SUM(KO14:KO913) -> 0 | KP13: =SUM(KP14:KP913) -> 0 | KR13: =SUM(KR14:KR913) -> 0 | KS13: =SUM(KS14:KS913) -> 0 | KV13: =SUM(KV14:KV913) -> 0 | KW13: =SUM(KW14:KW913) -> 0 | KX13: 0 | KY13: 0 | KZ13: 0 | LA13: 0 | LB13: 0 | LF13: 0 | LG13: 0 | LH13: 0 | LJ13: =SUM(LJ14:LJ913) -> 0 | LK13: =SUM(LK14:LK913) -> 0 | LL13: =SUM(LL14:LL913) -> 0 | LN13: =SUM(LN14:LN913) -> 0 | LO13: =SUM(LO14:LO913) -> 0 | LP13: =SUM(LP14:LP913) -> 0 | LR13: =SUM(LR14:LR913) -> 0 | LS13: =SUM(LS14:LS913) -> 0 | LT13: =SUM(LT14:LT913) -> 0 | LV13: =SUM(LV14:LV913) -> 0 | LW13: 0 | LX13: 0 | LY13: 0 | LZ13: 0 | MA13: 0 | MC13: =SUM(MC14:MC913) -> 0 | MD13: =SUM(MD14:MD913) -> 0 | ME13: =SUM(ME14:ME913) -> 0 | MF13: =SUM(MF14:MF913) -> 0 | MG13: =SUM(MG14:MG913) -> 0 | MN13: =SUM(MN14:MN913) -> 0 | MO13: =SUM(MO14:MO913) -> 0 | MQ13: =SUM(MQ14:MQ913) -> 0 | MR13: =SUM(MR14:MR913) -> 0 | MT13: =SUM(MT14:MT913) -> 0 | MU13: =SUM(MU14:MU913) -> 0 | MW13: =SUM(MW14:MW913) -> 0 | MX13: =SUM(MX14:MX913) -> 0 | MZ13: =SUM(MZ14:MZ913) -> 0 | NA13: =SUM(NA14:NA913) -> 0 | NC13: =SUM(NC14:NC913) -> 0 | ND13: =SUM(ND14:ND913) -> 0 | NF13: =SUM(NF14:NF913) -> 0 | NG13: =SUM(NG14:NG913) -> 0 | NI13: =SUM(NI14:NI913) -> 0 | NJ13: =SUM(NJ14:NJ913) -> 0 | NL13: =SUM(NL14:NL913) -> 0 | NM13: =SUM(NM14:NM913) -> 0 | NO13: =SUM(NO14:NO913) -> 0 | NP13: =SUM(NP14:NP913) -> 0 | NR13: =SUM(NR14:NR913) -> 0 | NS13: =SUM(NS14:NS913) -> 0 | NU13: =SUM(NU14:NU913) -> 0 | NV13: =SUM(NV14:NV913) -> 0 | NX13: =SUM(NX14:NX913) -> 0 | NY13: =SUM(NY14:NY913) -> 0 | OA13: =SUM(OA14:OA913) -> 0 | OB13: =SUM(OB14:OB913) -> 0 | OD13: =SUM(OD14:OD913) -> 0 | OE13: =SUM(OE14:OE913) -> 0 | OG13: =SUM(OG14:OG913) -> 0 | OH13: =SUM(OH14:OH913) -> 0 | OK13: =SUM(OK14:OK913) -> 0 | OL13: =SUM(OL14:OL913) -> 0 | OM13: 0 | ON13: 0 | OO13: 0 | OP13: 0 | OQ13: 0 | OU13: 0 | OV13: 0 | OW13: 0 | OY13: =SUM(OY14:OY913) -> 0 | OZ13: =SUM(OZ14:OZ913) -> 0 | PA13: =SUM(PA14:PA913) -> 0 | PC13: =SUM(PC14:PC913) -> 0 | PD13: =SUM(PD14:PD913) -> 0 | PE13: =SUM(PE14:PE913) -> 0 | PG13: =SUM(PG14:PG913) -> 0 | PH13: =SUM(PH14:PH913) -> 0 | PI13: =SUM(PI14:PI913) -> 0 | PK13: =SUM(PK14:PK913) -> 0 | PL13: 0 | PM13: 0 | PN13: 0 | PO13: 0 | PP13: 0 | PR13: =SUM(PR14:PR913) -> 0 | PS13: =SUM(PS14:PS913) -> 0 | PT13: =SUM(PT14:PT913) -> 0 | PU13: =SUM(PU14:PU913) -> 0 | PV13: =SUM(PV14:PV913) -> 0 | QC13: =SUM(QC14:QC913) -> 0 | QD13: =SUM(QD14:QD913) -> 0 | QF13: =SUM(QF14:QF913) -> 0 | QG13: =SUM(QG14:QG913) -> 0 | QI13: =SUM(QI14:QI913) -> 0 | QJ13: =SUM(QJ14:QJ913) -> 0 | QL13: =SUM(QL14:QL913) -> 0 | QM13: =SUM(QM14:QM913) -> 0 | QO13: =SUM(QO14:QO913) -> 0 | QP13: =SUM(QP14:QP913) -> 0 | QR13: =SUM(QR14:QR913) -> 0 | QS13: =SUM(QS14:QS913) -> 0 | QU13: =SUM(QU14:QU913) -> 0 | QV13: =SUM(QV14:QV913) -> 0 | QX13: =SUM(QX14:QX913) -> 0 | QY13: =SUM(QY14:QY913) -> 0 | RA13: =SUM(RA14:RA913) -> 0 | RB13: =SUM(RB14:RB913) -> 0 | RD13: =SUM(RD14:RD913) -> 0 | RE13: =SUM(RE14:RE913) -> 0 | RG13: =SUM(RG14:RG913) -> 0 | RH13: =SUM(RH14:RH913) -> 0 | RJ13: =SUM(RJ14:RJ913) -> 0 | RK13: =SUM(RK14:RK913) -> 0 | RM13: =SUM(RM14:RM913) -> 0 | RN13: =SUM(RN14:RN913) -> 0 | RP13: =SUM(RP14:RP913) -> 0 | RQ13: =SUM(RQ14:RQ913) -> 0 | RS13: =SUM(RS14:RS913) -> 0 | RT13: =SUM(RT14:RT913) -> 0 | RV13: =SUM(RV14:RV913) -> 0 | RW13: =SUM(RW14:RW913) -> 0
A14: 1
A15: 2
A16: 3
A17: 4
A18: 5

Sheet W1C1 (hidden)
B1: Population table
A2: 0
B4: Enter all regions and districts in the country. For each district, enter the number of villages, number of schools, and total population. *Village and school data is optional | OG4: `
B5: IMPORTANT
B6: Do not delete rows, skip rows, insert new rows, or change the order of districts previously entered. Insert all new districts at the bottom of the worksheet.
B7: Do not use commas (,) or periods (.) in any cell.
AB10: ="FY " & 2010 +GI!$B$5 -> FY 2013 | AQ10: LF | AU10: ONCHO | AY10: SCH | BC10: STH | BJ10: TRACHOMA | BU10: =GI!$G$7 -> NTD6 Name | BX10: =GI!$G$8 -> NTD7 Name | CA10: =GI!$G$9 -> NTD8 Name | CD10: =GI!$G$10 -> NTD9 Name | CG10: =GI!$G$11 -> NTD10 Name | CJ10: =GI!$G$12 -> NTD11 Name | CM10: =GI!$G$13 -> NTD12 Name | CP10: =GI!$G$14 -> NTD13 Name | CS10: =GI!$G$15 -> NTD14 Name | CV10: =GI!$G$16 -> NTD15 Name | CY10: =GI!$G$17 -> NTD16 Name | DB10: =GI!$G$18 -> NTD17 Name | DE10: =GI!$G$19 -> NTD18 Name | DH10: =GI!$G$20 -> NTD19 Name | DK10: =GI!$G$21 -> NTD20 Name | DQ10: ="FY " & 2010 +GI!$B$5+1 -> FY 2014 | EF10: LF | EJ10: ONCHO | EN10: SCH | ER10: STH | EY10: TRACHOMA | FJ10: =GI!$G$7 -> NTD6 Name | FM10: =GI!$G$8 -> NTD7 Name | FP10: =GI!$G$9 -> NTD8 Name | FS10: =GI!$G$10 -> NTD9 Name | FV10: =GI!$G$11 -> NTD10 Name | FY10: =GI!$G$12 -> NTD11 Name | GB10: =GI!$G$13 -> NTD12 Name | GE10: =GI!$G$14 -> NTD13 Name | GH10: =GI!$G$15 -> NTD14 Name | GK10: =GI!$G$16 -> NTD15 Name | GN10: =GI!$G$17 -> NTD16 Name | GQ10: =GI!$G$18 -> NTD17 Name | GT10: =GI!$G$19 -> NTD18 Name | GW10: =GI!$G$20 -> NTD19 Name | GZ10: =GI!$G$21 -> NTD20 Name | HF10: ="FY " & 2010 +GI!$B$5+2 -> FY 2015 | HU10: LF | HY10: ONCHO | IC10: SCH | IG10: STH | IN10: TRACHOMA | IY10: =GI!$G$7 -> NTD6 Name | JB10: =GI!$G$8 -> NTD7 Name | JE10: =GI!$G$9 -> NTD8 Name | JH10: =GI!$G$10 -> NTD9 Name | JK10: =GI!$G$11 -> NTD10 Name | JN10: =GI!$G$12 -> NTD11 Name | JQ10: =GI!$G$13 -> NTD12 Name | JT10: =GI!$G$14 -> NTD13 Name | JW10: =GI!$G$15 -> NTD14 Name | JZ10: =GI!$G$16 -> NTD15 Name | KC10: =GI!$G$17 -> NTD16 Name | KF10: =GI!$G$18 -> NTD17 Name | KI10: =GI!$G$19 -> NTD18 Name | KL10: =GI!$G$20 -> NTD19 Name | KO10: =GI!$G$21 -> NTD20 Name | KU10: ="FY " & 2010 +GI!$B$5+3 -> FY 2016 | LJ10: LF | LN10: ONCHO | LR10: SCH | LV10: STH | MC10: TRACHOMA | MN10: =GI!$G$7 -> NTD6 Name | MQ10: =GI!$G$8 -> NTD7 Name | MT10: =GI!$G$9 -> NTD8 Name | MW10: =GI!$G$10 -> NTD9 Name | MZ10: =GI!$G$11 -> NTD10 Name | NC10: =GI!$G$12 -> NTD11 Name | NF10: =GI!$G$13 -> NTD12 Name | NI10: =GI!$G$14 -> NTD13 Name | NL10: =GI!$G$15 -> NTD14 Name | NO10: =GI!$G$16 -> NTD15 Name | NR10: =GI!$G$17 -> NTD16 Name | NU10: =GI!$G$18 -> NTD17 Name | NX10: =GI!$G$19 -> NTD18 Name | OA10: =GI!$G$20 -> NTD19 Name | OD10: =GI!$G$21 -> NTD20 Name | OJ10: ="FY " & 2010 +GI!$B$5+4 -> FY 2017 | OY10: LF | PC10: ONCHO | PG10: SCH | PK10: STH | PR10: TRACHOMA | QC10: =GI!$G$7 -> NTD6 Name | QF10: =GI!$G$8 -> NTD7 Name | QI10: =GI!$G$9 -> NTD8 Name | QL10: =GI!$G$10 -> NTD9 Name | QO10: =GI!$G$11 -> NTD10 Name | QR10: =GI!$G$12 -> NTD11 Name | QU10: =GI!$G$13 -> NTD12 Name | QX10: =GI!$G$14 -> NTD13 Name | RA10: =GI!$G$15 -> NTD14 Name | RD10: =GI!$G$16 -> NTD15 Name | RG10: =GI!$G$17 -> NTD16 Name | RJ10: =GI!$G$18 -> NTD17 Name | RM10: =GI!$G$19 -> NTD18 Name | RP10: =GI!$G$20 -> NTD19 Name | RS10: =GI!$G$21 -> NTD20 Name
D11: ="Number of " & GI!$B$30 & "*" -> Number of Villages* | E11: Number of schools* | F11: LF Disease Burden Code | G11: ONCHO Disease Burden Code | H11: SCH Disease Burden Code | I11: STH Disease Burden Code | J11: Trachoma Disease Burden Code | K11: =GI!$G$7&" at risk code" -> NTD6 Name at risk code | L11: =GI!$G$8&" at risk code" -> NTD7 Name at risk code | M11: =GI!$G$9&" at risk code" -> NTD8 Name at risk code | N11: =GI!$G$10&" at risk code" -> NTD9 Name at risk code | O11: =GI!$G$11&" at risk code" -> NTD10 Name at risk code | P11: =GI!$G$12&" at risk code" -> NTD11 Name at risk code | Q11: =GI!$G$13&" at risk code" -> NTD12 Name at risk code | R11: =GI!$G$14&" at risk code" -> NTD13 Name at risk code | S11: =GI!$G$15&" at risk code" -> NTD14 Name at risk code | T11: =GI!$G$16&" at risk code" -> NTD15 Name at risk code | U11: =GI!$G$17&" at risk code" -> NTD16 Name at risk code | V11: =GI!$G$18&" at risk code" -> NTD17 Name at risk code | W11: =GI!$G$19&" at risk code" -> NTD18 Name at risk code | X11: =GI!$G$20&" at risk code" -> NTD19 Name at risk code | Y11: =GI!$G$21&" at risk code" -> NTD20 Name at risk code | AB11: Total population | AC11: < 6 | AD11: 6-11 | AE11: 12-23 | AF11: 24-59 | AG11: 6-59 | AH11: ≥ 2 | AI11: ≥ 5 | AJ11: Pre-school age | AK11: School aged | AL11: Adult | AQ11: MDA target population | AR11: Lymphoedema cases | AS11: Hydrocele cases | AU11: ONCHO 1 | AV11: ONCHO 2 | AW11: Total | AY11: School aged | AZ11: High risk adults | BA11: Total | BC11: Pre-school aged | BD11: School aged | BE11: High-risk adults | BF11: STH 1 Total | BG11: STH 2 | BH11: STH Total | BJ11: MDA target populations | BM11: Total MDA | BN11: TT Prevalence | BO11: TT Indicator | BP11: Total TT backlog | BQ11: Minimum surgeries | BU11: =GI!$H$26 -> Intervention 1 | BV11: =GI!$I$26 -> Intervention 2 | BX11: =GI!$H$27 -> Intervention 1 | BY11: =GI!$I$27 -> Intervention 2 | CA11: =GI!$H$28 -> Intervention 1 | CB11: =GI!$I$28 -> Intervention 2 | CD11: =GI!$H$29 -> Intervention 1 | CE11: =GI!$I$29 -> Intervention 2 | CG11: =GI!$H$30 -> Intervention 1 | CH11: =GI!$I$30 -> Intervention 2 | CJ11: =GI!$H$31 -> Intervention 1 | CK11: =GI!$I$31 -> Intervention 2 | CM11: =GI!$H$32 -> Intervention 1 | CN11: =GI!$I$32 -> Intervention 2 | CP11: =GI!$H$33 -> Intervention 1 | CQ11: =GI!$I$33 -> Intervention 2 | CS11: =GI!$H$34 -> Intervention 1 | CT11: =GI!$I$34 -> Intervention 2 | CV11: =GI!$H$35 -> Intervention 1 | CW11: =GI!$I$35 -> Intervention 2 | CY11: =GI!$H$36 -> Intervention 1 | CZ11: =GI!$I$36 -> Intervention 2 | DB11: =GI!$H$37 -> Intervention 1 | DC11: =GI!$I$37 -> Intervention 2 | DE11: =GI!$H$38 -> Intervention 1 | DF11: =GI!$I$38 -> Intervention 2 | DH11: =GI!$H$39 -> Intervention 1 | DI11: =GI!$I$39 -> Intervention 2 | DK11: =GI!$H$40 -> Intervention 1 | DL11: =GI!$I$40 -> Intervention 2 | DN11: =GI!$H26 -> Intervention 1 | DO11: =GI!$I26 -> Intervention 2 | DQ11: Total population | DR11: < 6 | DS11: 6-11 | DT11: 12-23 | DU11: 24-59 | DV11: 6-59 | DW11: ≥ 2 | DX11: ≥ 5 | DY11: Pre-school age | DZ11: School aged | EA11: Adult | EF11: Target population | EG11: Lymphoedema cases | EH11: Hydrocele cases | EJ11: ONCHO 1 | EK11: ONCHO 2 | EL11: Total | EN11: School aged | EO11: High risk adults | EP11: Total | ER11: Pre-school aged | ES11: School aged | ET11: High-risk adults | EU11: STH 1 Total | EV11: STH 2 | EW11: STH Total | EY11: MDA target populations | FB11: Total MDA | FC11: TT Prevalence | FD11: TT Indicator | FE11: Total TT backlog | FF11: Minimum surgeries | FJ11: =GI!$H$26 -> Intervention 1 | FK11: =GI!$I$26 -> Intervention 2 | FM11: =GI!$H$27 -> Intervention 1 | FN11: =GI!$I$27 -> Intervention 2 | FP11: =GI!$H$28 -> Intervention 1 | FQ11: =GI!$I$28 -> Intervention 2 | FS11: =GI!$H$29 -> Intervention 1 | FT11: =GI!$I$29 -> Intervention 2 | FV11: =GI!$H$30 -> Intervention 1 | FW11: =GI!$I$30 -> Intervention 2 | FY11: =GI!$H$31 -> Intervention 1 | FZ11: =GI!$I$31 -> Intervention 2 | GB11: =GI!$H$32 -> Intervention 1 | GC11: =GI!$I$32 -> Intervention 2 | GE11: =GI!$H$33 -> Intervention 1 | GF11: =GI!$I$33 -> Intervention 2 | GH11: =GI!$H$34 -> Intervention 1 | GI11: =GI!$I$34 -> Intervention 2 | GK11: =GI!$H$35 -> Intervention 1 | GL11: =GI!$I$35 -> Intervention 2 | GN11: =GI!$H$36 -> Intervention 1 | GO11: =GI!$I$36 -> Intervention 2 | GQ11: =GI!$H$37 -> Intervention 1 | GR11: =GI!$I$37 -> Intervention 2 | GT11: =GI!$H$38 -> Intervention 1 | GU11: =GI!$I$38 -> Intervention 2 | GW11: =GI!$H$39 -> Intervention 1 | GX11: =GI!$I$39 -> Intervention 2 | GZ11: =GI!$H$40 -> Intervention 1 | HA11: =GI!$I$40 -> Intervention 2 | HC11: Screening and prevention | HD11: Case management | HF11: Total population | HG11: < 6 | HH11: 6-11 | HI11: 12-23 | HJ11: 24-59 | HK11: 6-59 | HL11: ≥ 2 | HM11: ≥ 5 | HN11: Pre-school age | HO11: School aged | HP11: Adult | HU11: Target population | HV11: Lymphoedema cases | HW11: Hydrocele cases | HY11: ONCHO 1 | HZ11: ONCHO 2 | IA11: Total | IC11: School aged | ID11: High risk adults | IE11: Total | IG11: Pre-school aged | IH11: School aged | II11: High-risk adults | IJ11: STH 1 Total | IK11: STH 2 | IL11: STH Total | IN11: MDA target populations | IQ11: Total MDA | IR11: TT Prevalence | IS11: TT Indicator | IT11: Total TT backlog | IU11: Minimum surgeries | IY11: =GI!$H$26 -> Intervention 1 | IZ11: =GI!$I$26 -> Intervention 2 | JB11: =GI!$H$27 -> Intervention 1 | JC11: =GI!$I$27 -> Intervention 2 | JE11: =GI!$H$28 -> Intervention 1 | JF11: =GI!$I$28 -> Intervention 2 | JH11: =GI!$H$29 -> Intervention 1 | JI11: =GI!$I$29 -> Intervention 2 | JK11: =GI!$H$30 -> Intervention 1 | JL11: =GI!$I$30 -> Intervention 2 | JN11: =GI!$H$31 -> Intervention 1 | JO11: =GI!$I$31 -> Intervention 2 | JQ11: =GI!$H$32 -> Intervention 1 | JR11: =GI!$I$32 -> Intervention 2 | JT11: =GI!$H$33 -> Intervention 1 | JU11: =GI!$I$33 -> Intervention 2 | JW11: =GI!$H$34 -> Intervention 1 | JX11: =GI!$I$34 -> Intervention 2 | JZ11: =GI!$H$35 -> Intervention 1 | KA11: =GI!$I$35 -> Intervention 2 | KC11: =GI!$H$36 -> Intervention 1 | KD11: =GI!$I$36 -> Intervention 2 | KF11: =GI!$H$37 -> Intervention 1 | KG11: =GI!$I$37 -> Intervention 2 | KI11: =GI!$H$38 -> Intervention 1 | KJ11: =GI!$I$38 -> Intervention 2 | KL11: =GI!$H$39 -> Intervention 1 | KM11: =GI!$I$39 -> Intervention 2 | KO11: =GI!$H$40 -> Intervention 1 | KP11: =GI!$I$40 -> Intervention 2 | KR11: Screening and prevention | KS11: Case management | KU11: Total population | KV11: < 6 | KW11: 6-11 | KX11: 12-23 | KY11: 24-59 | KZ11: 6-59 | LA11: ≥ 2 | LB11: ≥ 5 | LC11: Pre-school age | LD11: School aged | LE11: Adult | LJ11: Target population | LK11: Lymphoedema cases | LL11: Hydrocele cases | LN11: ONCHO 1 | LO11: ONCHO 2 | LP11: Total | LR11: School aged | LS11: High risk adults | LT11: Total | LV11: Pre-school aged | LW11: School aged | LX11: High-risk adults | LY11: STH 1 Total | LZ11: STH 2 | MA11: STH Total | MC11: MDA target populations | MF11: Total MDA | MG11: TT Prevalence | MH11: TT Indicator | MI11: Total TT backlog | MJ11: Minimum surgeries | MN11: =GI!$H$26 -> Intervention 1 | MO11: =GI!$I$26 -> Intervention 2 | MQ11: =GI!$H$27 -> Intervention 1 | MR11: =GI!$I$27 -> Intervention 2 | MT11: =GI!$H$28 -> Intervention 1 | MU11: =GI!$I$28 -> Intervention 2 | MW11: =GI!$H$29 -> Intervention 1 | MX11: =GI!$I$29 -> Intervention 2 | MZ11: =GI!$H$30 -> Intervention 1 | NA11: =GI!$I$30 -> Intervention 2 | NC11: =GI!$H$31 -> Intervention 1 | ND11: =GI!$I$31 -> Intervention 2 | NF11: =GI!$H$32 -> Intervention 1 | NG11: =GI!$I$32 -> Intervention 2 | NI11: =GI!$H$33 -> Intervention 1 | NJ11: =GI!$I$33 -> Intervention 2 | NL11: =GI!$H$34 -> Intervention 1 | NM11: =GI!$I$34 -> Intervention 2 | NO11: =GI!$H$35 -> Intervention 1 | NP11: =GI!$I$35 -> Intervention 2 | NR11: =GI!$H$36 -> Intervention 1 | NS11: =GI!$I$36 -> Intervention 2 | NU11: =GI!$H$37 -> Intervention 1 | NV11: =GI!$I$37 -> Intervention 2 | NX11: =GI!$H$38 -> Intervention 1 | NY11: =GI!$I$38 -> Intervention 2 | OA11: =GI!$H$39 -> Intervention 1 | OB11: =GI!$I$39 -> Intervention 2 | OD11: =GI!$H$40 -> Intervention 1 | OE11: =GI!$I$40 -> Intervention 2 | OG11: Screening and prevention | OH11: Case management | OJ11: Total population | OK11: < 6 | OL11: 6-11 | OM11: 12-23 | ON11: 24-59 | OO11: 6-59 | OP11: ≥ 2 | OQ11: ≥ 5 | OR11: Pre-school age | OS11: School aged | OT11: Adult | OY11: Target population | OZ11: Lymphoedema cases | PA11: Hydrocele cases | PC11: ONCHO 1 | PD11: ONCHO 2 | PE11: Total | PG11: School aged | PH11: High risk adults | PI11: Total | PK11: Pre-school aged | PL11: School aged | PM11: High-risk adults | PN11: STH 1 Total | PO11: STH 2 | PP11: STH Total | PR11: MDA target populations | PU11: Total MDA | PV11: TT Prevalence | PW11: TT Indicator | PX11: Total TT backlog | PY11: Minimum surgeries | QC11: =GI!$H$26 -> Intervention 1 | QD11: =GI!$I$26 -> Intervention 2 | QF11: =GI!$H$27 -> Intervention 1 | QG11: =GI!$I$27 -> Intervention 2 | QI11: =GI!$H$28 -> Intervention 1 | QJ11: =GI!$I$28 -> Intervention 2 | QL11: =GI!$H$29 -> Intervention 1 | QM11: =GI!$I$29 -> Intervention 2 | QO11: =GI!$H$30 -> Intervention 1 | QP11: =GI!$I$30 -> Intervention 2 | QR11: =GI!$H$31 -> Intervention 1 | QS11: =GI!$I$31 -> Intervention 2 | QU11: =GI!$H$32 -> Intervention 1 | QV11: =GI!$I$32 -> Intervention 2 | QX11: =GI!$H$33 -> Intervention 1 | QY11: =GI!$I$33 -> Intervention 2 | RA11: =GI!$H$34 -> Intervention 1 | RB11: =GI!$I$34 -> Intervention 2 | RD11: =GI!$H$35 -> Intervention 1 | RE11: =GI!$I$35 -> Intervention 2 | RG11: =GI!$H$36 -> Intervention 1 | RH11: =GI!$I$36 -> Intervention 2 | RJ11: =GI!$H$37 -> Intervention 1 | RK11: =GI!$I$37 -> Intervention 2 | RM11: =GI!$H$38 -> Intervention 1 | RN11: =GI!$I$38 -> Intervention 2 | RP11: =GI!$H$39 -> Intervention 1 | RQ11: =GI!$I$39 -> Intervention 2 | RS11: =GI!$H$40 -> Intervention 1 | RT11: =GI!$I$40 -> Intervention 2 | RV11: Screening and prevention | RW11: Case management
AC12: months | AD12: months | AE12: months | AF12: months | AG12: months | AH12: years | AI12: years | AJ12: ="(" &GI!$F$25 & "-" & GI!$F$26& " years)" -> (- years) | AK12: ="(" &GI!$F$26 +1 &"-" & GI!$F$28& " years)" -> (1- years) | AL12: ="( > " &GI!$F$30& " years)" -> ( > years) | AM12: Pregnant women | BJ12: < 6 months | BK12: 6-59 months | BL12: ≥ 5 years | BO12: (0 or 1) | BQ12: (UID goal) | BR12: TT Surgeries | DR12: months | DS12: months | DT12: months | DU12: months | DV12: months | DW12: years | DX12: years | DY12: ="(" &GI!$F$25 & "-" & GI!$F$26& " years)" -> (- years) | DZ12: ="(" &GI!$F$26 +1 &"-" & GI!$F$28& " years)" -> (1- years) | EA12: ="( > " &GI!$F$30& " years)" -> ( > years) | EB12: Pregnant women | EY12: < 6 months | EZ12: 6-59 months | FA12: ≥ 5 years | FD12: (0 or 1) | FF12: (UID goal) | FG12: TT surgeries | HG12: months | HH12: months | HI12: months | HJ12: months | HK12: months | HL12: years | HM12: years | HN12: ="(" &GI!$F$25 & "-" & GI!$F$26& " years)" -> (- years) | HO12: ="(" &GI!$F$26 +1 &"-" & GI!$F$28& " years)" -> (1- years) | HP12: ="( > " &GI!$F$30& " years)" -> ( > years) | HQ12: Pregnant women | IN12: < 6 months | IO12: 6-59 months | IP12: ≥ 5 years | IS12: (0 or 1) | IU12: (UID goal) | IV12: TT surgeries | KV12: months | KW12: months | KX12: months | KY12: months | KZ12: months | LA12: years | LB12: years | LC12: ="(" &GI!$F$25 & "-" & GI!$F$26& " years)" -> (- years) | LD12: ="(" &GI!$F$26 +1 &"-" & GI!$F$28& " years)" -> (1- years) | LE12: ="( > " &GI!$F$30& " years)" -> ( > years) | LF12: Pregnant women | MC12: < 6 months | MD12: 6-59 months | ME12: ≥ 5 years | MH12: (0 or 1) | MJ12: (UID goal) | MK12: TT surgeries | OK12: months | OL12: months | OM12: months | ON12: months | OO12: months | OP12: years | OQ12: years | OR12: ="(" &GI!$F$25 & "-" & GI!$F$26& " years)" -> (- years) | OS12: ="(" &GI!$F$26 +1 &"-" & GI!$F$28& " years)" -> (1- years) | OT12: ="( > " &GI!$F$30& " years)" -> ( > years) | OU12: Pregnant women | PR12: < 6 months | PS12: 6-59 months | PT12: ≥ 5 years | PW12: (0 or 1) | PY12: (UID goal) | PZ12: TT surgeries
B13: =GI!$B$24 -> Regions | C13: =GI!$B$27 -> Districts | AB13: =SUM(AB14:AB913) -> 0 | AC13: =SUM(AC14:AC913) -> 0 | AD13: =SUM(AD14:AD913) -> 0 | AE13: 0 | AF13: 0 | AG13: 0 | AH13: 0 | AI13: 0 | AJ13: =SUM(AJ14:AJ913) -> 0 | AK13: =SUM(AK14:AK913) -> 0 | AL13: =SUM(AL14:AL913) -> 0 | AM13: =SUM(AM14:AM913) -> 0 | AN13: 0 | AO13: 0 | AQ13: =SUM(AQ14:AQ913) -> 0 | AR13: =SUM(AR14:AR913) -> 0 | AS13: =SUM(AS14:AS913) -> 0 | AU13: =SUM(AU14:AU913) -> 0 | AV13: 0 | AW13: 0 | AY13: =SUM(AY14:AY913) -> 0 | AZ13: 0 | BA13: 0 | BC13: =SUM(BC14:BC913) -> 0 | BD13: 0 | BE13: 0 | BF13: 0 | BG13: 0 | BH13: 0 | BJ13: =SUM(BJ14:BJ913) -> 0 | BK13: 0 | BL13: 0 | BM13: 0 | BO13: =SUM(BO14:BO913) -> 0 | BP13: 0 | BQ13: =SUM(BQ14:BQ913) -> 0 | BR13: =SUM(BR14:BR913) -> 0 | BU13: =SUM(BU14:BU913) -> 0 | BV13: =SUM(BV14:BV913) -> 0 | BX13: =SUM(BX14:BX913) -> 0 | BY13: =SUM(BY14:BY913) -> 0 | CA13: =SUM(CA14:CA913) -> 0 | CB13: =SUM(CB14:CB913) -> 0 | CD13: =SUM(CD14:CD913) -> 0 | CE13: =SUM(CE14:CE913) -> 0 | CG13: =SUM(CG14:CG913) -> 0 | CH13: =SUM(CH14:CH913) -> 0 | CJ13: =SUM(CJ14:CJ913) -> 0 | CK13: =SUM(CK14:CK913) -> 0 | CM13: =SUM(CM14:CM913) -> 0 | CN13: =SUM(CN14:CN913) -> 0 | CP13: =SUM(CP14:CP913) -> 0 | CQ13: =SUM(CQ14:CQ913) -> 0 | CS13: =SUM(CS14:CS913) -> 0 | CT13: =SUM(CT14:CT913) -> 0 | CV13: =SUM(CV14:CV913) -> 0 | CW13: =SUM(CW14:CW913) -> 0 | CY13: =SUM(CY14:CY913) -> 0 | CZ13: =SUM(CZ14:CZ913) -> 0 | DB13: =SUM(DB14:DB913) -> 0 | DC13: =SUM(DC14:DC913) -> 0 | DE13: =SUM(DE14:DE913) -> 0 | DF13: =SUM(DF14:DF913) -> 0 | DH13: =SUM(DH14:DH913) -> 0 | DI13: =SUM(DI14:DI913) -> 0 | DK13: =SUM(DK14:DK913) -> 0 | DL13: =SUM(DL14:DL913) -> 0 | DN13: =SUM(DN14:DN913) -> 0 | DO13: =SUM(DO14:DO913) -> 0 | DQ13: =SUM(DQ14:DQ913) -> 0 | DR13: 0 | DS13: 0 | DT13: 0 | DU13: 0 | DV13: 0 | DW13: 0 | DX13: 0 | DY13: 0 | DZ13: 0 | EA13: 0 | EB13: 0 | EF13: =SUM(EF14:EF913) -> 0 | EG13: =SUM(EG14:EG913) -> 0 | EH13: =SUM(EH14:EH913) -> 0 | EJ13: =SUM(EJ14:EJ913) -> 0 | EK13: =SUM(EK14:EK913) -> 0 | EL13: =SUM(EL14:EL913) -> 0 | EN13: =SUM(EN14:EN913) -> 0 | EO13: =SUM(EO14:EO913) -> 0 | EP13: =SUM(EP14:EP913) -> 0 | ER13: =SUM(ER14:ER913) -> 0 | ES13: 0 | ET13: 0 | EU13: 0 | EV13: 0 | EW13: 0 | EY13: =SUM(EY14:EY913) -> 0 | EZ13: =SUM(EZ14:EZ913) -> 0 | FA13: =SUM(FA14:FA913) -> 0 | FB13: =SUM(FB14:FB913) -> 0 | FE13: =SUM(FE14:FE913) -> 0 | FF13: =SUM(FF14:FF913) -> 0 | FG13: =SUM(FG14:FG913) -> 0 | FJ13: =SUM(FJ14:FJ913) -> 0 | FK13: =SUM(FK14:FK913) -> 0 | FM13: =SUM(FM14:FM913) -> 0 | FN13: =SUM(FN14:FN913) -> 0 | FP13: =SUM(FP14:FP913) -> 0 | FQ13: =SUM(FQ14:FQ913) -> 0 | FS13: =SUM(FS14:FS913) -> 0 | FT13: =SUM(FT14:FT913) -> 0 | FV13: =SUM(FV14:FV913) -> 0 | FW13: =SUM(FW14:FW913) -> 0 | FY13: =SUM(FY14:FY913) -> 0 | FZ13: =SUM(FZ14:FZ913) -> 0 | GB13: =SUM(GB14:GB913) -> 0 | GC13: =SUM(GC14:GC913) -> 0 | GE13: =SUM(GE14:GE913) -> 0 | GF13: =SUM(GF14:GF913) -> 0 | GH13: =SUM(GH14:GH913) -> 0 | GI13: =SUM(GI14:GI913) -> 0 | GK13: =SUM(GK14:GK913) -> 0 | GL13: =SUM(GL14:GL913) -> 0 | GN13: =SUM(GN14:GN913) -> 0 | GO13: =SUM(GO14:GO913) -> 0 | GQ13: =SUM(GQ14:GQ913) -> 0 | GR13: =SUM(GR14:GR913) -> 0 | GT13: =SUM(GT14:GT913) -> 0 | GU13: =SUM(GU14:GU913) -> 0 | GW13: =SUM(GW14:GW913) -> 0 | GX13: =SUM(GX14:GX913) -> 0 | GZ13: =SUM(GZ14:GZ913) -> 0 | HA13: =SUM(HA14:HA913) -> 0 | HC13: =SUM(HC14:HC913) -> 0 | HD13: =SUM(HD14:HD913) -> 0 | HF13: =SUM(HF14:HF913) -> 0 | HG13: 0 | HH13: 0 | HI13: 0 | HJ13: 0 | HK13: 0 | HL13: 0 | HM13: 0 | HN13: 0 | HO13: 0 | HP13: 0 | HQ13: 0 | HU13: =SUM(HU14:HU913) -> 0 | HV13: =SUM(HV14:HV913) -> 0 | HW13: =SUM(HW14:HW913) -> 0 | HY13: =SUM(HY14:HY913) -> 0 | HZ13: =SUM(HZ14:HZ913) -> 0 | IA13: =SUM(IA14:IA913) -> 0 | IC13: =SUM(IC14:IC913) -> 0 | ID13: =SUM(ID14:ID913) -> 0 | IE13: =SUM(IE14:IE913) -> 0 | IG13: =SUM(IG14:IG913) -> 0 | IH13: 0 | II13: 0 | IJ13: 0 | IK13: 0 | IL13: 0 | IN13: =SUM(IN14:IN913) -> 0 | IO13: =SUM(IO14:IO913) -> 0 | IP13: =SUM(IP14:IP913) -> 0 | IQ13: =SUM(IQ14:IQ913) -> 0 | IS13: =SUM(IS14:IS913) -> 0 | IT13: =SUM(IT14:IT913) -> 0 | IU13: =SUM(IU14:IU913) -> 0 | IV13: =SUM(IV14:IV913) -> 0 | IY13: =SUM(IY14:IY913) -> 0 | IZ13: =SUM(IZ14:IZ913) -> 0 | JB13: =SUM(JB14:JB913) -> 0 | JC13: =SUM(JC14:JC913) -> 0 | JE13: =SUM(JE14:JE913) -> 0 | JF13: =SUM(JF14:JF913) -> 0 | JH13: =SUM(JH14:JH913) -> 0 | JI13: =SUM(JI14:JI913) -> 0 | JK13: =SUM(JK14:JK913) -> 0 | JL13: =SUM(JL14:JL913) -> 0 | JN13: =SUM(JN14:JN913) -> 0 | JO13: =SUM(JO14:JO913) -> 0 | JQ13: =SUM(JQ14:JQ913) -> 0 | JR13: =SUM(JR14:JR913) -> 0 | JT13: =SUM(JT14:JT913) -> 0 | JU13: =SUM(JU14:JU913) -> 0 | JW13: =SUM(JW14:JW913) -> 0 | JX13: =SUM(JX14:JX913) -> 0 | JZ13: =SUM(JZ14:JZ913) -> 0 | KA13: =SUM(KA14:KA913) -> 0 | KC13: =SUM(KC14:KC913) -> 0 | KD13: =SUM(KD14:KD913) -> 0 | KF13: =SUM(KF14:KF913) -> 0 | KG13: =SUM(KG14:KG913) -> 0 | KI13: =SUM(KI14:KI913) -> 0 | KJ13: =SUM(KJ14:KJ913) -> 0 | KL13: =SUM(KL14:KL913) -> 0 | KM13: =SUM(KM14:KM913) -> 0 | KO13: =SUM(KO14:KO913) -> 0 | KP13: =SUM(KP14:KP913) -> 0 | KR13: =SUM(KR14:KR913) -> 0 | KS13: =SUM(KS14:KS913) -> 0 | KU13: =SUM(KU14:KU913) -> 0 | KV13: =SUM(KV14:KV913) -> 0 | KW13: =SUM(KW14:KW913) -> 0 | KX13: 0 | KY13: 0 | KZ13: 0 | LA13: 0 | LB13: 0 | LC13: 0 | LD13: 0 | LE13: 0 | LF13: 0 | LJ13: =SUM(LJ14:LJ913) -> 0 | LK13: =SUM(LK14:LK913) -> 0 | LL13: =SUM(LL14:LL913) -> 0 | LN13: =SUM(LN14:LN913) -> 0 | LO13: =SUM(LO14:LO913) -> 0 | LP13: =SUM(LP14:LP913) -> 0 | LR13: =SUM(LR14:LR913) -> 0 | LS13: =SUM(LS14:LS913) -> 0 | LT13: =SUM(LT14:LT913) -> 0 | LV13: =SUM(LV14:LV913) -> 0 | LW13: 0 | LX13: 0 | LY13: 0 | LZ13: 0 | MA13: 0 | MC13: =SUM(MC14:MC913) -> 0 | MD13: =SUM(MD14:MD913) -> 0 | ME13: =SUM(ME14:ME913) -> 0 | MF13: =SUM(MF14:MF913) -> 0 | MH13: =SUM(MH14:MH913) -> 0 | MI13: =SUM(MI14:MI913) -> 0 | MJ13: =SUM(MJ14:MJ913) -> 0 | MK13: =SUM(MK14:MK913) -> 0 | MN13: =SUM(MN14:MN913) -> 0 | MO13: =SUM(MO14:MO913) -> 0 | MQ13: =SUM(MQ14:MQ913) -> 0 | MR13: =SUM(MR14:MR913) -> 0 | MT13: =SUM(MT14:MT913) -> 0 | MU13: =SUM(MU14:MU913) -> 0 | MW13: =SUM(MW14:MW913) -> 0 | MX13: =SUM(MX14:MX913) -> 0 | MZ13: =SUM(MZ14:MZ913) -> 0 | NA13: =SUM(NA14:NA913) -> 0 | NC13: =SUM(NC14:NC913) -> 0 | ND13: =SUM(ND14:ND913) -> 0 | NF13: =SUM(NF14:NF913) -> 0 | NG13: =SUM(NG14:NG913) -> 0 | NI13: =SUM(NI14:NI913) -> 0 | NJ13: =SUM(NJ14:NJ913) -> 0 | NL13: =SUM(NL14:NL913) -> 0 | NM13: =SUM(NM14:NM913) -> 0 | NO13: =SUM(NO14:NO913) -> 0 | NP13: =SUM(NP14:NP913) -> 0 | NR13: =SUM(NR14:NR913) -> 0 | NS13: =SUM(NS14:NS913) -> 0 | NU13: =SUM(NU14:NU913) -> 0 | NV13: =SUM(NV14:NV913) -> 0 | NX13: =SUM(NX14:NX913) -> 0 | NY13: =SUM(NY14:NY913) -> 0 | OA13: =SUM(OA14:OA913) -> 0 | OB13: =SUM(OB14:OB913) -> 0 | OD13: =SUM(OD14:OD913) -> 0 | OE13: =SUM(OE14:OE913) -> 0 | OG13: =SUM(OG14:OG913) -> 0 | OH13: =SUM(OH14:OH913) -> 0 | OJ13: =SUM(OJ14:OJ913) -> 0 | OK13: 0 | OL13: 0 | OM13: 0 | ON13: 0 | OO13: 0 | OP13: 0 | OQ13: 0 | OR13: 0 | OS13: 0 | OT13: 0 | OU13: 0 | OV13: 0 | OW13: 0 | OY13: =SUM(OY14:OY913) -> 0 | OZ13: =SUM(OZ14:OZ913) -> 0 | PA13: =SUM(PA14:PA913) -> 0 | PC13: =SUM(PC14:PC913) -> 0 | PD13: =SUM(PD14:PD913) -> 0 | PE13: =SUM(PE14:PE913) -> 0 | PG13: =SUM(PG14:PG913) -> 0 | PH13: =SUM(PH14:PH913) -> 0 | PI13: =SUM(PI14:PI913) -> 0 | PK13: =SUM(PK14:PK913) -> 0 | PL13: 0 | PM13: 0 | PN13: 0 | PO13: 0 | PP13: 0 | PR13: =SUM(PR14:PR913) -> 0 | PS13: =SUM(PS14:PS913) -> 0 | PT13: =SUM(PT14:PT913) -> 0 | PU13: =SUM(PU14:PU913) -> 0 | PX13: =SUM(PX14:PX913) -> 0 | PY13: =SUM(PY14:PY913) -> 0 | PZ13: =SUM(PZ14:PZ913) -> 0 | QC13: =SUM(QC14:QC913) -> 0 | QD13: =SUM(QD14:QD913) -> 0 | QF13: =SUM(QF14:QF913) -> 0 | QG13: =SUM(QG14:QG913) -> 0 | QI13: =SUM(QI14:QI913) -> 0 | QJ13: =SUM(QJ14:QJ913) -> 0 | QL13: =SUM(QL14:QL913) -> 0 | QM13: =SUM(QM14:QM913) -> 0 | QO13: =SUM(QO14:QO913) -> 0 | QP13: =SUM(QP14:QP913) -> 0 | QR13: =SUM(QR14:QR913) -> 0 | QS13: =SUM(QS14:QS913) -> 0 | QU13: =SUM(QU14:QU913) -> 0 | QV13: =SUM(QV14:QV913) -> 0 | QX13: =SUM(QX14:QX913) -> 0 | QY13: =SUM(QY14:QY913) -> 0 | RA13: =SUM(RA14:RA913) -> 0 | RB13: =SUM(RB14:RB913) -> 0 | RD13: =SUM(RD14:RD913) -> 0 | RE13: =SUM(RE14:RE913) -> 0 | RG13: =SUM(RG14:RG913) -> 0 | RH13: =SUM(RH14:RH913) -> 0 | RJ13: =SUM(RJ14:RJ913) -> 0 | RK13: =SUM(RK14:RK913) -> 0 | RM13: =SUM(RM14:RM913) -> 0 | RN13: =SUM(RN14:RN913) -> 0 | RP13: =SUM(RP14:RP913) -> 0 | RQ13: =SUM(RQ14:RQ913) -> 0 | RS13: =SUM(RS14:RS913) -> 0 | RT13: =SUM(RT14:RT913) -> 0 | RV13: =SUM(RV14:RV913) -> 0 | RW13: =SUM(RW14:RW913) -> 0
AC14: =AB14*GI!$F$20/100 -> 0 | AD14: =AB14*GI!$F$21/100 -> 0 | AE14: =AB14*GI!$F$22/100 -> 0 | AF14: =AB14*GI!$F$23/100 -> 0 | AG14: =AD14+AE14+AF14 -> 0 | AH14: =AB14-(AC14+AD14+AE14) -> 0 | AI14: =AB14*GI!$F$24/100 -> 0 | AJ14: =AB14*GI!$F$27/100 -> 0 | AK14: =AB14*GI!$F$29/100 -> 0 | AL14: =AB14*GI!$F$31/100 -> 0 | AM14: =AB14*GI!$F$32/100 -> 0 | AQ14: =IF(MDADISTRICTS!AQ14, GI!$E$13/100 *W1C1!AB14, 0) -> 0 | AW14: =AU14+AV14 -> 0 | BA14: =AY14+AZ14 -> 0 | BC14: =IF(MDADISTRICTS!BC14,AJ14,) -> 0 | BD14: =IF(MDADISTRICTS!BD14,AK14,0) -> 0 | BF14: =BC14+BD14+BE14 -> 0 | BG14: =IF(MDADISTRICTS!BG14,BF14,) -> 0 | BH14: =BF14+BG14 -> 0 | BJ14: =IF(MDADISTRICTS!$BJ14, IF($J14 = 2, BJ14, ""), 0) -> 0 | BK14: =IF(MDADISTRICTS!BK14, IF($J14 = 2, AG14,""), 0) -> 0 | BL14: =IF(MDADISTRICTS!BL14, IF($J14 = 2,AI14, ""),0) -> 0 | BM14: =BJ14+BK14+BL14 -> 0 | DQ14: =AB14*(GI!$F$34) -> 0 | DR14: =AC14*(GI!$F$34) -> 0 | DS14: =AD14*(GI!$F$34) -> 0 | DT14: =AE14*(GI!$F$34) -> 0 | DU14: =AF14*(GI!$F$34) -> 0 | DV14: =AG14*(GI!$F$34) -> 0 | DW14: =AH14*(GI!$F$34) -> 0 | DX14: =AI14*(GI!$F$34) -> 0 | DY14: =AJ14*(GI!$F$34) -> 0 | DZ14: =AK14*(GI!$F$34) -> 0 | EA14: =AL14*(GI!$F$34) -> 0 | EB14: =AM14*(GI!$F$34) -> 0 | EF14: =IF(MDADISTRICTS!EF14, IF(MDADISTRICTS!AQ14, AQ14*GI!$F$34, DQ14*GI!$E$13/100 ),0) -> 0 | EG14: =IF(MDADISTRICTS!EG14, AR14,0) -> 0 | EJ14: =IF(MDADISTRICTS!EJ14, AU14*(GI!$F$34),0) -> 0 | EK14: =IF(MDADISTRICTS!EK14, AV14*(GI!$F$34),0) -> 0 | EL14: =EJ14+EK14 -> 0 | EN14: =IF(MDADISTRICTS!EN14, AY14*(GI!$F$34),0) -> 0 | EO14: =IF(MDADISTRICTS!EO14, AZ14*(GI!$F$34),0) -> 0 | EP14: =EN14+EO14 -> 0 | ER14: =IF(MDADISTRICTS!ER14, IF(MDADISTRICTS!BC14, BC14*(GI!$F$34), DY14),0) -> 0 | ES14: =IF(MDADISTRICTS!ES14, IF(MDADISTRICTS!BD14, BD14*(GI!$F$34), DZ14),0) -> 0 | ET14: =IF(MDADISTRICTS!ET14, BE14*(GI!$F$34),0) -> 0 | EU14: =ER14+ES14+ET14 -> 0 | EV14: =IF(MDADISTRICTS!EV14,EU14,) -> 0 | EW14: =EU14+EV14 -> 0 | EY14: =IF(MDADISTRICTS!EY14, IF(MDADISTRICTS!BJ14, BJ14*(GI!$F$34), IF($J14 = 2, DR14, "")),0) -> 0 | EZ14: =IF(MDADISTRICTS!EZ14, IF(MDADISTRICTS!BK14, BK14*(GI!$F$34), IF($J14 = 2, DV14, "")),0) -> 0 | FA14: =IF(MDADISTRICTS!FA14, IF(MDADISTRICTS!BL14, BL14*(GI!$F$34), IF($J14 = 2, DX14, "")),0) -> 0 | FB14: =EY14+EZ14+FA14 -> 0 | FE14: =BP14 -> 0 | FF14: =BQ14 -> 0 | FJ14: =IF(MDADISTRICTS!FJ14, BU14*(GI!$F$34),0) -> 0 | FK14: =IF(MDADISTRICTS!FK14, BV14*(GI!$F$34),0) -> 0 | FM14: =IF(MDADISTRICTS!FM14, BX14*(GI!$F$34),0) -> 0 | FN14: =IF(MDADISTRICTS!FN14, BY14*(GI!$F$34),0) -> 0 | FP14: =IF(MDADISTRICTS!FP14, CA14*(GI!$F$34),0) -> 0 | FQ14: =IF(MDADISTRICTS!FQ14, CB14*(GI!$F$34),0) -> 0 | FS14: =IF(MDADISTRICTS!FS14, CD14*(GI!$F$34),0) -> 0 | FT14: =IF(MDADISTRICTS!FT14, CE14*(GI!$F$34),0) -> 0 | FV14: =IF(MDADISTRICTS!FV14, CG14*(GI!$F$34),0) -> 0 | FW14: =IF(MDADISTRICTS!FW14, CH14*(GI!$F$34),0) -> 0 | FY14: =IF(MDADISTRICTS!FY14, CJ14*(GI!$F$34),0) -> 0 | FZ14: =IF(MDADISTRICTS!FZ14, CK14*(GI!$F$34),0) -> 0 | GB14: =IF(MDADISTRICTS!GB14, CM14*(GI!$F$34),0) -> 0 | GC14: =IF(MDADISTRICTS!GC14, CN14*(GI!$F$34),0) -> 0 | GE14: =IF(MDADISTRICTS!GE14, CP14*(GI!$F$34),0) -> 0 | GF14: =IF(MDADISTRICTS!GF14, CQ14*(GI!$F$34),0) -> 0 | GH14: =IF(MDADISTRICTS!GH14, CS14*(GI!$F$34),0) -> 0 | GI14: =IF(MDADISTRICTS!GI14, CT14*(GI!$F$34),0) -> 0 | GK14: =IF(MDADISTRICTS!GK14, CV14*(GI!$F$34),0) -> 0 | GL14: =IF(MDADISTRICTS!GL14, CW14*(GI!$F$34),0) -> 0 | GN14: =IF(MDADISTRICTS!GN14, CY14*(GI!$F$34),0) -> 0 | GO14: =IF(MDADISTRICTS!GO14, CZ14*(GI!$F$34),0) -> 0 | GQ14: =IF(MDADISTRICTS!GQ14, DB14*(GI!$F$34),0) -> 0 | GR14: =IF(MDADISTRICTS!GR14, DC14*(GI!$F$34),0) -> 0 | GT14: =IF(MDADISTRICTS!GT14, DE14*(GI!$F$34),0) -> 0 | GU14: =IF(MDADISTRICTS!GU14, DF14*(GI!$F$34),0) -> 0 | GW14: =IF(MDADISTRICTS!GW14, DH14*(GI!$F$34),0) -> 0 | GX14: =IF(MDADISTRICTS!GX14, DI14*(GI!$F$34),0) -> 0 | GZ14: =IF(MDADISTRICTS!GZ14, DK14*(GI!$F$34),0) -> 0 | HA14: =IF(MDADISTRICTS!HA14, DL14*(GI!$F$34),0) -> 0 | HC14: =IF(MDADISTRICTS!HC14, DN14*(GI!$F$34),0) -> 0 | HD14: =IF(MDADISTRICTS!HD14, DO14*(GI!$F$34),0) -> 0 | HF14: =DQ14*(GI!$F$34) -> 0 | HG14: =DR14*(GI!$F$34) -> 0 | HH14: =DS14*(GI!$F$34) -> 0 | HI14: =DT14*(GI!$F$34) -> 0 | HJ14: =DU14*(GI!$F$34) -> 0 | HK14: =DV14*(GI!$F$34) -> 0 | HL14: =DW14*(GI!$F$34) -> 0 | HM14: =DX14*(GI!$F$34) -> 0 | HN14: =DY14*(GI!$F$34) -> 0 | HO14: =DZ14*(GI!$F$34) -> 0 | HP14: =EA14*(GI!$F$34) -> 0 | HQ14: =EB14*(GI!$F$34) -> 0 | HU14: =IF(MDADISTRICTS!HU14, IF(MDADISTRICTS!EF14, EF14*(GI!$F$34), HF14*GI!$E$13/100),0) -> 0 | HV14: =IF(MDADISTRICTS!HV14, EG14,0) -> 0 | HY14: =IF(MDADISTRICTS!HY14, EJ14*(GI!$F$34),0) -> 0 | HZ14: =IF(MDADISTRICTS!HZ14, EK14*(GI!$F$34),0) -> 0 | IA14: =HY14+HZ14 -> 0 | IC14: =IF(MDADISTRICTS!IC14, EN14*(GI!$F$34),0) -> 0 | ID14: =IF(MDADISTRICTS!ID14, EO14*(GI!$F$34),0) -> 0 | IE14: =IC14+ID14 -> 0 | IG14: =IF(MDADISTRICTS!IG14, IF(MDADISTRICTS!ER14, ER14*(GI!$F$34), HN14),0) -> 0 | IH14: =IF(MDADISTRICTS!IH14, IF(MDADISTRICTS!ES14, ES14*(GI!$F$34), HO14),0) -> 0 | II14: =IF(MDADISTRICTS!II14, ET14*(GI!$F$34),0) -> 0 | IJ14: =IG14+IH14+II14 -> 0 | IK14: =IF(MDADISTRICTS!IK14,IJ14,) -> 0 | IL14: =IJ14+IK14 -> 0 | IN14: =IF(MDADISTRICTS!IN14, IF(MDADISTRICTS!EY14, EY14*(GI!$F$34), IF($J14 = 2, HG14, "")),0) -> 0 | IO14: =IF(MDADISTRICTS!IO14, IF(MDADISTRICTS!EZ14, EZ14*(GI!$F$34), IF($J14 = 2, HK14, "")),0) -> 0 | IP14: =IF(MDADISTRICTS!IP14, IF(MDADISTRICTS!FA14, FA14*(GI!$F$34), IF($J14 = 2, HM14, "")),0) -> 0 | IQ14: =IN14+IO14+IP14 -> 0 | IT14: =FE14 -> 0 | IU14: =FF14 -> 0 | IY14: =IF(MDADISTRICTS!IY14, FJ14*(GI!$F$34),0) -> 0 | IZ14: =IF(MDADISTRICTS!IZ14, FK14*(GI!$F$34),0) -> 0 | JB14: =IF(MDADISTRICTS!JB14, FM14*(GI!$F$34),0) -> 0 | JC14: =IF(MDADISTRICTS!JC14, FN14*(GI!$F$34),0) -> 0 | JE14: =IF(MDADISTRICTS!JE14, FP14*(GI!$F$34),0) -> 0 | JF14: =IF(MDADISTRICTS!JF14, FQ14*(GI!$F$34),0) -> 0 | JH14: =IF(MDADISTRICTS!JH14, FS14*(GI!$F$34),0) -> 0 | JI14: =IF(MDADISTRICTS!JI14, FT14*(GI!$F$34),0) -> 0 | JK14: =IF(MDADISTRICTS!JK14, FV14*(GI!$F$34),0) -> 0 | JL14: =IF(MDADISTRICTS!JL14, FW14*(GI!$F$34),0) -> 0 | JN14: =IF(MDADISTRICTS!JN14, FY14*(GI!$F$34),0) -> 0 | JO14: =IF(MDADISTRICTS!JO14, FZ14*(GI!$F$34),0) -> 0 | JQ14: =IF(MDADISTRICTS!JQ14, GB14*(GI!$F$34),0) -> 0 | JR14: =IF(MDADISTRICTS!JR14, GC14*(GI!$F$34),0) -> 0 | JT14: =IF(MDADISTRICTS!JT14, GE14*(GI!$F$34),0) -> 0 | JU14: =IF(MDADISTRICTS!JU14, GF14*(GI!$F$34),0) -> 0 | JW14: =IF(MDADISTRICTS!JW14, GH14*(GI!$F$34),0) -> 0 | JX14: =IF(MDADISTRICTS!JX14, GI14*(GI!$F$34),0) -> 0 | JZ14: =IF(MDADISTRICTS!JZ14, GK14*(GI!$F$34),0) -> 0 | KA14: =IF(MDADISTRICTS!KA14, GL14*(GI!$F$34),0) -> 0 | KC14: =IF(MDADISTRICTS!KC14, GN14*(GI!$F$34),0) -> 0 | KD14: =IF(MDADISTRICTS!KD14, GO14*(GI!$F$34),0) -> 0 | KF14: =IF(MDADISTRICTS!KF14, GQ14*(GI!$F$34),0) -> 0 | KG14: =IF(MDADISTRICTS!KG14, GR14*(GI!$F$34),0) -> 0 | KI14: =IF(MDADISTRICTS!KI14, GT14*(GI!$F$34),0) -> 0 | KJ14: =IF(MDADISTRICTS!KJ14, GU14*(GI!$F$34),0) -> 0 | KL14: =IF(MDADISTRICTS!KL14, GW14*(GI!$F$34),0) -> 0 | KM14: =IF(MDADISTRICTS!KM14, GX14*(GI!$F$34),0) -> 0 | KO14: =IF(MDADISTRICTS!KO14, GZ14*(GI!$F$34),0) -> 0 | KP14: =IF(MDADISTRICTS!KP14, HA14*(GI!$F$34),0) -> 0 | KU14: =HF14*(GI!$F$34) -> 0 | KV14: =HG14*(GI!$F$34) -> 0 | KW14: =HH14*(GI!$F$34) -> 0 | KX14: =HI14*(GI!$F$34) -> 0 | KY14: =HJ14*(GI!$F$34) -> 0 | KZ14: =HK14*(GI!$F$34) -> 0 | LA14: =HL14*(GI!$F$34) -> 0 | LB14: =HM14*(GI!$F$34) -> 0 | LC14: =HN14*(GI!$F$34) -> 0 | LD14: =HO14*(GI!$F$34) -> 0 | LE14: =HP14*(GI!$F$34) -> 0 | LF14: =HQ14*(GI!$F$34) -> 0 | LJ14: =IF(MDADISTRICTS!LJ14, IF(MDADISTRICTS!HU14, HU14*(GI!$F$34), KU14*GI!$E$13/100),0) -> 0 | LK14: =IF(MDADISTRICTS!LK14, HV14,0) -> 0 | LN14: =IF(MDADISTRICTS!LN14, HY14*(GI!$F$34),0) -> 0 | LO14: =IF(MDADISTRICTS!LO14, HZ14*(GI!$F$34),0) -> 0 | LP14: =LN14+LO14 -> 0 | LR14: =IF(MDADISTRICTS!LR14, IC14*(GI!$F$34),0) -> 0 | LS14: =IF(MDADISTRICTS!LS14, ID14*(GI!$F$34),0) -> 0 | LT14: =LR14+LS14 -> 0 | LV14: =IF(MDADISTRICTS!LV14, IF(MDADISTRICTS!IG14, IG14*(GI!$F$34), LC14),0) -> 0 | LW14: =IF(MDADISTRICTS!LW14, IF(MDADISTRICTS!IH14, IH14*(GI!$F$34), LD14),0) -> 0 | LX14: =IF(MDADISTRICTS!LX14, II14*(GI!$F$34),0) -> 0 | LY14: =LV14+LW14+LX14 -> 0 | LZ14: =IF(MDADISTRICTS!LZ14,LY14,) -> 0 | MA14: =LY14+LZ14 -> 0 | MC14: =IF(MDADISTRICTS!MC14, IF(MDADISTRICTS!IN14, IN14*(GI!$F$34), IF($J14 = 2, KV14, "")),0) -> 0 | MD14: =IF(MDADISTRICTS!MD14, IF(MDADISTRICTS!IO14, IO14*(GI!$F$34), IF($J14 = 2, KZ14, "")),0) -> 0 | ME14: =IF(MDADISTRICTS!ME14, IF(MDADISTRICTS!IP14, IP14*(GI!$F$34), IF($J14 = 2, LB14, "")),0) -> 0 | MF14: =+MC14+MD14+ME14 -> 0 | MI14: =IT14 -> 0 | MJ14: =IU14 -> 0 | MN14: =IF(MDADISTRICTS!MN14, IY14*(GI!$F$34),0) -> 0 | MO14: =IF(MDADISTRICTS!MO14, IZ14*(GI!$F$34),0) -> 0 | MQ14: =IF(MDADISTRICTS!MQ14, JB14*(GI!$F$34),0) -> 0 | MR14: =IF(MDADISTRICTS!MR14, JC14*(GI!$F$34),0) -> 0 | MT14: =IF(MDADISTRICTS!MT14, JE14*(GI!$F$34),0) -> 0 | MU14: =IF(MDADISTRICTS!MU14, JF14*(GI!$F$34),0) -> 0 | MW14: =IF(MDADISTRICTS!MW14, JH14*(GI!$F$34),0) -> 0 | MX14: =IF(MDADISTRICTS!MX14, JI14*(GI!$F$34),0) -> 0 | MZ14: =IF(MDADISTRICTS!MZ14, JK14*(GI!$F$34),0) -> 0 | NA14: =IF(MDADISTRICTS!NA14, JL14*(GI!$F$34),0) -> 0 | NC14: =IF(MDADISTRICTS!NC14, JN14*(GI!$F$34),0) -> 0 | ND14: =IF(MDADISTRICTS!ND14, JO14*(GI!$F$34),0) -> 0 | NF14: =IF(MDADISTRICTS!NF14, JQ14*(GI!$F$34),0) -> 0 | NG14: =IF(MDADISTRICTS!NG14, JR14*(GI!$F$34),0) -> 0 | NI14: =IF(MDADISTRICTS!NI14, JT14*(GI!$F$34),0) -> 0 | NJ14: =IF(MDADISTRICTS!NJ14, JU14*(GI!$F$34),0) -> 0 | NL14: =IF(MDADISTRICTS!NL14, JW14*(GI!$F$34),0) -> 0 | NM14: =IF(MDADISTRICTS!NM14, JX14*(GI!$F$34),0) -> 0 | NO14: =IF(MDADISTRICTS!NO14, JZ14*(GI!$F$34),0) -> 0 | NP14: =IF(MDADISTRICTS!NP14, KA14*(GI!$F$34),0) -> 0 | NR14: =IF(MDADISTRICTS!NR14, KC14*(GI!$F$34),0) -> 0 | NS14: =IF(MDADISTRICTS!NS14, KD14*(GI!$F$34),0) -> 0 | NU14: =IF(MDADISTRICTS!NU14, KF14*(GI!$F$34),0) -> 0 | NV14: =IF(MDADISTRICTS!NV14, KG14*(GI!$F$34),0) -> 0 | NX14: =IF(MDADISTRICTS!NX14, KI14*(GI!$F$34),0) -> 0 | NY14: =IF(MDADISTRICTS!NY14, KJ14*(GI!$F$34),0) -> 0 | OA14: =IF(MDADISTRICTS!OA14, KL14*(GI!$F$34),0) -> 0 | OB14: =IF(MDADISTRICTS!OB14, KM14*(GI!$F$34),0) -> 0 | OD14: =IF(MDADISTRICTS!OD14, KO14*(GI!$F$34),0) -> 0 | OE14: =IF(MDADISTRICTS!OE14, KP14*(GI!$F$34),0) -> 0 | OJ14: =KU14*(GI!$F$34) -> 0 | OK14: =KV14*(GI!$F$34) -> 0 | OL14: =KW14*(GI!$F$34) -> 0 | OM14: =KX14*(GI!$F$34) -> 0 | ON14: =KY14*(GI!$F$34) -> 0 | OO14: =KZ14*(GI!$F$34) -> 0 | OP14: =LA14*(GI!$F$34) -> 0 | OQ14: =LB14*(GI!$F$34) -> 0 | OR14: =LC14*(GI!$F$34) -> 0 | OS14: =LD14*(GI!$F$34) -> 0 | OT14: =LE14*(GI!$F$34) -> 0 | OU14: =LF14*(GI!$F$34) -> 0 | OY14: =IF(MDADISTRICTS!OY14, IF(MDADISTRICTS!LJ14, LJ14*(GI!$F$34), OJ14*GI!$E$13/100),0) -> 0 | OZ14: =IF(MDADISTRICTS!OZ14, LK14,0) -> 0 | PC14: =IF(MDADISTRICTS!PC14, LN14*(GI!$F$34),0) -> 0 | PD14: =IF(MDADISTRICTS!PD14, LO14*(GI!$F$34),0) -> 0 | PE14: =PC14+PD14 -> 0 | PG14: =IF(MDADISTRICTS!PG14, LR14*(GI!$F$34),0) -> 0 | PH14: =IF(MDADISTRICTS!PH14, LS14*(GI!$F$34),0) -> 0 | PI14: =PG14+PH14 -> 0 | PK14: =IF(MDADISTRICTS!PK14, IF(MDADISTRICTS!LV14, LV14*(GI!$F$34), OR14),0) -> 0 | PL14: =IF(MDADISTRICTS!PL14, IF(MDADISTRICTS!LW14, LW14*(GI!$F$34), OS14),0) -> 0 | PM14: =IF(MDADISTRICTS!PM14, LX14*(GI!$F$34),0) -> 0 | PN14: =PK14+PL14+PM14 -> 0 | PO14: =IF(MDADISTRICTS!PO14,PN14,) -> 0 | PP14: =PN14+PO14 -> 0 | PR14: =IF(MDADISTRICTS!PR14, IF(MDADISTRICTS!MC14, MC14*(GI!$F$34), IF($J14 = 2, OK14, "")),0) -> 0 | PS14: =IF(MDADISTRICTS!PS14, IF(MDADISTRICTS!MD14, MD14*(GI!$F$34), IF($J14 = 2, OO14, "")),0) -> 0 | PT14: =IF(MDADISTRICTS!PT14, IF(MDADISTRICTS!ME14, ME14*(GI!$F$34), IF($J14 = 2, OQ14, "")),0) -> 0 | PU14: =+PR14+PS14+PT14 -> 0 | PX14: =MI14 -> 0 | PY14: =MJ14 -> 0 | QC14: =IF(MDADISTRICTS!QC14, MN14*(GI!$F$34),0) -> 0 | QD14: =IF(MDADISTRICTS!QD14, MO14*(GI!$F$34),0) -> 0 | QF14: =IF(MDADISTRICTS!QF14, MQ14*(GI!$F$34),0) -> 0 | QG14: =IF(MDADISTRICTS!QG14, MR14*(GI!$F$34),0) -> 0 | QI14: =IF(MDADISTRICTS!QI14, MT14*(GI!$F$34),0) -> 0 | QJ14: =IF(MDADISTRICTS!QJ14, MU14*(GI!$F$34),0) -> 0 | QL14: =IF(MDADISTRICTS!QL14, MW14*(GI!$F$34),0) -> 0 | QM14: =IF(MDADISTRICTS!QM14, MX14*(GI!$F$34),0) -> 0 | QO14: =IF(MDADISTRICTS!QO14, MZ14*(GI!$F$34),0) -> 0 | QP14: =IF(MDADISTRICTS!QP14, NA14*(GI!$F$34),0) -> 0 | QR14: =IF(MDADISTRICTS!QR14, NC14*(GI!$F$34),0) -> 0 | QS14: =IF(MDADISTRICTS!QS14, ND14*(GI!$F$34),0) -> 0 | QU14: =IF(MDADISTRICTS!QU14, NF14*(GI!$F$34),0) -> 0 | QV14: =IF(MDADISTRICTS!QV14, NG14*(GI!$F$34),0) -> 0 | QX14: =IF(MDADISTRICTS!QX14, NI14*(GI!$F$34),0) -> 0 | QY14: =IF(MDADISTRICTS!QY14, NJ14*(GI!$F$34),0) -> 0 | RA14: =IF(MDADISTRICTS!RA14, NL14*(GI!$F$34),0) -> 0 | RB14: =IF(MDADISTRICTS!RB14, NM14*(GI!$F$34),0) -> 0 | RD14: =IF(MDADISTRICTS!RD14, NO14*(GI!$F$34),0) -> 0 | RE14: =IF(MDADISTRICTS!RE14, NP14*(GI!$F$34),0) -> 0 | RG14: =IF(MDADISTRICTS!RG14, NR14*(GI!$F$34),0) -> 0 | RH14: =IF(MDADISTRICTS!RH14, NS14*(GI!$F$34),0) -> 0 | RJ14: =IF(MDADISTRICTS!RJ14, NU14*(GI!$F$34),0) -> 0 | RK14: =IF(MDADISTRICTS!RK14, NV14*(GI!$F$34),0) -> 0 | RM14: =IF(MDADISTRICTS!RM14, NX14*(GI!$F$34),0) -> 0 | RN14: =IF(MDADISTRICTS!RN14, NY14*(GI!$F$34),0) -> 0 | RP14: =IF(MDADISTRICTS!RP14, OA14*(GI!$F$34),0) -> 0 | RQ14: =IF(MDADISTRICTS!RQ14, OB14*(GI!$F$34),0) -> 0 | RS14: =IF(MDADISTRICTS!RS14, OD14*(GI!$F$34),0) -> 0 | RT14: =IF(MDADISTRICTS!RT14, OE14*(GI!$F$34),0) -> 0 | RV14: =IF(MDADISTRICTS!RV14, OG14*(GI!$F$34),0) -> 0 | RW14: =IF(MDADISTRICTS!RW14, OH14*(GI!$F$34),0) -> 0
